Workbook

Sheet Scatter (1)
A1: ith Sample Point | B1: Weekly $ Ad Expense (x) | C1: Weekly $ Sales (y) | E1: ="Is there a relationship between "&B1&" and "&C1&"?" -> Is there a relationship between Weekly $ Ad Expense (x) and Weekly $ Sales (y)?
A2: 1 | B2: 63566 | C2: 651334.36
A3: 2 | B3: 50762 | C3: 527670.42
A4: 3 | B4: 50941 | C4: 523751.3
A5: 4 | B5: 17597 | C5: 175466.61
A6: 5 | B6: 33029 | C6: 377977.97
A7: 6 | B7: 58543 | C7: 520100.29
A8: 7 | B8: 60492 | C8: 620856.28
A9: 8 | B9: 59686 | C9: 593739.46
A10: 9 | B10: 16432 | C10: 181948.96
A11: 10 | B11: 17262 | C11: 184643.6
A12: 11 | B12: 39118 | C12: 379373.56
A13: 12 | B13: 36078 | C13: 238687.94
A14: 13 | B14: 42113 | C14: 410066.15
A15: 14 | B15: 50562 | C15: 413540.78
A16: 15 | B16: 38240 | C16: 340241.6
A17: 16 | B17: 59870 | C17: 582843
A18: 17 | B18: 46056 | C18: 433185.92
A19: 18 | B19: 33349 | C19: 270770.38
A20: 19 | B20: 16207 | C20: 164421.42
A21: 20 | B21: 57077 | C21: 478077.5
A22: 21 | B22: 30893 | C22: 393839.09
A23: 22 | B23: 54153 | C23: 430154.06
A24: 23 | B24: 14591 | C24: 210792.82
A25: 24 | B25: 50138 | C25: 343808.68
A26: 25 | B26: 55253 | C26: 565510.49
A27: 26 | B27: 34944 | C27: 330250.88
A28: 27 | B28: 26413 | C28: 295905.03
A29: 28 | B29: 54660 | C29: 562164.2
A30: 29 | B30: 35887 | C30: 257067.99
A31: 30 | B31: 42021 | C31: 384066.95
A32: 31 | B32: 47349 | C32: 441576.23
A33: 32 | B33: 24364 | C33: 252221.2
A34: 33 | B34: 58406 | C34: 552875.66
A35: 34 | B35: 51643 | C35: 446101.81
A36: 35 | B36: 55115 | C36: 476038.95
A37: 36 | B37: 35416 | C37: 393889.36
A38: 37 | B38: 37274 | C38: 328436.78
A39: 38 | B39: 36148 | C39: 408949.64
A40: 39 | B40: 32192 | C40: 394776.32
A41: 40 | B41: 51238 | C41: 455804.96
A42: 41 | B42: 59235 | C42: 526249.4
A43: 42 | B43: 59329 | C43: 562602.56
A44: 43 | B44: 22739 | C44: 180749.25
A45: 44 | B45: 28654 | C45: 275506.98
A46: 45 | B46: 36786 | C46: 372981.08
A47: 46 | B47: 20813 | C47: 216087.74
A48: 47 | B48: 57259 | C48: 470281.06
A49: 48 | B49: 57707 | C49: 481071.29
A50: 49 | B50: 61539 | C50: 612466.46
A51: 50 | B51: 36635 | C51: 370922.6
A52: 51 | B52: 39086 | C52: 448677.2
A53: 52 | B53: 33062 | C53: 259282.46
A54: 53 | B54: 42144 | C54: 354279.68
A55: 54 | B55: 18828 | C55: 185749.88
A56: 55 | B56: 57070 | C56: 415818.7
A57: 56 | B57: 27991 | C57: 252095.02
A58: 57 | B58: 37876 | C58: 329524.88
A59: 58 | B59: 16134 | C59: 233120.9
A60: 59 | B60: 55466 | C60: 376140.08
A61: 60 | B61: 26100 | C61: 208166
A62: 61 | B62: 23787 | C62: 226261.67
A63: 62 | B63: 30895 | C63: 249581.7
A64: 63 | B64: 31845 | C64: 278010.2
A65: 64 | B65: 50618 | C65: 537451.34
A66: 65 | B66: 62293 | C66: 448052.27
A67: 66 | B67: 61228 | C67: 519618.76
A68: 67 | B68: 32558 | C68: 364510.28
A69: 68 | B69: 40694 | C69: 351135.6
A70: 69 | B70: 46333 | C70: 390547.55
A71: 70 | B71: 28415 | C71: 234129.2
A72: 71 | B72: 19993 | C72: 224538.89
A73: 72 | B73: 34414 | C73: 248912.92
A74: 73 | B74: 52078 | C74: 328096.52
A75: 74 | B75: 24507 | C75: 262965.83
A76: 75 | B76: 28516 | C76: 334304.52
A77: 76 | B77: 17554 | C77: 216060.84
A78: 77 | B78: 16662 | C78: 183462.62
A79: 78 | B79: 57162 | C79: 517013.54
A80: 79 | B80: 57297 | C80: 731834.3
A81: 80 | B81: 64112 | C81: 439159.84
A82: 81 | B82: 37237 | C82: 453649.08
A83: 82 | B83: 55058 | C83: 495969.8
A84: 83 | B84: 30791 | C84: 306489.03
A85: 84 | B85: 19784 | C85: 226868.96
A86: 85 | B86: 32463 | C86: 316845.86
A87: 86 | B87: 59364 | C87: 496417.28
A88: 87 | B88: 64632 | C88: 527881.68
A89: 88 | B89: 58106 | C89: 535766.16
A90: 89 | B90: 60333 | C90: 469314.35
A91: 90 | B91: 58353 | C91: 558254.63
A92: 91 | B92: 22672 | C92: 197141.28
A93: 92 | B93: 64325 | C93: 563313.5
A94: 93 | B94: 32326 | C94: 365825.02
A95: 94 | B95: 16138 | C95: 206538.6
A96: 95 | B96: 34957 | C96: 320916.75
A97: 96 | B97: 26159 | C97: 294325.06
A98: 97 | B98: 42098 | C98: 329951.7
A99: 98 | B99: 20582 | C99: 161277.7
A100: 99 | B100: 45614 | C100: 428140.06
A101: 100 | B101: 42729 | C101: 433279.13
A102: 101 | B102: 40053 | C102: 346792.73
A103: 102 | B103: 51749 | C103: 540063.03
A104: 103 | B104: 59753 | C104: 588972.06
A105: 104 | B105: 34045 | C105: 290698.15
A106: 105 | B106: 56384 | C106: 544487.68
A107: 106 | B107: 33242 | C107: 206569.82
A108: 107 | B108: 49060 | C108: 550902.6
A109: 108 | B109: 38219 | C109: 321737.09
A110: 109 | B110: 56891 | C110: 568845.92
A111: 110 | B111: 52906 | C111: 426690.72
A112: 111 | B112: 44835 | C112: 430649.15
A113: 112 | B113: 45028 | C113: 400768.12
A114: 113 | B114: 15988 | C114: 175665.68
A115: 114 | B115: 64717 | C115: 558028.45
A116: 115 | B116: 15196 | C116: 163514.12
A117: 116 | B117: 45093 | C117: 398568.89
A118: 117 | B118: 51099 | C118: 483830.51
A119: 118 | B119: 40839 | C119: 292958.72
A120: 119 | B120: 29773 | C120: 275083.88
A121: 120 | B121: 60954 | C121: 599805.08
A122: 121 | B122: 53820 | C122: 524692.4
A123: 122 | B123: 19365 | C123: 196012.1
A124: 123 | B124: 39109 | C124: 360134.37
A125: 124 | B125: 40439 | C125: 312044.72
A126: 125 | B126: 35117 | C126: 268076.57
A127: 126 | B127: 50624 | C127: 394243.2
A128: 127 | B128: 55174 | C128: 474839.8
A129: 128 | B129: 52278 | C129: 474497.36
A130: 129 | B130: 30557 | C130: 301178.54
A131: 130 | B131: 62145 | C131: 642241.85
A132: 131 | B132: 58106 | C132: 475335.92
A133: 132 | B133: 55233 | C133: 543230.69
A134: 133 | B134: 51653 | C134: 343389.04
A135: 134 | B135: 16221 | C135: 195989
A136: 135 | B136: 28538 | C136: 295141.42
A137: 136 | B137: 33546 | C137: 355268.6
A138: 137 | B138: 50539 | C138: 505356.39
A139: 138 | B139: 14677 | C139: 180772.07
A140: 139 | B140: 15835 | C140: 146751.85
A141: 140 | B141: 24504 | C141: 198984.32
A142: 141 | B142: 21816 | C142: 210783.92
A143: 142 | B143: 28370 | C143: 246604.1
A144: 143 | B144: 46733 | C144: 430873.95
A145: 144 | B145: 46568 | C145: 393671.84
A146: 145 | B146: 42540 | C146: 363945.2
A147: 146 | B147: 39348 | C147: 275857.52
A148: 147 | B148: 34125 | C148: 350641.25
A149: 148 | B149: 61572 | C149: 580750.64
A150: 149 | B150: 54730 | C150: 410123.4
A151: 150 | B151: 38799 | C151: 332068.73
A152: 151 | B152: 22293 | C152: 208949.09
A153: 152 | B153: 37202 | C153: 346499.94
A154: 153 | B154: 53171 | C154: 474836.29
A155: 154 | B155: 33287 | C155: 255380.79
A156: 155 | B156: 35445 | C156: 237858.5
A157: 156 | B157: 21723 | C157: 224001.23
A158: 157 | B158: 40939 | C158: 439329.89
A159: 158 | B159: 45048 | C159: 362182.64
A160: 159 | B160: 30296 | C160: 299639.04
A161: 160 | B161: 53521 | C161: 457210.54
A162: 161 | B162: 24680 | C162: 209679.6
A163: 162 | B163: 46956 | C163: 426587.12
A164: 163 | B164: 16392 | C164: 200150.72
A165: 164 | B165: 53761 | C165: 534924.22
A166: 165 | B166: 56104 | C166: 460681.28
A167: 166 | B167: 15241 | C167: 151200.24
A168: 167 | B168: 19284 | C168: 212426.64
A169: 168 | B169: 14673 | C169: 181763.54
A170: 169 | B170: 57793 | C170: 497895.75
A171: 170 | B171: 28259 | C171: 242161.2
A172: 171 | B172: 30304 | C172: 206671.68
A173: 172 | B173: 62568 | C173: 496735.52
A174: 173 | B174: 56139 | C174: 513074.17
A175: 174 | B175: 23120 | C175: 214614.4
A176: 175 | B176: 17006 | C176: 110924.66
A177: 176 | B177: 31596 | C177: 329940.56
A178: 177 | B178: 40607 | C178: 363486.04
A179: 178 | B179: 61771 | C179: 569494.11
A180: 179 | B180: 30412 | C180: 279610.6
A181: 180 | B181: 36947 | C181: 361463.21
A182: 181 | B182: 43194 | C182: 395552
A183: 182 | B183: 56866 | C183: 492417.48
A184: 183 | B184: 39851 | C184: 367213.96
A185: 184 | B185: 36617 | C185: 312177.72
A186: 185 | B186: 46438 | C186: 331878.66
A187: 186 | B187: 27520 | C187: 266032
A188: 187 | B188: 28852 | C188: 311399.12
A189: 188 | B189: 60878 | C189: 505367.44
A190: 189 | B190: 32779 | C190: 211928.26
A191: 190 | B191: 49959 | C191: 401211.77

Sheet Scatter (1an)
A1: ith Sample Point | B1: Weekly $ Ad Expense (x) | C1: Weekly $ Sales (y) | E1: ="Is there a relationship between "&B1&" and "&C1&"?" -> Is there a relationship between Weekly $ Ad Expense (x) and Weekly $ Sales (y)?
A2: 1 | B2: 63566 | C2: 651334.36
A3: 2 | B3: 50762 | C3: 527670.42
A4: 3 | B4: 50941 | C4: 523751.3
A5: 4 | B5: 17597 | C5: 175466.61
A6: 5 | B6: 33029 | C6: 377977.97
A7: 6 | B7: 58543 | C7: 520100.29
A8: 7 | B8: 60492 | C8: 620856.28
A9: 8 | B9: 59686 | C9: 593739.46
A10: 9 | B10: 16432 | C10: 181948.96
A11: 10 | B11: 17262 | C11: 184643.6
A12: 11 | B12: 39118 | C12: 379373.56
A13: 12 | B13: 36078 | C13: 238687.94
A14: 13 | B14: 42113 | C14: 410066.15
A15: 14 | B15: 50562 | C15: 413540.78
A16: 15 | B16: 38240 | C16: 340241.6
A17: 16 | B17: 59870 | C17: 582843
A18: 17 | B18: 46056 | C18: 433185.92
A19: 18 | B19: 33349 | C19: 270770.38
A20: 19 | B20: 16207 | C20: 164421.42
A21: 20 | B21: 57077 | C21: 478077.5
A22: 21 | B22: 30893 | C22: 393839.09
A23: 22 | B23: 54153 | C23: 430154.06
A24: 23 | B24: 14591 | C24: 210792.82
A25: 24 | B25: 50138 | C25: 343808.68
A26: 25 | B26: 55253 | C26: 565510.49
A27: 26 | B27: 34944 | C27: 330250.88
A28: 27 | B28: 26413 | C28: 295905.03
A29: 28 | B29: 54660 | C29: 562164.2
A30: 29 | B30: 35887 | C30: 257067.99
A31: 30 | B31: 42021 | C31: 384066.95
A32: 31 | B32: 47349 | C32: 441576.23
A33: 32 | B33: 24364 | C33: 252221.2
A34: 33 | B34: 58406 | C34: 552875.66
A35: 34 | B35: 51643 | C35: 446101.81
A36: 35 | B36: 55115 | C36: 476038.95
A37: 36 | B37: 35416 | C37: 393889.36
A38: 37 | B38: 37274 | C38: 328436.78
A39: 38 | B39: 36148 | C39: 408949.64
A40: 39 | B40: 32192 | C40: 394776.32
A41: 40 | B41: 51238 | C41: 455804.96
A42: 41 | B42: 59235 | C42: 526249.4
A43: 42 | B43: 59329 | C43: 562602.56
A44: 43 | B44: 22739 | C44: 180749.25
A45: 44 | B45: 28654 | C45: 275506.98
A46: 45 | B46: 36786 | C46: 372981.08
A47: 46 | B47: 20813 | C47: 216087.74
A48: 47 | B48: 57259 | C48: 470281.06
A49: 48 | B49: 57707 | C49: 481071.29
A50: 49 | B50: 61539 | C50: 612466.46
A51: 50 | B51: 36635 | C51: 370922.6
A52: 51 | B52: 39086 | C52: 448677.2
A53: 52 | B53: 33062 | C53: 259282.46
A54: 53 | B54: 42144 | C54: 354279.68
A55: 54 | B55: 18828 | C55: 185749.88
A56: 55 | B56: 57070 | C56: 415818.7
A57: 56 | B57: 27991 | C57: 252095.02
A58: 57 | B58: 37876 | C58: 329524.88
A59: 58 | B59: 16134 | C59: 233120.9
A60: 59 | B60: 55466 | C60: 376140.08
A61: 60 | B61: 26100 | C61: 208166
A62: 61 | B62: 23787 | C62: 226261.67
A63: 62 | B63: 30895 | C63: 249581.7
A64: 63 | B64: 31845 | C64: 278010.2
A65: 64 | B65: 50618 | C65: 537451.34
A66: 65 | B66: 62293 | C66: 448052.27
A67: 66 | B67: 61228 | C67: 519618.76
A68: 67 | B68: 32558 | C68: 364510.28
A69: 68 | B69: 40694 | C69: 351135.6
A70: 69 | B70: 46333 | C70: 390547.55
A71: 70 | B71: 28415 | C71: 234129.2
A72: 71 | B72: 19993 | C72: 224538.89
A73: 72 | B73: 34414 | C73: 248912.92
A74: 73 | B74: 52078 | C74: 328096.52
A75: 74 | B75: 24507 | C75: 262965.83
A76: 75 | B76: 28516 | C76: 334304.52
A77: 76 | B77: 17554 | C77: 216060.84
A78: 77 | B78: 16662 | C78: 183462.62
A79: 78 | B79: 57162 | C79: 517013.54
A80: 79 | B80: 57297 | C80: 731834.3
A81: 80 | B81: 64112 | C81: 439159.84
A82: 81 | B82: 37237 | C82: 453649.08
A83: 82 | B83: 55058 | C83: 495969.8
A84: 83 | B84: 30791 | C84: 306489.03
A85: 84 | B85: 19784 | C85: 226868.96
A86: 85 | B86: 32463 | C86: 316845.86
A87: 86 | B87: 59364 | C87: 496417.28
A88: 87 | B88: 64632 | C88: 527881.68
A89: 88 | B89: 58106 | C89: 535766.16
A90: 89 | B90: 60333 | C90: 469314.35
A91: 90 | B91: 58353 | C91: 558254.63
A92: 91 | B92: 22672 | C92: 197141.28
A93: 92 | B93: 64325 | C93: 563313.5
A94: 93 | B94: 32326 | C94: 365825.02
A95: 94 | B95: 16138 | C95: 206538.6
A96: 95 | B96: 34957 | C96: 320916.75
A97: 96 | B97: 26159 | C97: 294325.06
A98: 97 | B98: 42098 | C98: 329951.7
A99: 98 | B99: 20582 | C99: 161277.7
A100: 99 | B100: 45614 | C100: 428140.06
A101: 100 | B101: 42729 | C101: 433279.13
A102: 101 | B102: 40053 | C102: 346792.73
A103: 102 | B103: 51749 | C103: 540063.03
A104: 103 | B104: 59753 | C104: 588972.06
A105: 104 | B105: 34045 | C105: 290698.15
A106: 105 | B106: 56384 | C106: 544487.68
A107: 106 | B107: 33242 | C107: 206569.82
A108: 107 | B108: 49060 | C108: 550902.6
A109: 108 | B109: 38219 | C109: 321737.09
A110: 109 | B110: 56891 | C110: 568845.92
A111: 110 | B111: 52906 | C111: 426690.72
A112: 111 | B112: 44835 | C112: 430649.15
A113: 112 | B113: 45028 | C113: 400768.12
A114: 113 | B114: 15988 | C114: 175665.68
A115: 114 | B115: 64717 | C115: 558028.45
A116: 115 | B116: 15196 | C116: 163514.12
A117: 116 | B117: 45093 | C117: 398568.89
A118: 117 | B118: 51099 | C118: 483830.51
A119: 118 | B119: 40839 | C119: 292958.72
A120: 119 | B120: 29773 | C120: 275083.88
A121: 120 | B121: 60954 | C121: 599805.08
A122: 121 | B122: 53820 | C122: 524692.4
A123: 122 | B123: 19365 | C123: 196012.1
A124: 123 | B124: 39109 | C124: 360134.37
A125: 124 | B125: 40439 | C125: 312044.72
A126: 125 | B126: 35117 | C126: 268076.57
A127: 126 | B127: 50624 | C127: 394243.2
A128: 127 | B128: 55174 | C128: 474839.8
A129: 128 | B129: 52278 | C129: 474497.36
A130: 129 | B130: 30557 | C130: 301178.54
A131: 130 | B131: 62145 | C131: 642241.85
A132: 131 | B132: 58106 | C132: 475335.92
A133: 132 | B133: 55233 | C133: 543230.69
A134: 133 | B134: 51653 | C134: 343389.04
A135: 134 | B135: 16221 | C135: 195989
A136: 135 | B136: 28538 | C136: 295141.42
A137: 136 | B137: 33546 | C137: 355268.6
A138: 137 | B138: 50539 | C138: 505356.39
A139: 138 | B139: 14677 | C139: 180772.07
A140: 139 | B140: 15835 | C140: 146751.85
A141: 140 | B141: 24504 | C141: 198984.32
A142: 141 | B142: 21816 | C142: 210783.92
A143: 142 | B143: 28370 | C143: 246604.1
A144: 143 | B144: 46733 | C144: 430873.95
A145: 144 | B145: 46568 | C145: 393671.84
A146: 145 | B146: 42540 | C146: 363945.2
A147: 146 | B147: 39348 | C147: 275857.52
A148: 147 | B148: 34125 | C148: 350641.25
A149: 148 | B149: 61572 | C149: 580750.64
A150: 149 | B150: 54730 | C150: 410123.4
A151: 150 | B151: 38799 | C151: 332068.73
A152: 151 | B152: 22293 | C152: 208949.09
A153: 152 | B153: 37202 | C153: 346499.94
A154: 153 | B154: 53171 | C154: 474836.29
A155: 154 | B155: 33287 | C155: 255380.79
A156: 155 | B156: 35445 | C156: 237858.5
A157: 156 | B157: 21723 | C157: 224001.23
A158: 157 | B158: 40939 | C158: 439329.89
A159: 158 | B159: 45048 | C159: 362182.64
A160: 159 | B160: 30296 | C160: 299639.04
A161: 160 | B161: 53521 | C161: 457210.54
A162: 161 | B162: 24680 | C162: 209679.6
A163: 162 | B163: 46956 | C163: 426587.12
A164: 163 | B164: 16392 | C164: 200150.72
A165: 164 | B165: 53761 | C165: 534924.22
A166: 165 | B166: 56104 | C166: 460681.28
A167: 166 | B167: 15241 | C167: 151200.24
A168: 167 | B168: 19284 | C168: 212426.64
A169: 168 | B169: 14673 | C169: 181763.54
A170: 169 | B170: 57793 | C170: 497895.75
A171: 170 | B171: 28259 | C171: 242161.2
A172: 171 | B172: 30304 | C172: 206671.68
A173: 172 | B173: 62568 | C173: 496735.52
A174: 173 | B174: 56139 | C174: 513074.17
A175: 174 | B175: 23120 | C175: 214614.4
A176: 175 | B176: 17006 | C176: 110924.66
A177: 176 | B177: 31596 | C177: 329940.56
A178: 177 | B178: 40607 | C178: 363486.04
A179: 178 | B179: 61771 | C179: 569494.11
A180: 179 | B180: 30412 | C180: 279610.6
A181: 180 | B181: 36947 | C181: 361463.21
A182: 181 | B182: 43194 | C182: 395552
A183: 182 | B183: 56866 | C183: 492417.48
A184: 183 | B184: 39851 | C184: 367213.96
A185: 184 | B185: 36617 | C185: 312177.72
A186: 185 | B186: 46438 | C186: 331878.66
A187: 186 | B187: 27520 | C187: 266032
A188: 187 | B188: 28852 | C188: 311399.12
A189: 188 | B189: 60878 | C189: 505367.44
A190: 189 | B190: 32779 | C190: 211928.26
A191: 190 | B191: 49959 | C191: 401211.77

Sheet Scatter (2)
A1: For Entry Level BMX Race Bikes, Is there a Relationship between Price and Weight of Bike?
A4: Year Manufacturer and Model | B4: Bike Weight (pound) =x | C4: Price = y
A5: 2015 SE Ripper | B5: 22.4 | C5: 299
A6: 2014 Redline MX | B6: 21 | C6: 462
A7: 2015 SE PK Ripper Elite | B7: 21 | C7: 549
A8: 2015 Grenade Launch Pro X | B8: 26 | C8: 180
A9: 2015 SE PK Ripper Elite XL | B9: 21.1 | C9: 549
A10: 2015 Grenade M1 | B10: 26 | C10: 240
A11: 2015 Framed Team | B11: 26.4 | C11: 180
A12: 2014 Redline MX | B12: 21 | C12: 431
A13: 2014 Framed Team | B13: 25.2 | C13: 360
A14: 2014 Grenade MX | B14: 26 | C14: 230
A15: 2014 Grenade Stealth Deep Sea Blue | B15: 25 | C15: 270
A16: 2014 Grenade Flare X | B16: 26.8 | C16: 150
A17: 2014 Grenade Launch Blue | B17: 25.2 | C17: 170
A18: 2014 Grenade Launch X | B18: 27 | C18: 160
A19: 2014 Framed Verdict Blank | B19: 25.4 | C19: 159
A20: 2014 SE PK Ripper Elite | B20: 20.7 | C20: 500
A21: 2013 Redline Proline Pro | B21: 21.9 | C21: 560
A22: 2012 Redline Proline Pro XL | B22: 22.5 | C22: 560
A23: 2013 Redline Proline Expert XL | B23: 20.1 | C23: 499
A24: 2013 Redline MX | B24: 23 | C24: 379

Sheet Scatter (2an)
A1: For Entry Level BMX Race Bikes, Is there a Relationship between Price and Weight of Bike?
A4: Year Manufacturer and Model | B4: Bike Weight (pound) =x | C4: Price = y
A5: 2015 SE Ripper | B5: 22.4 | C5: 299
A6: 2014 Redline MX | B6: 21 | C6: 462
A7: 2015 SE PK Ripper Elite | B7: 21 | C7: 549
A8: 2015 Grenade Launch Pro X | B8: 26 | C8: 180
A9: 2015 SE PK Ripper Elite XL | B9: 21.1 | C9: 549
A10: 2015 Grenade M1 | B10: 26 | C10: 240
A11: 2015 Framed Team | B11: 26.4 | C11: 180
A12: 2014 Redline MX | B12: 21 | C12: 431
A13: 2014 Framed Team | B13: 25.2 | C13: 360
A14: 2014 Grenade MX | B14: 26 | C14: 230
A15: 2014 Grenade Stealth Deep Sea Blue | B15: 25 | C15: 270
A16: 2014 Grenade Flare X | B16: 26.8 | C16: 150
A17: 2014 Grenade Launch Blue | B17: 25.2 | C17: 170
A18: 2014 Grenade Launch X | B18: 27 | C18: 160
A19: 2014 Framed Verdict Blank | B19: 25.4 | C19: 159
A20: 2014 SE PK Ripper Elite | B20: 20.7 | C20: 500
A21: 2013 Redline Proline Pro | B21: 21.9 | C21: 560
A22: 2012 Redline Proline Pro XL | B22: 22.5 | C22: 560
A23: 2013 Redline Proline Expert XL | B23: 20.1 | C23: 499
A24: 2013 Redline MX | B24: 23 | C24: 379

Sheet Scatter (3)
A1: Team | B1: Season | C1: BattingAvg x | D1: RunsScored y | E1: AtBats x | F1: Hits | G1: Homeruns y | H1: Walks x | I1: Strikeouts y | J1: StolenBases | K1: OBP y | L1: SLG | M1: OPS | O1: ="Is there a relationship between "&C1&" and "&D1&"?" -> Is there a relationship between BattingAvg x and RunsScored y? | P1: ="Is there a relationship between "&E1&" and "&G1&"?" -> Is there a relationship between AtBats x and Homeruns y? | Q1: ="Is there a relationship between "&H1&" and "&I1&"?" -> Is there a relationship between Walks x and Strikeouts y? | R1: ="Is there a relationship between "&C1&" and "&K1&"?" -> Is there a relationship between BattingAvg x and OBP y? | Y1: Example 5: | Z1: Relationship Between Temperature and Energy Expense, relationship looks nonlinear: as x increases, y decreases for a while and then increases
A2: ARI | B2: 2011 | C2: 0.25 | D2: 731 | E2: 5421 | F2: 1357 | G2: 172 | H2: 531 | I2: 1249 | J2: 133 | K2: 0.322 | L2: 0.413 | M2: 0.736
A3: ATL | B3: 2011 | C3: 0.243 | D3: 641 | E3: 5528 | F3: 1345 | G3: 173 | H3: 504 | I3: 1260 | J3: 77 | K3: 0.308 | L3: 0.387 | M3: 0.695
A4: BAL | B4: 2011 | C4: 0.257 | D4: 708 | E4: 5585 | F4: 1434 | G4: 191 | H4: 452 | I4: 1120 | J4: 81 | K4: 0.316 | L4: 0.413 | M4: 0.729 | Y4: Sample Point | Z4: x | AA4: y
A5: BOS | B5: 2011 | C5: 0.28 | D5: 875 | E5: 5710 | F5: 1600 | G5: 203 | H5: 578 | I5: 1108 | J5: 102 | K5: 0.349 | L5: 0.461 | M5: 0.81
A6: CHC | B6: 2011 | C6: 0.256 | D6: 654 | E6: 5549 | F6: 1423 | G6: 148 | H6: 425 | I6: 1202 | J6: 69 | K6: 0.314 | L6: 0.401 | M6: 0.715 | Y6: Date | Z6: Temperature X | AA6: Energy Expense Y
A7: CHW | B7: 2011 | C7: 0.252 | D7: 654 | E7: 5502 | F7: 1387 | G7: 154 | H7: 475 | I7: 989 | J7: 81 | K7: 0.319 | L7: 0.388 | M7: 0.706 | Y7: 2015-01-12 | Z7: 46 | AA7: 236
A8: CIN | B8: 2011 | C8: 0.256 | D8: 735 | E8: 5612 | F8: 1438 | G8: 183 | H8: 535 | I8: 1250 | J8: 97 | K8: 0.326 | L8: 0.408 | M8: 0.734 | Y8: 2015-01-13 | Z8: 52 | AA8: 304
A9: CLE | B9: 2011 | C9: 0.25 | D9: 704 | E9: 5509 | F9: 1380 | G9: 154 | H9: 494 | I9: 1269 | J9: 89 | K9: 0.317 | L9: 0.396 | M9: 0.714 | Y9: 2015-01-14 | Z9: 55 | AA9: 163.5
A10: COL | B10: 2011 | C10: 0.258 | D10: 735 | E10: 5544 | F10: 1429 | G10: 163 | H10: 555 | I10: 1201 | J10: 118 | K10: 0.329 | L10: 0.41 | M10: 0.739 | Y10: 2015-01-15 | Z10: 46 | AA10: 214
A11: DET | B11: 2011 | C11: 0.277 | D11: 787 | E11: 5563 | F11: 1540 | G11: 169 | H11: 521 | I11: 1143 | J11: 49 | K11: 0.34 | L11: 0.434 | M11: 0.773 | Y11: 2015-01-16 | Z11: 47 | AA11: 210
A12: FLA | B12: 2011 | C12: 0.247 | D12: 625 | E12: 5508 | F12: 1358 | G12: 149 | H12: 542 | I12: 1244 | J12: 95 | K12: 0.318 | L12: 0.388 | M12: 0.706 | Y12: 2015-01-17 | Z12: 50 | AA12: 508
A13: HOU | B13: 2011 | C13: 0.258 | D13: 615 | E13: 5598 | F13: 1442 | G13: 95 | H13: 401 | I13: 1164 | J13: 118 | K13: 0.311 | L13: 0.374 | M13: 0.684 | Y13: 2015-01-18 | Z13: 36 | AA13: 294.55
A14: KCR | B14: 2011 | C14: 0.275 | D14: 730 | E14: 5672 | F14: 1560 | G14: 129 | H14: 442 | I14: 1006 | J14: 153 | K14: 0.329 | L14: 0.415 | M14: 0.744 | Y14: 2015-01-19 | Z14: 47 | AA14: 250
A15: LAA | B15: 2011 | C15: 0.253 | D15: 667 | E15: 5513 | F15: 1394 | G15: 155 | H15: 442 | I15: 1086 | J15: 135 | K15: 0.313 | L15: 0.402 | M15: 0.714 | Y15: 2015-01-20 | Z15: 40 | AA15: 371.95
A16: LAD | B16: 2011 | C16: 0.257 | D16: 644 | E16: 5436 | F16: 1395 | G16: 117 | H16: 498 | I16: 1087 | J16: 126 | K16: 0.322 | L16: 0.375 | M16: 0.697 | Y16: 2015-01-21 | Z16: 46 | AA16: 478
A17: MIL | B17: 2011 | C17: 0.261 | D17: 721 | E17: 5447 | F17: 1422 | G17: 185 | H17: 481 | I17: 1083 | J17: 94 | K17: 0.325 | L17: 0.425 | M17: 0.75 | Y17: 2015-01-22 | Z17: 55 | AA17: 258
A18: MIN | B18: 2011 | C18: 0.247 | D18: 619 | E18: 5487 | F18: 1357 | G18: 103 | H18: 440 | I18: 1048 | J18: 92 | K18: 0.306 | L18: 0.36 | M18: 0.666 | Y18: 2015-01-23 | Z18: 40 | AA18: 559
A19: NYM | B19: 2011 | C19: 0.264 | D19: 718 | E19: 5600 | F19: 1477 | G19: 108 | H19: 571 | I19: 1085 | J19: 130 | K19: 0.335 | L19: 0.391 | M19: 0.725 | O19: Slope | P19: =SLOPE(D2:D91,C2:C91) -> 5521.581144 | R19: =P19/1000 -> 5.521581144 | S19: /1000 to get slope for every .001 | Y19: 2015-01-24 | Z19: 53 | AA19: 536
A20: NYY | B20: 2011 | C20: 0.263 | D20: 867 | E20: 5518 | F20: 1452 | G20: 222 | H20: 627 | I20: 1138 | J20: 147 | K20: 0.343 | L20: 0.444 | M20: 0.788 | O20: Y-Intercept | P20: =INTERCEPT(D2:D91,C2:C91) -> -708.4939941 | Y20: 2015-01-25 | Z20: 44 | AA20: 576
A21: OAK | B21: 2011 | C21: 0.244 | D21: 645 | E21: 5452 | F21: 1330 | G21: 114 | H21: 509 | I21: 1094 | J21: 117 | K21: 0.311 | L21: 0.369 | M21: 0.68 | Y21: 2015-01-26 | Z21: 48 | AA21: 446
A22: PHI | B22: 2011 | C22: 0.253 | D22: 713 | E22: 5579 | F22: 1409 | G22: 153 | H22: 539 | I22: 1024 | J22: 96 | K22: 0.323 | L22: 0.395 | M22: 0.717 | Y22: 2015-01-27 | Z22: 46 | AA22: 300
A23: PIT | B23: 2011 | C23: 0.244 | D23: 610 | E23: 5421 | F23: 1325 | G23: 107 | H23: 489 | I23: 1308 | J23: 108 | K23: 0.309 | L23: 0.368 | M23: 0.676 | O23: x | P23: 0.231 | Y23: 2015-01-28 | Z23: 56 | AA23: 250.5
A24: SDP | B24: 2011 | C24: 0.237 | D24: 593 | E24: 5417 | F24: 1284 | G24: 91 | H24: 501 | I24: 1320 | J24: 170 | K24: 0.305 | L24: 0.349 | M24: 0.653 | O24: Predicted | P24: =$P$19*P23+$P$20 -> 566.9912502 | Y24: 2015-01-29 | Z24: 36 | AA24: 412.8
A25: SEA | B25: 2011 | C25: 0.233 | D25: 556 | E25: 5421 | F25: 1263 | G25: 109 | H25: 435 | I25: 1280 | J25: 125 | K25: 0.292 | L25: 0.348 | M25: 0.64 | O25: x | P25: 0.232 | Y25: 2015-01-30 | Z25: 38 | AA25: 511.7
A26: SFG | B26: 2011 | C26: 0.242 | D26: 570 | E26: 5486 | F26: 1327 | G26: 121 | H26: 448 | I26: 1122 | J26: 85 | K26: 0.303 | L26: 0.368 | M26: 0.671 | O26: Predicted | P26: =$P$19*P25+$P$20 -> 572.5128314 | Y26: 2015-01-31 | Z26: 37 | AA26: 311.75
A27: STL | B27: 2011 | C27: 0.273 | D27: 762 | E27: 5532 | F27: 1513 | G27: 162 | H27: 542 | I27: 978 | J27: 57 | K27: 0.341 | L27: 0.425 | M27: 0.766 | O27: Diff | P27: =P26-P24 -> 5.521581144 | Y27: 2015-02-01 | Z27: 44 | AA27: 478
A28: TBR | B28: 2011 | C28: 0.244 | D28: 707 | E28: 5436 | F28: 1324 | G28: 172 | H28: 571 | I28: 1193 | J28: 155 | K28: 0.322 | L28: 0.402 | M28: 0.724 | Y28: 2015-02-02 | Z28: 30 | AA28: 282.5
A29: TEX | B29: 2011 | C29: 0.283 | D29: 855 | E29: 5659 | F29: 1599 | G29: 210 | H29: 475 | I29: 930 | J29: 143 | K29: 0.34 | L29: 0.46 | M29: 0.8 | Y29: 2015-02-03 | Z29: 48 | AA29: 476
A30: TOR | B30: 2011 | C30: 0.249 | D30: 743 | E30: 5559 | F30: 1384 | G30: 186 | H30: 525 | I30: 1184 | J30: 131 | K30: 0.317 | L30: 0.413 | M30: 0.73 | Y30: 2015-02-04 | Z30: 37 | AA30: 565.45
A31: WSN | B31: 2011 | C31: 0.242 | D31: 624 | E31: 5441 | F31: 1319 | G31: 154 | H31: 470 | I31: 1323 | J31: 106 | K31: 0.309 | L31: 0.383 | M31: 0.691 | Y31: 2015-02-05 | Z31: 43 | AA31: 567.6
A32: ARI | B32: 2010 | C32: 0.25 | D32: 713 | E32: 5473 | F32: 1366 | G32: 180 | H32: 589 | I32: 1529 | J32: 86 | K32: 0.325 | L32: 0.416 | M32: 0.74 | Y32: 2015-02-06 | Z32: 39 | AA32: 634.25
A33: ATL | B33: 2010 | C33: 0.258 | D33: 738 | E33: 5463 | F33: 1411 | G33: 139 | H33: 634 | I33: 1140 | J33: 63 | K33: 0.339 | L33: 0.401 | M33: 0.74 | Y33: 2015-02-07 | Z33: 34 | AA33: 266.6
A34: BAL | B34: 2010 | C34: 0.259 | D34: 613 | E34: 5554 | F34: 1440 | G34: 133 | H34: 424 | I34: 1056 | J34: 76 | K34: 0.316 | L34: 0.386 | M34: 0.702 | Y34: 2015-02-08 | Z34: 33 | AA34: 345
A35: BOS | B35: 2010 | C35: 0.268 | D35: 818 | E35: 5646 | F35: 1511 | G35: 211 | H35: 587 | I35: 1140 | J35: 68 | K35: 0.339 | L35: 0.451 | M35: 0.79 | Y35: 2015-02-09 | Z35: 38 | AA35: 393.45
A36: CHC | B36: 2010 | C36: 0.257 | D36: 685 | E36: 5512 | F36: 1414 | G36: 149 | H36: 479 | I36: 1236 | J36: 55 | K36: 0.32 | L36: 0.401 | M36: 0.721 | Y36: 2015-02-10 | Z36: 38 | AA36: 567.6
A37: CHW | B37: 2010 | C37: 0.268 | D37: 752 | E37: 5484 | F37: 1467 | G37: 177 | H37: 467 | I37: 922 | J37: 160 | K37: 0.332 | L37: 0.42 | M37: 0.752 | Y37: 2015-02-11 | Z37: 37 | AA37: 266.6
A38: CIN | B38: 2010 | C38: 0.272 | D38: 790 | E38: 5579 | F38: 1515 | G38: 188 | H38: 522 | I38: 1218 | J38: 93 | K38: 0.338 | L38: 0.436 | M38: 0.774 | Y38: 2015-02-12 | Z38: 35 | AA38: 503.1
A39: CLE | B39: 2010 | C39: 0.248 | D39: 646 | E39: 5487 | F39: 1362 | G39: 128 | H39: 545 | I39: 1184 | J39: 91 | K39: 0.322 | L39: 0.378 | M39: 0.7 | Y39: 2015-02-13 | Z39: 53 | AA39: 242
A40: COL | B40: 2010 | C40: 0.263 | D40: 770 | E40: 5530 | F40: 1452 | G40: 173 | H40: 585 | I40: 1274 | J40: 99 | K40: 0.336 | L40: 0.425 | M40: 0.76 | Y40: 2015-02-14 | Z40: 55 | AA40: 216
A41: DET | B41: 2010 | C41: 0.268 | D41: 751 | E41: 5643 | F41: 1515 | G41: 152 | H41: 546 | I41: 1147 | J41: 69 | K41: 0.335 | L41: 0.415 | M41: 0.75 | Y41: 2015-02-15 | Z41: 58 | AA41: 354
A42: FLA | B42: 2010 | C42: 0.254 | D42: 719 | E42: 5531 | F42: 1403 | G42: 152 | H42: 514 | I42: 1375 | J42: 92 | K42: 0.321 | L42: 0.403 | M42: 0.724 | Y42: 2015-02-16 | Z42: 41 | AA42: 432.15
A43: HOU | B43: 2010 | C43: 0.247 | D43: 611 | E43: 5452 | F43: 1348 | G43: 108 | H43: 415 | I43: 1025 | J43: 100 | K43: 0.303 | L43: 0.362 | M43: 0.665 | Y43: 2015-02-17 | Z43: 43 | AA43: 406.35
A44: KCR | B44: 2010 | C44: 0.274 | D44: 676 | E44: 5604 | F44: 1534 | G44: 121 | H44: 471 | I44: 905 | J44: 115 | K44: 0.331 | L44: 0.399 | M44: 0.73 | Y44: 2015-02-18 | Z44: 43 | AA44: 627.8
A45: LAA | B45: 2010 | C45: 0.248 | D45: 681 | E45: 5488 | F45: 1363 | G45: 155 | H45: 466 | I45: 1070 | J45: 104 | K45: 0.311 | L45: 0.39 | M45: 0.702 | Y45: 2015-02-19 | Z45: 32 | AA45: 705
A46: LAD | B46: 2010 | C46: 0.252 | D46: 667 | E46: 5426 | F46: 1368 | G46: 120 | H46: 533 | I46: 1184 | J46: 92 | K46: 0.322 | L46: 0.379 | M46: 0.7 | Y46: 2015-02-20 | Z46: 53 | AA46: 534
A47: MIL | B47: 2010 | C47: 0.262 | D47: 750 | E47: 5606 | F47: 1471 | G47: 182 | H47: 546 | I47: 1216 | J47: 81 | K47: 0.335 | L47: 0.424 | M47: 0.759 | Y47: 2015-02-21 | Z47: 54 | AA47: 282
A48: MIN | B48: 2010 | C48: 0.273 | D48: 781 | E48: 5568 | F48: 1521 | G48: 142 | H48: 559 | I48: 967 | J48: 68 | K48: 0.341 | L48: 0.422 | M48: 0.762 | Y48: 2015-02-22 | Z48: 56 | AA48: 435
A49: NYM | B49: 2010 | C49: 0.249 | D49: 656 | E49: 5465 | F49: 1361 | G49: 128 | H49: 502 | I49: 1095 | J49: 130 | K49: 0.314 | L49: 0.383 | M49: 0.697 | Y49: 2015-02-23 | Z49: 52 | AA49: 380
A50: NYY | B50: 2010 | C50: 0.267 | D50: 859 | E50: 5567 | F50: 1485 | G50: 201 | H50: 662 | I50: 1136 | J50: 103 | K50: 0.35 | L50: 0.436 | M50: 0.786 | Y50: 2015-02-24 | Z50: 57 | AA50: 372
A51: OAK | B51: 2010 | C51: 0.256 | D51: 663 | E51: 5448 | F51: 1396 | G51: 109 | H51: 527 | I51: 1061 | J51: 156 | K51: 0.324 | L51: 0.378 | M51: 0.702 | Y51: 2015-02-25 | Z51: 51 | AA51: 240
A52: PHI | B52: 2010 | C52: 0.26 | D52: 772 | E52: 5581 | F52: 1451 | G52: 166 | H52: 560 | I52: 1064 | J52: 108 | K52: 0.332 | L52: 0.413 | M52: 0.745 | Y52: 2015-02-26 | Z52: 40 | AA52: 346.15
A53: PIT | B53: 2010 | C53: 0.242 | D53: 587 | E53: 5386 | F53: 1303 | G53: 126 | H53: 463 | I53: 1207 | J53: 87 | K53: 0.304 | L53: 0.373 | M53: 0.678 | Y53: 2015-02-27 | Z53: 32 | AA53: 577.5
A54: SDP | B54: 2010 | C54: 0.246 | D54: 665 | E54: 5434 | F54: 1338 | G54: 132 | H54: 538 | I54: 1183 | J54: 124 | K54: 0.317 | L54: 0.371 | M54: 0.689 | Y54: 2015-02-28 | Z54: 34 | AA54: 406.35
A55: SEA | B55: 2010 | C55: 0.236 | D55: 513 | E55: 5409 | F55: 1274 | G55: 101 | H55: 459 | I55: 1184 | J55: 142 | K55: 0.298 | L55: 0.339 | M55: 0.637 | Y55: 2015-03-01 | Z55: 37 | AA55: 468.7
A56: SFG | B56: 2010 | C56: 0.257 | D56: 697 | E56: 5488 | F56: 1411 | G56: 162 | H56: 487 | I56: 1099 | J56: 55 | K56: 0.321 | L56: 0.408 | M56: 0.729 | Y56: 2015-03-02 | Z56: 39 | AA56: 483.75
A57: STL | B57: 2010 | C57: 0.263 | D57: 736 | E57: 5542 | F57: 1456 | G57: 150 | H57: 541 | I57: 1027 | J57: 79 | K57: 0.332 | L57: 0.402 | M57: 0.733 | Y57: 2015-03-03 | Z57: 22 | AA57: 462.5
A58: TBR | B58: 2010 | C58: 0.247 | D58: 802 | E58: 5439 | F58: 1343 | G58: 160 | H58: 672 | I58: 1292 | J58: 172 | K58: 0.333 | L58: 0.403 | M58: 0.736 | Y58: 2015-03-04 | Z58: 38 | AA58: 408.5
A59: TEX | B59: 2010 | C59: 0.276 | D59: 787 | E59: 5635 | F59: 1556 | G59: 162 | H59: 511 | I59: 986 | J59: 123 | K59: 0.338 | L59: 0.419 | M59: 0.757 | Y59: 2015-03-05 | Z59: 40 | AA59: 311.75
A60: TOR | B60: 2010 | C60: 0.248 | D60: 755 | E60: 5495 | F60: 1364 | G60: 257 | H60: 471 | I60: 1164 | J60: 58 | K60: 0.312 | L60: 0.454 | M60: 0.766 | Y60: 2015-03-06 | Z60: 51 | AA60: 420
A61: WSN | B61: 2010 | C61: 0.25 | D61: 655 | E61: 5418 | F61: 1355 | G61: 149 | H61: 503 | I61: 1220 | J61: 110 | K61: 0.318 | L61: 0.39 | M61: 0.708 | Y61: 2015-03-07 | Z61: 32 | AA61: 410
A62: ARI | B62: 2009 | C62: 0.253 | D62: 720 | E62: 5565 | F62: 1408 | G62: 173 | H62: 571 | I62: 1298 | J62: 102 | K62: 0.324 | L62: 0.418 | M62: 0.742 | Y62: 2015-03-08 | Z62: 45 | AA62: 400
A63: ATL | B63: 2009 | C63: 0.263 | D63: 735 | E63: 5539 | F63: 1459 | G63: 149 | H63: 602 | I63: 1064 | J63: 58 | K63: 0.339 | L63: 0.405 | M63: 0.744 | Y63: 2015-03-09 | Z63: 40 | AA63: 460.1
A64: BAL | B64: 2009 | C64: 0.268 | D64: 741 | E64: 5618 | F64: 1508 | G64: 160 | H64: 517 | I64: 1013 | J64: 76 | K64: 0.332 | L64: 0.415 | M64: 0.747 | Y64: 2015-03-10 | Z64: 52 | AA64: 538
A65: BOS | B65: 2009 | C65: 0.27 | D65: 872 | E65: 5543 | F65: 1495 | G65: 212 | H65: 659 | I65: 1120 | J65: 126 | K65: 0.352 | L65: 0.454 | M65: 0.806 | Y65: 2015-03-11 | Z65: 25 | AA65: 597.5
A66: CHC | B66: 2009 | C66: 0.255 | D66: 707 | E66: 5486 | F66: 1398 | G66: 161 | H66: 592 | I66: 1185 | J66: 56 | K66: 0.332 | L66: 0.407 | M66: 0.738 | Y66: 2015-03-12 | Z66: 42 | AA66: 389.15
A67: CHW | B67: 2009 | C67: 0.258 | D67: 724 | E67: 5463 | F67: 1410 | G67: 184 | H67: 534 | I67: 1022 | J67: 113 | K67: 0.329 | L67: 0.411 | M67: 0.74 | Y67: 2015-03-13 | Z67: 45 | AA67: 228
A68: CIN | B68: 2009 | C68: 0.247 | D68: 673 | E68: 5462 | F68: 1349 | G68: 158 | H68: 531 | I68: 1129 | J68: 96 | K68: 0.318 | L68: 0.394 | M68: 0.712 | Y68: 2015-03-14 | Z68: 31 | AA68: 627.5
A69: CLE | B69: 2009 | C69: 0.264 | D69: 773 | E69: 5568 | F69: 1468 | G69: 161 | H69: 582 | I69: 1211 | J69: 84 | K69: 0.339 | L69: 0.417 | M69: 0.756 | Y69: 2015-03-15 | Z69: 51 | AA69: 408
A70: COL | B70: 2009 | C70: 0.261 | D70: 804 | E70: 5398 | F70: 1408 | G70: 190 | H70: 660 | I70: 1277 | J70: 106 | K70: 0.343 | L70: 0.441 | M70: 0.784 | Y70: 2015-03-16 | Z70: 34 | AA70: 339.7
A71: DET | B71: 2009 | C71: 0.26 | D71: 743 | E71: 5540 | F71: 1443 | G71: 183 | H71: 540 | I71: 1114 | J71: 72 | K71: 0.331 | L71: 0.416 | M71: 0.747 | Y71: 2015-03-17 | Z71: 21 | AA71: 527.5
A72: FLA | B72: 2009 | C72: 0.268 | D72: 772 | E72: 5572 | F72: 1493 | G72: 159 | H72: 568 | I72: 1226 | J72: 75 | K72: 0.34 | L72: 0.416 | M72: 0.756 | Y72: 2015-03-18 | Z72: 55 | AA72: 364.5
A73: HOU | B73: 2009 | C73: 0.26 | D73: 643 | E73: 5436 | F73: 1415 | G73: 142 | H73: 448 | I73: 990 | J73: 113 | K73: 0.319 | L73: 0.4 | M73: 0.719 | Y73: 2015-03-19 | Z73: 24 | AA73: 695
A74: KCR | B74: 2009 | C74: 0.259 | D74: 686 | E74: 5532 | F74: 1432 | G74: 144 | H74: 457 | I74: 1091 | J74: 88 | K74: 0.318 | L74: 0.405 | M74: 0.724 | Y74: 2015-03-20 | Z74: 42 | AA74: 462.25
A75: LAA | B75: 2009 | C75: 0.285 | D75: 883 | E75: 5622 | F75: 1604 | G75: 173 | H75: 547 | I75: 1054 | J75: 148 | K75: 0.35 | L75: 0.441 | M75: 0.792 | Y75: 2015-03-21 | Z75: 38 | AA75: 277.35
A76: LAD | B76: 2009 | C76: 0.27 | D76: 780 | E76: 5592 | F76: 1511 | G76: 145 | H76: 607 | I76: 1068 | J76: 116 | K76: 0.346 | L76: 0.412 | M76: 0.758 | Y76: 2015-03-22 | Z76: 48 | AA76: 334
A77: MIL | B77: 2009 | C77: 0.263 | D77: 785 | E77: 5510 | F77: 1447 | G77: 182 | H77: 610 | I77: 1231 | J77: 68 | K77: 0.341 | L77: 0.426 | M77: 0.767 | Y77: 2015-03-23 | Z77: 40 | AA77: 445.05
A78: MIN | B78: 2009 | C78: 0.274 | D78: 817 | E78: 5608 | F78: 1539 | G78: 172 | H78: 585 | I78: 1021 | J78: 85 | K78: 0.345 | L78: 0.429 | M78: 0.774 | Y78: 2015-03-24 | Z78: 45 | AA78: 496
A79: NYM | B79: 2009 | C79: 0.27 | D79: 671 | E79: 5453 | F79: 1472 | G79: 95 | H79: 526 | I79: 928 | J79: 122 | K79: 0.335 | L79: 0.394 | M79: 0.729 | Y79: 2015-03-25 | Z79: 45 | AA79: 514
A80: NYY | B80: 2009 | C80: 0.283 | D80: 915 | E80: 5660 | F80: 1604 | G80: 244 | H80: 663 | I80: 1014 | J80: 111 | K80: 0.362 | L80: 0.478 | M80: 0.839 | Y80: 2015-03-26 | Z80: 46 | AA80: 350
A81: OAK | B81: 2009 | C81: 0.262 | D81: 759 | E81: 5584 | F81: 1464 | G81: 135 | H81: 527 | I81: 1046 | J81: 133 | K81: 0.328 | L81: 0.397 | M81: 0.726 | Y81: 2015-03-27 | Z81: 33 | AA81: 697.5
A82: PHI | B82: 2009 | C82: 0.258 | D82: 820 | E82: 5578 | F82: 1439 | G82: 224 | H82: 589 | I82: 1155 | J82: 119 | K82: 0.334 | L82: 0.447 | M82: 0.781 | Y82: 2015-03-28 | Z82: 37 | AA82: 258
A83: PIT | B83: 2009 | C83: 0.252 | D83: 636 | E83: 5417 | F83: 1364 | G83: 125 | H83: 499 | I83: 1142 | J83: 90 | K83: 0.318 | L83: 0.387 | M83: 0.705 | Y83: 2015-03-29 | Z83: 24 | AA83: 257.5
A84: SDP | B84: 2009 | C84: 0.242 | D84: 638 | E84: 5425 | F84: 1315 | G84: 141 | H84: 586 | I84: 1182 | J84: 82 | K84: 0.321 | L84: 0.381 | M84: 0.701 | Y84: 2015-03-30 | Z84: 36 | AA84: 313.9
A85: SEA | B85: 2009 | C85: 0.258 | D85: 640 | E85: 5543 | F85: 1430 | G85: 160 | H85: 421 | I85: 1093 | J85: 89 | K85: 0.314 | L85: 0.402 | M85: 0.716 | Y85: 2015-03-31 | Z85: 37 | AA85: 481.6
A86: SFG | B86: 2009 | C86: 0.257 | D86: 657 | E86: 5493 | F86: 1411 | G86: 122 | H86: 392 | I86: 1158 | J86: 78 | K86: 0.309 | L86: 0.389 | M86: 0.699 | Y86: 2015-04-01 | Z86: 47 | AA86: 594
A87: STL | B87: 2009 | C87: 0.263 | D87: 730 | E87: 5465 | F87: 1436 | G87: 160 | H87: 528 | I87: 1041 | J87: 75 | K87: 0.332 | L87: 0.415 | M87: 0.747 | Y87: 2015-04-02 | Z87: 64 | AA87: 442.5
A88: TBR | B88: 2009 | C88: 0.263 | D88: 803 | E88: 5462 | F88: 1434 | G88: 199 | H88: 642 | I88: 1229 | J88: 194 | K88: 0.343 | L88: 0.439 | M88: 0.782 | Y88: 2015-04-03 | Z88: 60 | AA88: 397.5
A89: TEX | B89: 2009 | C89: 0.26 | D89: 784 | E89: 5526 | F89: 1436 | G89: 224 | H89: 472 | I89: 1253 | J89: 149 | K89: 0.32 | L89: 0.445 | M89: 0.764 | Y89: 2015-04-04 | Z89: 50 | AA89: 272
A90: TOR | B90: 2009 | C90: 0.266 | D90: 798 | E90: 5696 | F90: 1516 | G90: 209 | H90: 548 | I90: 1028 | J90: 73 | K90: 0.333 | L90: 0.44 | M90: 0.773 | Y90: 2015-04-05 | Z90: 62 | AA90: 208.5
A91: WSN | B91: 2009 | C91: 0.258 | D91: 710 | E91: 5493 | F91: 1416 | G91: 156 | H91: 617 | I91: 1208 | J91: 73 | K91: 0.337 | L91: 0.406 | M91: 0.743 | Y91: 2015-04-06 | Z91: 50 | AA91: 200
Y92: 2015-04-07 | Z92: 62 | AA92: 301.5
Y93: 2015-04-08 | Z93: 68 | AA93: 187
Y94: 2015-04-09 | Z94: 65 | AA94: 150
Y95: 2015-04-10 | Z95: 57 | AA95: 445.5
Y96: 2015-04-11 | Z96: 53 | AA96: 498
Y97: 2015-04-12 | Z97: 43 | AA97: 599.85
Y98: 2015-04-13 | Z98: 39 | AA98: 393.45
Y99: 2015-04-14 | Z99: 61 | AA99: 196.5
Y100: 2015-04-15 | Z100: 42 | AA100: 457.95
Y101: 2015-04-16 | Z101: 42 | AA101: 225.75
Y102: 2015-04-17 | Z102: 52 | AA102: 598
Y103: 2015-04-18 | Z103: 68 | AA103: 268
Y104: 2015-04-19 | Z104: 50 | AA104: 468
Y105: 2015-04-20 | Z105: 46 | AA105: 236
Y106: 2015-04-21 | Z106: 58 | AA106: 415.5
Y107: 2015-04-22 | Z107: 56 | AA107: 418.5
Y108: 2015-04-23 | Z108: 61 | AA108: 279
Y109: 2015-04-24 | Z109: 56 | AA109: 195
Y110: 2015-04-25 | Z110: 61 | AA110: 325.5
Y111: 2015-04-26 | Z111: 67 | AA111: 283
Y112: 2015-04-27 | Z112: 68 | AA112: 281
Y113: 2015-04-28 | Z113: 61 | AA113: 313.5
Y114: 2015-04-29 | Z114: 52 | AA114: 466
Y115: 2015-04-30 | Z115: 63 | AA115: 351
Y116: 2015-05-01 | Z116: 80 | AA116: 226
Y117: 2015-05-02 | Z117: 75 | AA117: 165
Y118: 2015-05-03 | Z118: 51 | AA118: 532
Y119: 2015-05-04 | Z119: 44 | AA119: 410
Y120: 2015-05-05 | Z120: 79 | AA120: 121
Y121: 2015-05-06 | Z121: 61 | AA121: 340.5
Y122: 2015-05-07 | Z122: 49 | AA122: 264
Y123: 2015-05-08 | Z123: 80 | AA123: 212
Y124: 2015-05-09 | Z124: 47 | AA124: 590
Y125: 2015-05-10 | Z125: 77 | AA125: 153
Y126: 2015-05-11 | Z126: 60 | AA126: 202.5
Y127: 2015-05-12 | Z127: 54 | AA127: 564
Y128: 2015-05-13 | Z128: 44 | AA128: 326
Y129: 2015-05-14 | Z129: 50 | AA129: 308
Y130: 2015-05-15 | Z130: 69 | AA130: 220
Y131: 2015-05-16 | Z131: 59 | AA131: 448.5
Y132: 2015-05-17 | Z132: 81 | AA132: 239
Y133: 2015-05-18 | Z133: 82 | AA133: 227
Y134: 2015-05-19 | Z134: 59 | AA134: 222
Y135: 2015-05-20 | Z135: 47 | AA135: 282
Y136: 2015-05-21 | Z136: 71 | AA136: 225
Y137: 2015-05-22 | Z137: 45 | AA137: 332
Y138: 2015-05-23 | Z138: 65 | AA138: 178
Y139: 2015-05-24 | Z139: 78 | AA139: 290
Y140: 2015-05-25 | Z140: 54 | AA140: 246
Y141: 2015-05-26 | Z141: 46 | AA141: 598
Y142: 2015-05-27 | Z142: 81 | AA142: 186
Y143: 2015-05-28 | Z143: 52 | AA143: 584
Y144: 2015-05-29 | Z144: 79 | AA144: 259
Y145: 2015-05-30 | Z145: 77 | AA145: 162
Y146: 2015-05-31 | Z146: 66 | AA146: 162
Y147: 2015-06-01 | Z147: 60 | AA147: 300
Y148: 2015-06-02 | Z148: 66 | AA148: 228
Y149: 2015-06-03 | Z149: 63 | AA149: 336
Y150: 2015-06-04 | Z150: 76 | AA150: 164
Y151: 2015-06-05 | Z151: 64 | AA151: 238.5
Y152: 2015-06-06 | Z152: 54 | AA152: 548
Y153: 2015-06-07 | Z153: 62 | AA153: 187.5
Y154: 2015-06-08 | Z154: 75 | AA154: 208
Y155: 2015-06-09 | Z155: 60 | AA155: 153
Y156: 2015-06-10 | Z156: 61 | AA156: 343.5
Y157: 2015-06-11 | Z157: 74 | AA157: 275
Y158: 2015-06-12 | Z158: 72 | AA158: 138
Y159: 2015-06-13 | Z159: 77 | AA159: 168
Y160: 2015-06-14 | Z160: 56 | AA160: 289.5
Y161: 2015-06-15 | Z161: 73 | AA161: 156
Y162: 2015-06-16 | Z162: 60 | AA162: 345
Y163: 2015-06-17 | Z163: 72 | AA163: 292
Y164: 2015-06-18 | Z164: 66 | AA164: 100
Y165: 2015-06-19 | Z165: 57 | AA165: 355.5
Y166: 2015-06-20 | Z166: 57 | AA166: 171
Y167: 2015-06-21 | Z167: 78 | AA167: 253
Y168: 2015-06-22 | Z168: 56 | AA168: 303
Y169: 2015-06-23 | Z169: 59 | AA169: 319.5
Y170: 2015-06-24 | Z170: 71 | AA170: 115
Y171: 2015-06-25 | Z171: 66 | AA171: 133
Y172: 2015-06-26 | Z172: 58 | AA172: 318
Y173: 2015-06-27 | Z173: 67 | AA173: 137
Y174: 2015-06-28 | Z174: 66 | AA174: 275
Y175: 2015-06-29 | Z175: 76 | AA175: 132
Y176: 2015-06-30 | Z176: 57 | AA176: 244.5
Y177: 2015-07-01 | Z177: 72 | AA177: 135
Y178: 2015-07-02 | Z178: 62 | AA178: 246
Y179: 2015-07-03 | Z179: 79 | AA179: 222
Y180: 2015-07-04 | Z180: 83 | AA180: 297
Y181: 2015-07-05 | Z181: 71 | AA181: 173
Y182: 2015-07-06 | Z182: 78 | AA182: 154
Y183: 2015-07-07 | Z183: 70 | AA183: 160
Y184: 2015-07-08 | Z184: 81 | AA184: 139
Y185: 2015-07-09 | Z185: 74 | AA185: 103
Y186: 2015-07-10 | Z186: 92 | AA186: 508
Y187: 2015-07-11 | Z187: 78 | AA187: 172
Y188: 2015-07-12 | Z188: 87 | AA188: 429
Y189: 2015-07-13 | Z189: 62 | AA189: 406.5
Y190: 2015-07-14 | Z190: 85 | AA190: 340.5
Y191: 2015-07-15 | Z191: 92 | AA191: 268
Y192: 2015-07-16 | Z192: 84 | AA192: 235
Y193: 2015-07-17 | Z193: 90 | AA193: 396
Y194: 2015-07-18 | Z194: 66 | AA194: 254
Y195: 2015-07-19 | Z195: 67 | AA195: 189
Y196: 2015-07-20 | Z196: 79 | AA196: 293
Y197: 2015-07-21 | Z197: 74 | AA197: 115
Y198: 2015-07-22 | Z198: 84 | AA198: 181
Y199: 2015-07-23 | Z199: 73 | AA199: 200
Y200: 2015-07-24 | Z200: 72 | AA200: 234
... 160 more rows

Sheet Ybar & Xbar Lines
A1: ith Sample Point | B1: Weekly $ Ad Expense (x) | C1: Weekly $ Sales (y) | N1: Where is the preponderance of Markers? All Quadrants? Mostly I & III? Mostly II & IV?
A2: 1 | B2: 63566 | C2: 651334.36
A3: 2 | B3: 50762 | C3: 527670.42
A4: 3 | B4: 50941 | C4: 523751.3
A5: 4 | B5: 17597 | C5: 175466.61
A6: 5 | B6: 33029 | C6: 377977.97
A7: 6 | B7: 58543 | C7: 520100.29
A8: 7 | B8: 60492 | C8: 620856.28
A9: 8 | B9: 59686 | C9: 593739.46
A10: 9 | B10: 16432 | C10: 181948.96
A11: 10 | B11: 17262 | C11: 184643.6
A12: 11 | B12: 39118 | C12: 379373.56
A13: 12 | B13: 36078 | C13: 238687.94
A14: 13 | B14: 42113 | C14: 410066.15
A15: 14 | B15: 50562 | C15: 413540.78
A16: 15 | B16: 38240 | C16: 340241.6 | F16: x | G16: Ybar | H16: Xbar | I16: y
A17: 16 | B17: 59870 | C17: 582843 | E17: Min | F17: =MIN(B2:B191) -> 14591 | G17: =AVERAGE($C$2:$C$191) -> 370058.9506 | H17: =AVERAGE($B$2:$B$191) -> 40429.52632 | I17: =MIN(C2:C191) -> 110924.66
A18: 17 | B18: 46056 | C18: 433185.92 | E18: Max | F18: =MAX(B2:B191) -> 64717 | G18: 370058.9506 | H18: 40429.52632 | I18: =MAX(C2:C191) -> 731834.3
A19: 18 | B19: 33349 | C19: 270770.38
A20: 19 | B20: 16207 | C20: 164421.42
A21: 20 | B21: 57077 | C21: 478077.5
A22: 21 | B22: 30893 | C22: 393839.09
A23: 22 | B23: 54153 | C23: 430154.06
A24: 23 | B24: 14591 | C24: 210792.82
A25: 24 | B25: 50138 | C25: 343808.68
A26: 25 | B26: 55253 | C26: 565510.49
A27: 26 | B27: 34944 | C27: 330250.88
A28: 27 | B28: 26413 | C28: 295905.03
A29: 28 | B29: 54660 | C29: 562164.2
A30: 29 | B30: 35887 | C30: 257067.99
A31: 30 | B31: 42021 | C31: 384066.95
A32: 31 | B32: 47349 | C32: 441576.23
A33: 32 | B33: 24364 | C33: 252221.2
A34: 33 | B34: 58406 | C34: 552875.66
A35: 34 | B35: 51643 | C35: 446101.81
A36: 35 | B36: 55115 | C36: 476038.95
A37: 36 | B37: 35416 | C37: 393889.36
A38: 37 | B38: 37274 | C38: 328436.78
A39: 38 | B39: 36148 | C39: 408949.64
A40: 39 | B40: 32192 | C40: 394776.32
A41: 40 | B41: 51238 | C41: 455804.96
A42: 41 | B42: 59235 | C42: 526249.4
A43: 42 | B43: 59329 | C43: 562602.56
A44: 43 | B44: 22739 | C44: 180749.25
A45: 44 | B45: 28654 | C45: 275506.98
A46: 45 | B46: 36786 | C46: 372981.08
A47: 46 | B47: 20813 | C47: 216087.74
A48: 47 | B48: 57259 | C48: 470281.06
A49: 48 | B49: 57707 | C49: 481071.29
A50: 49 | B50: 61539 | C50: 612466.46
A51: 50 | B51: 36635 | C51: 370922.6
A52: 51 | B52: 39086 | C52: 448677.2
A53: 52 | B53: 33062 | C53: 259282.46
A54: 53 | B54: 42144 | C54: 354279.68
A55: 54 | B55: 18828 | C55: 185749.88
A56: 55 | B56: 57070 | C56: 415818.7
A57: 56 | B57: 27991 | C57: 252095.02
A58: 57 | B58: 37876 | C58: 329524.88
A59: 58 | B59: 16134 | C59: 233120.9
A60: 59 | B60: 55466 | C60: 376140.08
A61: 60 | B61: 26100 | C61: 208166
A62: 61 | B62: 23787 | C62: 226261.67
A63: 62 | B63: 30895 | C63: 249581.7
A64: 63 | B64: 31845 | C64: 278010.2
A65: 64 | B65: 50618 | C65: 537451.34
A66: 65 | B66: 62293 | C66: 448052.27
A67: 66 | B67: 61228 | C67: 519618.76
A68: 67 | B68: 32558 | C68: 364510.28
A69: 68 | B69: 40694 | C69: 351135.6
A70: 69 | B70: 46333 | C70: 390547.55
A71: 70 | B71: 28415 | C71: 234129.2
A72: 71 | B72: 19993 | C72: 224538.89
A73: 72 | B73: 34414 | C73: 248912.92
A74: 73 | B74: 52078 | C74: 328096.52
A75: 74 | B75: 24507 | C75: 262965.83
A76: 75 | B76: 28516 | C76: 334304.52
A77: 76 | B77: 17554 | C77: 216060.84
A78: 77 | B78: 16662 | C78: 183462.62
A79: 78 | B79: 57162 | C79: 517013.54
A80: 79 | B80: 57297 | C80: 731834.3
A81: 80 | B81: 64112 | C81: 439159.84
A82: 81 | B82: 37237 | C82: 453649.08
A83: 82 | B83: 55058 | C83: 495969.8
A84: 83 | B84: 30791 | C84: 306489.03
A85: 84 | B85: 19784 | C85: 226868.96
A86: 85 | B86: 32463 | C86: 316845.86
A87: 86 | B87: 59364 | C87: 496417.28
A88: 87 | B88: 64632 | C88: 527881.68
A89: 88 | B89: 58106 | C89: 535766.16
A90: 89 | B90: 60333 | C90: 469314.35
A91: 90 | B91: 58353 | C91: 558254.63
A92: 91 | B92: 22672 | C92: 197141.28
A93: 92 | B93: 64325 | C93: 563313.5
A94: 93 | B94: 32326 | C94: 365825.02
A95: 94 | B95: 16138 | C95: 206538.6
A96: 95 | B96: 34957 | C96: 320916.75
A97: 96 | B97: 26159 | C97: 294325.06
A98: 97 | B98: 42098 | C98: 329951.7
A99: 98 | B99: 20582 | C99: 161277.7
A100: 99 | B100: 45614 | C100: 428140.06
A101: 100 | B101: 42729 | C101: 433279.13
A102: 101 | B102: 40053 | C102: 346792.73
A103: 102 | B103: 51749 | C103: 540063.03
A104: 103 | B104: 59753 | C104: 588972.06
A105: 104 | B105: 34045 | C105: 290698.15
A106: 105 | B106: 56384 | C106: 544487.68
A107: 106 | B107: 33242 | C107: 206569.82
A108: 107 | B108: 49060 | C108: 550902.6
A109: 108 | B109: 38219 | C109: 321737.09
A110: 109 | B110: 56891 | C110: 568845.92
A111: 110 | B111: 52906 | C111: 426690.72
A112: 111 | B112: 44835 | C112: 430649.15
A113: 112 | B113: 45028 | C113: 400768.12
A114: 113 | B114: 15988 | C114: 175665.68
A115: 114 | B115: 64717 | C115: 558028.45
A116: 115 | B116: 15196 | C116: 163514.12
A117: 116 | B117: 45093 | C117: 398568.89
A118: 117 | B118: 51099 | C118: 483830.51
A119: 118 | B119: 40839 | C119: 292958.72
A120: 119 | B120: 29773 | C120: 275083.88
A121: 120 | B121: 60954 | C121: 599805.08
A122: 121 | B122: 53820 | C122: 524692.4
A123: 122 | B123: 19365 | C123: 196012.1
A124: 123 | B124: 39109 | C124: 360134.37
A125: 124 | B125: 40439 | C125: 312044.72
A126: 125 | B126: 35117 | C126: 268076.57
A127: 126 | B127: 50624 | C127: 394243.2
A128: 127 | B128: 55174 | C128: 474839.8
A129: 128 | B129: 52278 | C129: 474497.36
A130: 129 | B130: 30557 | C130: 301178.54
A131: 130 | B131: 62145 | C131: 642241.85
A132: 131 | B132: 58106 | C132: 475335.92
A133: 132 | B133: 55233 | C133: 543230.69
A134: 133 | B134: 51653 | C134: 343389.04
A135: 134 | B135: 16221 | C135: 195989
A136: 135 | B136: 28538 | C136: 295141.42
A137: 136 | B137: 33546 | C137: 355268.6
A138: 137 | B138: 50539 | C138: 505356.39
A139: 138 | B139: 14677 | C139: 180772.07
A140: 139 | B140: 15835 | C140: 146751.85
A141: 140 | B141: 24504 | C141: 198984.32
A142: 141 | B142: 21816 | C142: 210783.92
A143: 142 | B143: 28370 | C143: 246604.1
A144: 143 | B144: 46733 | C144: 430873.95
A145: 144 | B145: 46568 | C145: 393671.84
A146: 145 | B146: 42540 | C146: 363945.2
A147: 146 | B147: 39348 | C147: 275857.52
A148: 147 | B148: 34125 | C148: 350641.25
A149: 148 | B149: 61572 | C149: 580750.64
A150: 149 | B150: 54730 | C150: 410123.4
A151: 150 | B151: 38799 | C151: 332068.73
A152: 151 | B152: 22293 | C152: 208949.09
A153: 152 | B153: 37202 | C153: 346499.94
A154: 153 | B154: 53171 | C154: 474836.29
A155: 154 | B155: 33287 | C155: 255380.79
A156: 155 | B156: 35445 | C156: 237858.5
A157: 156 | B157: 21723 | C157: 224001.23
A158: 157 | B158: 40939 | C158: 439329.89
A159: 158 | B159: 45048 | C159: 362182.64
A160: 159 | B160: 30296 | C160: 299639.04
A161: 160 | B161: 53521 | C161: 457210.54
A162: 161 | B162: 24680 | C162: 209679.6
A163: 162 | B163: 46956 | C163: 426587.12
A164: 163 | B164: 16392 | C164: 200150.72
A165: 164 | B165: 53761 | C165: 534924.22
A166: 165 | B166: 56104 | C166: 460681.28
A167: 166 | B167: 15241 | C167: 151200.24
A168: 167 | B168: 19284 | C168: 212426.64
A169: 168 | B169: 14673 | C169: 181763.54
A170: 169 | B170: 57793 | C170: 497895.75
A171: 170 | B171: 28259 | C171: 242161.2
A172: 171 | B172: 30304 | C172: 206671.68
A173: 172 | B173: 62568 | C173: 496735.52
A174: 173 | B174: 56139 | C174: 513074.17
A175: 174 | B175: 23120 | C175: 214614.4
A176: 175 | B176: 17006 | C176: 110924.66
A177: 176 | B177: 31596 | C177: 329940.56
A178: 177 | B178: 40607 | C178: 363486.04
A179: 178 | B179: 61771 | C179: 569494.11
A180: 179 | B180: 30412 | C180: 279610.6
A181: 180 | B181: 36947 | C181: 361463.21
A182: 181 | B182: 43194 | C182: 395552
A183: 182 | B183: 56866 | C183: 492417.48
A184: 183 | B184: 39851 | C184: 367213.96
A185: 184 | B185: 36617 | C185: 312177.72
A186: 185 | B186: 46438 | C186: 331878.66
A187: 186 | B187: 27520 | C187: 266032
A188: 187 | B188: 28852 | C188: 311399.12
A189: 188 | B189: 60878 | C189: 505367.44
A190: 189 | B190: 32779 | C190: 211928.26
A191: 190 | B191: 49959 | C191: 401211.77

Sheet Ybar & Xbar Lines (an)
A1: ith Sample Point | B1: Weekly $ Ad Expense (x) | C1: Weekly $ Sales (y) | N1: Where is the preponderance of Markers? All Quadrants? Mostly I & III? Mostly II & IV?
A2: 1 | B2: 63566 | C2: 651334.36
A3: 2 | B3: 50762 | C3: 527670.42
A4: 3 | B4: 50941 | C4: 523751.3
A5: 4 | B5: 17597 | C5: 175466.61
A6: 5 | B6: 33029 | C6: 377977.97
A7: 6 | B7: 58543 | C7: 520100.29
A8: 7 | B8: 60492 | C8: 620856.28
A9: 8 | B9: 59686 | C9: 593739.46
A10: 9 | B10: 16432 | C10: 181948.96
A11: 10 | B11: 17262 | C11: 184643.6
A12: 11 | B12: 39118 | C12: 379373.56
A13: 12 | B13: 36078 | C13: 238687.94
A14: 13 | B14: 42113 | C14: 410066.15
A15: 14 | B15: 50562 | C15: 413540.78
A16: 15 | B16: 38240 | C16: 340241.6 | F16: x | G16: Ybar | H16: Xbar | I16: y
A17: 16 | B17: 59870 | C17: 582843 | E17: Min | F17: =MIN(B2:B191) -> 14591 | G17: =AVERAGE($C$2:$C$191) -> 370058.9506 | H17: =AVERAGE($B$2:$B$191) -> 40429.52632 | I17: =MIN(C2:C191) -> 110924.66
A18: 17 | B18: 46056 | C18: 433185.92 | E18: Max | F18: =MAX(B2:B191) -> 64717 | G18: 370058.9506 | H18: 40429.52632 | I18: =MAX(C2:C191) -> 731834.3
A19: 18 | B19: 33349 | C19: 270770.38
A20: 19 | B20: 16207 | C20: 164421.42
A21: 20 | B21: 57077 | C21: 478077.5
A22: 21 | B22: 30893 | C22: 393839.09
A23: 22 | B23: 54153 | C23: 430154.06
A24: 23 | B24: 14591 | C24: 210792.82
A25: 24 | B25: 50138 | C25: 343808.68
A26: 25 | B26: 55253 | C26: 565510.49
A27: 26 | B27: 34944 | C27: 330250.88
A28: 27 | B28: 26413 | C28: 295905.03
A29: 28 | B29: 54660 | C29: 562164.2
A30: 29 | B30: 35887 | C30: 257067.99
A31: 30 | B31: 42021 | C31: 384066.95
A32: 31 | B32: 47349 | C32: 441576.23
A33: 32 | B33: 24364 | C33: 252221.2
A34: 33 | B34: 58406 | C34: 552875.66
A35: 34 | B35: 51643 | C35: 446101.81
A36: 35 | B36: 55115 | C36: 476038.95
A37: 36 | B37: 35416 | C37: 393889.36
A38: 37 | B38: 37274 | C38: 328436.78
A39: 38 | B39: 36148 | C39: 408949.64
A40: 39 | B40: 32192 | C40: 394776.32
A41: 40 | B41: 51238 | C41: 455804.96
A42: 41 | B42: 59235 | C42: 526249.4
A43: 42 | B43: 59329 | C43: 562602.56
A44: 43 | B44: 22739 | C44: 180749.25
A45: 44 | B45: 28654 | C45: 275506.98
A46: 45 | B46: 36786 | C46: 372981.08
A47: 46 | B47: 20813 | C47: 216087.74
A48: 47 | B48: 57259 | C48: 470281.06
A49: 48 | B49: 57707 | C49: 481071.29
A50: 49 | B50: 61539 | C50: 612466.46
A51: 50 | B51: 36635 | C51: 370922.6
A52: 51 | B52: 39086 | C52: 448677.2
A53: 52 | B53: 33062 | C53: 259282.46
A54: 53 | B54: 42144 | C54: 354279.68
A55: 54 | B55: 18828 | C55: 185749.88
A56: 55 | B56: 57070 | C56: 415818.7
A57: 56 | B57: 27991 | C57: 252095.02
A58: 57 | B58: 37876 | C58: 329524.88
A59: 58 | B59: 16134 | C59: 233120.9
A60: 59 | B60: 55466 | C60: 376140.08
A61: 60 | B61: 26100 | C61: 208166
A62: 61 | B62: 23787 | C62: 226261.67
A63: 62 | B63: 30895 | C63: 249581.7
A64: 63 | B64: 31845 | C64: 278010.2
A65: 64 | B65: 50618 | C65: 537451.34
A66: 65 | B66: 62293 | C66: 448052.27
A67: 66 | B67: 61228 | C67: 519618.76
A68: 67 | B68: 32558 | C68: 364510.28
A69: 68 | B69: 40694 | C69: 351135.6
A70: 69 | B70: 46333 | C70: 390547.55
A71: 70 | B71: 28415 | C71: 234129.2
A72: 71 | B72: 19993 | C72: 224538.89
A73: 72 | B73: 34414 | C73: 248912.92
A74: 73 | B74: 52078 | C74: 328096.52
A75: 74 | B75: 24507 | C75: 262965.83
A76: 75 | B76: 28516 | C76: 334304.52
A77: 76 | B77: 17554 | C77: 216060.84
A78: 77 | B78: 16662 | C78: 183462.62
A79: 78 | B79: 57162 | C79: 517013.54
A80: 79 | B80: 57297 | C80: 731834.3
A81: 80 | B81: 64112 | C81: 439159.84
A82: 81 | B82: 37237 | C82: 453649.08
A83: 82 | B83: 55058 | C83: 495969.8
A84: 83 | B84: 30791 | C84: 306489.03
A85: 84 | B85: 19784 | C85: 226868.96
A86: 85 | B86: 32463 | C86: 316845.86
A87: 86 | B87: 59364 | C87: 496417.28
A88: 87 | B88: 64632 | C88: 527881.68
A89: 88 | B89: 58106 | C89: 535766.16
A90: 89 | B90: 60333 | C90: 469314.35
A91: 90 | B91: 58353 | C91: 558254.63
A92: 91 | B92: 22672 | C92: 197141.28
A93: 92 | B93: 64325 | C93: 563313.5
A94: 93 | B94: 32326 | C94: 365825.02
A95: 94 | B95: 16138 | C95: 206538.6
A96: 95 | B96: 34957 | C96: 320916.75
A97: 96 | B97: 26159 | C97: 294325.06
A98: 97 | B98: 42098 | C98: 329951.7
A99: 98 | B99: 20582 | C99: 161277.7
A100: 99 | B100: 45614 | C100: 428140.06
A101: 100 | B101: 42729 | C101: 433279.13
A102: 101 | B102: 40053 | C102: 346792.73
A103: 102 | B103: 51749 | C103: 540063.03
A104: 103 | B104: 59753 | C104: 588972.06
A105: 104 | B105: 34045 | C105: 290698.15
A106: 105 | B106: 56384 | C106: 544487.68
A107: 106 | B107: 33242 | C107: 206569.82
A108: 107 | B108: 49060 | C108: 550902.6
A109: 108 | B109: 38219 | C109: 321737.09
A110: 109 | B110: 56891 | C110: 568845.92
A111: 110 | B111: 52906 | C111: 426690.72
A112: 111 | B112: 44835 | C112: 430649.15
A113: 112 | B113: 45028 | C113: 400768.12
A114: 113 | B114: 15988 | C114: 175665.68
A115: 114 | B115: 64717 | C115: 558028.45
A116: 115 | B116: 15196 | C116: 163514.12
A117: 116 | B117: 45093 | C117: 398568.89
A118: 117 | B118: 51099 | C118: 483830.51
A119: 118 | B119: 40839 | C119: 292958.72
A120: 119 | B120: 29773 | C120: 275083.88
A121: 120 | B121: 60954 | C121: 599805.08
A122: 121 | B122: 53820 | C122: 524692.4
A123: 122 | B123: 19365 | C123: 196012.1
A124: 123 | B124: 39109 | C124: 360134.37
A125: 124 | B125: 40439 | C125: 312044.72
A126: 125 | B126: 35117 | C126: 268076.57
A127: 126 | B127: 50624 | C127: 394243.2
A128: 127 | B128: 55174 | C128: 474839.8
A129: 128 | B129: 52278 | C129: 474497.36
A130: 129 | B130: 30557 | C130: 301178.54
A131: 130 | B131: 62145 | C131: 642241.85
A132: 131 | B132: 58106 | C132: 475335.92
A133: 132 | B133: 55233 | C133: 543230.69
A134: 133 | B134: 51653 | C134: 343389.04
A135: 134 | B135: 16221 | C135: 195989
A136: 135 | B136: 28538 | C136: 295141.42
A137: 136 | B137: 33546 | C137: 355268.6
A138: 137 | B138: 50539 | C138: 505356.39
A139: 138 | B139: 14677 | C139: 180772.07
A140: 139 | B140: 15835 | C140: 146751.85
A141: 140 | B141: 24504 | C141: 198984.32
A142: 141 | B142: 21816 | C142: 210783.92
A143: 142 | B143: 28370 | C143: 246604.1
A144: 143 | B144: 46733 | C144: 430873.95
A145: 144 | B145: 46568 | C145: 393671.84
A146: 145 | B146: 42540 | C146: 363945.2
A147: 146 | B147: 39348 | C147: 275857.52
A148: 147 | B148: 34125 | C148: 350641.25
A149: 148 | B149: 61572 | C149: 580750.64
A150: 149 | B150: 54730 | C150: 410123.4
A151: 150 | B151: 38799 | C151: 332068.73
A152: 151 | B152: 22293 | C152: 208949.09
A153: 152 | B153: 37202 | C153: 346499.94
A154: 153 | B154: 53171 | C154: 474836.29
A155: 154 | B155: 33287 | C155: 255380.79
A156: 155 | B156: 35445 | C156: 237858.5
A157: 156 | B157: 21723 | C157: 224001.23
A158: 157 | B158: 40939 | C158: 439329.89
A159: 158 | B159: 45048 | C159: 362182.64
A160: 159 | B160: 30296 | C160: 299639.04
A161: 160 | B161: 53521 | C161: 457210.54
A162: 161 | B162: 24680 | C162: 209679.6
A163: 162 | B163: 46956 | C163: 426587.12
A164: 163 | B164: 16392 | C164: 200150.72
A165: 164 | B165: 53761 | C165: 534924.22
A166: 165 | B166: 56104 | C166: 460681.28
A167: 166 | B167: 15241 | C167: 151200.24
A168: 167 | B168: 19284 | C168: 212426.64
A169: 168 | B169: 14673 | C169: 181763.54
A170: 169 | B170: 57793 | C170: 497895.75
A171: 170 | B171: 28259 | C171: 242161.2
A172: 171 | B172: 30304 | C172: 206671.68
A173: 172 | B173: 62568 | C173: 496735.52
A174: 173 | B174: 56139 | C174: 513074.17
A175: 174 | B175: 23120 | C175: 214614.4
A176: 175 | B176: 17006 | C176: 110924.66
A177: 176 | B177: 31596 | C177: 329940.56
A178: 177 | B178: 40607 | C178: 363486.04
A179: 178 | B179: 61771 | C179: 569494.11
A180: 179 | B180: 30412 | C180: 279610.6
A181: 180 | B181: 36947 | C181: 361463.21
A182: 181 | B182: 43194 | C182: 395552
A183: 182 | B183: 56866 | C183: 492417.48
A184: 183 | B184: 39851 | C184: 367213.96
A185: 184 | B185: 36617 | C185: 312177.72
A186: 185 | B186: 46438 | C186: 331878.66
A187: 186 | B187: 27520 | C187: 266032
A188: 187 | B188: 28852 | C188: 311399.12
A189: 188 | B189: 60878 | C189: 505367.44
A190: 189 | B190: 32779 | C190: 211928.26
A191: 190 | B191: 49959 | C191: 401211.77

Sheet Cov & Corr (1)
A1: ith Sample Point | B1: Weekly $ Ad Expense (x) | C1: Weekly $ Sales (y) | D1: X Deviation (Xi - Xbar) | E1: Y Deviation (Yi - Ybar) | F1: (Xi - Xbar)* (Yi - Ybar)
A2: 1 | B2: 63566 | C2: 651334.36
A3: 2 | B3: 50762 | C3: 527670.42
A4: 3 | B4: 50941 | C4: 523751.3
A5: 4 | B5: 17597 | C5: 175466.61
A6: 5 | B6: 33029 | C6: 377977.97
A7: 6 | B7: 58543 | C7: 520100.29
A8: 7 | B8: 60492 | C8: 620856.28
A9: 8 | B9: 59686 | C9: 593739.46
A10: 9 | B10: 16432 | C10: 181948.96
A11: 10 | B11: 17262 | C11: 184643.6
A12: 11 | B12: 39118 | C12: 379373.56
A13: 12 | B13: 36078 | C13: 238687.94
A14: 13 | B14: 42113 | C14: 410066.15
A15: 14 | B15: 50562 | C15: 413540.78
A16: 15 | B16: 38240 | C16: 340241.6
A17: 16 | B17: 59870 | C17: 582843
A18: 17 | B18: 46056 | C18: 433185.92
A19: 18 | B19: 33349 | C19: 270770.38
A20: 19 | B20: 16207 | C20: 164421.42
A21: 20 | B21: 57077 | C21: 478077.5
A22: 21 | B22: 30893 | C22: 393839.09
A23: 22 | B23: 54153 | C23: 430154.06
A24: 23 | B24: 14591 | C24: 210792.82
A25: 24 | B25: 50138 | C25: 343808.68
A26: 25 | B26: 55253 | C26: 565510.49
A27: 26 | B27: 34944 | C27: 330250.88
A28: 27 | B28: 26413 | C28: 295905.03
A29: 28 | B29: 54660 | C29: 562164.2
A30: 29 | B30: 35887 | C30: 257067.99
A31: 30 | B31: 42021 | C31: 384066.95
A32: 31 | B32: 47349 | C32: 441576.23
A33: 32 | B33: 24364 | C33: 252221.2
A34: 33 | B34: 58406 | C34: 552875.66
A35: 34 | B35: 51643 | C35: 446101.81
A36: 35 | B36: 55115 | C36: 476038.95
A37: 36 | B37: 35416 | C37: 393889.36
A38: 37 | B38: 37274 | C38: 328436.78
A39: 38 | B39: 36148 | C39: 408949.64
A40: 39 | B40: 32192 | C40: 394776.32
A41: 40 | B41: 51238 | C41: 455804.96
A42: 41 | B42: 59235 | C42: 526249.4
A43: 42 | B43: 59329 | C43: 562602.56
A44: 43 | B44: 22739 | C44: 180749.25
A45: 44 | B45: 28654 | C45: 275506.98
A46: 45 | B46: 36786 | C46: 372981.08
A47: 46 | B47: 20813 | C47: 216087.74
A48: 47 | B48: 57259 | C48: 470281.06
A49: 48 | B49: 57707 | C49: 481071.29
A50: 49 | B50: 61539 | C50: 612466.46
A51: 50 | B51: 36635 | C51: 370922.6
A52: 51 | B52: 39086 | C52: 448677.2
A53: 52 | B53: 33062 | C53: 259282.46
A54: 53 | B54: 42144 | C54: 354279.68
A55: 54 | B55: 18828 | C55: 185749.88
A56: 55 | B56: 57070 | C56: 415818.7
A57: 56 | B57: 27991 | C57: 252095.02
A58: 57 | B58: 37876 | C58: 329524.88
A59: 58 | B59: 16134 | C59: 233120.9
A60: 59 | B60: 55466 | C60: 376140.08
A61: 60 | B61: 26100 | C61: 208166
A62: 61 | B62: 23787 | C62: 226261.67
A63: 62 | B63: 30895 | C63: 249581.7
A64: 63 | B64: 31845 | C64: 278010.2
A65: 64 | B65: 50618 | C65: 537451.34
A66: 65 | B66: 62293 | C66: 448052.27
A67: 66 | B67: 61228 | C67: 519618.76
A68: 67 | B68: 32558 | C68: 364510.28
A69: 68 | B69: 40694 | C69: 351135.6
A70: 69 | B70: 46333 | C70: 390547.55
A71: 70 | B71: 28415 | C71: 234129.2
A72: 71 | B72: 19993 | C72: 224538.89
A73: 72 | B73: 34414 | C73: 248912.92
A74: 73 | B74: 52078 | C74: 328096.52
A75: 74 | B75: 24507 | C75: 262965.83
A76: 75 | B76: 28516 | C76: 334304.52
A77: 76 | B77: 17554 | C77: 216060.84
A78: 77 | B78: 16662 | C78: 183462.62
A79: 78 | B79: 57162 | C79: 517013.54
A80: 79 | B80: 57297 | C80: 731834.3
A81: 80 | B81: 64112 | C81: 439159.84
A82: 81 | B82: 37237 | C82: 453649.08
A83: 82 | B83: 55058 | C83: 495969.8
A84: 83 | B84: 30791 | C84: 306489.03
A85: 84 | B85: 19784 | C85: 226868.96
A86: 85 | B86: 32463 | C86: 316845.86
A87: 86 | B87: 59364 | C87: 496417.28
A88: 87 | B88: 64632 | C88: 527881.68
A89: 88 | B89: 58106 | C89: 535766.16
A90: 89 | B90: 60333 | C90: 469314.35
A91: 90 | B91: 58353 | C91: 558254.63
A92: 91 | B92: 22672 | C92: 197141.28
A93: 92 | B93: 64325 | C93: 563313.5
A94: 93 | B94: 32326 | C94: 365825.02
A95: 94 | B95: 16138 | C95: 206538.6
A96: 95 | B96: 34957 | C96: 320916.75
A97: 96 | B97: 26159 | C97: 294325.06
A98: 97 | B98: 42098 | C98: 329951.7
A99: 98 | B99: 20582 | C99: 161277.7
A100: 99 | B100: 45614 | C100: 428140.06
A101: 100 | B101: 42729 | C101: 433279.13
A102: 101 | B102: 40053 | C102: 346792.73
A103: 102 | B103: 51749 | C103: 540063.03
A104: 103 | B104: 59753 | C104: 588972.06
A105: 104 | B105: 34045 | C105: 290698.15
A106: 105 | B106: 56384 | C106: 544487.68
A107: 106 | B107: 33242 | C107: 206569.82
A108: 107 | B108: 49060 | C108: 550902.6
A109: 108 | B109: 38219 | C109: 321737.09
A110: 109 | B110: 56891 | C110: 568845.92
A111: 110 | B111: 52906 | C111: 426690.72
A112: 111 | B112: 44835 | C112: 430649.15
A113: 112 | B113: 45028 | C113: 400768.12
A114: 113 | B114: 15988 | C114: 175665.68
A115: 114 | B115: 64717 | C115: 558028.45
A116: 115 | B116: 15196 | C116: 163514.12
A117: 116 | B117: 45093 | C117: 398568.89
A118: 117 | B118: 51099 | C118: 483830.51
A119: 118 | B119: 40839 | C119: 292958.72
A120: 119 | B120: 29773 | C120: 275083.88
A121: 120 | B121: 60954 | C121: 599805.08
A122: 121 | B122: 53820 | C122: 524692.4
A123: 122 | B123: 19365 | C123: 196012.1
A124: 123 | B124: 39109 | C124: 360134.37
A125: 124 | B125: 40439 | C125: 312044.72
A126: 125 | B126: 35117 | C126: 268076.57
A127: 126 | B127: 50624 | C127: 394243.2
A128: 127 | B128: 55174 | C128: 474839.8
A129: 128 | B129: 52278 | C129: 474497.36
A130: 129 | B130: 30557 | C130: 301178.54
A131: 130 | B131: 62145 | C131: 642241.85
A132: 131 | B132: 58106 | C132: 475335.92
A133: 132 | B133: 55233 | C133: 543230.69
A134: 133 | B134: 51653 | C134: 343389.04
A135: 134 | B135: 16221 | C135: 195989
A136: 135 | B136: 28538 | C136: 295141.42
A137: 136 | B137: 33546 | C137: 355268.6
A138: 137 | B138: 50539 | C138: 505356.39
A139: 138 | B139: 14677 | C139: 180772.07
A140: 139 | B140: 15835 | C140: 146751.85
A141: 140 | B141: 24504 | C141: 198984.32
A142: 141 | B142: 21816 | C142: 210783.92
A143: 142 | B143: 28370 | C143: 246604.1
A144: 143 | B144: 46733 | C144: 430873.95
A145: 144 | B145: 46568 | C145: 393671.84
A146: 145 | B146: 42540 | C146: 363945.2
A147: 146 | B147: 39348 | C147: 275857.52
A148: 147 | B148: 34125 | C148: 350641.25
A149: 148 | B149: 61572 | C149: 580750.64
A150: 149 | B150: 54730 | C150: 410123.4
A151: 150 | B151: 38799 | C151: 332068.73
A152: 151 | B152: 22293 | C152: 208949.09
A153: 152 | B153: 37202 | C153: 346499.94
A154: 153 | B154: 53171 | C154: 474836.29
A155: 154 | B155: 33287 | C155: 255380.79
A156: 155 | B156: 35445 | C156: 237858.5
A157: 156 | B157: 21723 | C157: 224001.23
A158: 157 | B158: 40939 | C158: 439329.89
A159: 158 | B159: 45048 | C159: 362182.64
A160: 159 | B160: 30296 | C160: 299639.04
A161: 160 | B161: 53521 | C161: 457210.54
A162: 161 | B162: 24680 | C162: 209679.6
A163: 162 | B163: 46956 | C163: 426587.12
A164: 163 | B164: 16392 | C164: 200150.72
A165: 164 | B165: 53761 | C165: 534924.22
A166: 165 | B166: 56104 | C166: 460681.28
A167: 166 | B167: 15241 | C167: 151200.24
A168: 167 | B168: 19284 | C168: 212426.64
A169: 168 | B169: 14673 | C169: 181763.54
A170: 169 | B170: 57793 | C170: 497895.75
A171: 170 | B171: 28259 | C171: 242161.2
A172: 171 | B172: 30304 | C172: 206671.68
A173: 172 | B173: 62568 | C173: 496735.52
A174: 173 | B174: 56139 | C174: 513074.17
A175: 174 | B175: 23120 | C175: 214614.4
A176: 175 | B176: 17006 | C176: 110924.66
A177: 176 | B177: 31596 | C177: 329940.56
A178: 177 | B178: 40607 | C178: 363486.04
A179: 178 | B179: 61771 | C179: 569494.11
A180: 179 | B180: 30412 | C180: 279610.6
A181: 180 | B181: 36947 | C181: 361463.21
A182: 181 | B182: 43194 | C182: 395552
A183: 182 | B183: 56866 | C183: 492417.48
A184: 183 | B184: 39851 | C184: 367213.96
A185: 184 | B185: 36617 | C185: 312177.72
A186: 185 | B186: 46438 | C186: 331878.66
A187: 186 | B187: 27520 | C187: 266032
A188: 187 | B188: 28852 | C188: 311399.12
A189: 188 | B189: 60878 | C189: 505367.44
A190: 189 | B190: 32779 | C190: 211928.26
A191: 190 | B191: 49959 | C191: 401211.77
C192: Total
A194: Count = n = | B194: =COUNT(B2:B191) -> 190 | C194: =" "&IF(_xlfn.ISFORMULA(B194),_xlfn.FORMULATEXT(B194),"") -> =COUNT(B2:B191)
A195: n-1 | B195: =B194-1 -> 189 | C195: =B194-1
A196: Xbar | B196: =AVERAGE(B2:B191) -> 40429.52632 | C196: =AVERAGE(B2:B191)
A197: Ybar | B197: =AVERAGE(C2:C191) -> 370058.9506 | C197: =AVERAGE(C2:C191)
A198: Sample Standard Deviation X = sx | B198: =_xlfn.STDEV.S(B2:B191) -> 14643.35921 | C198: =STDEV.S(B2:B191)
A199: Sample Standard Deviation Y = sy | B199: =_xlfn.STDEV.S(C2:C191) -> 131523.1728 | C199: =STDEV.S(C2:C191)
A200: Covariance = sxy
A201: Covariance = sxy
... 3 more rows

Sheet Cov & Corr (1an)
A1: ith Sample Point | B1: Weekly $ Ad Expense (x) | C1: Weekly $ Sales (y) | D1: X Deviation (Xi - Xbar) | E1: Y Deviation (Yi - Ybar) | F1: (Xi - Xbar)* (Yi - Ybar)
A2: 1 | B2: 63566 | C2: 651334.36 | D2: =B2-$B$196 -> 23136.47368 | E2: =C2-$B$197 -> 281275.4094 | F2: =D2*E2 -> 6507721107
A3: 2 | B3: 50762 | C3: 527670.42 | D3: =B3-$B$196 -> 10332.47368 | E3: =C3-$B$197 -> 157611.4694 | F3: =D3*E3 -> 1628516360
A4: 3 | B4: 50941 | C4: 523751.3 | D4: 10511.47368 | E4: 153692.3494 | F4: 1615533086
A5: 4 | B5: 17597 | C5: 175466.61 | D5: -22832.52632 | E5: -194592.3406 | F5: 4443034738
A6: 5 | B6: 33029 | C6: 377977.97 | D6: -7400.526316 | E6: 7919.019368 | F6: -58604911.23
A7: 6 | B7: 58543 | C7: 520100.29 | D7: 18113.47368 | E7: 150041.3394 | F7: 2717769852
A8: 7 | B8: 60492 | C8: 620856.28 | D8: 20062.47368 | E8: 250797.3294 | F8: 5031614821
A9: 8 | B9: 59686 | C9: 593739.46 | D9: 19256.47368 | E9: 223680.5094 | F9: 4307297842
A10: 9 | B10: 16432 | C10: 181948.96 | D10: -23997.52632 | E10: -188109.9906 | F10: 4514174450
A11: 10 | B11: 17262 | C11: 184643.6 | D11: -23167.52632 | E11: -185415.3506 | F11: 4295615015
A12: 11 | B12: 39118 | C12: 379373.56 | D12: -1311.526316 | E12: 9314.609368 | F12: -12216355.31
A13: 12 | B13: 36078 | C13: 238687.94 | D13: -4351.526316 | E13: -131371.0106 | F13: 571664409.9
A14: 13 | B14: 42113 | C14: 410066.15 | D14: 1683.473684 | E14: 40007.19937 | F14: 67351067.32
A15: 14 | B15: 50562 | C15: 413540.78 | D15: 10132.47368 | E15: 43481.82937 | F15: 440578491.8
A16: 15 | B16: 38240 | C16: 340241.6 | D16: -2189.526316 | E16: -29817.35063 | F16: 65285873.87
A17: 16 | B17: 59870 | C17: 582843 | D17: 19440.47368 | E17: 212784.0494 | F17: 4136622712
A18: 17 | B18: 46056 | C18: 433185.92 | D18: 5626.473684 | E18: 63126.96937 | F18: 355182231.9
A19: 18 | B19: 33349 | C19: 270770.38 | D19: -7080.526316 | E19: -99288.57063 | F19: 703015337.2
A20: 19 | B20: 16207 | C20: 164421.42 | D20: -24222.52632 | E20: -205637.5306 | F20: 4981060497
A21: 20 | B21: 57077 | C21: 478077.5 | D21: 16647.47368 | E21: 108018.5494 | F21: 1798235958
A22: 21 | B22: 30893 | C22: 393839.09 | D22: -9536.526316 | E22: 23780.13937 | F22: -226779924.9
A23: 22 | B23: 54153 | C23: 430154.06 | D23: 13723.47368 | E23: 60095.10937 | F23: 824713652
A24: 23 | B24: 14591 | C24: 210792.82 | D24: -25838.52632 | E24: -159266.1306 | F24: 4115202108
A25: 24 | B25: 50138 | C25: 343808.68 | D25: 9708.473684 | E25: -26250.27063 | F25: -254850061.6
A26: 25 | B26: 55253 | C26: 565510.49 | D26: 14823.47368 | E26: 195451.5394 | F26: 2897270750
A27: 26 | B27: 34944 | C27: 330250.88 | D27: -5485.526316 | E27: -39808.07063 | F27: 218368219
A28: 27 | B28: 26413 | C28: 295905.03 | D28: -14016.52632 | E28: -74153.92063 | F28: 1039380380
A29: 28 | B29: 54660 | C29: 562164.2 | D29: 14230.47368 | E29: 192105.2494 | F29: 2733748696
A30: 29 | B30: 35887 | C30: 257067.99 | D30: -4542.526316 | E30: -112990.9606 | F30: 513264412.1
A31: 30 | B31: 42021 | C31: 384066.95 | D31: 1591.473684 | E31: 14007.99937 | F31: 22293362.36
A32: 31 | B32: 47349 | C32: 441576.23 | D32: 6919.473684 | E32: 71517.27937 | F32: 494861932.6
A33: 32 | B33: 24364 | C33: 252221.2 | D33: -16065.52632 | E33: -117837.7506 | F33: 1893125484
A34: 33 | B34: 58406 | C34: 552875.66 | D34: 17976.47368 | E34: 182816.7094 | F34: 3286399765
A35: 34 | B35: 51643 | C35: 446101.81 | D35: 11213.47368 | E35: 76042.85937 | F35: 852704602.4
A36: 35 | B36: 55115 | C36: 476038.95 | D36: 14685.47368 | E36: 105979.9994 | F36: 1556366492
A37: 36 | B37: 35416 | C37: 393889.36 | D37: -5013.526316 | E37: 23830.40937 | F37: -119474384.5
A38: 37 | B38: 37274 | C38: 328436.78 | D38: -3155.526316 | E38: -41622.17063 | F38: 131339854.7
A39: 38 | B39: 36148 | C39: 408949.64 | D39: -4281.526316 | E39: 38890.68937 | F39: -166511510
A40: 39 | B40: 32192 | C40: 394776.32 | D40: -8237.526316 | E40: 24717.36937 | F40: -203609980.6
A41: 40 | B41: 51238 | C41: 455804.96 | D41: 10808.47368 | E41: 85746.00937 | F41: 926783485.8
A42: 41 | B42: 59235 | C42: 526249.4 | D42: 18805.47368 | E42: 156190.4494 | F42: 2937235385
A43: 42 | B43: 59329 | C43: 562602.56 | D43: 18899.47368 | E43: 192543.6094 | F43: 3638972878
A44: 43 | B44: 22739 | C44: 180749.25 | D44: -17690.52632 | E44: -189309.7006 | F44: 3348988241
A45: 44 | B45: 28654 | C45: 275506.98 | D45: -11775.52632 | E45: -94551.97063 | F45: 1113399218
A46: 45 | B46: 36786 | C46: 372981.08 | D46: -3643.526316 | E46: 2922.129368 | F46: -10646855.25
A47: 46 | B47: 20813 | C47: 216087.74 | D47: -19616.52632 | E47: -153971.2106 | F47: 3020380305
A48: 47 | B48: 57259 | C48: 470281.06 | D48: 16829.47368 | E48: 100222.1094 | F48: 1686685352
A49: 48 | B49: 57707 | C49: 481071.29 | D49: 17277.47368 | E49: 111012.3394 | F49: 1918012772
A50: 49 | B50: 61539 | C50: 612466.46 | D50: 21109.47368 | E50: 242407.5094 | F50: 5117094940
A51: 50 | B51: 36635 | C51: 370922.6 | D51: -3794.526316 | E51: 863.6493684 | F51: -3277140.256
A52: 51 | B52: 39086 | C52: 448677.2 | D52: -1343.526316 | E52: 78618.24937 | F52: -105625686.9
A53: 52 | B53: 33062 | C53: 259282.46 | D53: -7367.526316 | E53: -110776.4906 | F53: 816148709.9
A54: 53 | B54: 42144 | C54: 354279.68 | D54: 1714.473684 | E54: -15779.27063 | F54: -27053144.25
A55: 54 | B55: 18828 | C55: 185749.88 | D55: -21601.52632 | E55: -184309.0706 | F55: 3981357239
A56: 55 | B56: 57070 | C56: 415818.7 | D56: 16640.47368 | E56: 45759.74937 | F56: 761463905.2
A57: 56 | B57: 27991 | C57: 252095.02 | D57: -12438.52632 | E57: -117963.9306 | F57: 1467297455
A58: 57 | B58: 37876 | C58: 329524.88 | D58: -2553.526316 | E58: -40534.07063 | F58: 103504816
A59: 58 | B59: 16134 | C59: 233120.9 | D59: -24295.52632 | E59: -136938.0506 | F59: 3326982013
A60: 59 | B60: 55466 | C60: 376140.08 | D60: 15036.47368 | E60: 6081.129368 | F60: 91438741.72
A61: 60 | B61: 26100 | C61: 208166 | D61: -14329.52632 | E61: -161892.9506 | F61: 2319849296
A62: 61 | B62: 23787 | C62: 226261.67 | D62: -16642.52632 | E62: -143797.2806 | F62: 2393150027
A63: 62 | B63: 30895 | C63: 249581.7 | D63: -9534.526316 | E63: -120477.2506 | F63: 1148693517
A64: 63 | B64: 31845 | C64: 278010.2 | D64: -8584.526316 | E64: -92048.75063 | F64: 790194922.1
A65: 64 | B65: 50618 | C65: 537451.34 | D65: 10188.47368 | E65: 167392.3894 | F65: 1705472954
A66: 65 | B66: 62293 | C66: 448052.27 | D66: 21863.47368 | E66: 77993.31937 | F66: 1705204886
A67: 66 | B67: 61228 | C67: 519618.76 | D67: =B67-$B$196 -> 20798.47368 | E67: =C67-$B$197 -> 149559.8094 | F67: =D67*E67 -> 3110615759
A68: 67 | B68: 32558 | C68: 364510.28 | D68: -7871.526316 | E68: -5548.670632 | F68: 43676506.89
A69: 68 | B69: 40694 | C69: 351135.6 | D69: 264.4736842 | E69: -18923.35063 | F69: -5004728.259
A70: 69 | B70: 46333 | C70: 390547.55 | D70: 5903.473684 | E70: 20488.59937 | F70: 120953907.2
A71: 70 | B71: 28415 | C71: 234129.2 | D71: -12014.52632 | E71: -135929.7506 | F71: 1633131566
A72: 71 | B72: 19993 | C72: 224538.89 | D72: -20436.52632 | E72: -145520.0606 | F72: 2973924549
A73: 72 | B73: 34414 | C73: 248912.92 | D73: -6015.526316 | E73: -121146.0306 | F73: 728757135.3
A74: 73 | B74: 52078 | C74: 328096.52 | D74: 11648.47368 | E74: -41962.43063 | F74: -488798268.9
A75: 74 | B75: 24507 | C75: 262965.83 | D75: -15922.52632 | E75: -107093.1206 | F75: 1705193031
A76: 75 | B76: 28516 | C76: 334304.52 | D76: -11913.52632 | E76: -35754.43063 | F76: 425961350.2
A77: 76 | B77: 17554 | C77: 216060.84 | D77: -22875.52632 | E77: -153998.1106 | F77: 3522787832
A78: 77 | B78: 16662 | C78: 183462.62 | D78: -23767.52632 | E78: -186596.3306 | F78: 4434933199
A79: 78 | B79: 57162 | C79: 517013.54 | D79: 16732.47368 | E79: 146954.5894 | F79: 2458913799
A80: 79 | B80: 57297 | C80: 731834.3 | D80: 16867.47368 | E80: 361775.3494 | F80: 6102236185
A81: 80 | B81: 64112 | C81: 439159.84 | D81: 23682.47368 | E81: 69100.88937 | F81: 1636479994
A82: 81 | B82: 37237 | C82: 453649.08 | D82: -3192.526316 | E82: 83590.12937 | F82: -266863687.7
A83: 82 | B83: 55058 | C83: 495969.8 | D83: 14628.47368 | E83: 125910.8494 | F83: 1841883547
A84: 83 | B84: 30791 | C84: 306489.03 | D84: -9638.526316 | E84: -63569.92063 | F84: 612720352.9
A85: 84 | B85: 19784 | C85: 226868.96 | D85: -20645.52632 | E85: -143189.9906 | F85: 2956232720
A86: 85 | B86: 32463 | C86: 316845.86 | D86: -7966.526316 | E86: -53213.09063 | F86: 423923486.9
A87: 86 | B87: 59364 | C87: 496417.28 | D87: 18934.47368 | E87: 126358.3294 | F87: 2392528462
A88: 87 | B88: 64632 | C88: 527881.68 | D88: 24202.47368 | E88: 157822.7294 | F88: 3819700454
A89: 88 | B89: 58106 | C89: 535766.16 | D89: 17676.47368 | E89: 165707.2094 | F89: 2929119126
A90: 89 | B90: 60333 | C90: 469314.35 | D90: 19903.47368 | E90: 99255.39937 | F90: 1975527229
A91: 90 | B91: 58353 | C91: 558254.63 | D91: 17923.47368 | E91: 188195.6794 | F91: 3373120307
A92: 91 | B92: 22672 | C92: 197141.28 | D92: -17757.52632 | E92: -172917.6706 | F92: 3070590087
A93: 92 | B93: 64325 | C93: 563313.5 | D93: 23895.47368 | E93: 193254.5494 | F93: 4617908999
A94: 93 | B94: 32326 | C94: 365825.02 | D94: -8103.526316 | E94: -4233.930632 | F94: 34309768.29
A95: 94 | B95: 16138 | C95: 206538.6 | D95: -24291.52632 | E95: -163520.3506 | F95: 3972158901
A96: 95 | B96: 34957 | C96: 320916.75 | D96: -5472.526316 | E96: -49142.20063 | F96: 268931986.2
A97: 96 | B97: 26159 | C97: 294325.06 | D97: -14270.52632 | E97: -75733.89063 | F97: 1080762479
A98: 97 | B98: 42098 | C98: 329951.7 | D98: 1668.473684 | E98: -40107.25063 | F98: -66917892.22
A99: 98 | B99: 20582 | C99: 161277.7 | D99: -19847.52632 | E99: -208781.2506 | F99: 4143791366
A100: 99 | B100: 45614 | C100: 428140.06 | D100: 5184.473684 | E100: 58081.10937 | F100: 301119983.1
A101: 100 | B101: 42729 | C101: 433279.13 | D101: 2299.473684 | E101: 63220.17937 | F101: 145373138.8
A102: 101 | B102: 40053 | C102: 346792.73 | D102: -376.5263158 | E102: -23266.22063 | F102: 8760344.337
A103: 102 | B103: 51749 | C103: 540063.03 | D103: 11319.47368 | E103: 170004.0794 | F103: 1924356703
A104: 103 | B104: 59753 | C104: 588972.06 | D104: 19323.47368 | E104: 218913.1094 | F104: 4230161708
A105: 104 | B105: 34045 | C105: 290698.15 | D105: -6384.526316 | E105: -79360.80063 | F105: 506681120.1
A106: 105 | B106: 56384 | C106: 544487.68 | D106: 15954.47368 | E106: 174428.7294 | F106: 2782918572
A107: 106 | B107: 33242 | C107: 206569.82 | D107: -7187.526316 | E107: -163489.1306 | F107: 1175082429
A108: 107 | B108: 49060 | C108: 550902.6 | D108: 8630.473684 | E108: 180843.6494 | F108: 1560766357
A109: 108 | B109: 38219 | C109: 321737.09 | D109: -2210.526316 | E109: -48321.86063 | F109: 106816744.6
A110: 109 | B110: 56891 | C110: 568845.92 | D110: 16461.47368 | E110: 198786.9694 | F110: 3272326465
A111: 110 | B111: 52906 | C111: 426690.72 | D111: 12476.47368 | E111: 56631.76937 | F111: 706564780.2
A112: 111 | B112: 44835 | C112: 430649.15 | D112: 4405.473684 | E112: 60590.19937 | F112: 266928528.8
A113: 112 | B113: 45028 | C113: 400768.12 | D113: 4598.473684 | E113: 30709.16937 | F113: 141215307.2
A114: 113 | B114: 15988 | C114: 175665.68 | D114: -24441.52632 | E114: -194393.2706 | F114: 4751268240
A115: 114 | B115: 64717 | C115: 558028.45 | D115: 24287.47368 | E115: 187969.4994 | F115: 4565304269
A116: 115 | B116: 15196 | C116: 163514.12 | D116: -25233.52632 | E116: -206544.8306 | F116: 5211854419
A117: 116 | B117: 45093 | C117: 398568.89 | D117: 4663.473684 | E117: 28509.93937 | F117: 132955352
A118: 117 | B118: 51099 | C118: 483830.51 | D118: 10669.47368 | E118: 113771.5594 | F118: 1213882659
A119: 118 | B119: 40839 | C119: 292958.72 | D119: 409.4736842 | E119: -77100.23063 | F119: -31570515.49
A120: 119 | B120: 29773 | C120: 275083.88 | D120: -10656.52632 | E120: -94975.07063 | F120: 1012104340
A121: 120 | B121: 60954 | C121: 599805.08 | D121: 20524.47368 | E121: 229746.1294 | F121: 4715418386
A122: 121 | B122: 53820 | C122: 524692.4 | D122: 13390.47368 | E122: 154633.4494 | F122: 2070615134
A123: 122 | B123: 19365 | C123: 196012.1 | D123: -21064.52632 | E123: -174046.8506 | F123: 3666214465
A124: 123 | B124: 39109 | C124: 360134.37 | D124: -1320.526316 | E124: -9924.580632 | F124: 13105669.9
A125: 124 | B125: 40439 | C125: 312044.72 | D125: 9.473684211 | E125: -58014.23063 | F125: -549608.5007
A126: 125 | B126: 35117 | C126: 268076.57 | D126: -5312.526316 | E126: -101982.3806 | F126: 541784080.9
A127: 126 | B127: 50624 | C127: 394243.2 | D127: 10194.47368 | E127: 24184.24937 | F127: 246545693.8
A128: 127 | B128: 55174 | C128: 474839.8 | D128: 14744.47368 | E128: 104780.8494 | F128: 1544938476
A129: 128 | B129: 52278 | C129: 474497.36 | D129: 11848.47368 | E129: 104438.4094 | F129: 1237435745
A130: 129 | B130: 30557 | C130: 301178.54 | D130: -9872.526316 | E130: -68880.41063 | F130: 680023666.6
A131: 130 | B131: 62145 | C131: 642241.85 | D131: =B131-$B$196 -> 21715.47368 | E131: =C131-$B$197 -> 272182.8994 | F131: =D131*E131 -> 5910580589
A132: 131 | B132: 58106 | C132: 475335.92 | D132: 17676.47368 | E132: 105276.9694 | F132: 1860925579
A133: 132 | B133: 55233 | C133: 543230.69 | D133: 14803.47368 | E133: 173171.7394 | F133: 2563543287
A134: 133 | B134: 51653 | C134: 343389.04 | D134: 11223.47368 | E134: -26669.91063 | F134: -299329040.1
A135: 134 | B135: 16221 | C135: 195989 | D135: -24208.52632 | E135: -174069.9506 | F135: 4213976981
A136: 135 | B136: 28538 | C136: 295141.42 | D136: -11891.52632 | E136: -74917.53063 | F136: 890883787
A137: 136 | B137: 33546 | C137: 355268.6 | D137: -6883.526316 | E137: -14790.35063 | F137: 101809767.8
A138: 137 | B138: 50539 | C138: 505356.39 | D138: 10109.47368 | E138: 135297.4394 | F138: 1367785903
A139: 138 | B139: 14677 | C139: 180772.07 | D139: -25752.52632 | E139: -189286.8806 | F139: 4874615375
A140: 139 | B140: 15835 | C140: 146751.85 | D140: -24594.52632 | E140: -223307.1006 | F140: 5492132363
A141: 140 | B141: 24504 | C141: 198984.32 | D141: -15925.52632 | E141: -171074.6306 | F141: 2724453532
A142: 141 | B142: 21816 | C142: 210783.92 | D142: -18613.52632 | E142: -159275.0306 | F142: 2964669974
A143: 142 | B143: 28370 | C143: 246604.1 | D143: -12059.52632 | E143: -123454.8506 | F143: 1488807020
A144: 143 | B144: 46733 | C144: 430873.95 | D144: 6303.473684 | E144: 60814.99937 | F144: 383345748.1
A145: 144 | B145: 46568 | C145: 393671.84 | D145: 6138.473684 | E145: 23612.88937 | F145: 144947100
A146: 145 | B146: 42540 | C146: 363945.2 | D146: 2110.473684 | E146: -6113.750632 | F146: -12902909.82
A147: 146 | B147: 39348 | C147: 275857.52 | D147: -1081.526316 | E147: -94201.43063 | F147: 101881326.2
A148: 147 | B148: 34125 | C148: 350641.25 | D148: -6304.526316 | E148: -19417.70063 | F148: 122419404.6
A149: 148 | B149: 61572 | C149: 580750.64 | D149: 21142.47368 | E149: 210691.6894 | F149: 4454543498
A150: 149 | B150: 54730 | C150: 410123.4 | D150: 14300.47368 | E150: 40064.44937 | F150: 572940603.9
A151: 150 | B151: 38799 | C151: 332068.73 | D151: -1630.526316 | E151: -37990.22063 | F151: 61944054.48
A152: 151 | B152: 22293 | C152: 208949.09 | D152: -18136.52632 | E152: -161109.8606 | F152: 2921973227
A153: 152 | B153: 37202 | C153: 346499.94 | D153: -3227.526316 | E153: -23559.01063 | F153: 76037326.79
A154: 153 | B154: 53171 | C154: 474836.29 | D154: 12741.47368 | E154: 104777.3394 | F154: 1335017712
A155: 154 | B155: 33287 | C155: 255380.79 | D155: -7142.526316 | E155: -114678.1606 | F155: 819091780.2
A156: 155 | B156: 35445 | C156: 237858.5 | D156: -4984.526316 | E156: -132200.4506 | F156: 658956625.1
A157: 156 | B157: 21723 | C157: 224001.23 | D157: -18706.52632 | E157: -146057.7206 | F157: 2732232595
A158: 157 | B158: 40939 | C158: 439329.89 | D158: 509.4736842 | E158: 69270.93937 | F158: 35291720.69
A159: 158 | B159: 45048 | C159: 362182.64 | D159: 4618.473684 | E159: -7876.310632 | F159: -36376533.38
A160: 159 | B160: 30296 | C160: 299639.04 | D160: -10133.52632 | E160: -70419.91063 | F160: 713602017.5
A161: 160 | B161: 53521 | C161: 457210.54 | D161: 13091.47368 | E161: 87151.58937 | F161: 1140942739
A162: 161 | B162: 24680 | C162: 209679.6 | D162: -15749.52632 | E162: -160379.3506 | F162: 2525898803
A163: 162 | B163: 46956 | C163: 426587.12 | D163: 6526.473684 | E163: 56528.16937 | F163: 368929609.8
A164: 163 | B164: 16392 | C164: 200150.72 | D164: -24037.52632 | E164: -169908.2306 | F164: 4084173565
A165: 164 | B165: 53761 | C165: 534924.22 | D165: 13331.47368 | E165: 164865.2694 | F165: 2197897000
A166: 165 | B166: 56104 | C166: 460681.28 | D166: 15674.47368 | E166: 90622.32937 | F166: 1420457317
A167: 166 | B167: 15241 | C167: 151200.24 | D167: -25188.52632 | E167: -218858.7106 | F167: 5512728392
A168: 167 | B168: 19284 | C168: 212426.64 | D168: -21145.52632 | E168: -157632.3106 | F168: 3333218173
A169: 168 | B169: 14673 | C169: 181763.54 | D169: -25756.52632 | E169: -188295.4106 | F169: 4849835699
A170: 169 | B170: 57793 | C170: 497895.75 | D170: 17363.47368 | E170: 127836.7994 | F170: 2219690902
A171: 170 | B171: 28259 | C171: 242161.2 | D171: -12170.52632 | E171: -127897.7506 | F171: 1556582940
A172: 171 | B172: 30304 | C172: 206671.68 | D172: -10125.52632 | E172: -163387.2706 | F172: 1654382108
A173: 172 | B173: 62568 | C173: 496735.52 | D173: 22138.47368 | E173: 126676.5694 | F173: 2804425897
A174: 173 | B174: 56139 | C174: 513074.17 | D174: 15709.47368 | E174: 143015.2194 | F174: 2246693825
A175: 174 | B175: 23120 | C175: 214614.4 | D175: -17309.52632 | E175: -155444.5506 | F175: 2690671540
A176: 175 | B176: 17006 | C176: 110924.66 | D176: -23423.52632 | E176: -259134.2906 | F176: 6069838876
A177: 176 | B177: 31596 | C177: 329940.56 | D177: -8833.526316 | E177: -40118.39063 | F177: 354386859.4
A178: 177 | B178: 40607 | C178: 363486.04 | D178: 177.4736842 | E178: -6572.910632 | F178: -1166518.666
A179: 178 | B179: 61771 | C179: 569494.11 | D179: 21341.47368 | E179: 199435.1594 | F179: 4256240205
A180: 179 | B180: 30412 | C180: 279610.6 | D180: -10017.52632 | E180: -90448.35063 | F180: 906068732.7
A181: 180 | B181: 36947 | C181: 361463.21 | D181: -3482.526316 | E181: -8595.740632 | F181: 29934892.95
A182: 181 | B182: 43194 | C182: 395552 | D182: 2764.473684 | E182: 25493.04937 | F182: 70474864.11
A183: 182 | B183: 56866 | C183: 492417.48 | D183: 16436.47368 | E183: 122358.5294 | F183: 2011142748
A184: 183 | B184: 39851 | C184: 367213.96 | D184: -578.5263158 | E184: -2844.990632 | F184: 1645901.949
A185: 184 | B185: 36617 | C185: 312177.72 | D185: -3812.526316 | E185: -57881.23063 | F185: 220673715
A186: 185 | B186: 46438 | C186: 331878.66 | D186: 6008.473684 | E186: -38180.29063 | F186: -229405271.5
A187: 186 | B187: 27520 | C187: 266032 | D187: -12909.52632 | E187: -104026.9506 | F187: 1342938657
A188: 187 | B188: 28852 | C188: 311399.12 | D188: -11577.52632 | E188: -58659.83063 | F188: 679135732.8
A189: 188 | B189: 60878 | C189: 505367.44 | D189: 20448.47368 | E189: 135308.4894 | F189: 2766852084
A190: 189 | B190: 32779 | C190: 211928.26 | D190: -7650.526316 | E190: -158130.6906 | F190: 1209783010
A191: 190 | B191: 49959 | C191: 401211.77 | D191: 9529.473684 | E191: 31152.81937 | F191: 296869972.4
C192: Total | D192: =SUM(D2:D191) -> 4.511093721e-10 | E192: =SUM(E2:E191) -> -3.891182132e-08 | F192: =SUM(F2:F191) -> 3.340043102e+11
A194: Count = n = | B194: =COUNT(B2:B191) -> 190 | C194: =" "&IF(_xlfn.ISFORMULA(B194),_xlfn.FORMULATEXT(B194),"") -> =COUNT(B2:B191)
A195: n-1 | B195: =B194-1 -> 189 | C195: =B194-1
A196: Xbar | B196: =AVERAGE(B2:B191) -> 40429.52632 | C196: =AVERAGE(B2:B191)
A197: Ybar | B197: =AVERAGE(C2:C191) -> 370058.9506 | C197: =AVERAGE(C2:C191)
A198: Sample Standard Deviation X = sx | B198: =_xlfn.STDEV.S(B2:B191) -> 14643.35921 | C198: =STDEV.S(B2:B191)
A199: Sample Standard Deviation Y = sy | B199: =_xlfn.STDEV.S(C2:C191) -> 131523.1728 | C199: =STDEV.S(C2:C191)
A200: Covariance = sxy | B200: =F192/B195 -> 1767218573 | C200: =F192/B195
A201: Covariance = sxy | B201: =_xlfn.COVARIANCE.S(C2:C191,B2:B191) -> 1767218573 | C201: =COVARIANCE.S(C2:C191,B2:B191)
... 3 more rows

Sheet Cov & Corr (2)
A1: For Entry Level BMX Race Bikes, Is there a Relationship between Price and Weight of Bike? | E1: Covariance | G1: =IF(_xlfn.ISFORMULA(F1),_xlfn.FORMULATEXT(F1),"") ->  | P1: x | Q1: y | S1: Covariance
E2: C of Correlation | P2: 5 | Q2: 6 | S2: Correlation
P3: -6 | Q3: 4
A4: Year Manufacturer and Model | B4: Bike Weight (pound) =x | C4: Price = y | P4: 4 | Q4: -6
A5: 2015 SE Ripper | B5: 22.4 | C5: 299 | P5: -7 | Q5: 3
A6: 2014 Redline MX | B6: 21 | C6: 462 | P6: =P2*2 -> 10 | Q6: 12
A7: 2015 SE PK Ripper Elite | B7: 21 | C7: 549 | P7: -12 | Q7: 8
A8: 2015 Grenade Launch Pro X | B8: 26 | C8: 180 | P8: 8 | Q8: -12
A9: 2015 SE PK Ripper Elite XL | B9: 21.1 | C9: 549 | P9: -6 | Q9: -5
A10: 2015 Grenade M1 | B10: 26 | C10: 240 | P10: -5 | Q10: -8
A11: 2015 Framed Team | B11: 26.4 | C11: 180 | P11: 9 | Q11: 6
A12: 2014 Redline MX | B12: 21 | C12: 431 | P12: 6 | Q12: -13
A13: 2014 Framed Team | B13: 25.2 | C13: 360 | P13: -11 | Q13: -15
A14: 2014 Grenade MX | B14: 26 | C14: 230 | P14: =P5*2 -> -14 | Q14: =Q5*2 -> 6
A15: 2014 Grenade Stealth Deep Sea Blue | B15: 25 | C15: 270
A16: 2014 Grenade Flare X | B16: 26.8 | C16: 150
A17: 2014 Grenade Launch Blue | B17: 25.2 | C17: 170
A18: 2014 Grenade Launch X | B18: 27 | C18: 160
A19: 2014 Framed Verdict Blank | B19: 25.4 | C19: 159
A20: 2014 SE PK Ripper Elite | B20: 20.7 | C20: 500
A21: 2013 Redline Proline Pro | B21: 21.9 | C21: 560
A22: 2012 Redline Proline Pro XL | B22: 22.5 | C22: 560
A23: 2013 Redline Proline Expert XL | B23: 20.1 | C23: 499
A24: 2013 Redline MX | B24: 23 | C24: 379

Sheet Cov & Corr (2an)
A1: For Entry Level BMX Race Bikes, Is there a Relationship between Price and Weight of Bike? | E1: Covariance | F1: =_xlfn.COVARIANCE.S(C5:C24,B5:B24) -> -339.8734211 | G1: =IF(_xlfn.ISFORMULA(F1),_xlfn.FORMULATEXT(F1),"") -> =COVARIANCE.S(C5:C24,B5:B24) | N1: x | O1: y | Q1: Covariance | R1: =_xlfn.COVARIANCE.S(O2:O14,N2:N14) -> -0.3717948718
E2: C of Correlation | F2: =PEARSON(C5:C24,B5:B24) -> -0.8975435243 | G2: =PEARSON(C5:C24,B5:B24) | N2: 5 | O2: 6 | Q2: Correlation | R2: =PEARSON(O2:O14,N2:N14) -> -0.004725909276
N3: -6 | O3: 4
A4: Year Manufacturer and Model | B4: Bike Weight (pound) =x | C4: Price = y | N4: 4 | O4: -6
A5: 2015 SE Ripper | B5: 22.4 | C5: 299 | N5: -7 | O5: 3
A6: 2014 Redline MX | B6: 21 | C6: 462 | N6: =N2*2 -> 10 | O6: 12
A7: 2015 SE PK Ripper Elite | B7: 21 | C7: 549 | N7: -12 | O7: 8
A8: 2015 Grenade Launch Pro X | B8: 26 | C8: 180 | N8: 8 | O8: -12
A9: 2015 SE PK Ripper Elite XL | B9: 21.1 | C9: 549 | N9: -6 | O9: -5
A10: 2015 Grenade M1 | B10: 26 | C10: 240 | N10: -5 | O10: -8
A11: 2015 Framed Team | B11: 26.4 | C11: 180 | N11: 9 | O11: 6
A12: 2014 Redline MX | B12: 21 | C12: 431 | N12: 6 | O12: -13
A13: 2014 Framed Team | B13: 25.2 | C13: 360 | N13: -11 | O13: -15
A14: 2014 Grenade MX | B14: 26 | C14: 230 | N14: =N5*2 -> -14 | O14: =O5*2 -> 6
A15: 2014 Grenade Stealth Deep Sea Blue | B15: 25 | C15: 270
A16: 2014 Grenade Flare X | B16: 26.8 | C16: 150
A17: 2014 Grenade Launch Blue | B17: 25.2 | C17: 170
A18: 2014 Grenade Launch X | B18: 27 | C18: 160
A19: 2014 Framed Verdict Blank | B19: 25.4 | C19: 159
A20: 2014 SE PK Ripper Elite | B20: 20.7 | C20: 500
A21: 2013 Redline Proline Pro | B21: 21.9 | C21: 560
A22: 2012 Redline Proline Pro XL | B22: 22.5 | C22: 560
A23: 2013 Redline Proline Expert XL | B23: 20.1 | C23: 499
A24: 2013 Redline MX | B24: 23 | C24: 379

Sheet Cov & Corr (3)
A1: ith Sample Point | B1: Weekly $ Ad Expense (x) | C1: Weekly $ Sales (y)
A2: 1 | B2: 63566 | C2: 651334.36
A3: 2 | B3: 50762 | C3: 527670.42
A4: 3 | B4: 50941 | C4: 523751.3
A5: 4 | B5: 17597 | C5: 175466.61
A6: 5 | B6: 33029 | C6: 377977.97
A7: 6 | B7: 58543 | C7: 520100.29
A8: 7 | B8: 60492 | C8: 620856.28
A9: 8 | B9: 59686 | C9: 593739.46
A10: 9 | B10: 16432 | C10: 181948.96
A11: 10 | B11: 17262 | C11: 184643.6
A12: 11 | B12: 39118 | C12: 379373.56
A13: 12 | B13: 36078 | C13: 238687.94
A14: 13 | B14: 42113 | C14: 410066.15
A15: 14 | B15: 50562 | C15: 413540.78
A16: 15 | B16: 38240 | C16: 340241.6
A17: 16 | B17: 59870 | C17: 582843
A18: 17 | B18: 46056 | C18: 433185.92
A19: 18 | B19: 33349 | C19: 270770.38
A20: 19 | B20: 16207 | C20: 164421.42
A21: 20 | B21: 57077 | C21: 478077.5
A22: 21 | B22: 30893 | C22: 393839.09
A23: 22 | B23: 54153 | C23: 430154.06
A24: 23 | B24: 14591 | C24: 210792.82
A25: 24 | B25: 50138 | C25: 343808.68
A26: 25 | B26: 55253 | C26: 565510.49
A27: 26 | B27: 34944 | C27: 330250.88
A28: 27 | B28: 26413 | C28: 295905.03
A29: 28 | B29: 54660 | C29: 562164.2
A30: 29 | B30: 35887 | C30: 257067.99
A31: 30 | B31: 42021 | C31: 384066.95
A32: 31 | B32: 47349 | C32: 441576.23
A33: 32 | B33: 24364 | C33: 252221.2
A34: 33 | B34: 58406 | C34: 552875.66
A35: 34 | B35: 51643 | C35: 446101.81
A36: 35 | B36: 55115 | C36: 476038.95
A37: 36 | B37: 35416 | C37: 393889.36
A38: 37 | B38: 37274 | C38: 328436.78
A39: 38 | B39: 36148 | C39: 408949.64
A40: 39 | B40: 32192 | C40: 394776.32
A41: 40 | B41: 51238 | C41: 455804.96
A42: 41 | B42: 59235 | C42: 526249.4
A43: 42 | B43: 59329 | C43: 562602.56
A44: 43 | B44: 22739 | C44: 180749.25
A45: 44 | B45: 28654 | C45: 275506.98
A46: 45 | B46: 36786 | C46: 372981.08
A47: 46 | B47: 20813 | C47: 216087.74
A48: 47 | B48: 57259 | C48: 470281.06
A49: 48 | B49: 57707 | C49: 481071.29
A50: 49 | B50: 61539 | C50: 612466.46
A51: 50 | B51: 36635 | C51: 370922.6
A52: 51 | B52: 39086 | C52: 448677.2
A53: 52 | B53: 33062 | C53: 259282.46
A54: 53 | B54: 42144 | C54: 354279.68
A55: 54 | B55: 18828 | C55: 185749.88
A56: 55 | B56: 57070 | C56: 415818.7
A57: 56 | B57: 27991 | C57: 252095.02
A58: 57 | B58: 37876 | C58: 329524.88
A59: 58 | B59: 16134 | C59: 233120.9
A60: 59 | B60: 55466 | C60: 376140.08
A61: 60 | B61: 26100 | C61: 208166
A62: 61 | B62: 23787 | C62: 226261.67
A63: 62 | B63: 30895 | C63: 249581.7
A64: 63 | B64: 31845 | C64: 278010.2
A65: 64 | B65: 50618 | C65: 537451.34
A66: 65 | B66: 62293 | C66: 448052.27
A67: 66 | B67: 61228 | C67: 519618.76
A68: 67 | B68: 32558 | C68: 364510.28
A69: 68 | B69: 40694 | C69: 351135.6
A70: 69 | B70: 46333 | C70: 390547.55
A71: 70 | B71: 28415 | C71: 234129.2
A72: 71 | B72: 19993 | C72: 224538.89
A73: 72 | B73: 34414 | C73: 248912.92
A74: 73 | B74: 52078 | C74: 328096.52
A75: 74 | B75: 24507 | C75: 262965.83
A76: 75 | B76: 28516 | C76: 334304.52
A77: 76 | B77: 17554 | C77: 216060.84
A78: 77 | B78: 16662 | C78: 183462.62
A79: 78 | B79: 57162 | C79: 517013.54
A80: 79 | B80: 57297 | C80: 731834.3
A81: 80 | B81: 64112 | C81: 439159.84
A82: 81 | B82: 37237 | C82: 453649.08
A83: 82 | B83: 55058 | C83: 495969.8
A84: 83 | B84: 30791 | C84: 306489.03
A85: 84 | B85: 19784 | C85: 226868.96
A86: 85 | B86: 32463 | C86: 316845.86
A87: 86 | B87: 59364 | C87: 496417.28
A88: 87 | B88: 64632 | C88: 527881.68
A89: 88 | B89: 58106 | C89: 535766.16
A90: 89 | B90: 60333 | C90: 469314.35
A91: 90 | B91: 58353 | C91: 558254.63
A92: 91 | B92: 22672 | C92: 197141.28
A93: 92 | B93: 64325 | C93: 563313.5
A94: 93 | B94: 32326 | C94: 365825.02
A95: 94 | B95: 16138 | C95: 206538.6
A96: 95 | B96: 34957 | C96: 320916.75
A97: 96 | B97: 26159 | C97: 294325.06
A98: 97 | B98: 42098 | C98: 329951.7
A99: 98 | B99: 20582 | C99: 161277.7
A100: 99 | B100: 45614 | C100: 428140.06
A101: 100 | B101: 42729 | C101: 433279.13
A102: 101 | B102: 40053 | C102: 346792.73
A103: 102 | B103: 51749 | C103: 540063.03
A104: 103 | B104: 59753 | C104: 588972.06
A105: 104 | B105: 34045 | C105: 290698.15
A106: 105 | B106: 56384 | C106: 544487.68
A107: 106 | B107: 33242 | C107: 206569.82
A108: 107 | B108: 49060 | C108: 550902.6
A109: 108 | B109: 38219 | C109: 321737.09
A110: 109 | B110: 56891 | C110: 568845.92
A111: 110 | B111: 52906 | C111: 426690.72
A112: 111 | B112: 44835 | C112: 430649.15
A113: 112 | B113: 45028 | C113: 400768.12
A114: 113 | B114: 15988 | C114: 175665.68
A115: 114 | B115: 64717 | C115: 558028.45
A116: 115 | B116: 15196 | C116: 163514.12
A117: 116 | B117: 45093 | C117: 398568.89
A118: 117 | B118: 51099 | C118: 483830.51
A119: 118 | B119: 40839 | C119: 292958.72
A120: 119 | B120: 29773 | C120: 275083.88
A121: 120 | B121: 60954 | C121: 599805.08
A122: 121 | B122: 53820 | C122: 524692.4
A123: 122 | B123: 19365 | C123: 196012.1
A124: 123 | B124: 39109 | C124: 360134.37
A125: 124 | B125: 40439 | C125: 312044.72
A126: 125 | B126: 35117 | C126: 268076.57
A127: 126 | B127: 50624 | C127: 394243.2
A128: 127 | B128: 55174 | C128: 474839.8
A129: 128 | B129: 52278 | C129: 474497.36
A130: 129 | B130: 30557 | C130: 301178.54
A131: 130 | B131: 62145 | C131: 642241.85
A132: 131 | B132: 58106 | C132: 475335.92
A133: 132 | B133: 55233 | C133: 543230.69
A134: 133 | B134: 51653 | C134: 343389.04
A135: 134 | B135: 16221 | C135: 195989
A136: 135 | B136: 28538 | C136: 295141.42
A137: 136 | B137: 33546 | C137: 355268.6
A138: 137 | B138: 50539 | C138: 505356.39
A139: 138 | B139: 14677 | C139: 180772.07
A140: 139 | B140: 15835 | C140: 146751.85
A141: 140 | B141: 24504 | C141: 198984.32
A142: 141 | B142: 21816 | C142: 210783.92
A143: 142 | B143: 28370 | C143: 246604.1
A144: 143 | B144: 46733 | C144: 430873.95
A145: 144 | B145: 46568 | C145: 393671.84
A146: 145 | B146: 42540 | C146: 363945.2
A147: 146 | B147: 39348 | C147: 275857.52
A148: 147 | B148: 34125 | C148: 350641.25
A149: 148 | B149: 61572 | C149: 580750.64
A150: 149 | B150: 54730 | C150: 410123.4
A151: 150 | B151: 38799 | C151: 332068.73
A152: 151 | B152: 22293 | C152: 208949.09
A153: 152 | B153: 37202 | C153: 346499.94
A154: 153 | B154: 53171 | C154: 474836.29
A155: 154 | B155: 33287 | C155: 255380.79
A156: 155 | B156: 35445 | C156: 237858.5
A157: 156 | B157: 21723 | C157: 224001.23
A158: 157 | B158: 40939 | C158: 439329.89
A159: 158 | B159: 45048 | C159: 362182.64
A160: 159 | B160: 30296 | C160: 299639.04
A161: 160 | B161: 53521 | C161: 457210.54
A162: 161 | B162: 24680 | C162: 209679.6
A163: 162 | B163: 46956 | C163: 426587.12
A164: 163 | B164: 16392 | C164: 200150.72
A165: 164 | B165: 53761 | C165: 534924.22
A166: 165 | B166: 56104 | C166: 460681.28
A167: 166 | B167: 15241 | C167: 151200.24
A168: 167 | B168: 19284 | C168: 212426.64
A169: 168 | B169: 14673 | C169: 181763.54
A170: 169 | B170: 57793 | C170: 497895.75
A171: 170 | B171: 28259 | C171: 242161.2
A172: 171 | B172: 30304 | C172: 206671.68
A173: 172 | B173: 62568 | C173: 496735.52
A174: 173 | B174: 56139 | C174: 513074.17
A175: 174 | B175: 23120 | C175: 214614.4
A176: 175 | B176: 17006 | C176: 110924.66
A177: 176 | B177: 31596 | C177: 329940.56
A178: 177 | B178: 40607 | C178: 363486.04
A179: 178 | B179: 61771 | C179: 569494.11
A180: 179 | B180: 30412 | C180: 279610.6
A181: 180 | B181: 36947 | C181: 361463.21
A182: 181 | B182: 43194 | C182: 395552
A183: 182 | B183: 56866 | C183: 492417.48
A184: 183 | B184: 39851 | C184: 367213.96
A185: 184 | B185: 36617 | C185: 312177.72
A186: 185 | B186: 46438 | C186: 331878.66
A187: 186 | B187: 27520 | C187: 266032
A188: 187 | B188: 28852 | C188: 311399.12
A189: 188 | B189: 60878 | C189: 505367.44
A190: 189 | B190: 32779 | C190: 211928.26
A191: 190 | B191: 49959 | C191: 401211.77
A194: Covariance = sxy | B194: =_xlfn.COVARIANCE.S(C2:C191,B2:B191) -> 1767218573 | C194: =" "&IF(_xlfn.ISFORMULA(B194),_xlfn.FORMULATEXT(B194),"") -> =COVARIANCE.S(C2:C191,B2:B191)
A195: Coefficient of Correlation = rxy | B195: =PEARSON(C2:C191,B2:B191) -> 0.9175870471 | C195: =PEARSON(C2:C191,B2:B191) | R195: df = n - estimated parameters

Sheet Slope & Int (1)
A1: ith Sample Point | B1: Weekly $ Ad Expense (x) | C1: Weekly $ Sales (y) | D1: X Deviation (Xi - Xbar) | E1: Y Deviation (Yi - Ybar) | F1: (Xi - Xbar)* (Yi - Ybar) | G1: X Deviation^2 (Xi - Xbar)^2
A2: 1 | B2: 63566 | C2: 651334.36 | D2: =B2-$B$196 -> 23136.47368 | E2: =C2-$B$197 -> 281275.4094 | F2: =D2*E2 -> 6507721107
A3: 2 | B3: 50762 | C3: 527670.42 | D3: 10332.47368 | E3: 157611.4694 | F3: 1628516360
A4: 3 | B4: 50941 | C4: 523751.3 | D4: 10511.47368 | E4: 153692.3494 | F4: 1615533086
A5: 4 | B5: 17597 | C5: 175466.61 | D5: -22832.52632 | E5: -194592.3406 | F5: 4443034738
A6: 5 | B6: 33029 | C6: 377977.97 | D6: -7400.526316 | E6: 7919.019368 | F6: -58604911.23
A7: 6 | B7: 58543 | C7: 520100.29 | D7: 18113.47368 | E7: 150041.3394 | F7: 2717769852
A8: 7 | B8: 60492 | C8: 620856.28 | D8: 20062.47368 | E8: 250797.3294 | F8: 5031614821
A9: 8 | B9: 59686 | C9: 593739.46 | D9: 19256.47368 | E9: 223680.5094 | F9: 4307297842
A10: 9 | B10: 16432 | C10: 181948.96 | D10: -23997.52632 | E10: -188109.9906 | F10: 4514174450
A11: 10 | B11: 17262 | C11: 184643.6 | D11: -23167.52632 | E11: -185415.3506 | F11: 4295615015
A12: 11 | B12: 39118 | C12: 379373.56 | D12: -1311.526316 | E12: 9314.609368 | F12: -12216355.31
A13: 12 | B13: 36078 | C13: 238687.94 | D13: -4351.526316 | E13: -131371.0106 | F13: 571664409.9
A14: 13 | B14: 42113 | C14: 410066.15 | D14: 1683.473684 | E14: 40007.19937 | F14: 67351067.32
A15: 14 | B15: 50562 | C15: 413540.78 | D15: 10132.47368 | E15: 43481.82937 | F15: 440578491.8
A16: 15 | B16: 38240 | C16: 340241.6 | D16: -2189.526316 | E16: -29817.35063 | F16: 65285873.87
A17: 16 | B17: 59870 | C17: 582843 | D17: 19440.47368 | E17: 212784.0494 | F17: 4136622712
A18: 17 | B18: 46056 | C18: 433185.92 | D18: 5626.473684 | E18: 63126.96937 | F18: 355182231.9
A19: 18 | B19: 33349 | C19: 270770.38 | D19: -7080.526316 | E19: -99288.57063 | F19: 703015337.2
A20: 19 | B20: 16207 | C20: 164421.42 | D20: -24222.52632 | E20: -205637.5306 | F20: 4981060497
A21: 20 | B21: 57077 | C21: 478077.5 | D21: 16647.47368 | E21: 108018.5494 | F21: 1798235958
A22: 21 | B22: 30893 | C22: 393839.09 | D22: -9536.526316 | E22: 23780.13937 | F22: -226779924.9
A23: 22 | B23: 54153 | C23: 430154.06 | D23: 13723.47368 | E23: 60095.10937 | F23: 824713652
A24: 23 | B24: 14591 | C24: 210792.82 | D24: -25838.52632 | E24: -159266.1306 | F24: 4115202108
A25: 24 | B25: 50138 | C25: 343808.68 | D25: 9708.473684 | E25: -26250.27063 | F25: -254850061.6
A26: 25 | B26: 55253 | C26: 565510.49 | D26: 14823.47368 | E26: 195451.5394 | F26: 2897270750
A27: 26 | B27: 34944 | C27: 330250.88 | D27: -5485.526316 | E27: -39808.07063 | F27: 218368219
A28: 27 | B28: 26413 | C28: 295905.03 | D28: -14016.52632 | E28: -74153.92063 | F28: 1039380380
A29: 28 | B29: 54660 | C29: 562164.2 | D29: 14230.47368 | E29: 192105.2494 | F29: 2733748696
A30: 29 | B30: 35887 | C30: 257067.99 | D30: -4542.526316 | E30: -112990.9606 | F30: 513264412.1
A31: 30 | B31: 42021 | C31: 384066.95 | D31: 1591.473684 | E31: 14007.99937 | F31: 22293362.36
A32: 31 | B32: 47349 | C32: 441576.23 | D32: 6919.473684 | E32: 71517.27937 | F32: 494861932.6
A33: 32 | B33: 24364 | C33: 252221.2 | D33: -16065.52632 | E33: -117837.7506 | F33: 1893125484
A34: 33 | B34: 58406 | C34: 552875.66 | D34: =B34-$B$196 -> 17976.47368 | E34: =C34-$B$197 -> 182816.7094 | F34: 3286399765
A35: 34 | B35: 51643 | C35: 446101.81 | D35: 11213.47368 | E35: 76042.85937 | F35: 852704602.4
A36: 35 | B36: 55115 | C36: 476038.95 | D36: 14685.47368 | E36: 105979.9994 | F36: 1556366492
A37: 36 | B37: 35416 | C37: 393889.36 | D37: -5013.526316 | E37: 23830.40937 | F37: -119474384.5
A38: 37 | B38: 37274 | C38: 328436.78 | D38: -3155.526316 | E38: -41622.17063 | F38: 131339854.7
A39: 38 | B39: 36148 | C39: 408949.64 | D39: -4281.526316 | E39: 38890.68937 | F39: -166511510
A40: 39 | B40: 32192 | C40: 394776.32 | D40: -8237.526316 | E40: 24717.36937 | F40: -203609980.6
A41: 40 | B41: 51238 | C41: 455804.96 | D41: 10808.47368 | E41: 85746.00937 | F41: 926783485.8
A42: 41 | B42: 59235 | C42: 526249.4 | D42: 18805.47368 | E42: 156190.4494 | F42: 2937235385
A43: 42 | B43: 59329 | C43: 562602.56 | D43: 18899.47368 | E43: 192543.6094 | F43: 3638972878
A44: 43 | B44: 22739 | C44: 180749.25 | D44: -17690.52632 | E44: -189309.7006 | F44: 3348988241
A45: 44 | B45: 28654 | C45: 275506.98 | D45: -11775.52632 | E45: -94551.97063 | F45: 1113399218
A46: 45 | B46: 36786 | C46: 372981.08 | D46: -3643.526316 | E46: 2922.129368 | F46: -10646855.25
A47: 46 | B47: 20813 | C47: 216087.74 | D47: -19616.52632 | E47: -153971.2106 | F47: 3020380305
A48: 47 | B48: 57259 | C48: 470281.06 | D48: 16829.47368 | E48: 100222.1094 | F48: 1686685352
A49: 48 | B49: 57707 | C49: 481071.29 | D49: 17277.47368 | E49: 111012.3394 | F49: 1918012772
A50: 49 | B50: 61539 | C50: 612466.46 | D50: 21109.47368 | E50: 242407.5094 | F50: 5117094940
A51: 50 | B51: 36635 | C51: 370922.6 | D51: -3794.526316 | E51: 863.6493684 | F51: -3277140.256
A52: 51 | B52: 39086 | C52: 448677.2 | D52: -1343.526316 | E52: 78618.24937 | F52: -105625686.9
A53: 52 | B53: 33062 | C53: 259282.46 | D53: -7367.526316 | E53: -110776.4906 | F53: 816148709.9
A54: 53 | B54: 42144 | C54: 354279.68 | D54: 1714.473684 | E54: -15779.27063 | F54: -27053144.25
A55: 54 | B55: 18828 | C55: 185749.88 | D55: -21601.52632 | E55: -184309.0706 | F55: 3981357239
A56: 55 | B56: 57070 | C56: 415818.7 | D56: 16640.47368 | E56: 45759.74937 | F56: 761463905.2
A57: 56 | B57: 27991 | C57: 252095.02 | D57: -12438.52632 | E57: -117963.9306 | F57: 1467297455
A58: 57 | B58: 37876 | C58: 329524.88 | D58: -2553.526316 | E58: -40534.07063 | F58: 103504816
A59: 58 | B59: 16134 | C59: 233120.9 | D59: -24295.52632 | E59: -136938.0506 | F59: 3326982013
A60: 59 | B60: 55466 | C60: 376140.08 | D60: 15036.47368 | E60: 6081.129368 | F60: 91438741.72
A61: 60 | B61: 26100 | C61: 208166 | D61: -14329.52632 | E61: -161892.9506 | F61: 2319849296
A62: 61 | B62: 23787 | C62: 226261.67 | D62: -16642.52632 | E62: -143797.2806 | F62: 2393150027
A63: 62 | B63: 30895 | C63: 249581.7 | D63: -9534.526316 | E63: -120477.2506 | F63: 1148693517
A64: 63 | B64: 31845 | C64: 278010.2 | D64: -8584.526316 | E64: -92048.75063 | F64: 790194922.1
A65: 64 | B65: 50618 | C65: 537451.34 | D65: 10188.47368 | E65: 167392.3894 | F65: 1705472954
A66: 65 | B66: 62293 | C66: 448052.27 | D66: =B66-$B$196 -> 21863.47368 | E66: =C66-$B$197 -> 77993.31937 | F66: =D66*E66 -> 1705204886
A67: 66 | B67: 61228 | C67: 519618.76 | D67: 20798.47368 | E67: 149559.8094 | F67: 3110615759
A68: 67 | B68: 32558 | C68: 364510.28 | D68: -7871.526316 | E68: -5548.670632 | F68: 43676506.89
A69: 68 | B69: 40694 | C69: 351135.6 | D69: 264.4736842 | E69: -18923.35063 | F69: -5004728.259
A70: 69 | B70: 46333 | C70: 390547.55 | D70: 5903.473684 | E70: 20488.59937 | F70: 120953907.2
A71: 70 | B71: 28415 | C71: 234129.2 | D71: -12014.52632 | E71: -135929.7506 | F71: 1633131566
A72: 71 | B72: 19993 | C72: 224538.89 | D72: -20436.52632 | E72: -145520.0606 | F72: 2973924549
A73: 72 | B73: 34414 | C73: 248912.92 | D73: -6015.526316 | E73: -121146.0306 | F73: 728757135.3
A74: 73 | B74: 52078 | C74: 328096.52 | D74: 11648.47368 | E74: -41962.43063 | F74: -488798268.9
A75: 74 | B75: 24507 | C75: 262965.83 | D75: -15922.52632 | E75: -107093.1206 | F75: 1705193031
A76: 75 | B76: 28516 | C76: 334304.52 | D76: -11913.52632 | E76: -35754.43063 | F76: 425961350.2
A77: 76 | B77: 17554 | C77: 216060.84 | D77: -22875.52632 | E77: -153998.1106 | F77: 3522787832
A78: 77 | B78: 16662 | C78: 183462.62 | D78: -23767.52632 | E78: -186596.3306 | F78: 4434933199
A79: 78 | B79: 57162 | C79: 517013.54 | D79: 16732.47368 | E79: 146954.5894 | F79: 2458913799
A80: 79 | B80: 57297 | C80: 731834.3 | D80: 16867.47368 | E80: 361775.3494 | F80: 6102236185
A81: 80 | B81: 64112 | C81: 439159.84 | D81: 23682.47368 | E81: 69100.88937 | F81: 1636479994
A82: 81 | B82: 37237 | C82: 453649.08 | D82: -3192.526316 | E82: 83590.12937 | F82: -266863687.7
A83: 82 | B83: 55058 | C83: 495969.8 | D83: 14628.47368 | E83: 125910.8494 | F83: 1841883547
A84: 83 | B84: 30791 | C84: 306489.03 | D84: -9638.526316 | E84: -63569.92063 | F84: 612720352.9
A85: 84 | B85: 19784 | C85: 226868.96 | D85: -20645.52632 | E85: -143189.9906 | F85: 2956232720
A86: 85 | B86: 32463 | C86: 316845.86 | D86: -7966.526316 | E86: -53213.09063 | F86: 423923486.9
A87: 86 | B87: 59364 | C87: 496417.28 | D87: 18934.47368 | E87: 126358.3294 | F87: 2392528462
A88: 87 | B88: 64632 | C88: 527881.68 | D88: 24202.47368 | E88: 157822.7294 | F88: 3819700454
A89: 88 | B89: 58106 | C89: 535766.16 | D89: 17676.47368 | E89: 165707.2094 | F89: 2929119126
A90: 89 | B90: 60333 | C90: 469314.35 | D90: 19903.47368 | E90: 99255.39937 | F90: 1975527229
A91: 90 | B91: 58353 | C91: 558254.63 | D91: 17923.47368 | E91: 188195.6794 | F91: 3373120307
A92: 91 | B92: 22672 | C92: 197141.28 | D92: -17757.52632 | E92: -172917.6706 | F92: 3070590087
A93: 92 | B93: 64325 | C93: 563313.5 | D93: 23895.47368 | E93: 193254.5494 | F93: 4617908999
A94: 93 | B94: 32326 | C94: 365825.02 | D94: -8103.526316 | E94: -4233.930632 | F94: 34309768.29
A95: 94 | B95: 16138 | C95: 206538.6 | D95: -24291.52632 | E95: -163520.3506 | F95: 3972158901
A96: 95 | B96: 34957 | C96: 320916.75 | D96: -5472.526316 | E96: -49142.20063 | F96: 268931986.2
A97: 96 | B97: 26159 | C97: 294325.06 | D97: -14270.52632 | E97: -75733.89063 | F97: 1080762479
A98: 97 | B98: 42098 | C98: 329951.7 | D98: =B98-$B$196 -> 1668.473684 | E98: =C98-$B$197 -> -40107.25063 | F98: -66917892.22
A99: 98 | B99: 20582 | C99: 161277.7 | D99: -19847.52632 | E99: -208781.2506 | F99: 4143791366
A100: 99 | B100: 45614 | C100: 428140.06 | D100: 5184.473684 | E100: 58081.10937 | F100: 301119983.1
A101: 100 | B101: 42729 | C101: 433279.13 | D101: 2299.473684 | E101: 63220.17937 | F101: 145373138.8
A102: 101 | B102: 40053 | C102: 346792.73 | D102: -376.5263158 | E102: -23266.22063 | F102: 8760344.337
A103: 102 | B103: 51749 | C103: 540063.03 | D103: 11319.47368 | E103: 170004.0794 | F103: 1924356703
A104: 103 | B104: 59753 | C104: 588972.06 | D104: 19323.47368 | E104: 218913.1094 | F104: 4230161708
A105: 104 | B105: 34045 | C105: 290698.15 | D105: -6384.526316 | E105: -79360.80063 | F105: 506681120.1
A106: 105 | B106: 56384 | C106: 544487.68 | D106: 15954.47368 | E106: 174428.7294 | F106: 2782918572
A107: 106 | B107: 33242 | C107: 206569.82 | D107: -7187.526316 | E107: -163489.1306 | F107: 1175082429
A108: 107 | B108: 49060 | C108: 550902.6 | D108: 8630.473684 | E108: 180843.6494 | F108: 1560766357
A109: 108 | B109: 38219 | C109: 321737.09 | D109: -2210.526316 | E109: -48321.86063 | F109: 106816744.6
A110: 109 | B110: 56891 | C110: 568845.92 | D110: 16461.47368 | E110: 198786.9694 | F110: 3272326465
A111: 110 | B111: 52906 | C111: 426690.72 | D111: 12476.47368 | E111: 56631.76937 | F111: 706564780.2
A112: 111 | B112: 44835 | C112: 430649.15 | D112: 4405.473684 | E112: 60590.19937 | F112: 266928528.8
A113: 112 | B113: 45028 | C113: 400768.12 | D113: 4598.473684 | E113: 30709.16937 | F113: 141215307.2
A114: 113 | B114: 15988 | C114: 175665.68 | D114: -24441.52632 | E114: -194393.2706 | F114: 4751268240
A115: 114 | B115: 64717 | C115: 558028.45 | D115: 24287.47368 | E115: 187969.4994 | F115: 4565304269
A116: 115 | B116: 15196 | C116: 163514.12 | D116: -25233.52632 | E116: -206544.8306 | F116: 5211854419
A117: 116 | B117: 45093 | C117: 398568.89 | D117: 4663.473684 | E117: 28509.93937 | F117: 132955352
A118: 117 | B118: 51099 | C118: 483830.51 | D118: 10669.47368 | E118: 113771.5594 | F118: 1213882659
A119: 118 | B119: 40839 | C119: 292958.72 | D119: 409.4736842 | E119: -77100.23063 | F119: -31570515.49
A120: 119 | B120: 29773 | C120: 275083.88 | D120: -10656.52632 | E120: -94975.07063 | F120: 1012104340
A121: 120 | B121: 60954 | C121: 599805.08 | D121: 20524.47368 | E121: 229746.1294 | F121: 4715418386
A122: 121 | B122: 53820 | C122: 524692.4 | D122: 13390.47368 | E122: 154633.4494 | F122: 2070615134
A123: 122 | B123: 19365 | C123: 196012.1 | D123: -21064.52632 | E123: -174046.8506 | F123: 3666214465
A124: 123 | B124: 39109 | C124: 360134.37 | D124: -1320.526316 | E124: -9924.580632 | F124: 13105669.9
A125: 124 | B125: 40439 | C125: 312044.72 | D125: 9.473684211 | E125: -58014.23063 | F125: -549608.5007
A126: 125 | B126: 35117 | C126: 268076.57 | D126: -5312.526316 | E126: -101982.3806 | F126: 541784080.9
A127: 126 | B127: 50624 | C127: 394243.2 | D127: 10194.47368 | E127: 24184.24937 | F127: 246545693.8
A128: 127 | B128: 55174 | C128: 474839.8 | D128: 14744.47368 | E128: 104780.8494 | F128: 1544938476
A129: 128 | B129: 52278 | C129: 474497.36 | D129: 11848.47368 | E129: 104438.4094 | F129: 1237435745
A130: 129 | B130: 30557 | C130: 301178.54 | D130: =B130-$B$196 -> -9872.526316 | E130: =C130-$B$197 -> -68880.41063 | F130: =D130*E130 -> 680023666.6
A131: 130 | B131: 62145 | C131: 642241.85 | D131: 21715.47368 | E131: 272182.8994 | F131: 5910580589
A132: 131 | B132: 58106 | C132: 475335.92 | D132: 17676.47368 | E132: 105276.9694 | F132: 1860925579
A133: 132 | B133: 55233 | C133: 543230.69 | D133: 14803.47368 | E133: 173171.7394 | F133: 2563543287
A134: 133 | B134: 51653 | C134: 343389.04 | D134: 11223.47368 | E134: -26669.91063 | F134: -299329040.1
A135: 134 | B135: 16221 | C135: 195989 | D135: -24208.52632 | E135: -174069.9506 | F135: 4213976981
A136: 135 | B136: 28538 | C136: 295141.42 | D136: -11891.52632 | E136: -74917.53063 | F136: 890883787
A137: 136 | B137: 33546 | C137: 355268.6 | D137: -6883.526316 | E137: -14790.35063 | F137: 101809767.8
A138: 137 | B138: 50539 | C138: 505356.39 | D138: 10109.47368 | E138: 135297.4394 | F138: 1367785903
A139: 138 | B139: 14677 | C139: 180772.07 | D139: -25752.52632 | E139: -189286.8806 | F139: 4874615375
A140: 139 | B140: 15835 | C140: 146751.85 | D140: -24594.52632 | E140: -223307.1006 | F140: 5492132363
A141: 140 | B141: 24504 | C141: 198984.32 | D141: -15925.52632 | E141: -171074.6306 | F141: 2724453532
A142: 141 | B142: 21816 | C142: 210783.92 | D142: -18613.52632 | E142: -159275.0306 | F142: 2964669974
A143: 142 | B143: 28370 | C143: 246604.1 | D143: -12059.52632 | E143: -123454.8506 | F143: 1488807020
A144: 143 | B144: 46733 | C144: 430873.95 | D144: 6303.473684 | E144: 60814.99937 | F144: 383345748.1
A145: 144 | B145: 46568 | C145: 393671.84 | D145: 6138.473684 | E145: 23612.88937 | F145: 144947100
A146: 145 | B146: 42540 | C146: 363945.2 | D146: 2110.473684 | E146: -6113.750632 | F146: -12902909.82
A147: 146 | B147: 39348 | C147: 275857.52 | D147: -1081.526316 | E147: -94201.43063 | F147: 101881326.2
A148: 147 | B148: 34125 | C148: 350641.25 | D148: -6304.526316 | E148: -19417.70063 | F148: 122419404.6
A149: 148 | B149: 61572 | C149: 580750.64 | D149: 21142.47368 | E149: 210691.6894 | F149: 4454543498
A150: 149 | B150: 54730 | C150: 410123.4 | D150: 14300.47368 | E150: 40064.44937 | F150: 572940603.9
A151: 150 | B151: 38799 | C151: 332068.73 | D151: -1630.526316 | E151: -37990.22063 | F151: 61944054.48
A152: 151 | B152: 22293 | C152: 208949.09 | D152: -18136.52632 | E152: -161109.8606 | F152: 2921973227
A153: 152 | B153: 37202 | C153: 346499.94 | D153: -3227.526316 | E153: -23559.01063 | F153: 76037326.79
A154: 153 | B154: 53171 | C154: 474836.29 | D154: 12741.47368 | E154: 104777.3394 | F154: 1335017712
A155: 154 | B155: 33287 | C155: 255380.79 | D155: -7142.526316 | E155: -114678.1606 | F155: 819091780.2
A156: 155 | B156: 35445 | C156: 237858.5 | D156: -4984.526316 | E156: -132200.4506 | F156: 658956625.1
A157: 156 | B157: 21723 | C157: 224001.23 | D157: -18706.52632 | E157: -146057.7206 | F157: 2732232595
A158: 157 | B158: 40939 | C158: 439329.89 | D158: 509.4736842 | E158: 69270.93937 | F158: 35291720.69
A159: 158 | B159: 45048 | C159: 362182.64 | D159: 4618.473684 | E159: -7876.310632 | F159: -36376533.38
A160: 159 | B160: 30296 | C160: 299639.04 | D160: -10133.52632 | E160: -70419.91063 | F160: 713602017.5
A161: 160 | B161: 53521 | C161: 457210.54 | D161: 13091.47368 | E161: 87151.58937 | F161: 1140942739
A162: 161 | B162: 24680 | C162: 209679.6 | D162: =B162-$B$196 -> -15749.52632 | E162: =C162-$B$197 -> -160379.3506 | F162: 2525898803
A163: 162 | B163: 46956 | C163: 426587.12 | D163: 6526.473684 | E163: 56528.16937 | F163: 368929609.8
A164: 163 | B164: 16392 | C164: 200150.72 | D164: -24037.52632 | E164: -169908.2306 | F164: 4084173565
A165: 164 | B165: 53761 | C165: 534924.22 | D165: 13331.47368 | E165: 164865.2694 | F165: 2197897000
A166: 165 | B166: 56104 | C166: 460681.28 | D166: 15674.47368 | E166: 90622.32937 | F166: 1420457317
A167: 166 | B167: 15241 | C167: 151200.24 | D167: -25188.52632 | E167: -218858.7106 | F167: 5512728392
A168: 167 | B168: 19284 | C168: 212426.64 | D168: -21145.52632 | E168: -157632.3106 | F168: 3333218173
A169: 168 | B169: 14673 | C169: 181763.54 | D169: -25756.52632 | E169: -188295.4106 | F169: 4849835699
A170: 169 | B170: 57793 | C170: 497895.75 | D170: 17363.47368 | E170: 127836.7994 | F170: 2219690902
A171: 170 | B171: 28259 | C171: 242161.2 | D171: -12170.52632 | E171: -127897.7506 | F171: 1556582940
A172: 171 | B172: 30304 | C172: 206671.68 | D172: -10125.52632 | E172: -163387.2706 | F172: 1654382108
A173: 172 | B173: 62568 | C173: 496735.52 | D173: 22138.47368 | E173: 126676.5694 | F173: 2804425897
A174: 173 | B174: 56139 | C174: 513074.17 | D174: 15709.47368 | E174: 143015.2194 | F174: 2246693825
A175: 174 | B175: 23120 | C175: 214614.4 | D175: -17309.52632 | E175: -155444.5506 | F175: 2690671540
A176: 175 | B176: 17006 | C176: 110924.66 | D176: -23423.52632 | E176: -259134.2906 | F176: 6069838876
A177: 176 | B177: 31596 | C177: 329940.56 | D177: -8833.526316 | E177: -40118.39063 | F177: 354386859.4
A178: 177 | B178: 40607 | C178: 363486.04 | D178: 177.4736842 | E178: -6572.910632 | F178: -1166518.666
A179: 178 | B179: 61771 | C179: 569494.11 | D179: 21341.47368 | E179: 199435.1594 | F179: 4256240205
A180: 179 | B180: 30412 | C180: 279610.6 | D180: -10017.52632 | E180: -90448.35063 | F180: 906068732.7
A181: 180 | B181: 36947 | C181: 361463.21 | D181: -3482.526316 | E181: -8595.740632 | F181: 29934892.95
A182: 181 | B182: 43194 | C182: 395552 | D182: 2764.473684 | E182: 25493.04937 | F182: 70474864.11
A183: 182 | B183: 56866 | C183: 492417.48 | D183: 16436.47368 | E183: 122358.5294 | F183: 2011142748
A184: 183 | B184: 39851 | C184: 367213.96 | D184: -578.5263158 | E184: -2844.990632 | F184: 1645901.949
A185: 184 | B185: 36617 | C185: 312177.72 | D185: -3812.526316 | E185: -57881.23063 | F185: 220673715
A186: 185 | B186: 46438 | C186: 331878.66 | D186: 6008.473684 | E186: -38180.29063 | F186: -229405271.5
A187: 186 | B187: 27520 | C187: 266032 | D187: -12909.52632 | E187: -104026.9506 | F187: 1342938657
A188: 187 | B188: 28852 | C188: 311399.12 | D188: -11577.52632 | E188: -58659.83063 | F188: 679135732.8
A189: 188 | B189: 60878 | C189: 505367.44 | D189: 20448.47368 | E189: 135308.4894 | F189: 2766852084
A190: 189 | B190: 32779 | C190: 211928.26 | D190: -7650.526316 | E190: -158130.6906 | F190: 1209783010
A191: 190 | B191: 49959 | C191: 401211.77 | D191: 9529.473684 | E191: 31152.81937 | F191: 296869972.4
C192: Total | D192: =SUM(D2:D191) -> 4.511093721e-10 | E192: =SUM(E2:E191) -> -3.891182132e-08 | F192: =SUM(F2:F191) -> 3.340043102e+11
A194: Count = n = | B194: =COUNT(A2:A191) -> 190 | C194: =" "&IF(_xlfn.ISFORMULA(B194),_xlfn.FORMULATEXT(B194),"") -> =COUNT(A2:A191)
A195: n-1 | B195: =B194-1 -> 189 | C195: =B194-1 | R195: df = n - estimated parameters
A196: Xbar | B196: =AVERAGE(B2:B191) -> 40429.52632 | C196: =AVERAGE(B2:B191)
A197: Ybar | B197: =AVERAGE(C2:C191) -> 370058.9506 | C197: =AVERAGE(C2:C191)
A198: Slope = b1 =
A199: y-intercept = b0 =
A200: Slope = b1 =
A201: y-intercept = b0 =
... 14 more rows

Sheet Slope & Int (an)
A1: ith Sample Point | B1: Weekly $ Ad Expense (x) | C1: Weekly $ Sales (y) | D1: X Deviation (Xi - Xbar) | E1: Y Deviation (Yi - Ybar) | F1: (Xi - Xbar)* (Yi - Ybar) | G1: X Deviation^2 (Xi - Xbar)^2
A2: 1 | B2: 63566 | C2: 651334.36 | D2: =B2-$B$196 -> 23136.47368 | E2: =C2-$B$197 -> 281275.4094 | F2: =D2*E2 -> 6507721107 | G2: =D2^2 -> 535296414.5
A3: 2 | B3: 50762 | C3: 527670.42 | D3: 10332.47368 | E3: 157611.4694 | F3: 1628516360 | G3: =D3^2 -> 106760012.4
A4: 3 | B4: 50941 | C4: 523751.3 | D4: 10511.47368 | E4: 153692.3494 | F4: 1615533086 | G4: 110491079
A5: 4 | B5: 17597 | C5: 175466.61 | D5: -22832.52632 | E5: -194592.3406 | F5: 4443034738 | G5: 521324258
A6: 5 | B6: 33029 | C6: 377977.97 | D6: -7400.526316 | E6: 7919.019368 | F6: -58604911.23 | G6: 54767789.75
A7: 6 | B7: 58543 | C7: 520100.29 | D7: 18113.47368 | E7: 150041.3394 | F7: 2717769852 | G7: 328097928.9
A8: 7 | B8: 60492 | C8: 620856.28 | D8: 20062.47368 | E8: 250797.3294 | F8: 5031614821 | G8: 402502850.3
A9: 8 | B9: 59686 | C9: 593739.46 | D9: 19256.47368 | E9: 223680.5094 | F9: 4307297842 | G9: 370811778.8
A10: 9 | B10: 16432 | C10: 181948.96 | D10: -23997.52632 | E10: -188109.9906 | F10: 4514174450 | G10: 575881269.3
A11: 10 | B11: 17262 | C11: 184643.6 | D11: -23167.52632 | E11: -185415.3506 | F11: 4295615015 | G11: 536734275.6
A12: 11 | B12: 39118 | C12: 379373.56 | D12: -1311.526316 | E12: 9314.609368 | F12: -12216355.31 | G12: 1720101.277
A13: 12 | B13: 36078 | C13: 238687.94 | D13: -4351.526316 | E13: -131371.0106 | F13: 571664409.9 | G13: 18935781.28
A14: 13 | B14: 42113 | C14: 410066.15 | D14: 1683.473684 | E14: 40007.19937 | F14: 67351067.32 | G14: 2834083.645
A15: 14 | B15: 50562 | C15: 413540.78 | D15: 10132.47368 | E15: 43481.82937 | F15: 440578491.8 | G15: 102667023
A16: 15 | B16: 38240 | C16: 340241.6 | D16: -2189.526316 | E16: -29817.35063 | F16: 65285873.87 | G16: 4794025.488
A17: 16 | B17: 59870 | C17: 582843 | D17: 19440.47368 | E17: 212784.0494 | F17: 4136622712 | G17: 377932017.1
A18: 17 | B18: 46056 | C18: 433185.92 | D18: 5626.473684 | E18: 63126.96937 | F18: 355182231.9 | G18: 31657206.12
A19: 18 | B19: 33349 | C19: 270770.38 | D19: -7080.526316 | E19: -99288.57063 | F19: 703015337.2 | G19: 50133852.91
A20: 19 | B20: 16207 | C20: 164421.42 | D20: -24222.52632 | E20: -205637.5306 | F20: 4981060497 | G20: 586730781.1
A21: 20 | B21: 57077 | C21: 478077.5 | D21: 16647.47368 | E21: 108018.5494 | F21: 1798235958 | G21: 277138380.1
A22: 21 | B22: 30893 | C22: 393839.09 | D22: -9536.526316 | E22: 23780.13937 | F22: -226779924.9 | G22: 90945334.17
A23: 22 | B23: 54153 | C23: 430154.06 | D23: 13723.47368 | E23: 60095.10937 | F23: 824713652 | G23: 188333730
A24: 23 | B24: 14591 | C24: 210792.82 | D24: -25838.52632 | E24: -159266.1306 | F24: 4115202108 | G24: 667629442.2
A25: 24 | B25: 50138 | C25: 343808.68 | D25: 9708.473684 | E25: -26250.27063 | F25: -254850061.6 | G25: 94254461.28
A26: 25 | B26: 55253 | C26: 565510.49 | D26: 14823.47368 | E26: 195451.5394 | F26: 2897270750 | G26: 219735372.1
A27: 26 | B27: 34944 | C27: 330250.88 | D27: -5485.526316 | E27: -39808.07063 | F27: 218368219 | G27: 30090998.96
A28: 27 | B28: 26413 | C28: 295905.03 | D28: -14016.52632 | E28: -74153.92063 | F28: 1039380380 | G28: 196463010
A29: 28 | B29: 54660 | C29: 562164.2 | D29: 14230.47368 | E29: 192105.2494 | F29: 2733748696 | G29: 202506381.3
A30: 29 | B30: 35887 | C30: 257067.99 | D30: -4542.526316 | E30: -112990.9606 | F30: 513264412.1 | G30: 20634545.33
A31: 30 | B31: 42021 | C31: 384066.95 | D31: 1591.473684 | E31: 14007.99937 | F31: 22293362.36 | G31: 2532788.488
A32: 31 | B32: 47349 | C32: 441576.23 | D32: 6919.473684 | E32: 71517.27937 | F32: 494861932.6 | G32: 47879116.07
A33: 32 | B33: 24364 | C33: 252221.2 | D33: -16065.52632 | E33: -117837.7506 | F33: 1893125484 | G33: 258101135.8
A34: 33 | B34: 58406 | C34: 552875.66 | D34: 17976.47368 | E34: 182816.7094 | F34: 3286399765 | G34: 323153606.1
A35: 34 | B35: 51643 | C35: 446101.81 | D35: 11213.47368 | E35: 76042.85937 | F35: 852704602.4 | G35: 125741992.1
A36: 35 | B36: 55115 | C36: 476038.95 | D36: 14685.47368 | E36: 105979.9994 | F36: 1556366492 | G36: 215663137.3
A37: 36 | B37: 35416 | C37: 393889.36 | D37: -5013.526316 | E37: 23830.40937 | F37: -119474384.5 | G37: 25135446.12
A38: 37 | B38: 37274 | C38: 328436.78 | D38: -3155.526316 | E38: -41622.17063 | F38: 131339854.7 | G38: 9957346.33
A39: 38 | B39: 36148 | C39: 408949.64 | D39: -4281.526316 | E39: 38890.68937 | F39: -166511510 | G39: 18331467.59
A40: 39 | B40: 32192 | C40: 394776.32 | D40: -8237.526316 | E40: 24717.36937 | F40: -203609980.6 | G40: 67856839.8
A41: 40 | B41: 51238 | C41: 455804.96 | D41: 10808.47368 | E41: 85746.00937 | F41: 926783485.8 | G41: 116823103.4
A42: 41 | B42: 59235 | C42: 526249.4 | D42: 18805.47368 | E42: 156190.4494 | F42: 2937235385 | G42: 353645840.5
A43: 42 | B43: 59329 | C43: 562602.56 | D43: 18899.47368 | E43: 192543.6094 | F43: 3638972878 | G43: 357190105.5
A44: 43 | B44: 22739 | C44: 180749.25 | D44: -17690.52632 | E44: -189309.7006 | F44: 3348988241 | G44: 312954721.3
A45: 44 | B45: 28654 | C45: 275506.98 | D45: -11775.52632 | E45: -94551.97063 | F45: 1113399218 | G45: 138663020
A46: 45 | B46: 36786 | C46: 372981.08 | D46: -3643.526316 | E46: 2922.129368 | F46: -10646855.25 | G46: 13275284.01
A47: 46 | B47: 20813 | C47: 216087.74 | D47: -19616.52632 | E47: -153971.2106 | F47: 3020380305 | G47: 384808104.7
A48: 47 | B48: 57259 | C48: 470281.06 | D48: 16829.47368 | E48: 100222.1094 | F48: 1686685352 | G48: 283231184.5
A49: 48 | B49: 57707 | C49: 481071.29 | D49: 17277.47368 | E49: 111012.3394 | F49: 1918012772 | G49: 298511096.9
A50: 49 | B50: 61539 | C50: 612466.46 | D50: 21109.47368 | E50: 242407.5094 | F50: 5117094940 | G50: 445609879.2
A51: 50 | B51: 36635 | C51: 370922.6 | D51: -3794.526316 | E51: 863.6493684 | F51: -3277140.256 | G51: 14398429.96
A52: 51 | B52: 39086 | C52: 448677.2 | D52: -1343.526316 | E52: 78618.24937 | F52: -105625686.9 | G52: 1805062.961
A53: 52 | B53: 33062 | C53: 259282.46 | D53: -7367.526316 | E53: -110776.4906 | F53: 816148709.9 | G53: 54280444.01
A54: 53 | B54: 42144 | C54: 354279.68 | D54: 1714.473684 | E54: -15779.27063 | F54: -27053144.25 | G54: 2939420.014
A55: 54 | B55: 18828 | C55: 185749.88 | D55: -21601.52632 | E55: -184309.0706 | F55: 3981357239 | G55: 466625939.2
A56: 55 | B56: 57070 | C56: 415818.7 | D56: 16640.47368 | E56: 45759.74937 | F56: 761463905.2 | G56: 276905364.4
A57: 56 | B57: 27991 | C57: 252095.02 | D57: -12438.52632 | E57: -117963.9306 | F57: 1467297455 | G57: 154716936.9
A58: 57 | B58: 37876 | C58: 329524.88 | D58: -2553.526316 | E58: -40534.07063 | F58: 103504816 | G58: 6520496.645
A59: 58 | B59: 16134 | C59: 233120.9 | D59: -24295.52632 | E59: -136938.0506 | F59: 3326982013 | G59: 590272599
A60: 59 | B60: 55466 | C60: 376140.08 | D60: 15036.47368 | E60: 6081.129368 | F60: 91438741.72 | G60: 226095540.9
A61: 60 | B61: 26100 | C61: 208166 | D61: -14329.52632 | E61: -161892.9506 | F61: 2319849296 | G61: 205335324.4
A62: 61 | B62: 23787 | C62: 226261.67 | D62: -16642.52632 | E62: -143797.2806 | F62: 2393150027 | G62: 276973682.2
A63: 62 | B63: 30895 | C63: 249581.7 | D63: -9534.526316 | E63: -120477.2506 | F63: 1148693517 | G63: 90907192.07
A64: 63 | B64: 31845 | C64: 278010.2 | D64: -8584.526316 | E64: -92048.75063 | F64: 790194922.1 | G64: 73694092.07
A65: 64 | B65: 50618 | C65: 537451.34 | D65: 10188.47368 | E65: 167392.3894 | F65: 1705472954 | G65: 103804996
A66: 65 | B66: 62293 | C66: 448052.27 | D66: =B66-$B$196 -> 21863.47368 | E66: =C66-$B$197 -> 77993.31937 | F66: =D66*E66 -> 1705204886 | G66: 478011481.5
A67: 66 | B67: 61228 | C67: 519618.76 | D67: 20798.47368 | E67: 149559.8094 | F67: 3110615759 | G67: =D67^2 -> 432576507.6
A68: 67 | B68: 32558 | C68: 364510.28 | D68: -7871.526316 | E68: -5548.670632 | F68: 43676506.89 | G68: 61960926.54
A69: 68 | B69: 40694 | C69: 351135.6 | D69: 264.4736842 | E69: -18923.35063 | F69: -5004728.259 | G69: 69946.32964
A70: 69 | B70: 46333 | C70: 390547.55 | D70: 5903.473684 | E70: 20488.59937 | F70: 120953907.2 | G70: 34851001.54
A71: 70 | B71: 28415 | C71: 234129.2 | D71: -12014.52632 | E71: -135929.7506 | F71: 1633131566 | G71: 144348842.6
A72: 71 | B72: 19993 | C72: 224538.89 | D72: -20436.52632 | E72: -145520.0606 | F72: 2973924549 | G72: 417651607.9
A73: 72 | B73: 34414 | C73: 248912.92 | D73: -6015.526316 | E73: -121146.0306 | F73: 728757135.3 | G73: 36186556.86
A74: 73 | B74: 52078 | C74: 328096.52 | D74: 11648.47368 | E74: -41962.43063 | F74: -488798268.9 | G74: 135686939.2
A75: 74 | B75: 24507 | C75: 262965.83 | D75: -15922.52632 | E75: -107093.1206 | F75: 1705193031 | G75: 253526844.3
A76: 75 | B76: 28516 | C76: 334304.52 | D76: -11913.52632 | E76: -35754.43063 | F76: 425961350.2 | G76: 141932109.3
A77: 76 | B77: 17554 | C77: 216060.84 | D77: -22875.52632 | E77: -153998.1106 | F77: 3522787832 | G77: 523289704.2
A78: 77 | B78: 16662 | C78: 183462.62 | D78: -23767.52632 | E78: -186596.3306 | F78: 4434933199 | G78: 564895307.2
A79: 78 | B79: 57162 | C79: 517013.54 | D79: 16732.47368 | E79: 146954.5894 | F79: 2458913799 | G79: 279975675.6
A80: 79 | B80: 57297 | C80: 731834.3 | D80: 16867.47368 | E80: 361775.3494 | F80: 6102236185 | G80: 284511668.5
A81: 80 | B81: 64112 | C81: 439159.84 | D81: 23682.47368 | E81: 69100.88937 | F81: 1636479994 | G81: 560859559.8
A82: 81 | B82: 37237 | C82: 453649.08 | D82: -3192.526316 | E82: 83590.12937 | F82: -266863687.7 | G82: 10192224.28
A83: 82 | B83: 55058 | C83: 495969.8 | D83: 14628.47368 | E83: 125910.8494 | F83: 1841883547 | G83: 213992242.3
A84: 83 | B84: 30791 | C84: 306489.03 | D84: -9638.526316 | E84: -63569.92063 | F84: 612720352.9 | G84: 92901189.54
A85: 84 | B85: 19784 | C85: 226868.96 | D85: -20645.52632 | E85: -143189.9906 | F85: 2956232720 | G85: 426237756.9
A86: 85 | B86: 32463 | C86: 316845.86 | D86: -7966.526316 | E86: -53213.09063 | F86: 423923486.9 | G86: 63465541.54
A87: 86 | B87: 59364 | C87: 496417.28 | D87: 18934.47368 | E87: 126358.3294 | F87: 2392528462 | G87: 358514293.7
A88: 87 | B88: 64632 | C88: 527881.68 | D88: 24202.47368 | E88: 157822.7294 | F88: 3819700454 | G88: 585759732.4
A89: 88 | B89: 58106 | C89: 535766.16 | D89: 17676.47368 | E89: 165707.2094 | F89: 2929119126 | G89: 312457721.9
A90: 89 | B90: 60333 | C90: 469314.35 | D90: 19903.47368 | E90: 99255.39937 | F90: 1975527229 | G90: 396148264.7
A91: 90 | B91: 58353 | C91: 558254.63 | D91: 17923.47368 | E91: 188195.6794 | F91: 3373120307 | G91: 321250908.9
A92: 91 | B92: 22672 | C92: 197141.28 | D92: -17757.52632 | E92: -172917.6706 | F92: 3070590087 | G92: 315329740.9
A93: 92 | B93: 64325 | C93: 563313.5 | D93: 23895.47368 | E93: 193254.5494 | F93: 4617908999 | G93: 570993662.6
A94: 93 | B94: 32326 | C94: 365825.02 | D94: -8103.526316 | E94: -4233.930632 | F94: 34309768.29 | G94: 65667138.75
A95: 94 | B95: 16138 | C95: 206538.6 | D95: -24291.52632 | E95: -163520.3506 | F95: 3972158901 | G95: 590078250.8
A96: 95 | B96: 34957 | C96: 320916.75 | D96: -5472.526316 | E96: -49142.20063 | F96: 268931986.2 | G96: 29948544.28
A97: 96 | B97: 26159 | C97: 294325.06 | D97: -14270.52632 | E97: -75733.89063 | F97: 1080762479 | G97: 203647921.3
A98: 97 | B98: 42098 | C98: 329951.7 | D98: 1668.473684 | E98: -40107.25063 | F98: -66917892.22 | G98: 2783804.435
A99: 98 | B99: 20582 | C99: 161277.7 | D99: -19847.52632 | E99: -208781.2506 | F99: 4143791366 | G99: 393924300.9
A100: 99 | B100: 45614 | C100: 428140.06 | D100: 5184.473684 | E100: 58081.10937 | F100: 301119983.1 | G100: 26878767.38
A101: 100 | B101: 42729 | C101: 433279.13 | D101: 2299.473684 | E101: 63220.17937 | F101: 145373138.8 | G101: 5287579.224
A102: 101 | B102: 40053 | C102: 346792.73 | D102: -376.5263158 | E102: -23266.22063 | F102: 8760344.337 | G102: 141772.0665
A103: 102 | B103: 51749 | C103: 540063.03 | D103: 11319.47368 | E103: 170004.0794 | F103: 1924356703 | G103: 128130484.5
A104: 103 | B104: 59753 | C104: 588972.06 | D104: 19323.47368 | E104: 218913.1094 | F104: 4230161708 | G104: 373396635.2
A105: 104 | B105: 34045 | C105: 290698.15 | D105: -6384.526316 | E105: -79360.80063 | F105: 506681120.1 | G105: 40762176.28
A106: 105 | B106: 56384 | C106: 544487.68 | D106: 15954.47368 | E106: 174428.7294 | F106: 2782918572 | G106: 254545230.5
A107: 106 | B107: 33242 | C107: 206569.82 | D107: -7187.526316 | E107: -163489.1306 | F107: 1175082429 | G107: 51660534.54
A108: 107 | B108: 49060 | C108: 550902.6 | D108: 8630.473684 | E108: 180843.6494 | F108: 1560766357 | G108: 74485076.01
A109: 108 | B109: 38219 | C109: 321737.09 | D109: -2210.526316 | E109: -48321.86063 | F109: 106816744.6 | G109: 4886426.593
A110: 109 | B110: 56891 | C110: 568845.92 | D110: 16461.47368 | E110: 198786.9694 | F110: 3272326465 | G110: 270980115.9
A111: 110 | B111: 52906 | C111: 426690.72 | D111: 12476.47368 | E111: 56631.76937 | F111: 706564780.2 | G111: 155662395.6
A112: 111 | B112: 44835 | C112: 430649.15 | D112: 4405.473684 | E112: 60590.19937 | F112: 266928528.8 | G112: 19408198.38
A113: 112 | B113: 45028 | C113: 400768.12 | D113: 4598.473684 | E113: 30709.16937 | F113: 141215307.2 | G113: 21145960.22
A114: 113 | B114: 15988 | C114: 175665.68 | D114: -24441.52632 | E114: -194393.2706 | F114: 4751268240 | G114: 597388208.6
A115: 114 | B115: 64717 | C115: 558028.45 | D115: 24287.47368 | E115: 187969.4994 | F115: 4565304269 | G115: 589881378
A116: 115 | B116: 15196 | C116: 163514.12 | D116: -25233.52632 | E116: -206544.8306 | F116: 5211854419 | G116: 636730850.3
A117: 116 | B117: 45093 | C117: 398568.89 | D117: 4663.473684 | E117: 28509.93937 | F117: 132955352 | G117: 21747986.8
A118: 117 | B118: 51099 | C118: 483830.51 | D118: 10669.47368 | E118: 113771.5594 | F118: 1213882659 | G118: 113837668.7
A119: 118 | B119: 40839 | C119: 292958.72 | D119: 409.4736842 | E119: -77100.23063 | F119: -31570515.49 | G119: 167668.6981
A120: 119 | B120: 29773 | C120: 275083.88 | D120: -10656.52632 | E120: -94975.07063 | F120: 1012104340 | G120: 113561553.1
A121: 120 | B121: 60954 | C121: 599805.08 | D121: 20524.47368 | E121: 229746.1294 | F121: 4715418386 | G121: 421254020
A122: 121 | B122: 53820 | C122: 524692.4 | D122: 13390.47368 | E122: 154633.4494 | F122: 2070615134 | G122: 179304785.5
A123: 122 | B123: 19365 | C123: 196012.1 | D123: -21064.52632 | E123: -174046.8506 | F123: 3666214465 | G123: 443714268.9
A124: 123 | B124: 39109 | C124: 360134.37 | D124: -1320.526316 | E124: -9924.580632 | F124: 13105669.9 | G124: 1743789.751
A125: 124 | B125: 40439 | C125: 312044.72 | D125: 9.473684211 | E125: -58014.23063 | F125: -549608.5007 | G125: 89.75069252
A126: 125 | B126: 35117 | C126: 268076.57 | D126: -5312.526316 | E126: -101982.3806 | F126: 541784080.9 | G126: 28222935.86
A127: 126 | B127: 50624 | C127: 394243.2 | D127: 10194.47368 | E127: 24184.24937 | F127: 246545693.8 | G127: 103927293.7
A128: 127 | B128: 55174 | C128: 474839.8 | D128: 14744.47368 | E128: 104780.8494 | F128: 1544938476 | G128: 217399504.2
A129: 128 | B129: 52278 | C129: 474497.36 | D129: 11848.47368 | E129: 104438.4094 | F129: 1237435745 | G129: 140386328.6
A130: 129 | B130: 30557 | C130: 301178.54 | D130: =B130-$B$196 -> -9872.526316 | E130: =C130-$B$197 -> -68880.41063 | F130: =D130*E130 -> 680023666.6 | G130: 97466775.86
A131: 130 | B131: 62145 | C131: 642241.85 | D131: 21715.47368 | E131: 272182.8994 | F131: 5910580589 | G131: =D131^2 -> 471561797.3
A132: 131 | B132: 58106 | C132: 475335.92 | D132: 17676.47368 | E132: 105276.9694 | F132: 1860925579 | G132: 312457721.9
A133: 132 | B133: 55233 | C133: 543230.69 | D133: 14803.47368 | E133: 173171.7394 | F133: 2563543287 | G133: 219142833.1
A134: 133 | B134: 51653 | C134: 343389.04 | D134: 11223.47368 | E134: -26669.91063 | F134: -299329040.1 | G134: 125966361.5
A135: 134 | B135: 16221 | C135: 195989 | D135: -24208.52632 | E135: -174069.9506 | F135: 4213976981 | G135: 586052746.4
A136: 135 | B136: 28538 | C136: 295141.42 | D136: -11891.52632 | E136: -74917.53063 | F136: 890883787 | G136: 141408398.1
A137: 136 | B137: 33546 | C137: 355268.6 | D137: -6883.526316 | E137: -14790.35063 | F137: 101809767.8 | G137: 47382934.54
A138: 137 | B138: 50539 | C138: 505356.39 | D138: 10109.47368 | E138: 135297.4394 | F138: 1367785903 | G138: 102201458.2
A139: 138 | B139: 14677 | C139: 180772.07 | D139: -25752.52632 | E139: -189286.8806 | F139: 4874615375 | G139: 663192611.6
A140: 139 | B140: 15835 | C140: 146751.85 | D140: -24594.52632 | E140: -223307.1006 | F140: 5492132363 | G140: 604890724.7
A141: 140 | B141: 24504 | C141: 198984.32 | D141: -15925.52632 | E141: -171074.6306 | F141: 2724453532 | G141: 253622388.4
A142: 141 | B142: 21816 | C142: 210783.92 | D142: -18613.52632 | E142: -159275.0306 | F142: 2964669974 | G142: 346463361.9
A143: 142 | B143: 28370 | C143: 246604.1 | D143: -12059.52632 | E143: -123454.8506 | F143: 1488807020 | G143: 145432175
A144: 143 | B144: 46733 | C144: 430873.95 | D144: 6303.473684 | E144: 60814.99937 | F144: 383345748.1 | G144: 39733780.49
A145: 144 | B145: 46568 | C145: 393671.84 | D145: 6138.473684 | E145: 23612.88937 | F145: 144947100 | G145: 37680859.17
A146: 145 | B146: 42540 | C146: 363945.2 | D146: 2110.473684 | E146: -6113.750632 | F146: -12902909.82 | G146: 4454099.172
A147: 146 | B147: 39348 | C147: 275857.52 | D147: -1081.526316 | E147: -94201.43063 | F147: 101881326.2 | G147: 1169699.172
A148: 147 | B148: 34125 | C148: 350641.25 | D148: -6304.526316 | E148: -19417.70063 | F148: 122419404.6 | G148: 39747052.07
A149: 148 | B149: 61572 | C149: 580750.64 | D149: 21142.47368 | E149: 210691.6894 | F149: 4454543498 | G149: 447004193.5
A150: 149 | B150: 54730 | C150: 410123.4 | D150: 14300.47368 | E150: 40064.44937 | F150: 572940603.9 | G150: 204503547.6
A151: 150 | B151: 38799 | C151: 332068.73 | D151: -1630.526316 | E151: -37990.22063 | F151: 61944054.48 | G151: 2658616.066
A152: 151 | B152: 22293 | C152: 208949.09 | D152: -18136.52632 | E152: -161109.8606 | F152: 2921973227 | G152: 328933586.8
A153: 152 | B153: 37202 | C153: 346499.94 | D153: -3227.526316 | E153: -23559.01063 | F153: 76037326.79 | G153: 10416926.12
A154: 153 | B154: 53171 | C154: 474836.29 | D154: 12741.47368 | E154: 104777.3394 | F154: 1335017712 | G154: 162345151.6
A155: 154 | B155: 33287 | C155: 255380.79 | D155: -7142.526316 | E155: -114678.1606 | F155: 819091780.2 | G155: 51015682.17
A156: 155 | B156: 35445 | C156: 237858.5 | D156: -4984.526316 | E156: -132200.4506 | F156: 658956625.1 | G156: 24845502.59
A157: 156 | B157: 21723 | C157: 224001.23 | D157: -18706.52632 | E157: -146057.7206 | F157: 2732232595 | G157: 349934126.8
A158: 157 | B158: 40939 | C158: 439329.89 | D158: 509.4736842 | E158: 69270.93937 | F158: 35291720.69 | G158: 259563.4349
A159: 158 | B159: 45048 | C159: 362182.64 | D159: 4618.473684 | E159: -7876.310632 | F159: -36376533.38 | G159: 21330299.17
A160: 159 | B160: 30296 | C160: 299639.04 | D160: -10133.52632 | E160: -70419.91063 | F160: 713602017.5 | G160: 102688355.6
A161: 160 | B161: 53521 | C161: 457210.54 | D161: 13091.47368 | E161: 87151.58937 | F161: 1140942739 | G161: 171386683.2
A162: 161 | B162: 24680 | C162: 209679.6 | D162: -15749.52632 | E162: -160379.3506 | F162: 2525898803 | G162: 248047579.2
A163: 162 | B163: 46956 | C163: 426587.12 | D163: 6526.473684 | E163: 56528.16937 | F163: 368929609.8 | G163: 42594858.75
A164: 163 | B164: 16392 | C164: 200150.72 | D164: -24037.52632 | E164: -169908.2306 | F164: 4084173565 | G164: 577802671.4
A165: 164 | B165: 53761 | C165: 534924.22 | D165: 13331.47368 | E165: 164865.2694 | F165: 2197897000 | G165: 177728190.6
A166: 165 | B166: 56104 | C166: 460681.28 | D166: 15674.47368 | E166: 90622.32937 | F166: 1420457317 | G166: 245689125.3
A167: 166 | B167: 15241 | C167: 151200.24 | D167: -25188.52632 | E167: -218858.7106 | F167: 5512728392 | G167: 634461858
A168: 167 | B168: 19284 | C168: 212426.64 | D168: -21145.52632 | E168: -157632.3106 | F168: 3333218173 | G168: 447133283.2
A169: 168 | B169: 14673 | C169: 181763.54 | D169: -25756.52632 | E169: -188295.4106 | F169: 4849835699 | G169: 663398647.9
A170: 169 | B170: 57793 | C170: 497895.75 | D170: 17363.47368 | E170: 127836.7994 | F170: 2219690902 | G170: 301490218.4
A171: 170 | B171: 28259 | C171: 242161.2 | D171: -12170.52632 | E171: -127897.7506 | F171: 1556582940 | G171: 148121710.8
A172: 171 | B172: 30304 | C172: 206671.68 | D172: -10125.52632 | E172: -163387.2706 | F172: 1654382108 | G172: 102526283.2
A173: 172 | B173: 62568 | C173: 496735.52 | D173: 22138.47368 | E173: 126676.5694 | F173: 2804425897 | G173: 490112017.1
A174: 173 | B174: 56139 | C174: 513074.17 | D174: 15709.47368 | E174: 143015.2194 | F174: 2246693825 | G174: 246787563.4
A175: 174 | B175: 23120 | C175: 214614.4 | D175: -17309.52632 | E175: -155444.5506 | F175: 2690671540 | G175: 299619701.3
A176: 175 | B176: 17006 | C176: 110924.66 | D176: -23423.52632 | E176: -259134.2906 | F176: 6069838876 | G176: 548661585.1
A177: 176 | B177: 31596 | C177: 329940.56 | D177: -8833.526316 | E177: -40118.39063 | F177: 354386859.4 | G177: 78031187.17
A178: 177 | B178: 40607 | C178: 363486.04 | D178: 177.4736842 | E178: -6572.910632 | F178: -1166518.666 | G178: 31496.90859
A179: 178 | B179: 61771 | C179: 569494.11 | D179: 21341.47368 | E179: 199435.1594 | F179: 4256240205 | G179: 455458499
A180: 179 | B180: 30412 | C180: 279610.6 | D180: -10017.52632 | E180: -90448.35063 | F180: 906068732.7 | G180: 100350833.5
A181: 180 | B181: 36947 | C181: 361463.21 | D181: -3482.526316 | E181: -8595.740632 | F181: 29934892.95 | G181: 12127989.54
A182: 181 | B182: 43194 | C182: 395552 | D182: 2764.473684 | E182: 25493.04937 | F182: 70474864.11 | G182: 7642314.751
A183: 182 | B183: 56866 | C183: 492417.48 | D183: 16436.47368 | E183: 122358.5294 | F183: 2011142748 | G183: 270157667.2
A184: 183 | B184: 39851 | C184: 367213.96 | D184: -578.5263158 | E184: -2844.990632 | F184: 1645901.949 | G184: 334692.6981
A185: 184 | B185: 36617 | C185: 312177.72 | D185: -3812.526316 | E185: -57881.23063 | F185: 220673715 | G185: 14535356.91
A186: 185 | B186: 46438 | C186: 331878.66 | D186: 6008.473684 | E186: -38180.29063 | F186: -229405271.5 | G186: 36101756.01
A187: 186 | B187: 27520 | C187: 266032 | D187: -12909.52632 | E187: -104026.9506 | F187: 1342938657 | G187: 166655869.7
A188: 187 | B188: 28852 | C188: 311399.12 | D188: -11577.52632 | E188: -58659.83063 | F188: 679135732.8 | G188: 134039115.6
A189: 188 | B189: 60878 | C189: 505367.44 | D189: 20448.47368 | E189: 135308.4894 | F189: 2766852084 | G189: 418140076
A190: 189 | B190: 32779 | C190: 211928.26 | D190: -7650.526316 | E190: -158130.6906 | F190: 1209783010 | G190: 58530552.91
A191: 190 | B191: 49959 | C191: 401211.77 | D191: 9529.473684 | E191: 31152.81937 | F191: 296869972.4 | G191: 90810868.7
C192: Total | D192: =SUM(D2:D191) -> 4.511093721e-10 | E192: =SUM(E2:E191) -> -3.891182132e-08 | F192: =SUM(F2:F191) -> 3.340043102e+11 | G192: =SUM(G2:G191) -> 4.052688611e+10
A194: Count = n = | B194: =COUNT(A2:A191) -> 190 | C194: =" "&IF(_xlfn.ISFORMULA(B194),_xlfn.FORMULATEXT(B194),"") -> =COUNT(A2:A191)
A195: n-1 | B195: =B194-1 -> 189 | C195: =B194-1 | R195: df = n - estimated parameters
A196: Xbar | B196: =AVERAGE(B2:B191) -> 40429.52632 | C196: =AVERAGE(B2:B191)
A197: Ybar | B197: =AVERAGE(C2:C191) -> 370058.9506 | C197: =AVERAGE(C2:C191)
A198: Slope = b1 = | B198: =F192/G192 -> 8.241548816 | C198: =F192/G192
A199: y-intercept = b0 = | B199: =B197-B198*B196 -> 36857.03588 | C199: =B197-B198*B196
A200: Slope = b1 = | B200: =SLOPE(C2:C191,B2:B191) -> 8.241548816 | C200: =SLOPE(C2:C191,B2:B191)
A201: y-intercept = b0 = | B201: =INTERCEPT(C2:C191,B2:B191) -> 36857.03588 | C201: =INTERCEPT(C2:C191,B2:B191)
... 14 more rows

Sheet E.R.
P1: X | Q1: Lower ER
O2: =#REF! ->  | P2: =MIN(#REF!) ->  | Q2: 0
P3: =MIN(#REF!) ->  | Q3: =FORECAST(P3,#REF!,#REF!) -> 
Q4: Upper ER
O5: =#REF! ->  | P5: =MAX(#REF!) ->  | Q5: 0
P6: =MAX(#REF!) ->  | Q6: =FORECAST(P6,#REF!,#REF!) -> 

Sheet E.R. (2)
A1: For Entry Level BMX Race Bikes, we created an equation to predict Price of bike based on Weight. | E1: sxy = Covariance | F1: =_xlfn.COVARIANCE.S(C5:C24,B5:B24) -> -339.8734211 | G1: =IF(_xlfn.ISFORMULA(F1),_xlfn.FORMULATEXT(F1),"") -> =COVARIANCE.S(C5:C24,B5:B24)
E2: rxy = C of Correlation | F2: =PEARSON(C5:C24,B5:B24) -> -0.8975435243 | G2: =PEARSON(C5:C24,B5:B24)
E3: b1 = Slope
A4: Year Manufacturer and Model | B4: Bike Weight (pound) =x | C4: Price = y | E4: b0 = Y-intercept
A5: 2015 SE Ripper | B5: 22.4 | C5: 299 | E5: Estimated Regression Equation: | F5: =IF(ISNUMBER(F4),"Yhat = "&ROUND(F3,3)&"*x + "&ROUND(F4,1),"") ->  | G5: =" "&IF(_xlfn.ISFORMULA(F5),_xlfn.FORMULATEXT(F5),"") -> =IF(ISNUMBER(F4),"Yhat = "&ROUND(F3,3)&"*x + "&ROUND(F4,1),"")
A6: 2014 Redline MX | B6: 21 | C6: 462 | E6: Min X | F6: =MIN(B5:B24) -> 20.1 | G6: =MIN(B5:B24)
A7: 2015 SE PK Ripper Elite | B7: 21 | C7: 549 | E7: Max X | F7: =MAX(B5:B24) -> 27 | G7: =MAX(B5:B24)
A8: 2015 Grenade Launch Pro X | B8: 26 | C8: 180 | E8: x | F8: 25
A9: 2015 SE PK Ripper Elite XL | B9: 21.1 | C9: 549 | E9: ="Yhat when x = "&ROUND(F8,0)&" =" -> Yhat when x = 25 =
A10: 2015 Grenade M1 | B10: 26 | C10: 240
A11: 2015 Framed Team | B11: 26.4 | C11: 180
A12: 2014 Redline MX | B12: 21 | C12: 431
A13: 2014 Framed Team | B13: 25.2 | C13: 360
A14: 2014 Grenade MX | B14: 26 | C14: 230
A15: 2014 Grenade Stealth Deep Sea Blue | B15: 25 | C15: 270
A16: 2014 Grenade Flare X | B16: 26.8 | C16: 150
A17: 2014 Grenade Launch Blue | B17: 25.2 | C17: 170
A18: 2014 Grenade Launch X | B18: 27 | C18: 160
A19: 2014 Framed Verdict Blank | B19: 25.4 | C19: 159
A20: 2014 SE PK Ripper Elite | B20: 20.7 | C20: 500
A21: 2013 Redline Proline Pro | B21: 21.9 | C21: 560
A22: 2012 Redline Proline Pro XL | B22: 22.5 | C22: 560
A23: 2013 Redline Proline Expert XL | B23: 20.1 | C23: 499
A24: 2013 Redline MX | B24: 23 | C24: 379
E26: What is the correct interpretation of slope?
E27: For every 1 pound increase in the bike weight, the equation predicts that the price will decrease by $58.61.
E28: What is the correct interpretation of the y-intercept?
E29: At x = 0 (bike weights zero pounds), the equation would predict that the price is $1,732.40. This makes no sense since the bike can not weigh zero pounds.

Sheet E.R. (2an)
A1: For Entry Level BMX Race Bikes, we created an equation to predict Price of bike based on Weight. | E1: sxy = Covariance | F1: =_xlfn.COVARIANCE.S(C5:C24,B5:B24) -> -339.8734211 | G1: =IF(_xlfn.ISFORMULA(F1),_xlfn.FORMULATEXT(F1),"") -> =COVARIANCE.S(C5:C24,B5:B24)
E2: rxy = C of Correlation | F2: =PEARSON(C5:C24,B5:B24) -> -0.8975435243 | G2: =PEARSON(C5:C24,B5:B24)
E3: b1 = Slope | F3: =SLOPE(C5:C24,B5:B24) -> -58.60657709 | G3: =SLOPE(C5:C24,B5:B24)
A4: Year Manufacturer and Model | B4: Bike Weight (pound) =x | C4: Price = y | E4: b0 = Y-intercept | F4: =INTERCEPT(C5:C24,B5:B24) -> 1732.446778 | G4: =INTERCEPT(C5:C24,B5:B24)
A5: 2015 SE Ripper | B5: 22.4 | C5: 299 | E5: Estimated Regression Equation: | F5: =IF(ISNUMBER(F4),"Yhat = "&ROUND(F3,3)&"*x + "&ROUND(F4,1),"") -> Yhat = -58.607*x + 1732.4 | G5: =" "&IF(_xlfn.ISFORMULA(F5),_xlfn.FORMULATEXT(F5),"") -> =IF(ISNUMBER(F4),"Yhat = "&ROUND(F3,3)&"*x + "&ROUND(F4,1),"")
A6: 2014 Redline MX | B6: 21 | C6: 462 | E6: Min X | F6: =MIN(B5:B24) -> 20.1 | G6: =MIN(B5:B24)
A7: 2015 SE PK Ripper Elite | B7: 21 | C7: 549 | E7: Max X | F7: =MAX(B5:B24) -> 27 | G7: =MAX(B5:B24)
A8: 2015 Grenade Launch Pro X | B8: 26 | C8: 180 | E8: x | F8: 25
A9: 2015 SE PK Ripper Elite XL | B9: 21.1 | C9: 549 | E9: ="Yhat when x = "&ROUND(F8,0)&" =" -> Yhat when x = 25 = | F9: =F3*F8+F4 -> 267.2823511 | G9: =F3*F8+F4
A10: 2015 Grenade M1 | B10: 26 | C10: 240
A11: 2015 Framed Team | B11: 26.4 | C11: 180
A12: 2014 Redline MX | B12: 21 | C12: 431
A13: 2014 Framed Team | B13: 25.2 | C13: 360
A14: 2014 Grenade MX | B14: 26 | C14: 230
A15: 2014 Grenade Stealth Deep Sea Blue | B15: 25 | C15: 270
A16: 2014 Grenade Flare X | B16: 26.8 | C16: 150
A17: 2014 Grenade Launch Blue | B17: 25.2 | C17: 170
A18: 2014 Grenade Launch X | B18: 27 | C18: 160
A19: 2014 Framed Verdict Blank | B19: 25.4 | C19: 159
A20: 2014 SE PK Ripper Elite | B20: 20.7 | C20: 500
A21: 2013 Redline Proline Pro | B21: 21.9 | C21: 560
A22: 2012 Redline Proline Pro XL | B22: 22.5 | C22: 560
A23: 2013 Redline Proline Expert XL | B23: 20.1 | C23: 499
A24: 2013 Redline MX | B24: 23 | C24: 379
E26: What is the correct interpretation of slope?
E27: For every 1 pound increase in the bike weight, the equation predicts that the price will decrease by $58.61.
E28: What is the correct interpretation of the y-intercept?
E29: At x = 0 (bike weights zero pounds), the equation would predict that the price is $1,732.40. This makes no sense since the bike can not weigh zero pounds.

Sheet Better Model
A1: ith Sample Point | B1: Weekly $ Ad Expense (x) | C1: Weekly $ Sales (y) | D1: Predicted = ŷi = b1*Xi+b0 | E1: ith Residual = ei =Yi - ŷi
A2: 1 | B2: 63566 | C2: 651334.36 | D2: =FORECAST(B2,$C$2:$C$191,$B$2:$B$191) -> 560739.3279 | E2: =C2-D2 -> 90595.03206
A3: 2 | B3: 50762 | C3: 527670.42 | D3: =FORECAST(B3,$C$2:$C$191,$B$2:$B$191) -> 455214.5369 | E3: =C3-D3 -> 72455.88311
A4: 3 | B4: 50941 | C4: 523751.3 | D4: 456689.7741 | E4: 67061.52587
A5: 4 | B5: 17597 | C5: 175466.61 | D5: 181883.5704 | E5: -6416.960401
A6: 5 | B6: 33029 | C6: 377977.97 | D6: 309067.1517 | E6: 68910.81827
A7: 6 | B7: 58543 | C7: 520100.29 | D7: 519342.0282 | E7: 758.2617673
A8: 7 | B8: 60492 | C8: 620856.28 | D8: 535404.8069 | E8: 85451.47312
A9: 8 | B9: 59686 | C9: 593739.46 | D9: 528762.1185 | E9: 64977.34147
A10: 9 | B10: 16432 | C10: 181948.96 | D10: 172282.166 | E10: 9666.79397
A11: 10 | B11: 17262 | C11: 184643.6 | D11: 179122.6515 | E11: 5520.948453
A12: 11 | B12: 39118 | C12: 379373.56 | D12: 359249.9425 | E12: 20123.61752
A13: 12 | B13: 36078 | C13: 238687.94 | D13: 334195.6341 | E13: -95507.69407
A14: 13 | B14: 42113 | C14: 410066.15 | D14: 383933.3812 | E14: 26132.76882
A15: 14 | B15: 50562 | C15: 413540.78 | D15: 453566.2271 | E15: -40025.44713
A16: 15 | B16: 38240 | C16: 340241.6 | D16: 352013.8626 | E16: -11772.26262
A17: 16 | B17: 59870 | C17: 582843 | D17: 530278.5635 | E17: 52564.43649
A18: 17 | B18: 46056 | C18: 433185.92 | D18: 416429.8082 | E18: 16756.11184
A19: 18 | B19: 33349 | C19: 270770.38 | D19: 311704.4474 | E19: -40934.06735
A20: 19 | B20: 16207 | C20: 164421.42 | D20: 170427.8175 | E20: -6006.397546
A21: 20 | B21: 57077 | C21: 478077.5 | D21: 507259.9177 | E21: -29182.41767
A22: 21 | B22: 30893 | C22: 393839.09 | D22: 291463.2035 | E22: 102375.8865
A23: 22 | B23: 54153 | C23: 430154.06 | D23: 483161.6289 | E23: -53007.56893
A24: 23 | B24: 14591 | C24: 210792.82 | D24: 157109.4747 | E24: 53683.34534
A25: 24 | B25: 50138 | C25: 343808.68 | D25: 450071.8104 | E25: -106263.1304
A26: 25 | B26: 55253 | C26: 565510.49 | D26: 492227.3326 | E26: 73283.15737
A27: 26 | B27: 34944 | C27: 330250.88 | D27: 324849.7177 | E27: 5401.162283
A28: 27 | B28: 26413 | C28: 295905.03 | D28: 254541.0648 | E28: 41363.96523
A29: 28 | B29: 54660 | C29: 562164.2 | D29: 487340.0942 | E29: 74824.10582
A30: 29 | B30: 35887 | C30: 257067.99 | D30: 332621.4983 | E30: -75553.50825
A31: 30 | B31: 42021 | C31: 384066.95 | D31: 383175.1587 | E31: 891.7913101
A32: 31 | B32: 47349 | C32: 441576.23 | D32: 427086.1308 | E32: 14490.09922
A33: 32 | B33: 24364 | C33: 252221.2 | D33: 237654.1312 | E33: 14567.06876
A34: 33 | B34: 58406 | C34: 552875.66 | D34: 518212.936 | E34: 34662.72396
A35: 34 | B35: 51643 | C35: 446101.81 | D35: 462475.3414 | E35: -16373.5314
A36: 35 | B36: 55115 | C36: 476038.95 | D36: 491089.9989 | E36: -15051.04889
A37: 36 | B37: 35416 | C37: 393889.36 | D37: 328739.7288 | E37: 65149.63124
A38: 37 | B38: 37274 | C38: 328436.78 | D38: 344052.5265 | E38: -15615.74646
A39: 38 | B39: 36148 | C39: 408949.64 | D39: 334772.5425 | E39: 74177.09751
A40: 39 | B40: 32192 | C40: 394776.32 | D40: 302168.9754 | E40: 92607.34463
A41: 40 | B41: 51238 | C41: 455804.96 | D41: 459137.5141 | E41: -3332.55413
A42: 41 | B42: 59235 | C42: 526249.4 | D42: 525045.18 | E42: 1204.219986
A43: 42 | B43: 59329 | C43: 562602.56 | D43: 525819.8856 | E43: 36782.6744
A44: 43 | B44: 22739 | C44: 180749.25 | D44: 224261.6144 | E44: -43512.36441
A45: 44 | B45: 28654 | C45: 275506.98 | D45: 273010.3757 | E45: 2496.604338
A46: 45 | B46: 36786 | C46: 372981.08 | D46: 340030.6506 | E46: 32950.42936
A47: 46 | B47: 20813 | C47: 216087.74 | D47: 208388.3914 | E47: 7699.348606
A48: 47 | B48: 57259 | C48: 470281.06 | D48: 508759.8796 | E48: -38478.81955
A49: 48 | B49: 57707 | C49: 481071.29 | D49: 512452.0934 | E49: -31380.80342
A50: 49 | B50: 61539 | C50: 612466.46 | D50: 544033.7085 | E50: 68432.75151
A51: 50 | B51: 36635 | C51: 370922.6 | D51: 338786.1768 | E51: 32136.42323
A52: 51 | B52: 39086 | C52: 448677.2 | D52: 358986.2129 | E52: 89690.98709
A53: 52 | B53: 33062 | C53: 259282.46 | D53: 309339.1228 | E53: -50056.66284
A54: 53 | B54: 42144 | C54: 354279.68 | D54: 384188.8692 | E54: -29909.18919
A55: 54 | B55: 18828 | C55: 185749.88 | D55: 192028.917 | E55: -6279.036993
A56: 55 | B56: 57070 | C56: 415818.7 | D56: 507202.2268 | E56: -91383.52683
A57: 56 | B57: 27991 | C57: 252095.02 | D57: 267546.2288 | E57: -15451.2088
A58: 57 | B58: 37876 | C58: 329524.88 | D58: 349013.9388 | E58: -19489.05885
A59: 58 | B59: 16134 | C59: 233120.9 | D59: 169826.1845 | E59: 63294.71552
A60: 59 | B60: 55466 | C60: 376140.08 | D60: 493982.7825 | E60: -117842.7025
A61: 60 | B61: 26100 | C61: 208166 | D61: 251961.46 | E61: -43795.45999
A62: 61 | B62: 23787 | C62: 226261.67 | D62: 232898.7576 | E62: -6637.087573
A63: 62 | B63: 30895 | C63: 249581.7 | D63: 291479.6866 | E63: -41897.98656
A64: 63 | B64: 31845 | C64: 278010.2 | D64: 299309.1579 | E64: -21298.95794
A65: 64 | B65: 50618 | C65: 537451.34 | D65: 454027.7539 | E65: 83423.58614
A66: 65 | B66: 62293 | C66: 448052.27 | D66: 550247.8363 | E66: -102195.5663
A67: 66 | B67: 61228 | C67: 519618.76 | D67: =FORECAST(B67,$C$2:$C$191,$B$2:$B$191) -> 541470.5868 | E67: =C67-D67 -> -21851.8268
A68: 67 | B68: 32558 | C68: 364510.28 | D68: 305185.3822 | E68: 59324.89776
A69: 68 | B69: 40694 | C69: 351135.6 | D69: 372238.6234 | E69: -21103.02341
A70: 69 | B70: 46333 | C70: 390547.55 | D70: 418712.7172 | E70: -28165.16719
A71: 70 | B71: 28415 | C71: 234129.2 | D71: 271040.6455 | E71: -36911.4455
A72: 71 | B72: 19993 | C72: 224538.89 | D72: 201630.3214 | E72: 22908.56864
A73: 72 | B73: 34414 | C73: 248912.92 | D73: 320481.6968 | E73: -71568.77684
A74: 73 | B74: 52078 | C74: 328096.52 | D74: 466060.4151 | E74: -137963.8951
A75: 74 | B75: 24507 | C75: 262965.83 | D75: 238832.6727 | E75: 24133.15728
A76: 75 | B76: 28516 | C76: 334304.52 | D76: 271873.0419 | E76: 62431.47807
A77: 76 | B77: 17554 | C77: 216060.84 | D77: 181529.1838 | E77: 34531.6562
A78: 77 | B78: 16662 | C78: 183462.62 | D78: 174177.7223 | E78: 9284.897743
A79: 78 | B79: 57162 | C79: 517013.54 | D79: 507960.4493 | E79: 9053.090683
A80: 79 | B80: 57297 | C80: 731834.3 | D80: 509073.0584 | E80: 222761.2416
A81: 80 | B81: 64112 | C81: 439159.84 | D81: 565239.2136 | E81: -126079.3736
A82: 81 | B82: 37237 | C82: 453649.08 | D82: 343747.5892 | E82: 109901.4908
A83: 82 | B83: 55058 | C83: 495969.8 | D83: 490620.2306 | E83: 5349.569392
A84: 83 | B84: 30791 | C84: 306489.03 | D84: 290622.5655 | E84: 15866.46452
A85: 84 | B85: 19784 | C85: 226868.96 | D85: 199907.8377 | E85: 26961.12234
A86: 85 | B86: 32463 | C86: 316845.86 | D86: 304402.4351 | E86: 12443.4249
A87: 86 | B87: 59364 | C87: 496417.28 | D87: 526108.3398 | E87: -29691.05981
A88: 87 | B88: 64632 | C88: 527881.68 | D88: 569524.819 | E88: -41643.13898
A89: 88 | B89: 58106 | C89: 535766.16 | D89: 515740.4714 | E89: 20025.6886
A90: 89 | B90: 60333 | C90: 469314.35 | D90: 534094.4006 | E90: -64780.05061
A91: 90 | B91: 58353 | C91: 558254.63 | D91: 517776.134 | E91: 40478.49604
A92: 91 | B92: 22672 | C92: 197141.28 | D92: 223709.4306 | E92: -26568.15064
A93: 92 | B93: 64325 | C93: 563313.5 | D93: 566994.6635 | E93: -3681.163489
A94: 93 | B94: 32326 | C94: 365825.02 | D94: 303273.3429 | E94: 62551.67708
A95: 94 | B95: 16138 | C95: 206538.6 | D95: 169859.1507 | E95: 36679.44932
A96: 95 | B96: 34957 | C96: 320916.75 | D96: 324956.8579 | E96: -4040.107852
A97: 96 | B97: 26159 | C97: 294325.06 | D97: 252447.7114 | E97: 41877.34863
A98: 97 | B98: 42098 | C98: 329951.7 | D98: 383809.7579 | E98: -53858.05795
A99: 98 | B99: 20582 | C99: 161277.7 | D99: 206484.5936 | E99: -45206.89362
A100: 99 | B100: 45614 | C100: 428140.06 | D100: 412787.0436 | E100: 15353.01641
A101: 100 | B101: 42729 | C101: 433279.13 | D101: 389010.1753 | E101: 44268.95475
A102: 101 | B102: 40053 | C102: 346792.73 | D102: 366955.7906 | E102: -20163.06062
A103: 102 | B103: 51749 | C103: 540063.03 | D103: 463348.9456 | E103: 76714.08443
A104: 103 | B104: 59753 | C104: 588972.06 | D104: 529314.3023 | E104: 59657.7577
A105: 104 | B105: 34045 | C105: 290698.15 | D105: 317440.5653 | E105: -26742.41533
A106: 105 | B106: 56384 | C106: 544487.68 | D106: 501548.5243 | E106: 42939.15566
A107: 106 | B107: 33242 | C107: 206569.82 | D107: 310822.6016 | E107: -104252.7816
A108: 107 | B108: 49060 | C108: 550902.6 | D108: 441187.4208 | E108: 109715.1792
A109: 108 | B109: 38219 | C109: 321737.09 | D109: 351840.7901 | E109: -30103.70009
A110: 109 | B110: 56891 | C110: 568845.92 | D110: 505726.9896 | E110: 63118.93041
A111: 110 | B111: 52906 | C111: 426690.72 | D111: 472884.4176 | E111: -46193.69756
A112: 111 | B112: 44835 | C112: 430649.15 | D112: 406366.8771 | E112: 24282.27294
A113: 112 | B113: 45028 | C113: 400768.12 | D113: 407957.496 | E113: -7189.37598
A114: 113 | B114: 15988 | C114: 175665.68 | D114: 168622.9184 | E114: 7042.761645
A115: 114 | B115: 64717 | C115: 558028.45 | D115: 570225.3506 | E115: -12196.90062
A116: 115 | B116: 15196 | C116: 163514.12 | D116: 162095.6117 | E116: 1418.508307
A117: 116 | B117: 45093 | C117: 398568.89 | D117: 408493.1967 | E117: -9924.306654
A118: 117 | B118: 51099 | C118: 483830.51 | D118: 457991.9388 | E118: 25838.57116
A119: 118 | B119: 40839 | C119: 292958.72 | D119: 373433.648 | E119: -80474.92799
A120: 119 | B120: 29773 | C120: 275083.88 | D120: 282232.6688 | E120: -7148.788788
A121: 120 | B121: 60954 | C121: 599805.08 | D121: 539212.4024 | E121: 60592.67757
A122: 121 | B122: 53820 | C122: 524692.4 | D122: 480417.1932 | E122: 44275.20683
A123: 122 | B123: 19365 | C123: 196012.1 | D123: 196454.6287 | E123: -442.5287078
A124: 123 | B124: 39109 | C124: 360134.37 | D124: 359175.7685 | E124: 958.6014632
A125: 124 | B125: 40439 | C125: 312044.72 | D125: 370137.0285 | E125: -58092.30846
A126: 125 | B126: 35117 | C126: 268076.57 | D126: 326275.5057 | E126: -58198.93566
A127: 126 | B127: 50624 | C127: 394243.2 | D127: 454077.2032 | E127: -59834.00316
A128: 127 | B128: 55174 | C128: 474839.8 | D128: 491576.2503 | E128: -16736.45027
A129: 128 | B129: 52278 | C129: 474497.36 | D129: 467708.7249 | E129: 6788.635101
A130: 129 | B130: 30557 | C130: 301178.54 | D130: 288694.0431 | E130: 12484.49694
A131: 130 | B131: 62145 | C131: 642241.85 | D131: =FORECAST(B131,$C$2:$C$191,$B$2:$B$191) -> 549028.0871 | E131: =C131-D131 -> 93213.76293
A132: 131 | B132: 58106 | C132: 475335.92 | D132: 515740.4714 | E132: -40404.5514
A133: 132 | B133: 55233 | C133: 543230.69 | D133: 492062.5017 | E133: 51168.18835
A134: 133 | B134: 51653 | C134: 343389.04 | D134: 462557.7569 | E134: -119168.7169
A135: 134 | B135: 16221 | C135: 195989 | D135: 170543.1992 | E135: 25445.80077
A136: 135 | B136: 28538 | C136: 295141.42 | D136: 272054.356 | E136: 23087.064
A137: 136 | B137: 33546 | C137: 355268.6 | D137: 313328.0325 | E137: 41940.56753
A138: 137 | B138: 50539 | C138: 505356.39 | D138: 453376.6715 | E138: 51979.71849
A139: 138 | B139: 14677 | C139: 180772.07 | D139: 157818.2479 | E139: 22953.82214
A140: 139 | B140: 15835 | C140: 146751.85 | D140: 167361.9614 | E140: -20610.11139
A141: 140 | B141: 24504 | C141: 198984.32 | D141: 238807.9481 | E141: -39823.62807
A142: 141 | B142: 21816 | C142: 210783.92 | D142: 216654.6649 | E142: -5870.744857
A143: 142 | B143: 28370 | C143: 246604.1 | D143: 270669.7758 | E143: -24065.6758
A144: 143 | B144: 46733 | C144: 430873.95 | D144: 422009.3367 | E144: 8864.613288
A145: 144 | B145: 46568 | C145: 393671.84 | D145: 420649.4812 | E145: -26977.64116
A146: 145 | B146: 42540 | C146: 363945.2 | D146: 387452.5225 | E146: -23507.32253
A147: 146 | B147: 39348 | C147: 275857.52 | D147: 361145.4987 | E147: -85287.9787
A148: 147 | B148: 34125 | C148: 350641.25 | D148: 318099.8892 | E148: 32541.36076
A149: 148 | B149: 61572 | C149: 580750.64 | D149: 544305.6796 | E149: 36444.9604
A150: 149 | B150: 54730 | C150: 410123.4 | D150: 487917.0026 | E150: -77793.6026
A151: 150 | B151: 38799 | C151: 332068.73 | D151: 356620.8884 | E151: -24552.1584
A152: 151 | B152: 22293 | C152: 208949.09 | D152: 220585.8836 | E152: -11636.79364
A153: 152 | B153: 37202 | C153: 346499.94 | D153: 343459.1349 | E153: 3040.805056
A154: 153 | B154: 53171 | C154: 474836.29 | D154: 475068.428 | E154: -232.1379916
A155: 154 | B155: 33287 | C155: 255380.79 | D155: 311193.4713 | E155: -55812.68133
A156: 155 | B156: 35445 | C156: 237858.5 | D156: 328978.7337 | E156: -91120.23367
A157: 156 | B157: 21723 | C157: 224001.23 | D157: 215888.2008 | E157: 8113.029183
A158: 157 | B158: 40939 | C158: 439329.89 | D158: 374257.8029 | E158: 65072.08713
A159: 158 | B159: 45048 | C159: 362182.64 | D159: 408122.327 | E159: -45939.68696
A160: 159 | B160: 30296 | C160: 299639.04 | D160: 286542.9988 | E160: 13096.04118
A161: 160 | B161: 53521 | C161: 457210.54 | D161: 477952.9701 | E161: -20742.43008
A162: 161 | B162: 24680 | C162: 209679.6 | D162: 240258.4607 | E162: -30578.86067
A163: 162 | B163: 46956 | C163: 426587.12 | D163: 423847.2021 | E163: 2739.917902
A164: 163 | B164: 16392 | C164: 200150.72 | D164: 171952.5041 | E164: 28198.21592
A165: 164 | B165: 53761 | C165: 534924.22 | D165: 479930.9418 | E165: 54993.27821
A166: 165 | B166: 56104 | C166: 460681.28 | D166: 499240.8907 | E166: -38559.61067
A167: 166 | B167: 15241 | C167: 151200.24 | D167: 162466.4814 | E167: -11266.24139
A168: 167 | B168: 19284 | C168: 212426.64 | D168: 195787.0633 | E168: 16639.57675
A169: 168 | B169: 14673 | C169: 181763.54 | D169: 157785.2817 | E169: 23978.25834
A170: 169 | B170: 57793 | C170: 497895.75 | D170: 513160.8666 | E170: -15265.11662
A171: 170 | B171: 28259 | C171: 242161.2 | D171: 269754.9639 | E171: -27593.76388
A172: 171 | B172: 30304 | C172: 206671.68 | D172: 286608.9312 | E172: -79937.25121
A173: 172 | B173: 62568 | C173: 496735.52 | D173: 552514.2622 | E173: -55778.74222
A174: 173 | B174: 56139 | C174: 513074.17 | D174: 499529.3449 | E174: 13544.82512
A175: 174 | B175: 23120 | C175: 214614.4 | D175: 227401.6445 | E175: -12787.24451
A176: 175 | B176: 17006 | C176: 110924.66 | D176: 177012.8151 | E176: -66088.15505
A177: 176 | B177: 31596 | C177: 329940.56 | D177: 297257.0123 | E177: 32683.54772
A178: 177 | B178: 40607 | C178: 363486.04 | D178: 371521.6087 | E178: -8035.568664
A179: 178 | B179: 61771 | C179: 569494.11 | D179: 545945.7478 | E179: 23548.36219
A180: 179 | B180: 30412 | C180: 279610.6 | D180: 287499.0185 | E180: -7888.418481
A181: 180 | B181: 36947 | C181: 361463.21 | D181: 341357.54 | E181: 20105.67
A182: 181 | B182: 43194 | C182: 395552 | D182: 392842.4955 | E182: 2709.504549
A183: 182 | B183: 56866 | C183: 492417.48 | D183: 505520.9509 | E183: -13103.47087
A184: 183 | B184: 39851 | C184: 367213.96 | D184: 365290.9978 | E184: 1922.962242
A185: 184 | B185: 36617 | C185: 312177.72 | D185: 338637.8289 | E185: -26460.10889
A186: 185 | B186: 46438 | C186: 331878.66 | D186: 419578.0798 | E186: -87699.41981
A187: 186 | B187: 27520 | C187: 266032 | D187: 263664.4593 | E187: 2367.540695
A188: 187 | B188: 28852 | C188: 311399.12 | D188: 274642.2023 | E188: 36756.91767
A189: 188 | B189: 60878 | C189: 505367.44 | D189: 538586.0447 | E189: -33218.60472
A190: 189 | B190: 32779 | C190: 211928.26 | D190: 307006.7645 | E190: -95078.50453
A191: 190 | B191: 49959 | C191: 401211.77 | D191: 448596.5732 | E191: -47384.80319
B192: Total | C192: =SUM(C2:C191) -> 70311200.62 | D192: =SUM(D2:D191) -> 70311200.62 | E192: =SUM(E2:E191) -> -3.352761269e-08
C194: Note 1: ΣYi = Σŷi | E194: Note 2: Σei = 0
B195: Ybar Equation Yields Same Prediction at Every X Value.
B196: Lots of Error with this Model.
B197: ="Ybar = "&DOLLAR(AVERAGE(C2:C191),2) -> Ybar = $370,058.95
B198: =B195&CHAR(10)&B196&CHAR(10)&B197 -> Ybar Equation Yields Same Prediction at Every X Value. Lots of Error with this Model. Ybar = $370,058.95
B199: Yhat Equation Yields Predictions that are MUCH Closer to Sample Points.
B200: Much Less Error with this Model.
B201: ="Yhat = "&DOLLAR(SLOPE(C2:C191,B2:B191))&"*x + "&TEXT(INTERCEPT(C2:C191,B2:B191),"#,##0") -> Yhat = $8.24*x + 36,857
... 17 more rows

Sheet Predicted & Residuals
A1: ith Sample Point | B1: Weekly $ Ad Expense (x) | C1: Weekly $ Sales (y) | D1: Predicted = ŷi = b1*Xi+b0 | E1: ith Residual = ei =Yi - ŷi
A2: 1 | B2: 63566 | C2: 651334.36 | D2: =FORECAST(B2,$C$2:$C$191,$B$2:$B$191) -> 560739.3279 | E2: =C2-D2 -> 90595.03206
A3: 2 | B3: 50762 | C3: 527670.42 | D3: =FORECAST(B3,$C$2:$C$191,$B$2:$B$191) -> 455214.5369 | E3: =C3-D3 -> 72455.88311
A4: 3 | B4: 50941 | C4: 523751.3 | D4: 456689.7741 | E4: 67061.52587
A5: 4 | B5: 17597 | C5: 175466.61 | D5: 181883.5704 | E5: -6416.960401
A6: 5 | B6: 33029 | C6: 377977.97 | D6: 309067.1517 | E6: 68910.81827
A7: 6 | B7: 58543 | C7: 520100.29 | D7: 519342.0282 | E7: 758.2617673
A8: 7 | B8: 60492 | C8: 620856.28 | D8: 535404.8069 | E8: 85451.47312
A9: 8 | B9: 59686 | C9: 593739.46 | D9: 528762.1185 | E9: 64977.34147
A10: 9 | B10: 16432 | C10: 181948.96 | D10: 172282.166 | E10: 9666.79397
A11: 10 | B11: 17262 | C11: 184643.6 | D11: 179122.6515 | E11: 5520.948453
A12: 11 | B12: 39118 | C12: 379373.56 | D12: 359249.9425 | E12: 20123.61752
A13: 12 | B13: 36078 | C13: 238687.94 | D13: 334195.6341 | E13: -95507.69407
A14: 13 | B14: 42113 | C14: 410066.15 | D14: 383933.3812 | E14: 26132.76882
A15: 14 | B15: 50562 | C15: 413540.78 | D15: 453566.2271 | E15: -40025.44713
A16: 15 | B16: 38240 | C16: 340241.6 | D16: 352013.8626 | E16: -11772.26262
A17: 16 | B17: 59870 | C17: 582843 | D17: 530278.5635 | E17: 52564.43649
A18: 17 | B18: 46056 | C18: 433185.92 | D18: 416429.8082 | E18: 16756.11184
A19: 18 | B19: 33349 | C19: 270770.38 | D19: 311704.4474 | E19: -40934.06735
A20: 19 | B20: 16207 | C20: 164421.42 | D20: 170427.8175 | E20: -6006.397546
A21: 20 | B21: 57077 | C21: 478077.5 | D21: 507259.9177 | E21: -29182.41767
A22: 21 | B22: 30893 | C22: 393839.09 | D22: 291463.2035 | E22: 102375.8865
A23: 22 | B23: 54153 | C23: 430154.06 | D23: 483161.6289 | E23: -53007.56893
A24: 23 | B24: 14591 | C24: 210792.82 | D24: 157109.4747 | E24: 53683.34534
A25: 24 | B25: 50138 | C25: 343808.68 | D25: 450071.8104 | E25: -106263.1304
A26: 25 | B26: 55253 | C26: 565510.49 | D26: 492227.3326 | E26: 73283.15737
A27: 26 | B27: 34944 | C27: 330250.88 | D27: 324849.7177 | E27: 5401.162283
A28: 27 | B28: 26413 | C28: 295905.03 | D28: 254541.0648 | E28: 41363.96523
A29: 28 | B29: 54660 | C29: 562164.2 | D29: 487340.0942 | E29: 74824.10582
A30: 29 | B30: 35887 | C30: 257067.99 | D30: 332621.4983 | E30: -75553.50825
A31: 30 | B31: 42021 | C31: 384066.95 | D31: 383175.1587 | E31: 891.7913101
A32: 31 | B32: 47349 | C32: 441576.23 | D32: 427086.1308 | E32: 14490.09922
A33: 32 | B33: 24364 | C33: 252221.2 | D33: 237654.1312 | E33: 14567.06876
A34: 33 | B34: 58406 | C34: 552875.66 | D34: 518212.936 | E34: 34662.72396
A35: 34 | B35: 51643 | C35: 446101.81 | D35: 462475.3414 | E35: -16373.5314
A36: 35 | B36: 55115 | C36: 476038.95 | D36: 491089.9989 | E36: -15051.04889
A37: 36 | B37: 35416 | C37: 393889.36 | D37: 328739.7288 | E37: 65149.63124
A38: 37 | B38: 37274 | C38: 328436.78 | D38: 344052.5265 | E38: -15615.74646
A39: 38 | B39: 36148 | C39: 408949.64 | D39: 334772.5425 | E39: 74177.09751
A40: 39 | B40: 32192 | C40: 394776.32 | D40: 302168.9754 | E40: 92607.34463
A41: 40 | B41: 51238 | C41: 455804.96 | D41: 459137.5141 | E41: -3332.55413
A42: 41 | B42: 59235 | C42: 526249.4 | D42: 525045.18 | E42: 1204.219986
A43: 42 | B43: 59329 | C43: 562602.56 | D43: 525819.8856 | E43: 36782.6744
A44: 43 | B44: 22739 | C44: 180749.25 | D44: 224261.6144 | E44: -43512.36441
A45: 44 | B45: 28654 | C45: 275506.98 | D45: 273010.3757 | E45: 2496.604338
A46: 45 | B46: 36786 | C46: 372981.08 | D46: 340030.6506 | E46: 32950.42936
A47: 46 | B47: 20813 | C47: 216087.74 | D47: 208388.3914 | E47: 7699.348606
A48: 47 | B48: 57259 | C48: 470281.06 | D48: 508759.8796 | E48: -38478.81955
A49: 48 | B49: 57707 | C49: 481071.29 | D49: 512452.0934 | E49: -31380.80342
A50: 49 | B50: 61539 | C50: 612466.46 | D50: 544033.7085 | E50: 68432.75151
A51: 50 | B51: 36635 | C51: 370922.6 | D51: 338786.1768 | E51: 32136.42323
A52: 51 | B52: 39086 | C52: 448677.2 | D52: 358986.2129 | E52: 89690.98709
A53: 52 | B53: 33062 | C53: 259282.46 | D53: 309339.1228 | E53: -50056.66284
A54: 53 | B54: 42144 | C54: 354279.68 | D54: 384188.8692 | E54: -29909.18919
A55: 54 | B55: 18828 | C55: 185749.88 | D55: 192028.917 | E55: -6279.036993
A56: 55 | B56: 57070 | C56: 415818.7 | D56: 507202.2268 | E56: -91383.52683
A57: 56 | B57: 27991 | C57: 252095.02 | D57: 267546.2288 | E57: -15451.2088
A58: 57 | B58: 37876 | C58: 329524.88 | D58: 349013.9388 | E58: -19489.05885
A59: 58 | B59: 16134 | C59: 233120.9 | D59: 169826.1845 | E59: 63294.71552
A60: 59 | B60: 55466 | C60: 376140.08 | D60: 493982.7825 | E60: -117842.7025
A61: 60 | B61: 26100 | C61: 208166 | D61: 251961.46 | E61: -43795.45999
A62: 61 | B62: 23787 | C62: 226261.67 | D62: 232898.7576 | E62: -6637.087573
A63: 62 | B63: 30895 | C63: 249581.7 | D63: 291479.6866 | E63: -41897.98656
A64: 63 | B64: 31845 | C64: 278010.2 | D64: 299309.1579 | E64: -21298.95794
A65: 64 | B65: 50618 | C65: 537451.34 | D65: 454027.7539 | E65: 83423.58614
A66: 65 | B66: 62293 | C66: 448052.27 | D66: 550247.8363 | E66: -102195.5663
A67: 66 | B67: 61228 | C67: 519618.76 | D67: =FORECAST(B67,$C$2:$C$191,$B$2:$B$191) -> 541470.5868 | E67: =C67-D67 -> -21851.8268
A68: 67 | B68: 32558 | C68: 364510.28 | D68: 305185.3822 | E68: 59324.89776
A69: 68 | B69: 40694 | C69: 351135.6 | D69: 372238.6234 | E69: -21103.02341
A70: 69 | B70: 46333 | C70: 390547.55 | D70: 418712.7172 | E70: -28165.16719
A71: 70 | B71: 28415 | C71: 234129.2 | D71: 271040.6455 | E71: -36911.4455
A72: 71 | B72: 19993 | C72: 224538.89 | D72: 201630.3214 | E72: 22908.56864
A73: 72 | B73: 34414 | C73: 248912.92 | D73: 320481.6968 | E73: -71568.77684
A74: 73 | B74: 52078 | C74: 328096.52 | D74: 466060.4151 | E74: -137963.8951
A75: 74 | B75: 24507 | C75: 262965.83 | D75: 238832.6727 | E75: 24133.15728
A76: 75 | B76: 28516 | C76: 334304.52 | D76: 271873.0419 | E76: 62431.47807
A77: 76 | B77: 17554 | C77: 216060.84 | D77: 181529.1838 | E77: 34531.6562
A78: 77 | B78: 16662 | C78: 183462.62 | D78: 174177.7223 | E78: 9284.897743
A79: 78 | B79: 57162 | C79: 517013.54 | D79: 507960.4493 | E79: 9053.090683
A80: 79 | B80: 57297 | C80: 731834.3 | D80: 509073.0584 | E80: 222761.2416
A81: 80 | B81: 64112 | C81: 439159.84 | D81: 565239.2136 | E81: -126079.3736
A82: 81 | B82: 37237 | C82: 453649.08 | D82: 343747.5892 | E82: 109901.4908
A83: 82 | B83: 55058 | C83: 495969.8 | D83: 490620.2306 | E83: 5349.569392
A84: 83 | B84: 30791 | C84: 306489.03 | D84: 290622.5655 | E84: 15866.46452
A85: 84 | B85: 19784 | C85: 226868.96 | D85: 199907.8377 | E85: 26961.12234
A86: 85 | B86: 32463 | C86: 316845.86 | D86: 304402.4351 | E86: 12443.4249
A87: 86 | B87: 59364 | C87: 496417.28 | D87: 526108.3398 | E87: -29691.05981
A88: 87 | B88: 64632 | C88: 527881.68 | D88: 569524.819 | E88: -41643.13898
A89: 88 | B89: 58106 | C89: 535766.16 | D89: 515740.4714 | E89: 20025.6886
A90: 89 | B90: 60333 | C90: 469314.35 | D90: 534094.4006 | E90: -64780.05061
A91: 90 | B91: 58353 | C91: 558254.63 | D91: 517776.134 | E91: 40478.49604
A92: 91 | B92: 22672 | C92: 197141.28 | D92: 223709.4306 | E92: -26568.15064
A93: 92 | B93: 64325 | C93: 563313.5 | D93: 566994.6635 | E93: -3681.163489
A94: 93 | B94: 32326 | C94: 365825.02 | D94: 303273.3429 | E94: 62551.67708
A95: 94 | B95: 16138 | C95: 206538.6 | D95: 169859.1507 | E95: 36679.44932
A96: 95 | B96: 34957 | C96: 320916.75 | D96: 324956.8579 | E96: -4040.107852
A97: 96 | B97: 26159 | C97: 294325.06 | D97: 252447.7114 | E97: 41877.34863
A98: 97 | B98: 42098 | C98: 329951.7 | D98: 383809.7579 | E98: -53858.05795
A99: 98 | B99: 20582 | C99: 161277.7 | D99: 206484.5936 | E99: -45206.89362
A100: 99 | B100: 45614 | C100: 428140.06 | D100: 412787.0436 | E100: 15353.01641
A101: 100 | B101: 42729 | C101: 433279.13 | D101: 389010.1753 | E101: 44268.95475
A102: 101 | B102: 40053 | C102: 346792.73 | D102: 366955.7906 | E102: -20163.06062
A103: 102 | B103: 51749 | C103: 540063.03 | D103: 463348.9456 | E103: 76714.08443
A104: 103 | B104: 59753 | C104: 588972.06 | D104: 529314.3023 | E104: 59657.7577
A105: 104 | B105: 34045 | C105: 290698.15 | D105: 317440.5653 | E105: -26742.41533
A106: 105 | B106: 56384 | C106: 544487.68 | D106: 501548.5243 | E106: 42939.15566
A107: 106 | B107: 33242 | C107: 206569.82 | D107: 310822.6016 | E107: -104252.7816
A108: 107 | B108: 49060 | C108: 550902.6 | D108: 441187.4208 | E108: 109715.1792
A109: 108 | B109: 38219 | C109: 321737.09 | D109: 351840.7901 | E109: -30103.70009
A110: 109 | B110: 56891 | C110: 568845.92 | D110: 505726.9896 | E110: 63118.93041
A111: 110 | B111: 52906 | C111: 426690.72 | D111: 472884.4176 | E111: -46193.69756
A112: 111 | B112: 44835 | C112: 430649.15 | D112: 406366.8771 | E112: 24282.27294
A113: 112 | B113: 45028 | C113: 400768.12 | D113: 407957.496 | E113: -7189.37598
A114: 113 | B114: 15988 | C114: 175665.68 | D114: 168622.9184 | E114: 7042.761645
A115: 114 | B115: 64717 | C115: 558028.45 | D115: 570225.3506 | E115: -12196.90062
A116: 115 | B116: 15196 | C116: 163514.12 | D116: 162095.6117 | E116: 1418.508307
A117: 116 | B117: 45093 | C117: 398568.89 | D117: 408493.1967 | E117: -9924.306654
A118: 117 | B118: 51099 | C118: 483830.51 | D118: 457991.9388 | E118: 25838.57116
A119: 118 | B119: 40839 | C119: 292958.72 | D119: 373433.648 | E119: -80474.92799
A120: 119 | B120: 29773 | C120: 275083.88 | D120: 282232.6688 | E120: -7148.788788
A121: 120 | B121: 60954 | C121: 599805.08 | D121: 539212.4024 | E121: 60592.67757
A122: 121 | B122: 53820 | C122: 524692.4 | D122: 480417.1932 | E122: 44275.20683
A123: 122 | B123: 19365 | C123: 196012.1 | D123: 196454.6287 | E123: -442.5287078
A124: 123 | B124: 39109 | C124: 360134.37 | D124: 359175.7685 | E124: 958.6014632
A125: 124 | B125: 40439 | C125: 312044.72 | D125: 370137.0285 | E125: -58092.30846
A126: 125 | B126: 35117 | C126: 268076.57 | D126: 326275.5057 | E126: -58198.93566
A127: 126 | B127: 50624 | C127: 394243.2 | D127: 454077.2032 | E127: -59834.00316
A128: 127 | B128: 55174 | C128: 474839.8 | D128: 491576.2503 | E128: -16736.45027
A129: 128 | B129: 52278 | C129: 474497.36 | D129: 467708.7249 | E129: 6788.635101
A130: 129 | B130: 30557 | C130: 301178.54 | D130: 288694.0431 | E130: 12484.49694
A131: 130 | B131: 62145 | C131: 642241.85 | D131: =FORECAST(B131,$C$2:$C$191,$B$2:$B$191) -> 549028.0871 | E131: =C131-D131 -> 93213.76293
A132: 131 | B132: 58106 | C132: 475335.92 | D132: 515740.4714 | E132: -40404.5514
A133: 132 | B133: 55233 | C133: 543230.69 | D133: 492062.5017 | E133: 51168.18835
A134: 133 | B134: 51653 | C134: 343389.04 | D134: 462557.7569 | E134: -119168.7169
A135: 134 | B135: 16221 | C135: 195989 | D135: 170543.1992 | E135: 25445.80077
A136: 135 | B136: 28538 | C136: 295141.42 | D136: 272054.356 | E136: 23087.064
A137: 136 | B137: 33546 | C137: 355268.6 | D137: 313328.0325 | E137: 41940.56753
A138: 137 | B138: 50539 | C138: 505356.39 | D138: 453376.6715 | E138: 51979.71849
A139: 138 | B139: 14677 | C139: 180772.07 | D139: 157818.2479 | E139: 22953.82214
A140: 139 | B140: 15835 | C140: 146751.85 | D140: 167361.9614 | E140: -20610.11139
A141: 140 | B141: 24504 | C141: 198984.32 | D141: 238807.9481 | E141: -39823.62807
A142: 141 | B142: 21816 | C142: 210783.92 | D142: 216654.6649 | E142: -5870.744857
A143: 142 | B143: 28370 | C143: 246604.1 | D143: 270669.7758 | E143: -24065.6758
A144: 143 | B144: 46733 | C144: 430873.95 | D144: 422009.3367 | E144: 8864.613288
A145: 144 | B145: 46568 | C145: 393671.84 | D145: 420649.4812 | E145: -26977.64116
A146: 145 | B146: 42540 | C146: 363945.2 | D146: 387452.5225 | E146: -23507.32253
A147: 146 | B147: 39348 | C147: 275857.52 | D147: 361145.4987 | E147: -85287.9787
A148: 147 | B148: 34125 | C148: 350641.25 | D148: 318099.8892 | E148: 32541.36076
A149: 148 | B149: 61572 | C149: 580750.64 | D149: 544305.6796 | E149: 36444.9604
A150: 149 | B150: 54730 | C150: 410123.4 | D150: 487917.0026 | E150: -77793.6026
A151: 150 | B151: 38799 | C151: 332068.73 | D151: 356620.8884 | E151: -24552.1584
A152: 151 | B152: 22293 | C152: 208949.09 | D152: 220585.8836 | E152: -11636.79364
A153: 152 | B153: 37202 | C153: 346499.94 | D153: 343459.1349 | E153: 3040.805056
A154: 153 | B154: 53171 | C154: 474836.29 | D154: 475068.428 | E154: -232.1379916
A155: 154 | B155: 33287 | C155: 255380.79 | D155: 311193.4713 | E155: -55812.68133
A156: 155 | B156: 35445 | C156: 237858.5 | D156: 328978.7337 | E156: -91120.23367
A157: 156 | B157: 21723 | C157: 224001.23 | D157: 215888.2008 | E157: 8113.029183
A158: 157 | B158: 40939 | C158: 439329.89 | D158: 374257.8029 | E158: 65072.08713
A159: 158 | B159: 45048 | C159: 362182.64 | D159: 408122.327 | E159: -45939.68696
A160: 159 | B160: 30296 | C160: 299639.04 | D160: 286542.9988 | E160: 13096.04118
A161: 160 | B161: 53521 | C161: 457210.54 | D161: 477952.9701 | E161: -20742.43008
A162: 161 | B162: 24680 | C162: 209679.6 | D162: 240258.4607 | E162: -30578.86067
A163: 162 | B163: 46956 | C163: 426587.12 | D163: 423847.2021 | E163: 2739.917902
A164: 163 | B164: 16392 | C164: 200150.72 | D164: 171952.5041 | E164: 28198.21592
A165: 164 | B165: 53761 | C165: 534924.22 | D165: 479930.9418 | E165: 54993.27821
A166: 165 | B166: 56104 | C166: 460681.28 | D166: 499240.8907 | E166: -38559.61067
A167: 166 | B167: 15241 | C167: 151200.24 | D167: 162466.4814 | E167: -11266.24139
A168: 167 | B168: 19284 | C168: 212426.64 | D168: 195787.0633 | E168: 16639.57675
A169: 168 | B169: 14673 | C169: 181763.54 | D169: 157785.2817 | E169: 23978.25834
A170: 169 | B170: 57793 | C170: 497895.75 | D170: 513160.8666 | E170: -15265.11662
A171: 170 | B171: 28259 | C171: 242161.2 | D171: 269754.9639 | E171: -27593.76388
A172: 171 | B172: 30304 | C172: 206671.68 | D172: 286608.9312 | E172: -79937.25121
A173: 172 | B173: 62568 | C173: 496735.52 | D173: 552514.2622 | E173: -55778.74222
A174: 173 | B174: 56139 | C174: 513074.17 | D174: 499529.3449 | E174: 13544.82512
A175: 174 | B175: 23120 | C175: 214614.4 | D175: 227401.6445 | E175: -12787.24451
A176: 175 | B176: 17006 | C176: 110924.66 | D176: 177012.8151 | E176: -66088.15505
A177: 176 | B177: 31596 | C177: 329940.56 | D177: 297257.0123 | E177: 32683.54772
A178: 177 | B178: 40607 | C178: 363486.04 | D178: 371521.6087 | E178: -8035.568664
A179: 178 | B179: 61771 | C179: 569494.11 | D179: 545945.7478 | E179: 23548.36219
A180: 179 | B180: 30412 | C180: 279610.6 | D180: 287499.0185 | E180: -7888.418481
A181: 180 | B181: 36947 | C181: 361463.21 | D181: 341357.54 | E181: 20105.67
A182: 181 | B182: 43194 | C182: 395552 | D182: 392842.4955 | E182: 2709.504549
A183: 182 | B183: 56866 | C183: 492417.48 | D183: 505520.9509 | E183: -13103.47087
A184: 183 | B184: 39851 | C184: 367213.96 | D184: 365290.9978 | E184: 1922.962242
A185: 184 | B185: 36617 | C185: 312177.72 | D185: 338637.8289 | E185: -26460.10889
A186: 185 | B186: 46438 | C186: 331878.66 | D186: 419578.0798 | E186: -87699.41981
A187: 186 | B187: 27520 | C187: 266032 | D187: 263664.4593 | E187: 2367.540695
A188: 187 | B188: 28852 | C188: 311399.12 | D188: 274642.2023 | E188: 36756.91767
A189: 188 | B189: 60878 | C189: 505367.44 | D189: 538586.0447 | E189: -33218.60472
A190: 189 | B190: 32779 | C190: 211928.26 | D190: 307006.7645 | E190: -95078.50453
A191: 190 | B191: 49959 | C191: 401211.77 | D191: 448596.5732 | E191: -47384.80319
B192: Total | C192: =SUM(C2:C191) -> 70311200.62 | D192: =SUM(D2:D191) -> 70311200.62 | E192: =SUM(E2:E191) -> -3.352761269e-08
C194: Note 1: ΣYi = Σŷi | E194: Note 2: Σei = 0
A213: =A1 -> ith Sample Point | B213: =B1 -> Weekly $ Ad Expense (x) | C213: =C1 -> Weekly $ Sales (y) | D213: =D1 -> Predicted = ŷi = b1*Xi+b0 | E213: =E1 -> ith Residual = ei =Yi - ŷi | F213: Positive Residuals | G213: Negative Residuals
A214: =A2 -> 1 | B214: 63566 | C214: 651334.36 | D214: =FORECAST(B214,$C$2:$C$191,$B$2:$B$191) -> 560739.3279 | E214: =C214-D214 -> 90595.03206 | F214: =IF(E214>=0,-E214,"") -> -90595.03206 | G214: =IF(ISNUMBER(F214),"",E214) -> 
A215: 2 | B215: 50762 | C215: 527670.42 | D215: =FORECAST(B215,$C$2:$C$191,$B$2:$B$191) -> 455214.5369 | E215: =C215-D215 -> 72455.88311 | F215: -72455.88311
A216: 3 | B216: 50941 | C216: 523751.3 | D216: 456689.7741 | E216: 67061.52587 | F216: -67061.52587
A217: 4 | B217: 17597 | C217: 175466.61 | D217: 181883.5704 | E217: -6416.960401 | G217: -6416.960401
A218: 5 | B218: 33029 | C218: 377977.97 | D218: 309067.1517 | E218: 68910.81827 | F218: -68910.81827
A219: 6 | B219: 58543 | C219: 520100.29 | D219: 519342.0282 | E219: 758.2617673 | F219: -758.2617673
... 9 more rows

Sheet AllOnLine
A1: ith Sample Point | B1: Weekly $ Ad Expense (x) | C1: Weekly $ Sales (y) | D1: All | J1: If All Sample Points Were On Simple Linear Regression Line, There Would Be No Error
A2: 1 | B2: 63566 | C2: 651334.36 | D2: =FORECAST(B2,$C$2:$C$11,$B$2:$B$11) -> 623683.4115 | J2: If All Sample Points Were On Simple Linear Regression Line, There would be a Perfect Fit of the Line to the Data Points!
A3: 2 | B3: 50762 | C3: 527670.42 | D3: =FORECAST(B3,$C$2:$C$11,$B$2:$B$11) -> 491620.5848
A4: 3 | B4: 50941 | C4: 523751.3 | D4: 493466.8239
A5: 4 | B5: 17597 | C5: 175466.61 | D5: 149550.6341
A6: 5 | B6: 33029 | C6: 377977.97 | D6: 308719.1394
A7: 6 | B7: 58543 | C7: 520100.29 | D7: 571875.2595
A8: 7 | B8: 60492 | C8: 620856.28 | D8: 591977.6064
A9: 8 | B9: 59686 | C9: 593739.46 | D9: 583664.3731
A10: 189 | B10: 32779 | C10: 211928.26 | D10: 306140.5931
A11: 190 | B11: 49959 | C11: 401211.77 | D11: 483338.2941

Sheet Errors
A1: ith Sample Point | B1: Weekly $ Ad Expense (x) | C1: Weekly $ Sales (y) | D1: Predicted = ŷi = b1*Xi+b0 | E1: ith Residual = ei =Yi - ŷi
A2: 1 | B2: 63566 | C2: 651334.36 | D2: =FORECAST(B2,$C$2:$C$191,$B$2:$B$191) -> 560739.3279 | E2: =C2-D2 -> 90595.03206
A3: 2 | B3: 50762 | C3: 527670.42 | D3: =FORECAST(B3,$C$2:$C$191,$B$2:$B$191) -> 455214.5369 | E3: =C3-D3 -> 72455.88311
A4: 3 | B4: 50941 | C4: 523751.3 | D4: 456689.7741 | E4: 67061.52587
A5: 4 | B5: 17597 | C5: 175466.61 | D5: 181883.5704 | E5: -6416.960401
A6: 5 | B6: 33029 | C6: 377977.97 | D6: 309067.1517 | E6: 68910.81827
A7: 6 | B7: 58543 | C7: 520100.29 | D7: 519342.0282 | E7: 758.2617673
A8: 7 | B8: 60492 | C8: 620856.28 | D8: 535404.8069 | E8: 85451.47312
A9: 8 | B9: 59686 | C9: 593739.46 | D9: 528762.1185 | E9: 64977.34147
A10: 9 | B10: 16432 | C10: 181948.96 | D10: 172282.166 | E10: 9666.79397
A11: 10 | B11: 17262 | C11: 184643.6 | D11: 179122.6515 | E11: 5520.948453
A12: 11 | B12: 39118 | C12: 379373.56 | D12: 359249.9425 | E12: 20123.61752
A13: 12 | B13: 36078 | C13: 238687.94 | D13: 334195.6341 | E13: -95507.69407
A14: 13 | B14: 42113 | C14: 410066.15 | D14: 383933.3812 | E14: 26132.76882
A15: 14 | B15: 50562 | C15: 413540.78 | D15: 453566.2271 | E15: -40025.44713
A16: 15 | B16: 38240 | C16: 340241.6 | D16: 352013.8626 | E16: -11772.26262
A17: 16 | B17: 59870 | C17: 582843 | D17: 530278.5635 | E17: 52564.43649
A18: 17 | B18: 46056 | C18: 433185.92 | D18: 416429.8082 | E18: 16756.11184
A19: 18 | B19: 33349 | C19: 270770.38 | D19: 311704.4474 | E19: -40934.06735
A20: 19 | B20: 16207 | C20: 164421.42 | D20: 170427.8175 | E20: -6006.397546
A21: 20 | B21: 57077 | C21: 478077.5 | D21: 507259.9177 | E21: -29182.41767
A22: 21 | B22: 30893 | C22: 393839.09 | D22: 291463.2035 | E22: 102375.8865
A23: 22 | B23: 54153 | C23: 430154.06 | D23: 483161.6289 | E23: -53007.56893
A24: 23 | B24: 14591 | C24: 210792.82 | D24: 157109.4747 | E24: 53683.34534
A25: 24 | B25: 50138 | C25: 343808.68 | D25: 450071.8104 | E25: -106263.1304
A26: 25 | B26: 55253 | C26: 565510.49 | D26: 492227.3326 | E26: 73283.15737
A27: 26 | B27: 34944 | C27: 330250.88 | D27: 324849.7177 | E27: 5401.162283
A28: 27 | B28: 26413 | C28: 295905.03 | D28: 254541.0648 | E28: 41363.96523
A29: 28 | B29: 54660 | C29: 562164.2 | D29: 487340.0942 | E29: 74824.10582
A30: 29 | B30: 35887 | C30: 257067.99 | D30: 332621.4983 | E30: -75553.50825
A31: 30 | B31: 42021 | C31: 384066.95 | D31: 383175.1587 | E31: 891.7913101
A32: 31 | B32: 47349 | C32: 441576.23 | D32: 427086.1308 | E32: 14490.09922
A33: 32 | B33: 24364 | C33: 252221.2 | D33: 237654.1312 | E33: 14567.06876
A34: 33 | B34: 58406 | C34: 552875.66 | D34: 518212.936 | E34: 34662.72396
A35: 34 | B35: 51643 | C35: 446101.81 | D35: 462475.3414 | E35: -16373.5314
A36: 35 | B36: 55115 | C36: 476038.95 | D36: 491089.9989 | E36: -15051.04889
A37: 36 | B37: 35416 | C37: 393889.36 | D37: 328739.7288 | E37: 65149.63124
A38: 37 | B38: 37274 | C38: 328436.78 | D38: 344052.5265 | E38: -15615.74646
A39: 38 | B39: 36148 | C39: 408949.64 | D39: 334772.5425 | E39: 74177.09751
A40: 39 | B40: 32192 | C40: 394776.32 | D40: 302168.9754 | E40: 92607.34463
A41: 40 | B41: 51238 | C41: 455804.96 | D41: 459137.5141 | E41: -3332.55413
A42: 41 | B42: 59235 | C42: 526249.4 | D42: 525045.18 | E42: 1204.219986
A43: 42 | B43: 59329 | C43: 562602.56 | D43: 525819.8856 | E43: 36782.6744
A44: 43 | B44: 22739 | C44: 180749.25 | D44: 224261.6144 | E44: -43512.36441
A45: 44 | B45: 28654 | C45: 275506.98 | D45: 273010.3757 | E45: 2496.604338
A46: 45 | B46: 36786 | C46: 372981.08 | D46: 340030.6506 | E46: 32950.42936
A47: 46 | B47: 20813 | C47: 216087.74 | D47: 208388.3914 | E47: 7699.348606
A48: 47 | B48: 57259 | C48: 470281.06 | D48: 508759.8796 | E48: -38478.81955
A49: 48 | B49: 57707 | C49: 481071.29 | D49: 512452.0934 | E49: -31380.80342
A50: 49 | B50: 61539 | C50: 612466.46 | D50: 544033.7085 | E50: 68432.75151
A51: 50 | B51: 36635 | C51: 370922.6 | D51: 338786.1768 | E51: 32136.42323
A52: 51 | B52: 39086 | C52: 448677.2 | D52: 358986.2129 | E52: 89690.98709
A53: 52 | B53: 33062 | C53: 259282.46 | D53: 309339.1228 | E53: -50056.66284
A54: 53 | B54: 42144 | C54: 354279.68 | D54: 384188.8692 | E54: -29909.18919
A55: 54 | B55: 18828 | C55: 185749.88 | D55: 192028.917 | E55: -6279.036993
A56: 55 | B56: 57070 | C56: 415818.7 | D56: 507202.2268 | E56: -91383.52683
A57: 56 | B57: 27991 | C57: 252095.02 | D57: 267546.2288 | E57: -15451.2088
A58: 57 | B58: 37876 | C58: 329524.88 | D58: 349013.9388 | E58: -19489.05885
A59: 58 | B59: 16134 | C59: 233120.9 | D59: 169826.1845 | E59: 63294.71552
A60: 59 | B60: 55466 | C60: 376140.08 | D60: 493982.7825 | E60: -117842.7025
A61: 60 | B61: 26100 | C61: 208166 | D61: 251961.46 | E61: -43795.45999
A62: 61 | B62: 23787 | C62: 226261.67 | D62: 232898.7576 | E62: -6637.087573
A63: 62 | B63: 30895 | C63: 249581.7 | D63: 291479.6866 | E63: -41897.98656
A64: 63 | B64: 31845 | C64: 278010.2 | D64: 299309.1579 | E64: -21298.95794
A65: 64 | B65: 50618 | C65: 537451.34 | D65: 454027.7539 | E65: 83423.58614
A66: 65 | B66: 62293 | C66: 448052.27 | D66: 550247.8363 | E66: -102195.5663
A67: 66 | B67: 61228 | C67: 519618.76 | D67: =FORECAST(B67,$C$2:$C$191,$B$2:$B$191) -> 541470.5868 | E67: =C67-D67 -> -21851.8268
A68: 67 | B68: 32558 | C68: 364510.28 | D68: 305185.3822 | E68: 59324.89776
A69: 68 | B69: 40694 | C69: 351135.6 | D69: 372238.6234 | E69: -21103.02341
A70: 69 | B70: 46333 | C70: 390547.55 | D70: 418712.7172 | E70: -28165.16719
A71: 70 | B71: 28415 | C71: 234129.2 | D71: 271040.6455 | E71: -36911.4455
A72: 71 | B72: 19993 | C72: 224538.89 | D72: 201630.3214 | E72: 22908.56864
A73: 72 | B73: 34414 | C73: 248912.92 | D73: 320481.6968 | E73: -71568.77684
A74: 73 | B74: 52078 | C74: 328096.52 | D74: 466060.4151 | E74: -137963.8951
A75: 74 | B75: 24507 | C75: 262965.83 | D75: 238832.6727 | E75: 24133.15728
A76: 75 | B76: 28516 | C76: 334304.52 | D76: 271873.0419 | E76: 62431.47807
A77: 76 | B77: 17554 | C77: 216060.84 | D77: 181529.1838 | E77: 34531.6562
A78: 77 | B78: 16662 | C78: 183462.62 | D78: 174177.7223 | E78: 9284.897743
A79: 78 | B79: 57162 | C79: 517013.54 | D79: 507960.4493 | E79: 9053.090683
A80: 79 | B80: 57297 | C80: 731834.3 | D80: 509073.0584 | E80: 222761.2416
A81: 80 | B81: 64112 | C81: 439159.84 | D81: 565239.2136 | E81: -126079.3736
A82: 81 | B82: 37237 | C82: 453649.08 | D82: 343747.5892 | E82: 109901.4908
A83: 82 | B83: 55058 | C83: 495969.8 | D83: 490620.2306 | E83: 5349.569392
A84: 83 | B84: 30791 | C84: 306489.03 | D84: 290622.5655 | E84: 15866.46452
A85: 84 | B85: 19784 | C85: 226868.96 | D85: 199907.8377 | E85: 26961.12234
A86: 85 | B86: 32463 | C86: 316845.86 | D86: 304402.4351 | E86: 12443.4249
A87: 86 | B87: 59364 | C87: 496417.28 | D87: 526108.3398 | E87: -29691.05981
A88: 87 | B88: 64632 | C88: 527881.68 | D88: 569524.819 | E88: -41643.13898
A89: 88 | B89: 58106 | C89: 535766.16 | D89: 515740.4714 | E89: 20025.6886
A90: 89 | B90: 60333 | C90: 469314.35 | D90: 534094.4006 | E90: -64780.05061
A91: 90 | B91: 58353 | C91: 558254.63 | D91: 517776.134 | E91: 40478.49604
A92: 91 | B92: 22672 | C92: 197141.28 | D92: 223709.4306 | E92: -26568.15064
A93: 92 | B93: 64325 | C93: 563313.5 | D93: 566994.6635 | E93: -3681.163489
A94: 93 | B94: 32326 | C94: 365825.02 | D94: 303273.3429 | E94: 62551.67708
A95: 94 | B95: 16138 | C95: 206538.6 | D95: 169859.1507 | E95: 36679.44932
A96: 95 | B96: 34957 | C96: 320916.75 | D96: 324956.8579 | E96: -4040.107852
A97: 96 | B97: 26159 | C97: 294325.06 | D97: 252447.7114 | E97: 41877.34863
A98: 97 | B98: 42098 | C98: 329951.7 | D98: 383809.7579 | E98: -53858.05795
A99: 98 | B99: 20582 | C99: 161277.7 | D99: 206484.5936 | E99: -45206.89362
A100: 99 | B100: 45614 | C100: 428140.06 | D100: 412787.0436 | E100: 15353.01641
A101: 100 | B101: 42729 | C101: 433279.13 | D101: 389010.1753 | E101: 44268.95475
A102: 101 | B102: 40053 | C102: 346792.73 | D102: 366955.7906 | E102: -20163.06062
A103: 102 | B103: 51749 | C103: 540063.03 | D103: 463348.9456 | E103: 76714.08443
A104: 103 | B104: 59753 | C104: 588972.06 | D104: 529314.3023 | E104: 59657.7577
A105: 104 | B105: 34045 | C105: 290698.15 | D105: 317440.5653 | E105: -26742.41533
A106: 105 | B106: 56384 | C106: 544487.68 | D106: 501548.5243 | E106: 42939.15566
A107: 106 | B107: 33242 | C107: 206569.82 | D107: 310822.6016 | E107: -104252.7816
A108: 107 | B108: 49060 | C108: 550902.6 | D108: 441187.4208 | E108: 109715.1792
A109: 108 | B109: 38219 | C109: 321737.09 | D109: 351840.7901 | E109: -30103.70009
A110: 109 | B110: 56891 | C110: 568845.92 | D110: 505726.9896 | E110: 63118.93041
A111: 110 | B111: 52906 | C111: 426690.72 | D111: 472884.4176 | E111: -46193.69756
A112: 111 | B112: 44835 | C112: 430649.15 | D112: 406366.8771 | E112: 24282.27294
A113: 112 | B113: 45028 | C113: 400768.12 | D113: 407957.496 | E113: -7189.37598
A114: 113 | B114: 15988 | C114: 175665.68 | D114: 168622.9184 | E114: 7042.761645
A115: 114 | B115: 64717 | C115: 558028.45 | D115: 570225.3506 | E115: -12196.90062
A116: 115 | B116: 15196 | C116: 163514.12 | D116: 162095.6117 | E116: 1418.508307
A117: 116 | B117: 45093 | C117: 398568.89 | D117: 408493.1967 | E117: -9924.306654
A118: 117 | B118: 51099 | C118: 483830.51 | D118: 457991.9388 | E118: 25838.57116
A119: 118 | B119: 40839 | C119: 292958.72 | D119: 373433.648 | E119: -80474.92799
A120: 119 | B120: 29773 | C120: 275083.88 | D120: 282232.6688 | E120: -7148.788788
A121: 120 | B121: 60954 | C121: 599805.08 | D121: 539212.4024 | E121: 60592.67757
A122: 121 | B122: 53820 | C122: 524692.4 | D122: 480417.1932 | E122: 44275.20683
A123: 122 | B123: 19365 | C123: 196012.1 | D123: 196454.6287 | E123: -442.5287078
A124: 123 | B124: 39109 | C124: 360134.37 | D124: 359175.7685 | E124: 958.6014632
A125: 124 | B125: 40439 | C125: 312044.72 | D125: 370137.0285 | E125: -58092.30846
A126: 125 | B126: 35117 | C126: 268076.57 | D126: 326275.5057 | E126: -58198.93566
A127: 126 | B127: 50624 | C127: 394243.2 | D127: 454077.2032 | E127: -59834.00316
A128: 127 | B128: 55174 | C128: 474839.8 | D128: 491576.2503 | E128: -16736.45027
A129: 128 | B129: 52278 | C129: 474497.36 | D129: 467708.7249 | E129: 6788.635101
A130: 129 | B130: 30557 | C130: 301178.54 | D130: 288694.0431 | E130: 12484.49694
A131: 130 | B131: 62145 | C131: 642241.85 | D131: =FORECAST(B131,$C$2:$C$191,$B$2:$B$191) -> 549028.0871 | E131: =C131-D131 -> 93213.76293
A132: 131 | B132: 58106 | C132: 475335.92 | D132: 515740.4714 | E132: -40404.5514
A133: 132 | B133: 55233 | C133: 543230.69 | D133: 492062.5017 | E133: 51168.18835
A134: 133 | B134: 51653 | C134: 343389.04 | D134: 462557.7569 | E134: -119168.7169
A135: 134 | B135: 16221 | C135: 195989 | D135: 170543.1992 | E135: 25445.80077
A136: 135 | B136: 28538 | C136: 295141.42 | D136: 272054.356 | E136: 23087.064
A137: 136 | B137: 33546 | C137: 355268.6 | D137: 313328.0325 | E137: 41940.56753
A138: 137 | B138: 50539 | C138: 505356.39 | D138: 453376.6715 | E138: 51979.71849
A139: 138 | B139: 14677 | C139: 180772.07 | D139: 157818.2479 | E139: 22953.82214
A140: 139 | B140: 15835 | C140: 146751.85 | D140: 167361.9614 | E140: -20610.11139
A141: 140 | B141: 24504 | C141: 198984.32 | D141: 238807.9481 | E141: -39823.62807
A142: 141 | B142: 21816 | C142: 210783.92 | D142: 216654.6649 | E142: -5870.744857
A143: 142 | B143: 28370 | C143: 246604.1 | D143: 270669.7758 | E143: -24065.6758
A144: 143 | B144: 46733 | C144: 430873.95 | D144: 422009.3367 | E144: 8864.613288
A145: 144 | B145: 46568 | C145: 393671.84 | D145: 420649.4812 | E145: -26977.64116
A146: 145 | B146: 42540 | C146: 363945.2 | D146: 387452.5225 | E146: -23507.32253
A147: 146 | B147: 39348 | C147: 275857.52 | D147: 361145.4987 | E147: -85287.9787
A148: 147 | B148: 34125 | C148: 350641.25 | D148: 318099.8892 | E148: 32541.36076
A149: 148 | B149: 61572 | C149: 580750.64 | D149: 544305.6796 | E149: 36444.9604
A150: 149 | B150: 54730 | C150: 410123.4 | D150: 487917.0026 | E150: -77793.6026
A151: 150 | B151: 38799 | C151: 332068.73 | D151: 356620.8884 | E151: -24552.1584
A152: 151 | B152: 22293 | C152: 208949.09 | D152: 220585.8836 | E152: -11636.79364
A153: 152 | B153: 37202 | C153: 346499.94 | D153: 343459.1349 | E153: 3040.805056
A154: 153 | B154: 53171 | C154: 474836.29 | D154: 475068.428 | E154: -232.1379916
A155: 154 | B155: 33287 | C155: 255380.79 | D155: 311193.4713 | E155: -55812.68133
A156: 155 | B156: 35445 | C156: 237858.5 | D156: 328978.7337 | E156: -91120.23367
A157: 156 | B157: 21723 | C157: 224001.23 | D157: 215888.2008 | E157: 8113.029183
A158: 157 | B158: 40939 | C158: 439329.89 | D158: 374257.8029 | E158: 65072.08713
A159: 158 | B159: 45048 | C159: 362182.64 | D159: 408122.327 | E159: -45939.68696
A160: 159 | B160: 30296 | C160: 299639.04 | D160: 286542.9988 | E160: 13096.04118
A161: 160 | B161: 53521 | C161: 457210.54 | D161: 477952.9701 | E161: -20742.43008
A162: 161 | B162: 24680 | C162: 209679.6 | D162: 240258.4607 | E162: -30578.86067
A163: 162 | B163: 46956 | C163: 426587.12 | D163: 423847.2021 | E163: 2739.917902
A164: 163 | B164: 16392 | C164: 200150.72 | D164: 171952.5041 | E164: 28198.21592
A165: 164 | B165: 53761 | C165: 534924.22 | D165: 479930.9418 | E165: 54993.27821
A166: 165 | B166: 56104 | C166: 460681.28 | D166: 499240.8907 | E166: -38559.61067
A167: 166 | B167: 15241 | C167: 151200.24 | D167: 162466.4814 | E167: -11266.24139
A168: 167 | B168: 19284 | C168: 212426.64 | D168: 195787.0633 | E168: 16639.57675
A169: 168 | B169: 14673 | C169: 181763.54 | D169: 157785.2817 | E169: 23978.25834
A170: 169 | B170: 57793 | C170: 497895.75 | D170: 513160.8666 | E170: -15265.11662
A171: 170 | B171: 28259 | C171: 242161.2 | D171: 269754.9639 | E171: -27593.76388
A172: 171 | B172: 30304 | C172: 206671.68 | D172: 286608.9312 | E172: -79937.25121
A173: 172 | B173: 62568 | C173: 496735.52 | D173: 552514.2622 | E173: -55778.74222
A174: 173 | B174: 56139 | C174: 513074.17 | D174: 499529.3449 | E174: 13544.82512
A175: 174 | B175: 23120 | C175: 214614.4 | D175: 227401.6445 | E175: -12787.24451
A176: 175 | B176: 17006 | C176: 110924.66 | D176: 177012.8151 | E176: -66088.15505
A177: 176 | B177: 31596 | C177: 329940.56 | D177: 297257.0123 | E177: 32683.54772
A178: 177 | B178: 40607 | C178: 363486.04 | D178: 371521.6087 | E178: -8035.568664
A179: 178 | B179: 61771 | C179: 569494.11 | D179: 545945.7478 | E179: 23548.36219
A180: 179 | B180: 30412 | C180: 279610.6 | D180: 287499.0185 | E180: -7888.418481
A181: 180 | B181: 36947 | C181: 361463.21 | D181: 341357.54 | E181: 20105.67
A182: 181 | B182: 43194 | C182: 395552 | D182: 392842.4955 | E182: 2709.504549
A183: 182 | B183: 56866 | C183: 492417.48 | D183: 505520.9509 | E183: -13103.47087
A184: 183 | B184: 39851 | C184: 367213.96 | D184: 365290.9978 | E184: 1922.962242
A185: 184 | B185: 36617 | C185: 312177.72 | D185: 338637.8289 | E185: -26460.10889
A186: 185 | B186: 46438 | C186: 331878.66 | D186: 419578.0798 | E186: -87699.41981
A187: 186 | B187: 27520 | C187: 266032 | D187: 263664.4593 | E187: 2367.540695
A188: 187 | B188: 28852 | C188: 311399.12 | D188: 274642.2023 | E188: 36756.91767
A189: 188 | B189: 60878 | C189: 505367.44 | D189: 538586.0447 | E189: -33218.60472
A190: 189 | B190: 32779 | C190: 211928.26 | D190: 307006.7645 | E190: -95078.50453
A191: 190 | B191: 49959 | C191: 401211.77 | D191: 448596.5732 | E191: -47384.80319
B192: Total | C192: =SUM(C2:C191) -> 70311200.62 | D192: =SUM(D2:D191) -> 70311200.62 | E192: =SUM(E2:E191) -> -3.352761269e-08
C194: Note 1: ΣYi = Σŷi | E194: Note 2: Σei = 0
A213: =A1 -> ith Sample Point | B213: =B1 -> Weekly $ Ad Expense (x) | C213: =C1 -> Weekly $ Sales (y) | D213: =D1 -> Predicted = ŷi = b1*Xi+b0 | E213: =E1 -> ith Residual = ei =Yi - ŷi | F213: Positive Residuals | G213: Negative Residuals
A214: =A2 -> 1 | B214: 63566 | C214: 651334.36 | D214: =FORECAST(B214,$C$2:$C$191,$B$2:$B$191) -> 560739.3279 | E214: =C214-D214 -> 90595.03206 | F214: =IF(E214>=0,-E214,"") -> -90595.03206 | G214: =IF(ISNUMBER(F214),"",E214) -> 
A215: 2 | B215: 50762 | C215: 527670.42 | D215: =FORECAST(B215,$C$2:$C$191,$B$2:$B$191) -> 455214.5369 | E215: =C215-D215 -> 72455.88311 | F215: -72455.88311
A216: 3 | B216: 50941 | C216: 523751.3 | D216: 456689.7741 | E216: 67061.52587 | F216: -67061.52587
A217: 4 | B217: 17597 | C217: 175466.61 | D217: 181883.5704 | E217: -6416.960401 | G217: -6416.960401
A218: 5 | B218: 33029 | C218: 377977.97 | D218: 309067.1517 | E218: 68910.81827 | F218: -68910.81827
A219: 6 | B219: 58543 | C219: 520100.29 | D219: 519342.0282 | E219: 758.2617673 | F219: -758.2617673
... 9 more rows

Sheet Ybar
A1: ith Sample Point | B1: Weekly $ Ad Expense (x) | C1: Weekly $ Sales (y) | D1: Predicted = ŷi = b1*Xi+b0 | E1: ith Residual = ei =Yi - ŷi
A2: 1 | B2: 63566 | C2: 651334.36 | D2: =FORECAST(B2,$C$2:$C$191,$B$2:$B$191) -> 560739.3279 | E2: =C2-D2 -> 90595.03206
A3: 2 | B3: 50762 | C3: 527670.42 | D3: =FORECAST(B3,$C$2:$C$191,$B$2:$B$191) -> 455214.5369 | E3: =C3-D3 -> 72455.88311
A4: 3 | B4: 50941 | C4: 523751.3 | D4: 456689.7741 | E4: 67061.52587
A5: 4 | B5: 17597 | C5: 175466.61 | D5: 181883.5704 | E5: -6416.960401
A6: 5 | B6: 33029 | C6: 377977.97 | D6: 309067.1517 | E6: 68910.81827
A7: 6 | B7: 58543 | C7: 520100.29 | D7: 519342.0282 | E7: 758.2617673
A8: 7 | B8: 60492 | C8: 620856.28 | D8: 535404.8069 | E8: 85451.47312
A9: 8 | B9: 59686 | C9: 593739.46 | D9: 528762.1185 | E9: 64977.34147
A10: 9 | B10: 16432 | C10: 181948.96 | D10: 172282.166 | E10: 9666.79397
A11: 10 | B11: 17262 | C11: 184643.6 | D11: 179122.6515 | E11: 5520.948453
A12: 11 | B12: 39118 | C12: 379373.56 | D12: 359249.9425 | E12: 20123.61752
A13: 12 | B13: 36078 | C13: 238687.94 | D13: 334195.6341 | E13: -95507.69407
A14: 13 | B14: 42113 | C14: 410066.15 | D14: 383933.3812 | E14: 26132.76882
A15: 14 | B15: 50562 | C15: 413540.78 | D15: 453566.2271 | E15: -40025.44713
A16: 15 | B16: 38240 | C16: 340241.6 | D16: 352013.8626 | E16: -11772.26262
A17: 16 | B17: 59870 | C17: 582843 | D17: 530278.5635 | E17: 52564.43649
A18: 17 | B18: 46056 | C18: 433185.92 | D18: 416429.8082 | E18: 16756.11184
A19: 18 | B19: 33349 | C19: 270770.38 | D19: 311704.4474 | E19: -40934.06735
A20: 19 | B20: 16207 | C20: 164421.42 | D20: 170427.8175 | E20: -6006.397546
A21: 20 | B21: 57077 | C21: 478077.5 | D21: 507259.9177 | E21: -29182.41767
A22: 21 | B22: 30893 | C22: 393839.09 | D22: 291463.2035 | E22: 102375.8865
A23: 22 | B23: 54153 | C23: 430154.06 | D23: 483161.6289 | E23: -53007.56893
A24: 23 | B24: 14591 | C24: 210792.82 | D24: 157109.4747 | E24: 53683.34534
A25: 24 | B25: 50138 | C25: 343808.68 | D25: 450071.8104 | E25: -106263.1304
A26: 25 | B26: 55253 | C26: 565510.49 | D26: 492227.3326 | E26: 73283.15737
A27: 26 | B27: 34944 | C27: 330250.88 | D27: 324849.7177 | E27: 5401.162283
A28: 27 | B28: 26413 | C28: 295905.03 | D28: 254541.0648 | E28: 41363.96523
A29: 28 | B29: 54660 | C29: 562164.2 | D29: 487340.0942 | E29: 74824.10582
A30: 29 | B30: 35887 | C30: 257067.99 | D30: 332621.4983 | E30: -75553.50825
A31: 30 | B31: 42021 | C31: 384066.95 | D31: 383175.1587 | E31: 891.7913101
A32: 31 | B32: 47349 | C32: 441576.23 | D32: 427086.1308 | E32: 14490.09922
A33: 32 | B33: 24364 | C33: 252221.2 | D33: 237654.1312 | E33: 14567.06876
A34: 33 | B34: 58406 | C34: 552875.66 | D34: 518212.936 | E34: 34662.72396
A35: 34 | B35: 51643 | C35: 446101.81 | D35: 462475.3414 | E35: -16373.5314
A36: 35 | B36: 55115 | C36: 476038.95 | D36: 491089.9989 | E36: -15051.04889
A37: 36 | B37: 35416 | C37: 393889.36 | D37: 328739.7288 | E37: 65149.63124
A38: 37 | B38: 37274 | C38: 328436.78 | D38: 344052.5265 | E38: -15615.74646
A39: 38 | B39: 36148 | C39: 408949.64 | D39: 334772.5425 | E39: 74177.09751
A40: 39 | B40: 32192 | C40: 394776.32 | D40: 302168.9754 | E40: 92607.34463
A41: 40 | B41: 51238 | C41: 455804.96 | D41: 459137.5141 | E41: -3332.55413
A42: 41 | B42: 59235 | C42: 526249.4 | D42: 525045.18 | E42: 1204.219986
A43: 42 | B43: 59329 | C43: 562602.56 | D43: 525819.8856 | E43: 36782.6744
A44: 43 | B44: 22739 | C44: 180749.25 | D44: 224261.6144 | E44: -43512.36441
A45: 44 | B45: 28654 | C45: 275506.98 | D45: 273010.3757 | E45: 2496.604338
A46: 45 | B46: 36786 | C46: 372981.08 | D46: 340030.6506 | E46: 32950.42936
A47: 46 | B47: 20813 | C47: 216087.74 | D47: 208388.3914 | E47: 7699.348606
A48: 47 | B48: 57259 | C48: 470281.06 | D48: 508759.8796 | E48: -38478.81955
A49: 48 | B49: 57707 | C49: 481071.29 | D49: 512452.0934 | E49: -31380.80342
A50: 49 | B50: 61539 | C50: 612466.46 | D50: 544033.7085 | E50: 68432.75151
A51: 50 | B51: 36635 | C51: 370922.6 | D51: 338786.1768 | E51: 32136.42323
A52: 51 | B52: 39086 | C52: 448677.2 | D52: 358986.2129 | E52: 89690.98709
A53: 52 | B53: 33062 | C53: 259282.46 | D53: 309339.1228 | E53: -50056.66284
A54: 53 | B54: 42144 | C54: 354279.68 | D54: 384188.8692 | E54: -29909.18919
A55: 54 | B55: 18828 | C55: 185749.88 | D55: 192028.917 | E55: -6279.036993
A56: 55 | B56: 57070 | C56: 415818.7 | D56: 507202.2268 | E56: -91383.52683
A57: 56 | B57: 27991 | C57: 252095.02 | D57: 267546.2288 | E57: -15451.2088
A58: 57 | B58: 37876 | C58: 329524.88 | D58: 349013.9388 | E58: -19489.05885
A59: 58 | B59: 16134 | C59: 233120.9 | D59: 169826.1845 | E59: 63294.71552
A60: 59 | B60: 55466 | C60: 376140.08 | D60: 493982.7825 | E60: -117842.7025
A61: 60 | B61: 26100 | C61: 208166 | D61: 251961.46 | E61: -43795.45999
A62: 61 | B62: 23787 | C62: 226261.67 | D62: 232898.7576 | E62: -6637.087573
A63: 62 | B63: 30895 | C63: 249581.7 | D63: 291479.6866 | E63: -41897.98656
A64: 63 | B64: 31845 | C64: 278010.2 | D64: 299309.1579 | E64: -21298.95794
A65: 64 | B65: 50618 | C65: 537451.34 | D65: 454027.7539 | E65: 83423.58614
A66: 65 | B66: 62293 | C66: 448052.27 | D66: 550247.8363 | E66: -102195.5663
A67: 66 | B67: 61228 | C67: 519618.76 | D67: =FORECAST(B67,$C$2:$C$191,$B$2:$B$191) -> 541470.5868 | E67: =C67-D67 -> -21851.8268
A68: 67 | B68: 32558 | C68: 364510.28 | D68: 305185.3822 | E68: 59324.89776
A69: 68 | B69: 40694 | C69: 351135.6 | D69: 372238.6234 | E69: -21103.02341
A70: 69 | B70: 46333 | C70: 390547.55 | D70: 418712.7172 | E70: -28165.16719
A71: 70 | B71: 28415 | C71: 234129.2 | D71: 271040.6455 | E71: -36911.4455
A72: 71 | B72: 19993 | C72: 224538.89 | D72: 201630.3214 | E72: 22908.56864
A73: 72 | B73: 34414 | C73: 248912.92 | D73: 320481.6968 | E73: -71568.77684
A74: 73 | B74: 52078 | C74: 328096.52 | D74: 466060.4151 | E74: -137963.8951
A75: 74 | B75: 24507 | C75: 262965.83 | D75: 238832.6727 | E75: 24133.15728
A76: 75 | B76: 28516 | C76: 334304.52 | D76: 271873.0419 | E76: 62431.47807
A77: 76 | B77: 17554 | C77: 216060.84 | D77: 181529.1838 | E77: 34531.6562
A78: 77 | B78: 16662 | C78: 183462.62 | D78: 174177.7223 | E78: 9284.897743
A79: 78 | B79: 57162 | C79: 517013.54 | D79: 507960.4493 | E79: 9053.090683
A80: 79 | B80: 57297 | C80: 731834.3 | D80: 509073.0584 | E80: 222761.2416
A81: 80 | B81: 64112 | C81: 439159.84 | D81: 565239.2136 | E81: -126079.3736
A82: 81 | B82: 37237 | C82: 453649.08 | D82: 343747.5892 | E82: 109901.4908
A83: 82 | B83: 55058 | C83: 495969.8 | D83: 490620.2306 | E83: 5349.569392
A84: 83 | B84: 30791 | C84: 306489.03 | D84: 290622.5655 | E84: 15866.46452
A85: 84 | B85: 19784 | C85: 226868.96 | D85: 199907.8377 | E85: 26961.12234
A86: 85 | B86: 32463 | C86: 316845.86 | D86: 304402.4351 | E86: 12443.4249
A87: 86 | B87: 59364 | C87: 496417.28 | D87: 526108.3398 | E87: -29691.05981
A88: 87 | B88: 64632 | C88: 527881.68 | D88: 569524.819 | E88: -41643.13898
A89: 88 | B89: 58106 | C89: 535766.16 | D89: 515740.4714 | E89: 20025.6886
A90: 89 | B90: 60333 | C90: 469314.35 | D90: 534094.4006 | E90: -64780.05061
A91: 90 | B91: 58353 | C91: 558254.63 | D91: 517776.134 | E91: 40478.49604
A92: 91 | B92: 22672 | C92: 197141.28 | D92: 223709.4306 | E92: -26568.15064
A93: 92 | B93: 64325 | C93: 563313.5 | D93: 566994.6635 | E93: -3681.163489
A94: 93 | B94: 32326 | C94: 365825.02 | D94: 303273.3429 | E94: 62551.67708
A95: 94 | B95: 16138 | C95: 206538.6 | D95: 169859.1507 | E95: 36679.44932
A96: 95 | B96: 34957 | C96: 320916.75 | D96: 324956.8579 | E96: -4040.107852
A97: 96 | B97: 26159 | C97: 294325.06 | D97: 252447.7114 | E97: 41877.34863
A98: 97 | B98: 42098 | C98: 329951.7 | D98: 383809.7579 | E98: -53858.05795
A99: 98 | B99: 20582 | C99: 161277.7 | D99: 206484.5936 | E99: -45206.89362
A100: 99 | B100: 45614 | C100: 428140.06 | D100: 412787.0436 | E100: 15353.01641
A101: 100 | B101: 42729 | C101: 433279.13 | D101: 389010.1753 | E101: 44268.95475
A102: 101 | B102: 40053 | C102: 346792.73 | D102: 366955.7906 | E102: -20163.06062
A103: 102 | B103: 51749 | C103: 540063.03 | D103: 463348.9456 | E103: 76714.08443
A104: 103 | B104: 59753 | C104: 588972.06 | D104: 529314.3023 | E104: 59657.7577
A105: 104 | B105: 34045 | C105: 290698.15 | D105: 317440.5653 | E105: -26742.41533
A106: 105 | B106: 56384 | C106: 544487.68 | D106: 501548.5243 | E106: 42939.15566
A107: 106 | B107: 33242 | C107: 206569.82 | D107: 310822.6016 | E107: -104252.7816
A108: 107 | B108: 49060 | C108: 550902.6 | D108: 441187.4208 | E108: 109715.1792
A109: 108 | B109: 38219 | C109: 321737.09 | D109: 351840.7901 | E109: -30103.70009
A110: 109 | B110: 56891 | C110: 568845.92 | D110: 505726.9896 | E110: 63118.93041
A111: 110 | B111: 52906 | C111: 426690.72 | D111: 472884.4176 | E111: -46193.69756
A112: 111 | B112: 44835 | C112: 430649.15 | D112: 406366.8771 | E112: 24282.27294
A113: 112 | B113: 45028 | C113: 400768.12 | D113: 407957.496 | E113: -7189.37598
A114: 113 | B114: 15988 | C114: 175665.68 | D114: 168622.9184 | E114: 7042.761645
A115: 114 | B115: 64717 | C115: 558028.45 | D115: 570225.3506 | E115: -12196.90062
A116: 115 | B116: 15196 | C116: 163514.12 | D116: 162095.6117 | E116: 1418.508307
A117: 116 | B117: 45093 | C117: 398568.89 | D117: 408493.1967 | E117: -9924.306654
A118: 117 | B118: 51099 | C118: 483830.51 | D118: 457991.9388 | E118: 25838.57116
A119: 118 | B119: 40839 | C119: 292958.72 | D119: 373433.648 | E119: -80474.92799
A120: 119 | B120: 29773 | C120: 275083.88 | D120: 282232.6688 | E120: -7148.788788
A121: 120 | B121: 60954 | C121: 599805.08 | D121: 539212.4024 | E121: 60592.67757
A122: 121 | B122: 53820 | C122: 524692.4 | D122: 480417.1932 | E122: 44275.20683
A123: 122 | B123: 19365 | C123: 196012.1 | D123: 196454.6287 | E123: -442.5287078
A124: 123 | B124: 39109 | C124: 360134.37 | D124: 359175.7685 | E124: 958.6014632
A125: 124 | B125: 40439 | C125: 312044.72 | D125: 370137.0285 | E125: -58092.30846
A126: 125 | B126: 35117 | C126: 268076.57 | D126: 326275.5057 | E126: -58198.93566
A127: 126 | B127: 50624 | C127: 394243.2 | D127: 454077.2032 | E127: -59834.00316
A128: 127 | B128: 55174 | C128: 474839.8 | D128: 491576.2503 | E128: -16736.45027
A129: 128 | B129: 52278 | C129: 474497.36 | D129: 467708.7249 | E129: 6788.635101
A130: 129 | B130: 30557 | C130: 301178.54 | D130: 288694.0431 | E130: 12484.49694
A131: 130 | B131: 62145 | C131: 642241.85 | D131: =FORECAST(B131,$C$2:$C$191,$B$2:$B$191) -> 549028.0871 | E131: =C131-D131 -> 93213.76293
A132: 131 | B132: 58106 | C132: 475335.92 | D132: 515740.4714 | E132: -40404.5514
A133: 132 | B133: 55233 | C133: 543230.69 | D133: 492062.5017 | E133: 51168.18835
A134: 133 | B134: 51653 | C134: 343389.04 | D134: 462557.7569 | E134: -119168.7169
A135: 134 | B135: 16221 | C135: 195989 | D135: 170543.1992 | E135: 25445.80077
A136: 135 | B136: 28538 | C136: 295141.42 | D136: 272054.356 | E136: 23087.064
A137: 136 | B137: 33546 | C137: 355268.6 | D137: 313328.0325 | E137: 41940.56753
A138: 137 | B138: 50539 | C138: 505356.39 | D138: 453376.6715 | E138: 51979.71849
A139: 138 | B139: 14677 | C139: 180772.07 | D139: 157818.2479 | E139: 22953.82214
A140: 139 | B140: 15835 | C140: 146751.85 | D140: 167361.9614 | E140: -20610.11139
A141: 140 | B141: 24504 | C141: 198984.32 | D141: 238807.9481 | E141: -39823.62807
A142: 141 | B142: 21816 | C142: 210783.92 | D142: 216654.6649 | E142: -5870.744857
A143: 142 | B143: 28370 | C143: 246604.1 | D143: 270669.7758 | E143: -24065.6758
A144: 143 | B144: 46733 | C144: 430873.95 | D144: 422009.3367 | E144: 8864.613288
A145: 144 | B145: 46568 | C145: 393671.84 | D145: 420649.4812 | E145: -26977.64116
A146: 145 | B146: 42540 | C146: 363945.2 | D146: 387452.5225 | E146: -23507.32253
A147: 146 | B147: 39348 | C147: 275857.52 | D147: 361145.4987 | E147: -85287.9787
A148: 147 | B148: 34125 | C148: 350641.25 | D148: 318099.8892 | E148: 32541.36076
A149: 148 | B149: 61572 | C149: 580750.64 | D149: 544305.6796 | E149: 36444.9604
A150: 149 | B150: 54730 | C150: 410123.4 | D150: 487917.0026 | E150: -77793.6026
A151: 150 | B151: 38799 | C151: 332068.73 | D151: 356620.8884 | E151: -24552.1584
A152: 151 | B152: 22293 | C152: 208949.09 | D152: 220585.8836 | E152: -11636.79364
A153: 152 | B153: 37202 | C153: 346499.94 | D153: 343459.1349 | E153: 3040.805056
A154: 153 | B154: 53171 | C154: 474836.29 | D154: 475068.428 | E154: -232.1379916
A155: 154 | B155: 33287 | C155: 255380.79 | D155: 311193.4713 | E155: -55812.68133
A156: 155 | B156: 35445 | C156: 237858.5 | D156: 328978.7337 | E156: -91120.23367
A157: 156 | B157: 21723 | C157: 224001.23 | D157: 215888.2008 | E157: 8113.029183
A158: 157 | B158: 40939 | C158: 439329.89 | D158: 374257.8029 | E158: 65072.08713
A159: 158 | B159: 45048 | C159: 362182.64 | D159: 408122.327 | E159: -45939.68696
A160: 159 | B160: 30296 | C160: 299639.04 | D160: 286542.9988 | E160: 13096.04118
A161: 160 | B161: 53521 | C161: 457210.54 | D161: 477952.9701 | E161: -20742.43008
A162: 161 | B162: 24680 | C162: 209679.6 | D162: 240258.4607 | E162: -30578.86067
A163: 162 | B163: 46956 | C163: 426587.12 | D163: 423847.2021 | E163: 2739.917902
A164: 163 | B164: 16392 | C164: 200150.72 | D164: 171952.5041 | E164: 28198.21592
A165: 164 | B165: 53761 | C165: 534924.22 | D165: 479930.9418 | E165: 54993.27821
A166: 165 | B166: 56104 | C166: 460681.28 | D166: 499240.8907 | E166: -38559.61067
A167: 166 | B167: 15241 | C167: 151200.24 | D167: 162466.4814 | E167: -11266.24139
A168: 167 | B168: 19284 | C168: 212426.64 | D168: 195787.0633 | E168: 16639.57675
A169: 168 | B169: 14673 | C169: 181763.54 | D169: 157785.2817 | E169: 23978.25834
A170: 169 | B170: 57793 | C170: 497895.75 | D170: 513160.8666 | E170: -15265.11662
A171: 170 | B171: 28259 | C171: 242161.2 | D171: 269754.9639 | E171: -27593.76388
A172: 171 | B172: 30304 | C172: 206671.68 | D172: 286608.9312 | E172: -79937.25121
A173: 172 | B173: 62568 | C173: 496735.52 | D173: 552514.2622 | E173: -55778.74222
A174: 173 | B174: 56139 | C174: 513074.17 | D174: 499529.3449 | E174: 13544.82512
A175: 174 | B175: 23120 | C175: 214614.4 | D175: 227401.6445 | E175: -12787.24451
A176: 175 | B176: 17006 | C176: 110924.66 | D176: 177012.8151 | E176: -66088.15505
A177: 176 | B177: 31596 | C177: 329940.56 | D177: 297257.0123 | E177: 32683.54772
A178: 177 | B178: 40607 | C178: 363486.04 | D178: 371521.6087 | E178: -8035.568664
A179: 178 | B179: 61771 | C179: 569494.11 | D179: 545945.7478 | E179: 23548.36219
A180: 179 | B180: 30412 | C180: 279610.6 | D180: 287499.0185 | E180: -7888.418481
A181: 180 | B181: 36947 | C181: 361463.21 | D181: 341357.54 | E181: 20105.67
A182: 181 | B182: 43194 | C182: 395552 | D182: 392842.4955 | E182: 2709.504549
A183: 182 | B183: 56866 | C183: 492417.48 | D183: 505520.9509 | E183: -13103.47087
A184: 183 | B184: 39851 | C184: 367213.96 | D184: 365290.9978 | E184: 1922.962242
A185: 184 | B185: 36617 | C185: 312177.72 | D185: 338637.8289 | E185: -26460.10889
A186: 185 | B186: 46438 | C186: 331878.66 | D186: 419578.0798 | E186: -87699.41981
A187: 186 | B187: 27520 | C187: 266032 | D187: 263664.4593 | E187: 2367.540695
A188: 187 | B188: 28852 | C188: 311399.12 | D188: 274642.2023 | E188: 36756.91767
A189: 188 | B189: 60878 | C189: 505367.44 | D189: 538586.0447 | E189: -33218.60472
A190: 189 | B190: 32779 | C190: 211928.26 | D190: 307006.7645 | E190: -95078.50453
A191: 190 | B191: 49959 | C191: 401211.77 | D191: 448596.5732 | E191: -47384.80319
B192: Total | C192: =SUM(C2:C191) -> 70311200.62 | D192: =SUM(D2:D191) -> 70311200.62 | E192: =SUM(E2:E191) -> -3.352761269e-08
C194: Note 1: ΣYi = Σŷi | E194: Note 2: Σei = 0
A213: =A1 -> ith Sample Point | B213: =B1 -> Weekly $ Ad Expense (x) | C213: =C1 -> Weekly $ Sales (y) | D213: =D1 -> Predicted = ŷi = b1*Xi+b0 | E213: =E1 -> ith Residual = ei =Yi - ŷi | F213: Positive Residuals | G213: Negative Residuals | H213: Ybar Deviations | I213: Ybar Positive Error | J213: Ybar Negative Error
A214: =A2 -> 1 | B214: 63566 | C214: 651334.36 | D214: =FORECAST(B214,$C$2:$C$191,$B$2:$B$191) -> 560739.3279 | E214: =C214-D214 -> 90595.03206 | F214: =IF(E214>=0,-E214,"") -> -90595.03206 | G214: =IF(ISNUMBER(F214),"",E214) ->  | H214: =$C214-AVERAGE($C$2:$C$191) -> 281275.4094 | I214: =IF(H214<0,-H214,"") ->  | J214: =IF(H214>0,H214,"") -> 281275.4094
A215: 2 | B215: 50762 | C215: 527670.42 | D215: =FORECAST(B215,$C$2:$C$191,$B$2:$B$191) -> 455214.5369 | E215: =C215-D215 -> 72455.88311 | F215: -72455.88311 | H215: =$C215-AVERAGE($C$2:$C$191) -> 157611.4694 | I215: =IF(H215<0,-H215,"") ->  | J215: =IF(H215>0,H215,"") -> 157611.4694
A216: 3 | B216: 50941 | C216: 523751.3 | D216: 456689.7741 | E216: 67061.52587 | F216: -67061.52587 | H216: 153692.3494 | J216: 153692.3494
A217: 4 | B217: 17597 | C217: 175466.61 | D217: 181883.5704 | E217: -6416.960401 | G217: -6416.960401 | H217: -194592.3406 | I217: 194592.3406
A218: 5 | B218: 33029 | C218: 377977.97 | D218: 309067.1517 | E218: 68910.81827 | F218: -68910.81827 | H218: 7919.019368 | J218: 7919.019368
A219: 6 | B219: 58543 | C219: 520100.29 | D219: 519342.0282 | E219: 758.2617673 | F219: -758.2617673 | H219: 150041.3394 | J219: 150041.3394
... 9 more rows

Sheet 2 Parts
A1: ith Sample Point | B1: Weekly $ Ad Expense (x) | C1: Weekly $ Sales (y) | D1: Predicted = ŷi = b1*Xi+b0 | E1: ith Residual = ei =Yi - ŷi
A2: 1 | B2: 63566 | C2: 651334.36 | D2: =FORECAST(B2,$C$2:$C$191,$B$2:$B$191) -> 560739.3279 | E2: =C2-D2 -> 90595.03206
A3: 2 | B3: 50762 | C3: 527670.42 | D3: =FORECAST(B3,$C$2:$C$191,$B$2:$B$191) -> 455214.5369 | E3: =C3-D3 -> 72455.88311
A4: 3 | B4: 50941 | C4: 523751.3 | D4: 456689.7741 | E4: 67061.52587
A5: 4 | B5: 17597 | C5: 175466.61 | D5: 181883.5704 | E5: -6416.960401
A6: 5 | B6: 33029 | C6: 377977.97 | D6: 309067.1517 | E6: 68910.81827
A7: 6 | B7: 58543 | C7: 520100.29 | D7: 519342.0282 | E7: 758.2617673 | M7: Total Error = (Yi - Ybar) = Full Distance = "Total"
A8: 7 | B8: 60492 | C8: 620856.28 | D8: 535404.8069 | E8: 85451.47312 | M8: Amount of Total Error (Yi - Ybar) that Equation Explains = "Explained" or "Regression"
A9: 8 | B9: 59686 | C9: 593739.46 | D9: 528762.1185 | E9: 64977.34147 | M9: Amount of Total Error (Yi - Ybar) that Equation Does NOT Explain = "Unexplained" or "Error"
A10: 9 | B10: 16432 | C10: 181948.96 | D10: 172282.166 | E10: 9666.79397
A11: 10 | B11: 17262 | C11: 184643.6 | D11: 179122.6515 | E11: 5520.948453
A12: 11 | B12: 39118 | C12: 379373.56 | D12: 359249.9425 | E12: 20123.61752
A13: 12 | B13: 36078 | C13: 238687.94 | D13: 334195.6341 | E13: -95507.69407
A14: 13 | B14: 42113 | C14: 410066.15 | D14: 383933.3812 | E14: 26132.76882
A15: 14 | B15: 50562 | C15: 413540.78 | D15: 453566.2271 | E15: -40025.44713
A16: 15 | B16: 38240 | C16: 340241.6 | D16: 352013.8626 | E16: -11772.26262
A17: 16 | B17: 59870 | C17: 582843 | D17: 530278.5635 | E17: 52564.43649
A18: 17 | B18: 46056 | C18: 433185.92 | D18: 416429.8082 | E18: 16756.11184
A19: 18 | B19: 33349 | C19: 270770.38 | D19: 311704.4474 | E19: -40934.06735
A20: 19 | B20: 16207 | C20: 164421.42 | D20: 170427.8175 | E20: -6006.397546
A21: 20 | B21: 57077 | C21: 478077.5 | D21: 507259.9177 | E21: -29182.41767
A22: 21 | B22: 30893 | C22: 393839.09 | D22: 291463.2035 | E22: 102375.8865
A23: 22 | B23: 54153 | C23: 430154.06 | D23: 483161.6289 | E23: -53007.56893
A24: 23 | B24: 14591 | C24: 210792.82 | D24: 157109.4747 | E24: 53683.34534
A25: 24 | B25: 50138 | C25: 343808.68 | D25: 450071.8104 | E25: -106263.1304
A26: 25 | B26: 55253 | C26: 565510.49 | D26: 492227.3326 | E26: 73283.15737
A27: 26 | B27: 34944 | C27: 330250.88 | D27: 324849.7177 | E27: 5401.162283
A28: 27 | B28: 26413 | C28: 295905.03 | D28: 254541.0648 | E28: 41363.96523
A29: 28 | B29: 54660 | C29: 562164.2 | D29: 487340.0942 | E29: 74824.10582
A30: 29 | B30: 35887 | C30: 257067.99 | D30: 332621.4983 | E30: -75553.50825
A31: 30 | B31: 42021 | C31: 384066.95 | D31: 383175.1587 | E31: 891.7913101
A32: 31 | B32: 47349 | C32: 441576.23 | D32: 427086.1308 | E32: 14490.09922
A33: 32 | B33: 24364 | C33: 252221.2 | D33: 237654.1312 | E33: 14567.06876
A34: 33 | B34: 58406 | C34: 552875.66 | D34: 518212.936 | E34: 34662.72396
A35: 34 | B35: 51643 | C35: 446101.81 | D35: 462475.3414 | E35: -16373.5314
A36: 35 | B36: 55115 | C36: 476038.95 | D36: 491089.9989 | E36: -15051.04889
A37: 36 | B37: 35416 | C37: 393889.36 | D37: 328739.7288 | E37: 65149.63124
A38: 37 | B38: 37274 | C38: 328436.78 | D38: 344052.5265 | E38: -15615.74646
A39: 38 | B39: 36148 | C39: 408949.64 | D39: 334772.5425 | E39: 74177.09751
A40: 39 | B40: 32192 | C40: 394776.32 | D40: 302168.9754 | E40: 92607.34463
A41: 40 | B41: 51238 | C41: 455804.96 | D41: 459137.5141 | E41: -3332.55413
A42: 41 | B42: 59235 | C42: 526249.4 | D42: 525045.18 | E42: 1204.219986
A43: 42 | B43: 59329 | C43: 562602.56 | D43: 525819.8856 | E43: 36782.6744
A44: 43 | B44: 22739 | C44: 180749.25 | D44: 224261.6144 | E44: -43512.36441
A45: 44 | B45: 28654 | C45: 275506.98 | D45: 273010.3757 | E45: 2496.604338
A46: 45 | B46: 36786 | C46: 372981.08 | D46: 340030.6506 | E46: 32950.42936
A47: 46 | B47: 20813 | C47: 216087.74 | D47: 208388.3914 | E47: 7699.348606
A48: 47 | B48: 57259 | C48: 470281.06 | D48: 508759.8796 | E48: -38478.81955
A49: 48 | B49: 57707 | C49: 481071.29 | D49: 512452.0934 | E49: -31380.80342
A50: 49 | B50: 61539 | C50: 612466.46 | D50: 544033.7085 | E50: 68432.75151
A51: 50 | B51: 36635 | C51: 370922.6 | D51: 338786.1768 | E51: 32136.42323
A52: 51 | B52: 39086 | C52: 448677.2 | D52: 358986.2129 | E52: 89690.98709
A53: 52 | B53: 33062 | C53: 259282.46 | D53: 309339.1228 | E53: -50056.66284
A54: 53 | B54: 42144 | C54: 354279.68 | D54: 384188.8692 | E54: -29909.18919
A55: 54 | B55: 18828 | C55: 185749.88 | D55: 192028.917 | E55: -6279.036993
A56: 55 | B56: 57070 | C56: 415818.7 | D56: 507202.2268 | E56: -91383.52683
A57: 56 | B57: 27991 | C57: 252095.02 | D57: 267546.2288 | E57: -15451.2088
A58: 57 | B58: 37876 | C58: 329524.88 | D58: 349013.9388 | E58: -19489.05885
A59: 58 | B59: 16134 | C59: 233120.9 | D59: 169826.1845 | E59: 63294.71552
A60: 59 | B60: 55466 | C60: 376140.08 | D60: 493982.7825 | E60: -117842.7025
A61: 60 | B61: 26100 | C61: 208166 | D61: 251961.46 | E61: -43795.45999
A62: 61 | B62: 23787 | C62: 226261.67 | D62: 232898.7576 | E62: -6637.087573
A63: 62 | B63: 30895 | C63: 249581.7 | D63: 291479.6866 | E63: -41897.98656
A64: 63 | B64: 31845 | C64: 278010.2 | D64: 299309.1579 | E64: -21298.95794
A65: 64 | B65: 50618 | C65: 537451.34 | D65: 454027.7539 | E65: 83423.58614
A66: 65 | B66: 62293 | C66: 448052.27 | D66: 550247.8363 | E66: -102195.5663
A67: 66 | B67: 61228 | C67: 519618.76 | D67: =FORECAST(B67,$C$2:$C$191,$B$2:$B$191) -> 541470.5868 | E67: =C67-D67 -> -21851.8268
A68: 67 | B68: 32558 | C68: 364510.28 | D68: 305185.3822 | E68: 59324.89776
A69: 68 | B69: 40694 | C69: 351135.6 | D69: 372238.6234 | E69: -21103.02341
A70: 69 | B70: 46333 | C70: 390547.55 | D70: 418712.7172 | E70: -28165.16719
A71: 70 | B71: 28415 | C71: 234129.2 | D71: 271040.6455 | E71: -36911.4455
A72: 71 | B72: 19993 | C72: 224538.89 | D72: 201630.3214 | E72: 22908.56864
A73: 72 | B73: 34414 | C73: 248912.92 | D73: 320481.6968 | E73: -71568.77684
A74: 73 | B74: 52078 | C74: 328096.52 | D74: 466060.4151 | E74: -137963.8951
A75: 74 | B75: 24507 | C75: 262965.83 | D75: 238832.6727 | E75: 24133.15728
A76: 75 | B76: 28516 | C76: 334304.52 | D76: 271873.0419 | E76: 62431.47807
A77: 76 | B77: 17554 | C77: 216060.84 | D77: 181529.1838 | E77: 34531.6562
A78: 77 | B78: 16662 | C78: 183462.62 | D78: 174177.7223 | E78: 9284.897743
A79: 78 | B79: 57162 | C79: 517013.54 | D79: 507960.4493 | E79: 9053.090683
A80: 79 | B80: 57297 | C80: 731834.3 | D80: 509073.0584 | E80: 222761.2416
A81: 80 | B81: 64112 | C81: 439159.84 | D81: 565239.2136 | E81: -126079.3736
A82: 81 | B82: 37237 | C82: 453649.08 | D82: 343747.5892 | E82: 109901.4908
A83: 82 | B83: 55058 | C83: 495969.8 | D83: 490620.2306 | E83: 5349.569392
A84: 83 | B84: 30791 | C84: 306489.03 | D84: 290622.5655 | E84: 15866.46452
A85: 84 | B85: 19784 | C85: 226868.96 | D85: 199907.8377 | E85: 26961.12234
A86: 85 | B86: 32463 | C86: 316845.86 | D86: 304402.4351 | E86: 12443.4249
A87: 86 | B87: 59364 | C87: 496417.28 | D87: 526108.3398 | E87: -29691.05981
A88: 87 | B88: 64632 | C88: 527881.68 | D88: 569524.819 | E88: -41643.13898
A89: 88 | B89: 58106 | C89: 535766.16 | D89: 515740.4714 | E89: 20025.6886
A90: 89 | B90: 60333 | C90: 469314.35 | D90: 534094.4006 | E90: -64780.05061
A91: 90 | B91: 58353 | C91: 558254.63 | D91: 517776.134 | E91: 40478.49604
A92: 91 | B92: 22672 | C92: 197141.28 | D92: 223709.4306 | E92: -26568.15064
A93: 92 | B93: 64325 | C93: 563313.5 | D93: 566994.6635 | E93: -3681.163489
A94: 93 | B94: 32326 | C94: 365825.02 | D94: 303273.3429 | E94: 62551.67708
A95: 94 | B95: 16138 | C95: 206538.6 | D95: 169859.1507 | E95: 36679.44932
A96: 95 | B96: 34957 | C96: 320916.75 | D96: 324956.8579 | E96: -4040.107852
A97: 96 | B97: 26159 | C97: 294325.06 | D97: 252447.7114 | E97: 41877.34863
A98: 97 | B98: 42098 | C98: 329951.7 | D98: 383809.7579 | E98: -53858.05795
A99: 98 | B99: 20582 | C99: 161277.7 | D99: 206484.5936 | E99: -45206.89362
A100: 99 | B100: 45614 | C100: 428140.06 | D100: 412787.0436 | E100: 15353.01641
A101: 100 | B101: 42729 | C101: 433279.13 | D101: 389010.1753 | E101: 44268.95475
A102: 101 | B102: 40053 | C102: 346792.73 | D102: 366955.7906 | E102: -20163.06062
A103: 102 | B103: 51749 | C103: 540063.03 | D103: 463348.9456 | E103: 76714.08443
A104: 103 | B104: 59753 | C104: 588972.06 | D104: 529314.3023 | E104: 59657.7577
A105: 104 | B105: 34045 | C105: 290698.15 | D105: 317440.5653 | E105: -26742.41533
A106: 105 | B106: 56384 | C106: 544487.68 | D106: 501548.5243 | E106: 42939.15566
A107: 106 | B107: 33242 | C107: 206569.82 | D107: 310822.6016 | E107: -104252.7816
A108: 107 | B108: 49060 | C108: 550902.6 | D108: 441187.4208 | E108: 109715.1792
A109: 108 | B109: 38219 | C109: 321737.09 | D109: 351840.7901 | E109: -30103.70009
A110: 109 | B110: 56891 | C110: 568845.92 | D110: 505726.9896 | E110: 63118.93041
A111: 110 | B111: 52906 | C111: 426690.72 | D111: 472884.4176 | E111: -46193.69756
A112: 111 | B112: 44835 | C112: 430649.15 | D112: 406366.8771 | E112: 24282.27294
A113: 112 | B113: 45028 | C113: 400768.12 | D113: 407957.496 | E113: -7189.37598
A114: 113 | B114: 15988 | C114: 175665.68 | D114: 168622.9184 | E114: 7042.761645
A115: 114 | B115: 64717 | C115: 558028.45 | D115: 570225.3506 | E115: -12196.90062
A116: 115 | B116: 15196 | C116: 163514.12 | D116: 162095.6117 | E116: 1418.508307
A117: 116 | B117: 45093 | C117: 398568.89 | D117: 408493.1967 | E117: -9924.306654
A118: 117 | B118: 51099 | C118: 483830.51 | D118: 457991.9388 | E118: 25838.57116
A119: 118 | B119: 40839 | C119: 292958.72 | D119: 373433.648 | E119: -80474.92799
A120: 119 | B120: 29773 | C120: 275083.88 | D120: 282232.6688 | E120: -7148.788788
A121: 120 | B121: 60954 | C121: 599805.08 | D121: 539212.4024 | E121: 60592.67757
A122: 121 | B122: 53820 | C122: 524692.4 | D122: 480417.1932 | E122: 44275.20683
A123: 122 | B123: 19365 | C123: 196012.1 | D123: 196454.6287 | E123: -442.5287078
A124: 123 | B124: 39109 | C124: 360134.37 | D124: 359175.7685 | E124: 958.6014632
A125: 124 | B125: 40439 | C125: 312044.72 | D125: 370137.0285 | E125: -58092.30846
A126: 125 | B126: 35117 | C126: 268076.57 | D126: 326275.5057 | E126: -58198.93566
A127: 126 | B127: 50624 | C127: 394243.2 | D127: 454077.2032 | E127: -59834.00316
A128: 127 | B128: 55174 | C128: 474839.8 | D128: 491576.2503 | E128: -16736.45027
A129: 128 | B129: 52278 | C129: 474497.36 | D129: 467708.7249 | E129: 6788.635101
A130: 129 | B130: 30557 | C130: 301178.54 | D130: 288694.0431 | E130: 12484.49694
A131: 130 | B131: 62145 | C131: 642241.85 | D131: =FORECAST(B131,$C$2:$C$191,$B$2:$B$191) -> 549028.0871 | E131: =C131-D131 -> 93213.76293
A132: 131 | B132: 58106 | C132: 475335.92 | D132: 515740.4714 | E132: -40404.5514
A133: 132 | B133: 55233 | C133: 543230.69 | D133: 492062.5017 | E133: 51168.18835
A134: 133 | B134: 51653 | C134: 343389.04 | D134: 462557.7569 | E134: -119168.7169
A135: 134 | B135: 16221 | C135: 195989 | D135: 170543.1992 | E135: 25445.80077
A136: 135 | B136: 28538 | C136: 295141.42 | D136: 272054.356 | E136: 23087.064
A137: 136 | B137: 33546 | C137: 355268.6 | D137: 313328.0325 | E137: 41940.56753
A138: 137 | B138: 50539 | C138: 505356.39 | D138: 453376.6715 | E138: 51979.71849
A139: 138 | B139: 14677 | C139: 180772.07 | D139: 157818.2479 | E139: 22953.82214
A140: 139 | B140: 15835 | C140: 146751.85 | D140: 167361.9614 | E140: -20610.11139
A141: 140 | B141: 24504 | C141: 198984.32 | D141: 238807.9481 | E141: -39823.62807
A142: 141 | B142: 21816 | C142: 210783.92 | D142: 216654.6649 | E142: -5870.744857
A143: 142 | B143: 28370 | C143: 246604.1 | D143: 270669.7758 | E143: -24065.6758
A144: 143 | B144: 46733 | C144: 430873.95 | D144: 422009.3367 | E144: 8864.613288
A145: 144 | B145: 46568 | C145: 393671.84 | D145: 420649.4812 | E145: -26977.64116
A146: 145 | B146: 42540 | C146: 363945.2 | D146: 387452.5225 | E146: -23507.32253
A147: 146 | B147: 39348 | C147: 275857.52 | D147: 361145.4987 | E147: -85287.9787
A148: 147 | B148: 34125 | C148: 350641.25 | D148: 318099.8892 | E148: 32541.36076
A149: 148 | B149: 61572 | C149: 580750.64 | D149: 544305.6796 | E149: 36444.9604
A150: 149 | B150: 54730 | C150: 410123.4 | D150: 487917.0026 | E150: -77793.6026
A151: 150 | B151: 38799 | C151: 332068.73 | D151: 356620.8884 | E151: -24552.1584
A152: 151 | B152: 22293 | C152: 208949.09 | D152: 220585.8836 | E152: -11636.79364
A153: 152 | B153: 37202 | C153: 346499.94 | D153: 343459.1349 | E153: 3040.805056
A154: 153 | B154: 53171 | C154: 474836.29 | D154: 475068.428 | E154: -232.1379916
A155: 154 | B155: 33287 | C155: 255380.79 | D155: 311193.4713 | E155: -55812.68133
A156: 155 | B156: 35445 | C156: 237858.5 | D156: 328978.7337 | E156: -91120.23367
A157: 156 | B157: 21723 | C157: 224001.23 | D157: 215888.2008 | E157: 8113.029183
A158: 157 | B158: 40939 | C158: 439329.89 | D158: 374257.8029 | E158: 65072.08713
A159: 158 | B159: 45048 | C159: 362182.64 | D159: 408122.327 | E159: -45939.68696
A160: 159 | B160: 30296 | C160: 299639.04 | D160: 286542.9988 | E160: 13096.04118
A161: 160 | B161: 53521 | C161: 457210.54 | D161: 477952.9701 | E161: -20742.43008
A162: 161 | B162: 24680 | C162: 209679.6 | D162: 240258.4607 | E162: -30578.86067
A163: 162 | B163: 46956 | C163: 426587.12 | D163: 423847.2021 | E163: 2739.917902
A164: 163 | B164: 16392 | C164: 200150.72 | D164: 171952.5041 | E164: 28198.21592
A165: 164 | B165: 53761 | C165: 534924.22 | D165: 479930.9418 | E165: 54993.27821
A166: 165 | B166: 56104 | C166: 460681.28 | D166: 499240.8907 | E166: -38559.61067
A167: 166 | B167: 15241 | C167: 151200.24 | D167: 162466.4814 | E167: -11266.24139
A168: 167 | B168: 19284 | C168: 212426.64 | D168: 195787.0633 | E168: 16639.57675
A169: 168 | B169: 14673 | C169: 181763.54 | D169: 157785.2817 | E169: 23978.25834
A170: 169 | B170: 57793 | C170: 497895.75 | D170: 513160.8666 | E170: -15265.11662
A171: 170 | B171: 28259 | C171: 242161.2 | D171: 269754.9639 | E171: -27593.76388
A172: 171 | B172: 30304 | C172: 206671.68 | D172: 286608.9312 | E172: -79937.25121
A173: 172 | B173: 62568 | C173: 496735.52 | D173: 552514.2622 | E173: -55778.74222
A174: 173 | B174: 56139 | C174: 513074.17 | D174: 499529.3449 | E174: 13544.82512
A175: 174 | B175: 23120 | C175: 214614.4 | D175: 227401.6445 | E175: -12787.24451
A176: 175 | B176: 17006 | C176: 110924.66 | D176: 177012.8151 | E176: -66088.15505
A177: 176 | B177: 31596 | C177: 329940.56 | D177: 297257.0123 | E177: 32683.54772
A178: 177 | B178: 40607 | C178: 363486.04 | D178: 371521.6087 | E178: -8035.568664
A179: 178 | B179: 61771 | C179: 569494.11 | D179: 545945.7478 | E179: 23548.36219
A180: 179 | B180: 30412 | C180: 279610.6 | D180: 287499.0185 | E180: -7888.418481
A181: 180 | B181: 36947 | C181: 361463.21 | D181: 341357.54 | E181: 20105.67
A182: 181 | B182: 43194 | C182: 395552 | D182: 392842.4955 | E182: 2709.504549
A183: 182 | B183: 56866 | C183: 492417.48 | D183: 505520.9509 | E183: -13103.47087
A184: 183 | B184: 39851 | C184: 367213.96 | D184: 365290.9978 | E184: 1922.962242
A185: 184 | B185: 36617 | C185: 312177.72 | D185: 338637.8289 | E185: -26460.10889
A186: 185 | B186: 46438 | C186: 331878.66 | D186: 419578.0798 | E186: -87699.41981
A187: 186 | B187: 27520 | C187: 266032 | D187: 263664.4593 | E187: 2367.540695
A188: 187 | B188: 28852 | C188: 311399.12 | D188: 274642.2023 | E188: 36756.91767
A189: 188 | B189: 60878 | C189: 505367.44 | D189: 538586.0447 | E189: -33218.60472
A190: 189 | B190: 32779 | C190: 211928.26 | D190: 307006.7645 | E190: -95078.50453
A191: 190 | B191: 49959 | C191: 401211.77 | D191: 448596.5732 | E191: -47384.80319
B192: Total | C192: =SUM(C2:C191) -> 70311200.62 | D192: =SUM(D2:D191) -> 70311200.62 | E192: =SUM(E2:E191) -> -3.352761269e-08
C194: Note 1: ΣYi = Σŷi | E194: Note 2: Σei = 0
A213: =A1 -> ith Sample Point | B213: =B1 -> Weekly $ Ad Expense (x) | C213: =C1 -> Weekly $ Sales (y) | D213: =D1 -> Predicted = ŷi = b1*Xi+b0 | E213: =E1 -> ith Residual = ei =Yi - ŷi | F213: Positive Residuals | G213: Negative Residuals | H213: Ybar Deviations | I213: Ybar Positive Error | J213: Ybar Negative Error
A214: =A2 -> 1 | B214: 63566 | C214: 651334.36 | D214: =FORECAST(B214,$C$2:$C$191,$B$2:$B$191) -> 560739.3279 | E214: =C214-D214 -> 90595.03206 | F214: =IF(E214>=0,-E214,"") -> -90595.03206 | G214: =IF(ISNUMBER(F214),"",E214) ->  | H214: =$C214-AVERAGE($C$2:$C$191) -> 281275.4094 | I214: =IF(H214<0,-H214,"") ->  | J214: =IF(H214>0,H214,"") -> 281275.4094
A215: 2 | B215: 50762 | C215: 527670.42 | D215: =FORECAST(B215,$C$2:$C$191,$B$2:$B$191) -> 455214.5369 | E215: =C215-D215 -> 72455.88311
A216: 3 | B216: 50941 | C216: 523751.3 | D216: 456689.7741 | E216: 67061.52587
A217: 4 | B217: 17597 | C217: 175466.61 | D217: 181883.5704 | E217: -6416.960401
A218: 5 | B218: 33029 | C218: 377977.97 | D218: 309067.1517 | E218: 68910.81827
A219: 6 | B219: 58543 | C219: 520100.29 | D219: 519342.0282 | E219: 758.2617673
... 9 more rows

Sheet 3 Parts
A1: ith Sample Point | B1: Weekly $ Ad Expense (x) | C1: Weekly $ Sales (y) | D1: Predicted = ŷi = b1*Xi+b0 | E1: ith Residual = ei =Yi - ŷi
A2: 1 | B2: 63566 | C2: 651334.36 | D2: =FORECAST(B2,$C$2:$C$191,$B$2:$B$191) -> 560739.3279 | E2: =C2-D2 -> 90595.03206
A3: 2 | B3: 50762 | C3: 527670.42 | D3: =FORECAST(B3,$C$2:$C$191,$B$2:$B$191) -> 455214.5369 | E3: =C3-D3 -> 72455.88311
A4: 3 | B4: 50941 | C4: 523751.3 | D4: 456689.7741 | E4: 67061.52587
A5: 4 | B5: 17597 | C5: 175466.61 | D5: 181883.5704 | E5: -6416.960401
A6: 5 | B6: 33029 | C6: 377977.97 | D6: 309067.1517 | E6: 68910.81827
A7: 6 | B7: 58543 | C7: 520100.29 | D7: 519342.0282 | E7: 758.2617673 | M7: Total Error = (Yi - Ybar)
A8: 7 | B8: 60492 | C8: 620856.28 | D8: 535404.8069 | E8: 85451.47312 | M8: "Explained" or "Regression" = (Yhat - Ybar)
A9: 8 | B9: 59686 | C9: 593739.46 | D9: 528762.1185 | E9: 64977.34147 | M9: "Residual" or "Unexplained" or "Error" =(Yi - Yhat)
A10: 9 | B10: 16432 | C10: 181948.96 | D10: 172282.166 | E10: 9666.79397
A11: 10 | B11: 17262 | C11: 184643.6 | D11: 179122.6515 | E11: 5520.948453
A12: 11 | B12: 39118 | C12: 379373.56 | D12: 359249.9425 | E12: 20123.61752
A13: 12 | B13: 36078 | C13: 238687.94 | D13: 334195.6341 | E13: -95507.69407
A14: 13 | B14: 42113 | C14: 410066.15 | D14: 383933.3812 | E14: 26132.76882
A15: 14 | B15: 50562 | C15: 413540.78 | D15: 453566.2271 | E15: -40025.44713
A16: 15 | B16: 38240 | C16: 340241.6 | D16: 352013.8626 | E16: -11772.26262
A17: 16 | B17: 59870 | C17: 582843 | D17: 530278.5635 | E17: 52564.43649
A18: 17 | B18: 46056 | C18: 433185.92 | D18: 416429.8082 | E18: 16756.11184
A19: 18 | B19: 33349 | C19: 270770.38 | D19: 311704.4474 | E19: -40934.06735
A20: 19 | B20: 16207 | C20: 164421.42 | D20: 170427.8175 | E20: -6006.397546
A21: 20 | B21: 57077 | C21: 478077.5 | D21: 507259.9177 | E21: -29182.41767
A22: 21 | B22: 30893 | C22: 393839.09 | D22: 291463.2035 | E22: 102375.8865
A23: 22 | B23: 54153 | C23: 430154.06 | D23: 483161.6289 | E23: -53007.56893
A24: 23 | B24: 14591 | C24: 210792.82 | D24: 157109.4747 | E24: 53683.34534
A25: 24 | B25: 50138 | C25: 343808.68 | D25: 450071.8104 | E25: -106263.1304
A26: 25 | B26: 55253 | C26: 565510.49 | D26: 492227.3326 | E26: 73283.15737
A27: 26 | B27: 34944 | C27: 330250.88 | D27: 324849.7177 | E27: 5401.162283
A28: 27 | B28: 26413 | C28: 295905.03 | D28: 254541.0648 | E28: 41363.96523
A29: 28 | B29: 54660 | C29: 562164.2 | D29: 487340.0942 | E29: 74824.10582
A30: 29 | B30: 35887 | C30: 257067.99 | D30: 332621.4983 | E30: -75553.50825
A31: 30 | B31: 42021 | C31: 384066.95 | D31: 383175.1587 | E31: 891.7913101
A32: 31 | B32: 47349 | C32: 441576.23 | D32: 427086.1308 | E32: 14490.09922
A33: 32 | B33: 24364 | C33: 252221.2 | D33: 237654.1312 | E33: 14567.06876
A34: 33 | B34: 58406 | C34: 552875.66 | D34: 518212.936 | E34: 34662.72396
A35: 34 | B35: 51643 | C35: 446101.81 | D35: 462475.3414 | E35: -16373.5314
A36: 35 | B36: 55115 | C36: 476038.95 | D36: 491089.9989 | E36: -15051.04889
A37: 36 | B37: 35416 | C37: 393889.36 | D37: 328739.7288 | E37: 65149.63124
A38: 37 | B38: 37274 | C38: 328436.78 | D38: 344052.5265 | E38: -15615.74646
A39: 38 | B39: 36148 | C39: 408949.64 | D39: 334772.5425 | E39: 74177.09751
A40: 39 | B40: 32192 | C40: 394776.32 | D40: 302168.9754 | E40: 92607.34463
A41: 40 | B41: 51238 | C41: 455804.96 | D41: 459137.5141 | E41: -3332.55413
A42: 41 | B42: 59235 | C42: 526249.4 | D42: 525045.18 | E42: 1204.219986
A43: 42 | B43: 59329 | C43: 562602.56 | D43: 525819.8856 | E43: 36782.6744
A44: 43 | B44: 22739 | C44: 180749.25 | D44: 224261.6144 | E44: -43512.36441
A45: 44 | B45: 28654 | C45: 275506.98 | D45: 273010.3757 | E45: 2496.604338
A46: 45 | B46: 36786 | C46: 372981.08 | D46: 340030.6506 | E46: 32950.42936
A47: 46 | B47: 20813 | C47: 216087.74 | D47: 208388.3914 | E47: 7699.348606
A48: 47 | B48: 57259 | C48: 470281.06 | D48: 508759.8796 | E48: -38478.81955
A49: 48 | B49: 57707 | C49: 481071.29 | D49: 512452.0934 | E49: -31380.80342
A50: 49 | B50: 61539 | C50: 612466.46 | D50: 544033.7085 | E50: 68432.75151
A51: 50 | B51: 36635 | C51: 370922.6 | D51: 338786.1768 | E51: 32136.42323
A52: 51 | B52: 39086 | C52: 448677.2 | D52: 358986.2129 | E52: 89690.98709
A53: 52 | B53: 33062 | C53: 259282.46 | D53: 309339.1228 | E53: -50056.66284
A54: 53 | B54: 42144 | C54: 354279.68 | D54: 384188.8692 | E54: -29909.18919
A55: 54 | B55: 18828 | C55: 185749.88 | D55: 192028.917 | E55: -6279.036993
A56: 55 | B56: 57070 | C56: 415818.7 | D56: 507202.2268 | E56: -91383.52683
A57: 56 | B57: 27991 | C57: 252095.02 | D57: 267546.2288 | E57: -15451.2088
A58: 57 | B58: 37876 | C58: 329524.88 | D58: 349013.9388 | E58: -19489.05885
A59: 58 | B59: 16134 | C59: 233120.9 | D59: 169826.1845 | E59: 63294.71552
A60: 59 | B60: 55466 | C60: 376140.08 | D60: 493982.7825 | E60: -117842.7025
A61: 60 | B61: 26100 | C61: 208166 | D61: 251961.46 | E61: -43795.45999
A62: 61 | B62: 23787 | C62: 226261.67 | D62: 232898.7576 | E62: -6637.087573
A63: 62 | B63: 30895 | C63: 249581.7 | D63: 291479.6866 | E63: -41897.98656
A64: 63 | B64: 31845 | C64: 278010.2 | D64: 299309.1579 | E64: -21298.95794
A65: 64 | B65: 50618 | C65: 537451.34 | D65: 454027.7539 | E65: 83423.58614
A66: 65 | B66: 62293 | C66: 448052.27 | D66: 550247.8363 | E66: -102195.5663
A67: 66 | B67: 61228 | C67: 519618.76 | D67: =FORECAST(B67,$C$2:$C$191,$B$2:$B$191) -> 541470.5868 | E67: =C67-D67 -> -21851.8268
A68: 67 | B68: 32558 | C68: 364510.28 | D68: 305185.3822 | E68: 59324.89776
A69: 68 | B69: 40694 | C69: 351135.6 | D69: 372238.6234 | E69: -21103.02341
A70: 69 | B70: 46333 | C70: 390547.55 | D70: 418712.7172 | E70: -28165.16719
A71: 70 | B71: 28415 | C71: 234129.2 | D71: 271040.6455 | E71: -36911.4455
A72: 71 | B72: 19993 | C72: 224538.89 | D72: 201630.3214 | E72: 22908.56864
A73: 72 | B73: 34414 | C73: 248912.92 | D73: 320481.6968 | E73: -71568.77684
A74: 73 | B74: 52078 | C74: 328096.52 | D74: 466060.4151 | E74: -137963.8951
A75: 74 | B75: 24507 | C75: 262965.83 | D75: 238832.6727 | E75: 24133.15728
A76: 75 | B76: 28516 | C76: 334304.52 | D76: 271873.0419 | E76: 62431.47807
A77: 76 | B77: 17554 | C77: 216060.84 | D77: 181529.1838 | E77: 34531.6562
A78: 77 | B78: 16662 | C78: 183462.62 | D78: 174177.7223 | E78: 9284.897743
A79: 78 | B79: 57162 | C79: 517013.54 | D79: 507960.4493 | E79: 9053.090683
A80: 79 | B80: 57297 | C80: 731834.3 | D80: 509073.0584 | E80: 222761.2416
A81: 80 | B81: 64112 | C81: 439159.84 | D81: 565239.2136 | E81: -126079.3736
A82: 81 | B82: 37237 | C82: 453649.08 | D82: 343747.5892 | E82: 109901.4908
A83: 82 | B83: 55058 | C83: 495969.8 | D83: 490620.2306 | E83: 5349.569392
A84: 83 | B84: 30791 | C84: 306489.03 | D84: 290622.5655 | E84: 15866.46452
A85: 84 | B85: 19784 | C85: 226868.96 | D85: 199907.8377 | E85: 26961.12234
A86: 85 | B86: 32463 | C86: 316845.86 | D86: 304402.4351 | E86: 12443.4249
A87: 86 | B87: 59364 | C87: 496417.28 | D87: 526108.3398 | E87: -29691.05981
A88: 87 | B88: 64632 | C88: 527881.68 | D88: 569524.819 | E88: -41643.13898
A89: 88 | B89: 58106 | C89: 535766.16 | D89: 515740.4714 | E89: 20025.6886
A90: 89 | B90: 60333 | C90: 469314.35 | D90: 534094.4006 | E90: -64780.05061
A91: 90 | B91: 58353 | C91: 558254.63 | D91: 517776.134 | E91: 40478.49604
A92: 91 | B92: 22672 | C92: 197141.28 | D92: 223709.4306 | E92: -26568.15064
A93: 92 | B93: 64325 | C93: 563313.5 | D93: 566994.6635 | E93: -3681.163489
A94: 93 | B94: 32326 | C94: 365825.02 | D94: 303273.3429 | E94: 62551.67708
A95: 94 | B95: 16138 | C95: 206538.6 | D95: 169859.1507 | E95: 36679.44932
A96: 95 | B96: 34957 | C96: 320916.75 | D96: 324956.8579 | E96: -4040.107852
A97: 96 | B97: 26159 | C97: 294325.06 | D97: 252447.7114 | E97: 41877.34863
A98: 97 | B98: 42098 | C98: 329951.7 | D98: 383809.7579 | E98: -53858.05795
A99: 98 | B99: 20582 | C99: 161277.7 | D99: 206484.5936 | E99: -45206.89362
A100: 99 | B100: 45614 | C100: 428140.06 | D100: 412787.0436 | E100: 15353.01641
A101: 100 | B101: 42729 | C101: 433279.13 | D101: 389010.1753 | E101: 44268.95475
A102: 101 | B102: 40053 | C102: 346792.73 | D102: 366955.7906 | E102: -20163.06062
A103: 102 | B103: 51749 | C103: 540063.03 | D103: 463348.9456 | E103: 76714.08443
A104: 103 | B104: 59753 | C104: 588972.06 | D104: 529314.3023 | E104: 59657.7577
A105: 104 | B105: 34045 | C105: 290698.15 | D105: 317440.5653 | E105: -26742.41533
A106: 105 | B106: 56384 | C106: 544487.68 | D106: 501548.5243 | E106: 42939.15566
A107: 106 | B107: 33242 | C107: 206569.82 | D107: 310822.6016 | E107: -104252.7816
A108: 107 | B108: 49060 | C108: 550902.6 | D108: 441187.4208 | E108: 109715.1792
A109: 108 | B109: 38219 | C109: 321737.09 | D109: 351840.7901 | E109: -30103.70009
A110: 109 | B110: 56891 | C110: 568845.92 | D110: 505726.9896 | E110: 63118.93041
A111: 110 | B111: 52906 | C111: 426690.72 | D111: 472884.4176 | E111: -46193.69756
A112: 111 | B112: 44835 | C112: 430649.15 | D112: 406366.8771 | E112: 24282.27294
A113: 112 | B113: 45028 | C113: 400768.12 | D113: 407957.496 | E113: -7189.37598
A114: 113 | B114: 15988 | C114: 175665.68 | D114: 168622.9184 | E114: 7042.761645
A115: 114 | B115: 64717 | C115: 558028.45 | D115: 570225.3506 | E115: -12196.90062
A116: 115 | B116: 15196 | C116: 163514.12 | D116: 162095.6117 | E116: 1418.508307
A117: 116 | B117: 45093 | C117: 398568.89 | D117: 408493.1967 | E117: -9924.306654
A118: 117 | B118: 51099 | C118: 483830.51 | D118: 457991.9388 | E118: 25838.57116
A119: 118 | B119: 40839 | C119: 292958.72 | D119: 373433.648 | E119: -80474.92799
A120: 119 | B120: 29773 | C120: 275083.88 | D120: 282232.6688 | E120: -7148.788788
A121: 120 | B121: 60954 | C121: 599805.08 | D121: 539212.4024 | E121: 60592.67757
A122: 121 | B122: 53820 | C122: 524692.4 | D122: 480417.1932 | E122: 44275.20683
A123: 122 | B123: 19365 | C123: 196012.1 | D123: 196454.6287 | E123: -442.5287078
A124: 123 | B124: 39109 | C124: 360134.37 | D124: 359175.7685 | E124: 958.6014632
A125: 124 | B125: 40439 | C125: 312044.72 | D125: 370137.0285 | E125: -58092.30846
A126: 125 | B126: 35117 | C126: 268076.57 | D126: 326275.5057 | E126: -58198.93566
A127: 126 | B127: 50624 | C127: 394243.2 | D127: 454077.2032 | E127: -59834.00316
A128: 127 | B128: 55174 | C128: 474839.8 | D128: 491576.2503 | E128: -16736.45027
A129: 128 | B129: 52278 | C129: 474497.36 | D129: 467708.7249 | E129: 6788.635101
A130: 129 | B130: 30557 | C130: 301178.54 | D130: 288694.0431 | E130: 12484.49694
A131: 130 | B131: 62145 | C131: 642241.85 | D131: =FORECAST(B131,$C$2:$C$191,$B$2:$B$191) -> 549028.0871 | E131: =C131-D131 -> 93213.76293
A132: 131 | B132: 58106 | C132: 475335.92 | D132: 515740.4714 | E132: -40404.5514
A133: 132 | B133: 55233 | C133: 543230.69 | D133: 492062.5017 | E133: 51168.18835
A134: 133 | B134: 51653 | C134: 343389.04 | D134: 462557.7569 | E134: -119168.7169
A135: 134 | B135: 16221 | C135: 195989 | D135: 170543.1992 | E135: 25445.80077
A136: 135 | B136: 28538 | C136: 295141.42 | D136: 272054.356 | E136: 23087.064
A137: 136 | B137: 33546 | C137: 355268.6 | D137: 313328.0325 | E137: 41940.56753
A138: 137 | B138: 50539 | C138: 505356.39 | D138: 453376.6715 | E138: 51979.71849
A139: 138 | B139: 14677 | C139: 180772.07 | D139: 157818.2479 | E139: 22953.82214
A140: 139 | B140: 15835 | C140: 146751.85 | D140: 167361.9614 | E140: -20610.11139
A141: 140 | B141: 24504 | C141: 198984.32 | D141: 238807.9481 | E141: -39823.62807
A142: 141 | B142: 21816 | C142: 210783.92 | D142: 216654.6649 | E142: -5870.744857
A143: 142 | B143: 28370 | C143: 246604.1 | D143: 270669.7758 | E143: -24065.6758
A144: 143 | B144: 46733 | C144: 430873.95 | D144: 422009.3367 | E144: 8864.613288
A145: 144 | B145: 46568 | C145: 393671.84 | D145: 420649.4812 | E145: -26977.64116
A146: 145 | B146: 42540 | C146: 363945.2 | D146: 387452.5225 | E146: -23507.32253
A147: 146 | B147: 39348 | C147: 275857.52 | D147: 361145.4987 | E147: -85287.9787
A148: 147 | B148: 34125 | C148: 350641.25 | D148: 318099.8892 | E148: 32541.36076
A149: 148 | B149: 61572 | C149: 580750.64 | D149: 544305.6796 | E149: 36444.9604
A150: 149 | B150: 54730 | C150: 410123.4 | D150: 487917.0026 | E150: -77793.6026
A151: 150 | B151: 38799 | C151: 332068.73 | D151: 356620.8884 | E151: -24552.1584
A152: 151 | B152: 22293 | C152: 208949.09 | D152: 220585.8836 | E152: -11636.79364
A153: 152 | B153: 37202 | C153: 346499.94 | D153: 343459.1349 | E153: 3040.805056
A154: 153 | B154: 53171 | C154: 474836.29 | D154: 475068.428 | E154: -232.1379916
A155: 154 | B155: 33287 | C155: 255380.79 | D155: 311193.4713 | E155: -55812.68133
A156: 155 | B156: 35445 | C156: 237858.5 | D156: 328978.7337 | E156: -91120.23367
A157: 156 | B157: 21723 | C157: 224001.23 | D157: 215888.2008 | E157: 8113.029183
A158: 157 | B158: 40939 | C158: 439329.89 | D158: 374257.8029 | E158: 65072.08713
A159: 158 | B159: 45048 | C159: 362182.64 | D159: 408122.327 | E159: -45939.68696
A160: 159 | B160: 30296 | C160: 299639.04 | D160: 286542.9988 | E160: 13096.04118
A161: 160 | B161: 53521 | C161: 457210.54 | D161: 477952.9701 | E161: -20742.43008
A162: 161 | B162: 24680 | C162: 209679.6 | D162: 240258.4607 | E162: -30578.86067
A163: 162 | B163: 46956 | C163: 426587.12 | D163: 423847.2021 | E163: 2739.917902
A164: 163 | B164: 16392 | C164: 200150.72 | D164: 171952.5041 | E164: 28198.21592
A165: 164 | B165: 53761 | C165: 534924.22 | D165: 479930.9418 | E165: 54993.27821
A166: 165 | B166: 56104 | C166: 460681.28 | D166: 499240.8907 | E166: -38559.61067
A167: 166 | B167: 15241 | C167: 151200.24 | D167: 162466.4814 | E167: -11266.24139
A168: 167 | B168: 19284 | C168: 212426.64 | D168: 195787.0633 | E168: 16639.57675
A169: 168 | B169: 14673 | C169: 181763.54 | D169: 157785.2817 | E169: 23978.25834
A170: 169 | B170: 57793 | C170: 497895.75 | D170: 513160.8666 | E170: -15265.11662
A171: 170 | B171: 28259 | C171: 242161.2 | D171: 269754.9639 | E171: -27593.76388
A172: 171 | B172: 30304 | C172: 206671.68 | D172: 286608.9312 | E172: -79937.25121
A173: 172 | B173: 62568 | C173: 496735.52 | D173: 552514.2622 | E173: -55778.74222
A174: 173 | B174: 56139 | C174: 513074.17 | D174: 499529.3449 | E174: 13544.82512
A175: 174 | B175: 23120 | C175: 214614.4 | D175: 227401.6445 | E175: -12787.24451
A176: 175 | B176: 17006 | C176: 110924.66 | D176: 177012.8151 | E176: -66088.15505
A177: 176 | B177: 31596 | C177: 329940.56 | D177: 297257.0123 | E177: 32683.54772
A178: 177 | B178: 40607 | C178: 363486.04 | D178: 371521.6087 | E178: -8035.568664
A179: 178 | B179: 61771 | C179: 569494.11 | D179: 545945.7478 | E179: 23548.36219
A180: 179 | B180: 30412 | C180: 279610.6 | D180: 287499.0185 | E180: -7888.418481
A181: 180 | B181: 36947 | C181: 361463.21 | D181: 341357.54 | E181: 20105.67
A182: 181 | B182: 43194 | C182: 395552 | D182: 392842.4955 | E182: 2709.504549
A183: 182 | B183: 56866 | C183: 492417.48 | D183: 505520.9509 | E183: -13103.47087
A184: 183 | B184: 39851 | C184: 367213.96 | D184: 365290.9978 | E184: 1922.962242
A185: 184 | B185: 36617 | C185: 312177.72 | D185: 338637.8289 | E185: -26460.10889
A186: 185 | B186: 46438 | C186: 331878.66 | D186: 419578.0798 | E186: -87699.41981
A187: 186 | B187: 27520 | C187: 266032 | D187: 263664.4593 | E187: 2367.540695
A188: 187 | B188: 28852 | C188: 311399.12 | D188: 274642.2023 | E188: 36756.91767
A189: 188 | B189: 60878 | C189: 505367.44 | D189: 538586.0447 | E189: -33218.60472
A190: 189 | B190: 32779 | C190: 211928.26 | D190: 307006.7645 | E190: -95078.50453
A191: 190 | B191: 49959 | C191: 401211.77 | D191: 448596.5732 | E191: -47384.80319
B192: Total | C192: =SUM(C2:C191) -> 70311200.62 | D192: =SUM(D2:D191) -> 70311200.62 | E192: =SUM(E2:E191) -> -3.352761269e-08
C194: Note 1: ΣYi = Σŷi | E194: Note 2: Σei = 0
A213: =A1 -> ith Sample Point | B213: =B1 -> Weekly $ Ad Expense (x) | C213: =C1 -> Weekly $ Sales (y) | D213: =D1 -> Predicted = ŷi = b1*Xi+b0 | E213: =E1 -> ith Residual = ei =Yi - ŷi | F213: Positive Residuals | G213: Negative Residuals | H213: Ybar Deviations | I213: Ybar Positive Error | J213: Ybar Negative Error
A214: =A2 -> 1 | B214: 63566 | C214: 651334.36 | D214: =FORECAST(B214,$C$2:$C$191,$B$2:$B$191) -> 560739.3279 | E214: =C214-D214 -> 90595.03206 | F214: =IF(E214>=0,-E214,"") -> -90595.03206 | G214: =IF(ISNUMBER(F214),"",E214) ->  | H214: =$C214-AVERAGE($C$2:$C$191) -> 281275.4094 | I214: =IF(H214<0,-H214,"") ->  | J214: =IF(H214>0,H214,"") -> 281275.4094
A215: 2 | B215: 50762 | C215: 527670.42 | D215: =FORECAST(B215,$C$2:$C$191,$B$2:$B$191) -> 455214.5369 | E215: =C215-D215 -> 72455.88311
A216: 3 | B216: 50941 | C216: 523751.3 | D216: 456689.7741 | E216: 67061.52587
A217: 4 | B217: 17597 | C217: 175466.61 | D217: 181883.5704 | E217: -6416.960401
A218: 5 | B218: 33029 | C218: 377977.97 | D218: 309067.1517 | E218: 68910.81827
A219: 6 | B219: 58543 | C219: 520100.29 | D219: 519342.0282 | E219: 758.2617673
... 9 more rows

Sheet Zero
F1: Total | G1: Regression | H1: Residual or Error
F2: Total | G2: Explained | H2: Unexplained
A3: ith Sample Point | B3: Weekly $ Ad Expense (x) | C3: Weekly $ Sales (y) | D3: Predicted = ŷi = b1*Xi+b0 | E3: ith Residual = ei =Yi - ŷi | F3: (Yi - Ybar) | G3: (Yhat - Ybar) | H3: (Yi - Yhat) = ei
A4: 1 | B4: 63566 | C4: 651334.36 | D4: =$B$202*B4+$B$203 -> 560739.3279 | E4: =C4-D4 -> 90595.03206 | F4: =(C4-$B$200) -> 281275.4094 | G4: =(D4-$B$200) -> 190680.3773 | H4: =E4 -> 90595.03206
A5: 2 | B5: 50762 | C5: 527670.42 | D5: 455214.5369 | E5: 72455.88311 | F5: =(C5-$B$200) -> 157611.4694 | G5: =(D5-$B$200) -> 85155.58626 | H5: =E5 -> 72455.88311
A6: 3 | B6: 50941 | C6: 523751.3 | D6: 456689.7741 | E6: 67061.52587 | F6: 153692.3494 | G6: 86630.8235 | H6: 67061.52587
A7: 4 | B7: 17597 | C7: 175466.61 | D7: 181883.5704 | E7: -6416.960401 | F7: -194592.3406 | G7: -188175.3802 | H7: -6416.960401
A8: 5 | B8: 33029 | C8: 377977.97 | D8: 309067.1517 | E8: 68910.81827 | F8: 7919.019368 | G8: -60991.7989 | H8: 68910.81827
A9: 6 | B9: 58543 | C9: 520100.29 | D9: 519342.0282 | E9: 758.2617673 | F9: 150041.3394 | G9: 149283.0776 | H9: 758.2617673
A10: 7 | B10: 60492 | C10: 620856.28 | D10: 535404.8069 | E10: 85451.47312 | F10: 250797.3294 | G10: 165345.8562 | H10: 85451.47312
A11: 8 | B11: 59686 | C11: 593739.46 | D11: 528762.1185 | E11: 64977.34147 | F11: 223680.5094 | G11: 158703.1679 | H11: 64977.34147
A12: 9 | B12: 16432 | C12: 181948.96 | D12: 172282.166 | E12: 9666.79397 | F12: -188109.9906 | G12: -197776.7846 | H12: 9666.79397
A13: 10 | B13: 17262 | C13: 184643.6 | D13: 179122.6515 | E13: 5520.948453 | F13: -185415.3506 | G13: -190936.2991 | H13: 5520.948453
A14: 11 | B14: 39118 | C14: 379373.56 | D14: 359249.9425 | E14: 20123.61752 | F14: 9314.609368 | G14: -10809.00816 | H14: 20123.61752
A15: 12 | B15: 36078 | C15: 238687.94 | D15: 334195.6341 | E15: -95507.69407 | F15: -131371.0106 | G15: -35863.31656 | H15: -95507.69407
A16: 13 | B16: 42113 | C16: 410066.15 | D16: 383933.3812 | E16: 26132.76882 | F16: 40007.19937 | G16: 13874.43055 | H16: 26132.76882
A17: 14 | B17: 50562 | C17: 413540.78 | D17: 453566.2271 | E17: -40025.44713 | F17: 43481.82937 | G17: 83507.2765 | H17: -40025.44713
A18: 15 | B18: 38240 | C18: 340241.6 | D18: 352013.8626 | E18: -11772.26262 | F18: -29817.35063 | G18: -18045.08802 | H18: -11772.26262
A19: 16 | B19: 59870 | C19: 582843 | D19: 530278.5635 | E19: 52564.43649 | F19: 212784.0494 | G19: 160219.6129 | H19: 52564.43649
A20: 17 | B20: 46056 | C20: 433185.92 | D20: 416429.8082 | E20: 16756.11184 | F20: 63126.96937 | G20: 46370.85753 | H20: 16756.11184
A21: 18 | B21: 33349 | C21: 270770.38 | D21: 311704.4474 | E21: -40934.06735 | F21: -99288.57063 | G21: -58354.50328 | H21: -40934.06735
A22: 19 | B22: 16207 | C22: 164421.42 | D22: 170427.8175 | E22: -6006.397546 | F22: -205637.5306 | G22: -199631.1331 | H22: -6006.397546
A23: 20 | B23: 57077 | C23: 478077.5 | D23: 507259.9177 | E23: -29182.41767 | F23: 108018.5494 | G23: 137200.967 | H23: -29182.41767
A24: 21 | B24: 30893 | C24: 393839.09 | D24: 291463.2035 | E24: 102375.8865 | F24: 23780.13937 | G24: -78595.74717 | H24: 102375.8865
A25: 22 | B25: 54153 | C25: 430154.06 | D25: 483161.6289 | E25: -53007.56893 | F25: 60095.10937 | G25: 113102.6783 | H25: -53007.56893
A26: 23 | B26: 14591 | C26: 210792.82 | D26: 157109.4747 | E26: 53683.34534 | F26: -159266.1306 | G26: -212949.476 | H26: 53683.34534
A27: 24 | B27: 50138 | C27: 343808.68 | D27: 450071.8104 | E27: -106263.1304 | F27: -26250.27063 | G27: 80012.8598 | H27: -106263.1304
A28: 25 | B28: 55253 | C28: 565510.49 | D28: 492227.3326 | E28: 73283.15737 | F28: 195451.5394 | G28: 122168.382 | H28: 73283.15737
A29: 26 | B29: 34944 | C29: 330250.88 | D29: 324849.7177 | E29: 5401.162283 | F29: -39808.07063 | G29: -45209.23291 | H29: 5401.162283
A30: 27 | B30: 26413 | C30: 295905.03 | D30: 254541.0648 | E30: 41363.96523 | F30: -74153.92063 | G30: -115517.8859 | H30: 41363.96523
A31: 28 | B31: 54660 | C31: 562164.2 | D31: 487340.0942 | E31: 74824.10582 | F31: 192105.2494 | G31: 117281.1435 | H31: 74824.10582
A32: 29 | B32: 35887 | C32: 257067.99 | D32: 332621.4983 | E32: -75553.50825 | F32: -112990.9606 | G32: -37437.45238 | H32: -75553.50825
A33: 30 | B33: 42021 | C33: 384066.95 | D33: 383175.1587 | E33: 891.7913101 | F33: 14007.99937 | G33: 13116.20806 | H33: 891.7913101
A34: 31 | B34: 47349 | C34: 441576.23 | D34: 427086.1308 | E34: 14490.09922 | F34: 71517.27937 | G34: 57027.18015 | H34: 14490.09922
A35: 32 | B35: 24364 | C35: 252221.2 | D35: 237654.1312 | E35: 14567.06876 | F35: -117837.7506 | G35: -132404.8194 | H35: 14567.06876
A36: 33 | B36: 58406 | C36: 552875.66 | D36: 518212.936 | E36: 34662.72396 | F36: 182816.7094 | G36: 148153.9854 | H36: 34662.72396
A37: 34 | B37: 51643 | C37: 446101.81 | D37: 462475.3414 | E37: -16373.5314 | F37: 76042.85937 | G37: 92416.39077 | H37: -16373.5314
A38: 35 | B38: 55115 | C38: 476038.95 | D38: 491089.9989 | E38: -15051.04889 | F38: 105979.9994 | G38: 121031.0483 | H38: -15051.04889
A39: 36 | B39: 35416 | C39: 393889.36 | D39: 328739.7288 | E39: 65149.63124 | F39: 23830.40937 | G39: -41319.22187 | H39: 65149.63124
A40: 37 | B40: 37274 | C40: 328436.78 | D40: 344052.5265 | E40: -15615.74646 | F40: -41622.17063 | G40: -26006.42417 | H40: -15615.74646
A41: 38 | B41: 36148 | C41: 408949.64 | D41: 334772.5425 | E41: 74177.09751 | F41: 38890.68937 | G41: -35286.40814 | H41: 74177.09751
A42: 39 | B42: 32192 | C42: 394776.32 | D42: 302168.9754 | E42: 92607.34463 | F42: 24717.36937 | G42: -67889.97526 | H42: 92607.34463
A43: 40 | B43: 51238 | C43: 455804.96 | D43: 459137.5141 | E43: -3332.55413 | F43: 85746.00937 | G43: 89078.5635 | H43: -3332.55413
A44: 41 | B44: 59235 | C44: 526249.4 | D44: 525045.18 | E44: 1204.219986 | F44: 156190.4494 | G44: 154986.2294 | H44: 1204.219986
A45: 42 | B45: 59329 | C45: 562602.56 | D45: 525819.8856 | E45: 36782.6744 | F45: 192543.6094 | G45: 155760.935 | H45: 36782.6744
A46: 43 | B46: 22739 | C46: 180749.25 | D46: 224261.6144 | E46: -43512.36441 | F46: -189309.7006 | G46: -145797.3362 | H46: -43512.36441
A47: 44 | B47: 28654 | C47: 275506.98 | D47: 273010.3757 | E47: 2496.604338 | F47: -94551.97063 | G47: -97048.57497 | H47: 2496.604338
A48: 45 | B48: 36786 | C48: 372981.08 | D48: 340030.6506 | E48: 32950.42936 | F48: 2922.129368 | G48: -30028.3 | H48: 32950.42936
A49: 46 | B49: 20813 | C49: 216087.74 | D49: 208388.3914 | E49: 7699.348606 | F49: -153971.2106 | G49: -161670.5592 | H49: 7699.348606
A50: 47 | B50: 57259 | C50: 470281.06 | D50: 508759.8796 | E50: -38478.81955 | F50: 100222.1094 | G50: 138700.9289 | H50: -38478.81955
A51: 48 | B51: 57707 | C51: 481071.29 | D51: 512452.0934 | E51: -31380.80342 | F51: 111012.3394 | G51: 142393.1428 | H51: -31380.80342
A52: 49 | B52: 61539 | C52: 612466.46 | D52: 544033.7085 | E52: 68432.75151 | F52: 242407.5094 | G52: 173974.7579 | H52: 68432.75151
A53: 50 | B53: 36635 | C53: 370922.6 | D53: 338786.1768 | E53: 32136.42323 | F53: 863.6493684 | G53: -31272.77387 | H53: 32136.42323
A54: 51 | B54: 39086 | C54: 448677.2 | D54: 358986.2129 | E54: 89690.98709 | F54: 78618.24937 | G54: -11072.73772 | H54: 89690.98709
A55: 52 | B55: 33062 | C55: 259282.46 | D55: 309339.1228 | E55: -50056.66284 | F55: -110776.4906 | G55: -60719.82779 | H55: -50056.66284
A56: 53 | B56: 42144 | C56: 354279.68 | D56: 384188.8692 | E56: -29909.18919 | F56: -15779.27063 | G56: 14129.91856 | H56: -29909.18919
A57: 54 | B57: 18828 | C57: 185749.88 | D57: 192028.917 | E57: -6279.036993 | F57: -184309.0706 | G57: -178030.0336 | H57: -6279.036993
A58: 55 | B58: 57070 | C58: 415818.7 | D58: 507202.2268 | E58: -91383.52683 | F58: 45759.74937 | G58: 137143.2762 | H58: -91383.52683
A59: 56 | B59: 27991 | C59: 252095.02 | D59: 267546.2288 | E59: -15451.2088 | F59: -117963.9306 | G59: -102512.7218 | H59: -15451.2088
A60: 57 | B60: 37876 | C60: 329524.88 | D60: 349013.9388 | E60: -19489.05885 | F60: -40534.07063 | G60: -21045.01179 | H60: -19489.05885
A61: 58 | B61: 16134 | C61: 233120.9 | D61: 169826.1845 | E61: 63294.71552 | F61: -136938.0506 | G61: -200232.7661 | H61: 63294.71552
A62: 59 | B62: 55466 | C62: 376140.08 | D62: 493982.7825 | E62: -117842.7025 | F62: 6081.129368 | G62: 123923.8319 | H62: -117842.7025
A63: 60 | B63: 26100 | C63: 208166 | D63: 251961.46 | E63: -43795.45999 | F63: -161892.9506 | G63: -118097.4906 | H63: -43795.45999
A64: 61 | B64: 23787 | C64: 226261.67 | D64: 232898.7576 | E64: -6637.087573 | F64: -143797.2806 | G64: -137160.1931 | H64: -6637.087573
A65: 62 | B65: 30895 | C65: 249581.7 | D65: 291479.6866 | E65: -41897.98656 | F65: -120477.2506 | G65: -78579.26407 | H65: -41897.98656
A66: 63 | B66: 31845 | C66: 278010.2 | D66: 299309.1579 | E66: -21298.95794 | F66: -92048.75063 | G66: -70749.7927 | H66: -21298.95794
A67: 64 | B67: 50618 | C67: 537451.34 | D67: 454027.7539 | E67: 83423.58614 | F67: 167392.3894 | G67: 83968.80323 | H67: 83423.58614
A68: 65 | B68: 62293 | C68: 448052.27 | D68: =$B$202*B68+$B$203 -> 550247.8363 | E68: =C68-D68 -> -102195.5663 | F68: 77993.31937 | G68: 180188.8857 | H68: -102195.5663
A69: 66 | B69: 61228 | C69: 519618.76 | D69: 541470.5868 | E69: -21851.8268 | F69: =(C69-$B$200) -> 149559.8094 | G69: =(D69-$B$200) -> 171411.6362 | H69: =E69 -> -21851.8268
A70: 67 | B70: 32558 | C70: 364510.28 | D70: 305185.3822 | E70: 59324.89776 | F70: -5548.670632 | G70: -64873.56839 | H70: 59324.89776
A71: 68 | B71: 40694 | C71: 351135.6 | D71: 372238.6234 | E71: -21103.02341 | F71: -18923.35063 | G71: 2179.672779 | H71: -21103.02341
A72: 69 | B72: 46333 | C72: 390547.55 | D72: 418712.7172 | E72: -28165.16719 | F72: 20488.59937 | G72: 48653.76655 | H72: -28165.16719
A73: 70 | B73: 28415 | C73: 234129.2 | D73: 271040.6455 | E73: -36911.4455 | F73: -135929.7506 | G73: -99018.30514 | H73: -36911.4455
A74: 71 | B74: 19993 | C74: 224538.89 | D74: 201630.3214 | E74: 22908.56864 | F74: -145520.0606 | G74: -168428.6293 | H74: 22908.56864
A75: 72 | B75: 34414 | C75: 248912.92 | D75: 320481.6968 | E75: -71568.77684 | F75: -121146.0306 | G75: -49577.25379 | H75: -71568.77684
A76: 73 | B76: 52078 | C76: 328096.52 | D76: 466060.4151 | E76: -137963.8951 | F76: -41962.43063 | G76: 96001.4645 | H76: -137963.8951
A77: 74 | B77: 24507 | C77: 262965.83 | D77: 238832.6727 | E77: 24133.15728 | F77: -107093.1206 | G77: -131226.2779 | H77: 24133.15728
A78: 75 | B78: 28516 | C78: 334304.52 | D78: 271873.0419 | E78: 62431.47807 | F78: -35754.43063 | G78: -98185.90871 | H78: 62431.47807
A79: 76 | B79: 17554 | C79: 216060.84 | D79: 181529.1838 | E79: 34531.6562 | F79: -153998.1106 | G79: -188529.7668 | H79: 34531.6562
A80: 77 | B80: 16662 | C80: 183462.62 | D80: 174177.7223 | E80: 9284.897743 | F80: -186596.3306 | G80: -195881.2284 | H80: 9284.897743
A81: 78 | B81: 57162 | C81: 517013.54 | D81: 507960.4493 | E81: 9053.090683 | F81: 146954.5894 | G81: 137901.4987 | H81: 9053.090683
A82: 79 | B82: 57297 | C82: 731834.3 | D82: 509073.0584 | E82: 222761.2416 | F82: 361775.3494 | G82: 139014.1078 | H82: 222761.2416
A83: 80 | B83: 64112 | C83: 439159.84 | D83: 565239.2136 | E83: -126079.3736 | F83: 69100.88937 | G83: 195180.263 | H83: -126079.3736
A84: 81 | B84: 37237 | C84: 453649.08 | D84: 343747.5892 | E84: 109901.4908 | F84: 83590.12937 | G84: -26311.36148 | H84: 109901.4908
A85: 82 | B85: 55058 | C85: 495969.8 | D85: 490620.2306 | E85: 5349.569392 | F85: 125910.8494 | G85: 120561.28 | H85: 5349.569392
A86: 83 | B86: 30791 | C86: 306489.03 | D86: 290622.5655 | E86: 15866.46452 | F86: -63569.92063 | G86: -79436.38515 | H86: 15866.46452
A87: 84 | B87: 19784 | C87: 226868.96 | D87: 199907.8377 | E87: 26961.12234 | F87: -143189.9906 | G87: -170151.113 | H87: 26961.12234
A88: 85 | B88: 32463 | C88: 316845.86 | D88: 304402.4351 | E88: 12443.4249 | F88: -53213.09063 | G88: -65656.51553 | H88: 12443.4249
A89: 86 | B89: 59364 | C89: 496417.28 | D89: 526108.3398 | E89: -29691.05981 | F89: 126358.3294 | G89: 156049.3892 | H89: -29691.05981
A90: 87 | B90: 64632 | C90: 527881.68 | D90: 569524.819 | E90: -41643.13898 | F90: 157822.7294 | G90: 199465.8683 | H90: -41643.13898
A91: 88 | B91: 58106 | C91: 535766.16 | D91: 515740.4714 | E91: 20025.6886 | F91: 165707.2094 | G91: 145681.5208 | H91: 20025.6886
A92: 89 | B92: 60333 | C92: 469314.35 | D92: 534094.4006 | E92: -64780.05061 | F92: 99255.39937 | G92: 164035.45 | H92: -64780.05061
A93: 90 | B93: 58353 | C93: 558254.63 | D93: 517776.134 | E93: 40478.49604 | F93: 188195.6794 | G93: 147717.1833 | H93: 40478.49604
A94: 91 | B94: 22672 | C94: 197141.28 | D94: 223709.4306 | E94: -26568.15064 | F94: -172917.6706 | G94: -146349.52 | H94: -26568.15064
A95: 92 | B95: 64325 | C95: 563313.5 | D95: 566994.6635 | E95: -3681.163489 | F95: 193254.5494 | G95: 196935.7129 | H95: -3681.163489
A96: 93 | B96: 32326 | C96: 365825.02 | D96: 303273.3429 | E96: 62551.67708 | F96: -4233.930632 | G96: -66785.60772 | H96: 62551.67708
A97: 94 | B97: 16138 | C97: 206538.6 | D97: 169859.1507 | E97: 36679.44932 | F97: -163520.3506 | G97: -200199.8 | H97: 36679.44932
A98: 95 | B98: 34957 | C98: 320916.75 | D98: 324956.8579 | E98: -4040.107852 | F98: -49142.20063 | G98: -45102.09278 | H98: -4040.107852
A99: 96 | B99: 26159 | C99: 294325.06 | D99: 252447.7114 | E99: 41877.34863 | F99: -75733.89063 | G99: -117611.2393 | H99: 41877.34863
A100: 97 | B100: 42098 | C100: 329951.7 | D100: 383809.7579 | E100: -53858.05795 | F100: -40107.25063 | G100: 13750.80732 | H100: -53858.05795
A101: 98 | B101: 20582 | C101: 161277.7 | D101: 206484.5936 | E101: -45206.89362 | F101: -208781.2506 | G101: -163574.357 | H101: -45206.89362
A102: 99 | B102: 45614 | C102: 428140.06 | D102: 412787.0436 | E102: 15353.01641 | F102: 58081.10937 | G102: 42728.09296 | H102: 15353.01641
A103: 100 | B103: 42729 | C103: 433279.13 | D103: 389010.1753 | E103: 44268.95475 | F103: 63220.17937 | G103: 18951.22462 | H103: 44268.95475
A104: 101 | B104: 40053 | C104: 346792.73 | D104: 366955.7906 | E104: -20163.06062 | F104: -23266.22063 | G104: -3103.160012 | H104: -20163.06062
A105: 102 | B105: 51749 | C105: 540063.03 | D105: 463348.9456 | E105: 76714.08443 | F105: 170004.0794 | G105: 93289.99494 | H105: 76714.08443
A106: 103 | B106: 59753 | C106: 588972.06 | D106: 529314.3023 | E106: 59657.7577 | F106: 218913.1094 | G106: 159255.3517 | H106: 59657.7577
A107: 104 | B107: 34045 | C107: 290698.15 | D107: 317440.5653 | E107: -26742.41533 | F107: -79360.80063 | G107: -52618.3853 | H107: -26742.41533
A108: 105 | B108: 56384 | C108: 544487.68 | D108: 501548.5243 | E108: 42939.15566 | F108: 174428.7294 | G108: 131489.5737 | H108: 42939.15566
A109: 106 | B109: 33242 | C109: 206569.82 | D109: 310822.6016 | E109: -104252.7816 | F109: -163489.1306 | G109: -59236.349 | H109: -104252.7816
A110: 107 | B110: 49060 | C110: 550902.6 | D110: 441187.4208 | E110: 109715.1792 | F110: 180843.6494 | G110: 71128.47018 | H110: 109715.1792
A111: 108 | B111: 38219 | C111: 321737.09 | D111: 351840.7901 | E111: -30103.70009 | F111: -48321.86063 | G111: -18218.16054 | H111: -30103.70009
A112: 109 | B112: 56891 | C112: 568845.92 | D112: 505726.9896 | E112: 63118.93041 | F112: 198786.9694 | G112: 135668.039 | H112: 63118.93041
A113: 110 | B113: 52906 | C113: 426690.72 | D113: 472884.4176 | E113: -46193.69756 | F113: 56631.76937 | G113: 102825.4669 | H113: -46193.69756
A114: 111 | B114: 44835 | C114: 430649.15 | D114: 406366.8771 | E114: 24282.27294 | F114: 60590.19937 | G114: 36307.92643 | H114: 24282.27294
A115: 112 | B115: 45028 | C115: 400768.12 | D115: 407957.496 | E115: -7189.37598 | F115: 30709.16937 | G115: 37898.54535 | H115: -7189.37598
A116: 113 | B116: 15988 | C116: 175665.68 | D116: 168622.9184 | E116: 7042.761645 | F116: -194393.2706 | G116: -201436.0323 | H116: 7042.761645
A117: 114 | B117: 64717 | C117: 558028.45 | D117: 570225.3506 | E117: -12196.90062 | F117: 187969.4994 | G117: 200166.4 | H117: -12196.90062
A118: 115 | B118: 15196 | C118: 163514.12 | D118: 162095.6117 | E118: 1418.508307 | F118: -206544.8306 | G118: -207963.3389 | H118: 1418.508307
A119: 116 | B119: 45093 | C119: 398568.89 | D119: 408493.1967 | E119: -9924.306654 | F119: 28509.93937 | G119: 38434.24602 | H119: -9924.306654
A120: 117 | B120: 51099 | C120: 483830.51 | D120: 457991.9388 | E120: 25838.57116 | F120: 113771.5594 | G120: 87932.98821 | H120: 25838.57116
A121: 118 | B121: 40839 | C121: 292958.72 | D121: 373433.648 | E121: -80474.92799 | F121: -77100.23063 | G121: 3374.697357 | H121: -80474.92799
A122: 119 | B122: 29773 | C122: 275083.88 | D122: 282232.6688 | E122: -7148.788788 | F122: -94975.07063 | G122: -87826.28184 | H122: -7148.788788
A123: 120 | B123: 60954 | C123: 599805.08 | D123: 539212.4024 | E123: 60592.67757 | F123: 229746.1294 | G123: 169153.4518 | H123: 60592.67757
A124: 121 | B124: 53820 | C124: 524692.4 | D124: 480417.1932 | E124: 44275.20683 | F124: 154633.4494 | G124: 110358.2425 | H124: 44275.20683
A125: 122 | B125: 19365 | C125: 196012.1 | D125: 196454.6287 | E125: -442.5287078 | F125: -174046.8506 | G125: -173604.3219 | H125: -442.5287078
A126: 123 | B126: 39109 | C126: 360134.37 | D126: 359175.7685 | E126: 958.6014632 | F126: -9924.580632 | G126: -10883.18209 | H126: 958.6014632
A127: 124 | B127: 40439 | C127: 312044.72 | D127: 370137.0285 | E127: -58092.30846 | F127: -58014.23063 | G127: 78.07783089 | H127: -58092.30846
A128: 125 | B128: 35117 | C128: 268076.57 | D128: 326275.5057 | E128: -58198.93566 | F128: -101982.3806 | G128: -43783.44497 | H128: -58198.93566
A129: 126 | B129: 50624 | C129: 394243.2 | D129: 454077.2032 | E129: -59834.00316 | F129: 24184.24937 | G129: 84018.25252 | H129: -59834.00316
A130: 127 | B130: 55174 | C130: 474839.8 | D130: 491576.2503 | E130: -16736.45027 | F130: 104780.8494 | G130: 121517.2996 | H130: -16736.45027
A131: 128 | B131: 52278 | C131: 474497.36 | D131: 467708.7249 | E131: 6788.635101 | F131: 104438.4094 | G131: 97649.77427 | H131: 6788.635101
A132: 129 | B132: 30557 | C132: 301178.54 | D132: =$B$202*B132+$B$203 -> 288694.0431 | E132: =C132-D132 -> 12484.49694 | F132: -68880.41063 | G132: -81364.90757 | H132: 12484.49694
A133: 130 | B133: 62145 | C133: 642241.85 | D133: 549028.0871 | E133: 93213.76293 | F133: =(C133-$B$200) -> 272182.8994 | G133: =(D133-$B$200) -> 178969.1364 | H133: =E133 -> 93213.76293
A134: 131 | B134: 58106 | C134: 475335.92 | D134: 515740.4714 | E134: -40404.5514 | F134: 105276.9694 | G134: 145681.5208 | H134: -40404.5514
A135: 132 | B135: 55233 | C135: 543230.69 | D135: 492062.5017 | E135: 51168.18835 | F135: 173171.7394 | G135: 122003.551 | H135: 51168.18835
A136: 133 | B136: 51653 | C136: 343389.04 | D136: 462557.7569 | E136: -119168.7169 | F136: -26669.91063 | G136: 92498.80626 | H136: -119168.7169
A137: 134 | B137: 16221 | C137: 195989 | D137: 170543.1992 | E137: 25445.80077 | F137: -174069.9506 | G137: -199515.7514 | H137: 25445.80077
A138: 135 | B138: 28538 | C138: 295141.42 | D138: 272054.356 | E138: 23087.064 | F138: -74917.53063 | G138: -98004.59463 | H138: 23087.064
A139: 136 | B139: 33546 | C139: 355268.6 | D139: 313328.0325 | E139: 41940.56753 | F139: -14790.35063 | G139: -56730.91816 | H139: 41940.56753
A140: 137 | B140: 50539 | C140: 505356.39 | D140: 453376.6715 | E140: 51979.71849 | F140: 135297.4394 | G140: 83317.72088 | H140: 51979.71849
A141: 138 | B141: 14677 | C141: 180772.07 | D141: 157818.2479 | E141: 22953.82214 | F141: -189286.8806 | G141: -212240.7028 | H141: 22953.82214
A142: 139 | B142: 15835 | C142: 146751.85 | D142: 167361.9614 | E142: -20610.11139 | F142: -223307.1006 | G142: -202696.9892 | H142: -20610.11139
A143: 140 | B143: 24504 | C143: 198984.32 | D143: 238807.9481 | E143: -39823.62807 | F143: -171074.6306 | G143: -131251.0026 | H143: -39823.62807
A144: 141 | B144: 21816 | C144: 210783.92 | D144: 216654.6649 | E144: -5870.744857 | F144: -159275.0306 | G144: -153404.2858 | H144: -5870.744857
A145: 142 | B145: 28370 | C145: 246604.1 | D145: 270669.7758 | E145: -24065.6758 | F145: -123454.8506 | G145: -99389.17483 | H145: -24065.6758
A146: 143 | B146: 46733 | C146: 430873.95 | D146: 422009.3367 | E146: 8864.613288 | F146: 60814.99937 | G146: 51950.38608 | H146: 8864.613288
A147: 144 | B147: 46568 | C147: 393671.84 | D147: 420649.4812 | E147: -26977.64116 | F147: 23612.88937 | G147: 50590.53053 | H147: -26977.64116
A148: 145 | B148: 42540 | C148: 363945.2 | D148: 387452.5225 | E148: -23507.32253 | F148: -6113.750632 | G148: 17393.57189 | H148: -23507.32253
A149: 146 | B149: 39348 | C149: 275857.52 | D149: 361145.4987 | E149: -85287.9787 | F149: -94201.43063 | G149: -8913.451928 | H149: -85287.9787
A150: 147 | B150: 34125 | C150: 350641.25 | D150: 318099.8892 | E150: 32541.36076 | F150: -19417.70063 | G150: -51959.0614 | H150: 32541.36076
A151: 148 | B151: 61572 | C151: 580750.64 | D151: 544305.6796 | E151: 36444.9604 | F151: 210691.6894 | G151: 174246.729 | H151: 36444.9604
A152: 149 | B152: 54730 | C152: 410123.4 | D152: 487917.0026 | E152: -77793.6026 | F152: 40064.44937 | G152: 117858.052 | H152: -77793.6026
A153: 150 | B153: 38799 | C153: 332068.73 | D153: 356620.8884 | E153: -24552.1584 | F153: -37990.22063 | G153: -13438.06223 | H153: -24552.1584
A154: 151 | B154: 22293 | C154: 208949.09 | D154: 220585.8836 | E154: -11636.79364 | F154: -161109.8606 | G154: -149473.067 | H154: -11636.79364
A155: 152 | B155: 37202 | C155: 346499.94 | D155: 343459.1349 | E155: 3040.805056 | F155: -23559.01063 | G155: -26599.81569 | H155: 3040.805056
A156: 153 | B156: 53171 | C156: 474836.29 | D156: 475068.428 | E156: -232.1379916 | F156: 104777.3394 | G156: 105009.4774 | H156: -232.1379916
A157: 154 | B157: 33287 | C157: 255380.79 | D157: 311193.4713 | E157: -55812.68133 | F157: -114678.1606 | G157: -58865.4793 | H157: -55812.68133
A158: 155 | B158: 35445 | C158: 237858.5 | D158: 328978.7337 | E158: -91120.23367 | F158: -132200.4506 | G158: -41080.21696 | H158: -91120.23367
A159: 156 | B159: 21723 | C159: 224001.23 | D159: 215888.2008 | E159: 8113.029183 | F159: -146057.7206 | G159: -154170.7498 | H159: 8113.029183
A160: 157 | B160: 40939 | C160: 439329.89 | D160: 374257.8029 | E160: 65072.08713 | F160: 69270.93937 | G160: 4198.852239 | H160: 65072.08713
A161: 158 | B161: 45048 | C161: 362182.64 | D161: 408122.327 | E161: -45939.68696 | F161: -7876.310632 | G161: 38063.37633 | H161: -45939.68696
A162: 159 | B162: 30296 | C162: 299639.04 | D162: 286542.9988 | E162: 13096.04118 | F162: -70419.91063 | G162: -83515.95181 | H162: 13096.04118
A163: 160 | B163: 53521 | C163: 457210.54 | D163: 477952.9701 | E163: -20742.43008 | F163: 87151.58937 | G163: 107894.0194 | H163: -20742.43008
A164: 161 | B164: 24680 | C164: 209679.6 | D164: 240258.4607 | E164: -30578.86067 | F164: -160379.3506 | G164: -129800.49 | H164: -30578.86067
A165: 162 | B165: 46956 | C165: 426587.12 | D165: 423847.2021 | E165: 2739.917902 | F165: 56528.16937 | G165: 53788.25147 | H165: 2739.917902
A166: 163 | B166: 16392 | C166: 200150.72 | D166: 171952.5041 | E166: 28198.21592 | F166: -169908.2306 | G166: -198106.4466 | H166: 28198.21592
A167: 164 | B167: 53761 | C167: 534924.22 | D167: 479930.9418 | E167: 54993.27821 | F167: 164865.2694 | G167: 109871.9912 | H167: 54993.27821
A168: 165 | B168: 56104 | C168: 460681.28 | D168: 499240.8907 | E168: -38559.61067 | F168: 90622.32937 | G168: 129181.94 | H168: -38559.61067
A169: 166 | B169: 15241 | C169: 151200.24 | D169: 162466.4814 | E169: -11266.24139 | F169: -218858.7106 | G169: -207592.4692 | H169: -11266.24139
A170: 167 | B170: 19284 | C170: 212426.64 | D170: 195787.0633 | E170: 16639.57675 | F170: -157632.3106 | G170: -174271.8874 | H170: 16639.57675
A171: 168 | B171: 14673 | C171: 181763.54 | D171: 157785.2817 | E171: 23978.25834 | F171: -188295.4106 | G171: -212273.669 | H171: 23978.25834
A172: 169 | B172: 57793 | C172: 497895.75 | D172: 513160.8666 | E172: -15265.11662 | F172: 127836.7994 | G172: 143101.916 | H172: -15265.11662
A173: 170 | B173: 28259 | C173: 242161.2 | D173: 269754.9639 | E173: -27593.76388 | F173: -127897.7506 | G173: -100303.9868 | H173: -27593.76388
A174: 171 | B174: 30304 | C174: 206671.68 | D174: 286608.9312 | E174: -79937.25121 | F174: -163387.2706 | G174: -83450.01942 | H174: -79937.25121
A175: 172 | B175: 62568 | C175: 496735.52 | D175: 552514.2622 | E175: -55778.74222 | F175: 126676.5694 | G175: 182455.3116 | H175: -55778.74222
A176: 173 | B176: 56139 | C176: 513074.17 | D176: 499529.3449 | E176: 13544.82512 | F176: 143015.2194 | G176: 129470.3942 | H176: 13544.82512
A177: 174 | B177: 23120 | C177: 214614.4 | D177: 227401.6445 | E177: -12787.24451 | F177: -155444.5506 | G177: -142657.3061 | H177: -12787.24451
A178: 175 | B178: 17006 | C178: 110924.66 | D178: 177012.8151 | E178: -66088.15505 | F178: -259134.2906 | G178: -193046.1356 | H178: -66088.15505
A179: 176 | B179: 31596 | C179: 329940.56 | D179: 297257.0123 | E179: 32683.54772 | F179: -40118.39063 | G179: -72801.93835 | H179: 32683.54772
A180: 177 | B180: 40607 | C180: 363486.04 | D180: 371521.6087 | E180: -8035.568664 | F180: -6572.910632 | G180: 1462.658032 | H180: -8035.568664
A181: 178 | B181: 61771 | C181: 569494.11 | D181: 545945.7478 | E181: 23548.36219 | F181: 199435.1594 | G181: 175886.7972 | H181: 23548.36219
A182: 179 | B182: 30412 | C182: 279610.6 | D182: 287499.0185 | E182: -7888.418481 | F182: -90448.35063 | G182: -82559.93215 | H182: -7888.418481
A183: 180 | B183: 36947 | C183: 361463.21 | D183: 341357.54 | E183: 20105.67 | F183: -8595.740632 | G183: -28701.41064 | H183: 20105.67
A184: 181 | B184: 43194 | C184: 395552 | D184: 392842.4955 | E184: 2709.504549 | F184: 25493.04937 | G184: 22783.54482 | H184: 2709.504549
A185: 182 | B185: 56866 | C185: 492417.48 | D185: 505520.9509 | E185: -13103.47087 | F185: 122358.5294 | G185: 135462.0002 | H185: -13103.47087
A186: 183 | B186: 39851 | C186: 367213.96 | D186: 365290.9978 | E186: 1922.962242 | F186: -2844.990632 | G186: -4767.952873 | H186: 1922.962242
A187: 184 | B187: 36617 | C187: 312177.72 | D187: 338637.8289 | E187: -26460.10889 | F187: -57881.23063 | G187: -31421.12174 | H187: -26460.10889
A188: 185 | B188: 46438 | C188: 331878.66 | D188: 419578.0798 | E188: -87699.41981 | F188: -38180.29063 | G188: 49519.12918 | H188: -87699.41981
A189: 186 | B189: 27520 | C189: 266032 | D189: 263664.4593 | E189: 2367.540695 | F189: -104026.9506 | G189: -106394.4913 | H189: 2367.540695
A190: 187 | B190: 28852 | C190: 311399.12 | D190: 274642.2023 | E190: 36756.91767 | F190: -58659.83063 | G190: -95416.7483 | H190: 36756.91767
A191: 188 | B191: 60878 | C191: 505367.44 | D191: 538586.0447 | E191: -33218.60472 | F191: 135308.4894 | G191: 168527.0941 | H191: -33218.60472
A192: 189 | B192: 32779 | C192: 211928.26 | D192: 307006.7645 | E192: -95078.50453 | F192: -158130.6906 | G192: -63052.1861 | H192: -95078.50453
A193: 190 | B193: 49959 | C193: 401211.77 | D193: 448596.5732 | E193: -47384.80319 | F193: 31152.81937 | G193: 78537.62256 | H193: -47384.80319
B194: Total | C194: =SUM(C4:C193) -> 70311200.62 | D194: =SUM(D4:D193) -> 70311200.62 | E194: =SUM(E4:E193) -> -3.352761269e-08 | F194: =SUM(F4:F193) -> -3.891182132e-08 | G194: -4.045432433e-09 | H194: -3.352761269e-08
A198: Count = n = | B198: =COUNT(A4:A193) -> 190 | C198: =" "&IF(_xlfn.ISFORMULA(B198),_xlfn.FORMULATEXT(B198),"") -> =COUNT(A4:A193)
A199: n-1 | B199: =B198-1 -> 189 | C199: =B198-1
A200: Xbar | B200: =AVERAGE(C4:C193) -> 370058.9506 | C200: =AVERAGE(C4:C193)
A201: Ybar | B201: =AVERAGE(B4:B193) -> 40429.52632 | C201: =AVERAGE(B4:B193)
A202: Slope = b1 = | B202: =SLOPE(C4:C193,B4:B193) -> 8.241548816 | C202: =SLOPE(C4:C193,B4:B193)
A203: y-intercept = b0 = | B203: =INTERCEPT(C4:C193,B4:B193) -> 36857.03588 | C203: =INTERCEPT(C4:C193,B4:B193)
... 8 more rows

Sheet Chart
A1: ith Sample Point | B1: Weekly $ Ad Expense (x) | C1: Weekly $ Sales (y) | D1: Predicted = ŷi = b1*Xi+b0 | E1: ith Residual = ei =Yi - ŷi
A2: 1 | B2: 63566 | C2: 651334.36 | D2: =FORECAST(B2,$C$2:$C$191,$B$2:$B$191) -> 560739.3279 | E2: =C2-D2 -> 90595.03206
A3: 2 | B3: 50762 | C3: 527670.42 | D3: =FORECAST(B3,$C$2:$C$191,$B$2:$B$191) -> 455214.5369 | E3: =C3-D3 -> 72455.88311
A4: 3 | B4: 50941 | C4: 523751.3 | D4: 456689.7741 | E4: 67061.52587
A5: 4 | B5: 17597 | C5: 175466.61 | D5: 181883.5704 | E5: -6416.960401
A6: 5 | B6: 33029 | C6: 377977.97 | D6: 309067.1517 | E6: 68910.81827
A7: 6 | B7: 58543 | C7: 520100.29 | D7: 519342.0282 | E7: 758.2617673
A8: 7 | B8: 60492 | C8: 620856.28 | D8: 535404.8069 | E8: 85451.47312
A9: 8 | B9: 59686 | C9: 593739.46 | D9: 528762.1185 | E9: 64977.34147
A10: 9 | B10: 16432 | C10: 181948.96 | D10: 172282.166 | E10: 9666.79397
A11: 10 | B11: 17262 | C11: 184643.6 | D11: 179122.6515 | E11: 5520.948453
A12: 11 | B12: 39118 | C12: 379373.56 | D12: 359249.9425 | E12: 20123.61752
A13: 12 | B13: 36078 | C13: 238687.94 | D13: 334195.6341 | E13: -95507.69407
A14: 13 | B14: 42113 | C14: 410066.15 | D14: 383933.3812 | E14: 26132.76882
A15: 14 | B15: 50562 | C15: 413540.78 | D15: 453566.2271 | E15: -40025.44713
A16: 15 | B16: 38240 | C16: 340241.6 | D16: 352013.8626 | E16: -11772.26262
A17: 16 | B17: 59870 | C17: 582843 | D17: 530278.5635 | E17: 52564.43649
A18: 17 | B18: 46056 | C18: 433185.92 | D18: 416429.8082 | E18: 16756.11184
A19: 18 | B19: 33349 | C19: 270770.38 | D19: 311704.4474 | E19: -40934.06735
A20: 19 | B20: 16207 | C20: 164421.42 | D20: 170427.8175 | E20: -6006.397546
A21: 20 | B21: 57077 | C21: 478077.5 | D21: 507259.9177 | E21: -29182.41767
A22: 21 | B22: 30893 | C22: 393839.09 | D22: 291463.2035 | E22: 102375.8865
A23: 22 | B23: 54153 | C23: 430154.06 | D23: 483161.6289 | E23: -53007.56893
A24: 23 | B24: 14591 | C24: 210792.82 | D24: 157109.4747 | E24: 53683.34534
A25: 24 | B25: 50138 | C25: 343808.68 | D25: 450071.8104 | E25: -106263.1304
A26: 25 | B26: 55253 | C26: 565510.49 | D26: 492227.3326 | E26: 73283.15737
A27: 26 | B27: 34944 | C27: 330250.88 | D27: 324849.7177 | E27: 5401.162283
A28: 27 | B28: 26413 | C28: 295905.03 | D28: 254541.0648 | E28: 41363.96523
A29: 28 | B29: 54660 | C29: 562164.2 | D29: 487340.0942 | E29: 74824.10582
A30: 29 | B30: 35887 | C30: 257067.99 | D30: 332621.4983 | E30: -75553.50825
A31: 30 | B31: 42021 | C31: 384066.95 | D31: 383175.1587 | E31: 891.7913101
A32: 31 | B32: 47349 | C32: 441576.23 | D32: 427086.1308 | E32: 14490.09922
A33: 32 | B33: 24364 | C33: 252221.2 | D33: 237654.1312 | E33: 14567.06876
A34: 33 | B34: 58406 | C34: 552875.66 | D34: 518212.936 | E34: 34662.72396
A35: 34 | B35: 51643 | C35: 446101.81 | D35: 462475.3414 | E35: -16373.5314
A36: 35 | B36: 55115 | C36: 476038.95 | D36: 491089.9989 | E36: -15051.04889
A37: 36 | B37: 35416 | C37: 393889.36 | D37: 328739.7288 | E37: 65149.63124
A38: 37 | B38: 37274 | C38: 328436.78 | D38: 344052.5265 | E38: -15615.74646
A39: 38 | B39: 36148 | C39: 408949.64 | D39: 334772.5425 | E39: 74177.09751
A40: 39 | B40: 32192 | C40: 394776.32 | D40: 302168.9754 | E40: 92607.34463
A41: 40 | B41: 51238 | C41: 455804.96 | D41: 459137.5141 | E41: -3332.55413
A42: 41 | B42: 59235 | C42: 526249.4 | D42: 525045.18 | E42: 1204.219986
A43: 42 | B43: 59329 | C43: 562602.56 | D43: 525819.8856 | E43: 36782.6744
A44: 43 | B44: 22739 | C44: 180749.25 | D44: 224261.6144 | E44: -43512.36441
A45: 44 | B45: 28654 | C45: 275506.98 | D45: 273010.3757 | E45: 2496.604338
A46: 45 | B46: 36786 | C46: 372981.08 | D46: 340030.6506 | E46: 32950.42936
A47: 46 | B47: 20813 | C47: 216087.74 | D47: 208388.3914 | E47: 7699.348606
A48: 47 | B48: 57259 | C48: 470281.06 | D48: 508759.8796 | E48: -38478.81955
A49: 48 | B49: 57707 | C49: 481071.29 | D49: 512452.0934 | E49: -31380.80342
A50: 49 | B50: 61539 | C50: 612466.46 | D50: 544033.7085 | E50: 68432.75151
A51: 50 | B51: 36635 | C51: 370922.6 | D51: 338786.1768 | E51: 32136.42323
A52: 51 | B52: 39086 | C52: 448677.2 | D52: 358986.2129 | E52: 89690.98709
A53: 52 | B53: 33062 | C53: 259282.46 | D53: 309339.1228 | E53: -50056.66284
A54: 53 | B54: 42144 | C54: 354279.68 | D54: 384188.8692 | E54: -29909.18919
A55: 54 | B55: 18828 | C55: 185749.88 | D55: 192028.917 | E55: -6279.036993
A56: 55 | B56: 57070 | C56: 415818.7 | D56: 507202.2268 | E56: -91383.52683
A57: 56 | B57: 27991 | C57: 252095.02 | D57: 267546.2288 | E57: -15451.2088
A58: 57 | B58: 37876 | C58: 329524.88 | D58: 349013.9388 | E58: -19489.05885
A59: 58 | B59: 16134 | C59: 233120.9 | D59: 169826.1845 | E59: 63294.71552
A60: 59 | B60: 55466 | C60: 376140.08 | D60: 493982.7825 | E60: -117842.7025
A61: 60 | B61: 26100 | C61: 208166 | D61: 251961.46 | E61: -43795.45999
A62: 61 | B62: 23787 | C62: 226261.67 | D62: 232898.7576 | E62: -6637.087573
A63: 62 | B63: 30895 | C63: 249581.7 | D63: 291479.6866 | E63: -41897.98656
A64: 63 | B64: 31845 | C64: 278010.2 | D64: 299309.1579 | E64: -21298.95794
A65: 64 | B65: 50618 | C65: 537451.34 | D65: 454027.7539 | E65: 83423.58614
A66: 65 | B66: 62293 | C66: 448052.27 | D66: 550247.8363 | E66: -102195.5663
A67: 66 | B67: 61228 | C67: 519618.76 | D67: =FORECAST(B67,$C$2:$C$191,$B$2:$B$191) -> 541470.5868 | E67: =C67-D67 -> -21851.8268
A68: 67 | B68: 32558 | C68: 364510.28 | D68: 305185.3822 | E68: 59324.89776
A69: 68 | B69: 40694 | C69: 351135.6 | D69: 372238.6234 | E69: -21103.02341
A70: 69 | B70: 46333 | C70: 390547.55 | D70: 418712.7172 | E70: -28165.16719
A71: 70 | B71: 28415 | C71: 234129.2 | D71: 271040.6455 | E71: -36911.4455
A72: 71 | B72: 19993 | C72: 224538.89 | D72: 201630.3214 | E72: 22908.56864
A73: 72 | B73: 34414 | C73: 248912.92 | D73: 320481.6968 | E73: -71568.77684
A74: 73 | B74: 52078 | C74: 328096.52 | D74: 466060.4151 | E74: -137963.8951
A75: 74 | B75: 24507 | C75: 262965.83 | D75: 238832.6727 | E75: 24133.15728
A76: 75 | B76: 28516 | C76: 334304.52 | D76: 271873.0419 | E76: 62431.47807
A77: 76 | B77: 17554 | C77: 216060.84 | D77: 181529.1838 | E77: 34531.6562
A78: 77 | B78: 16662 | C78: 183462.62 | D78: 174177.7223 | E78: 9284.897743
A79: 78 | B79: 57162 | C79: 517013.54 | D79: 507960.4493 | E79: 9053.090683
A80: 79 | B80: 57297 | C80: 731834.3 | D80: 509073.0584 | E80: 222761.2416
A81: 80 | B81: 64112 | C81: 439159.84 | D81: 565239.2136 | E81: -126079.3736
A82: 81 | B82: 37237 | C82: 453649.08 | D82: 343747.5892 | E82: 109901.4908
A83: 82 | B83: 55058 | C83: 495969.8 | D83: 490620.2306 | E83: 5349.569392
A84: 83 | B84: 30791 | C84: 306489.03 | D84: 290622.5655 | E84: 15866.46452
A85: 84 | B85: 19784 | C85: 226868.96 | D85: 199907.8377 | E85: 26961.12234
A86: 85 | B86: 32463 | C86: 316845.86 | D86: 304402.4351 | E86: 12443.4249
A87: 86 | B87: 59364 | C87: 496417.28 | D87: 526108.3398 | E87: -29691.05981
A88: 87 | B88: 64632 | C88: 527881.68 | D88: 569524.819 | E88: -41643.13898
A89: 88 | B89: 58106 | C89: 535766.16 | D89: 515740.4714 | E89: 20025.6886
A90: 89 | B90: 60333 | C90: 469314.35 | D90: 534094.4006 | E90: -64780.05061
A91: 90 | B91: 58353 | C91: 558254.63 | D91: 517776.134 | E91: 40478.49604
A92: 91 | B92: 22672 | C92: 197141.28 | D92: 223709.4306 | E92: -26568.15064
A93: 92 | B93: 64325 | C93: 563313.5 | D93: 566994.6635 | E93: -3681.163489
A94: 93 | B94: 32326 | C94: 365825.02 | D94: 303273.3429 | E94: 62551.67708
A95: 94 | B95: 16138 | C95: 206538.6 | D95: 169859.1507 | E95: 36679.44932
A96: 95 | B96: 34957 | C96: 320916.75 | D96: 324956.8579 | E96: -4040.107852
A97: 96 | B97: 26159 | C97: 294325.06 | D97: 252447.7114 | E97: 41877.34863
A98: 97 | B98: 42098 | C98: 329951.7 | D98: 383809.7579 | E98: -53858.05795
A99: 98 | B99: 20582 | C99: 161277.7 | D99: 206484.5936 | E99: -45206.89362
A100: 99 | B100: 45614 | C100: 428140.06 | D100: 412787.0436 | E100: 15353.01641
A101: 100 | B101: 42729 | C101: 433279.13 | D101: 389010.1753 | E101: 44268.95475
A102: 101 | B102: 40053 | C102: 346792.73 | D102: 366955.7906 | E102: -20163.06062
A103: 102 | B103: 51749 | C103: 540063.03 | D103: 463348.9456 | E103: 76714.08443
A104: 103 | B104: 59753 | C104: 588972.06 | D104: 529314.3023 | E104: 59657.7577
A105: 104 | B105: 34045 | C105: 290698.15 | D105: 317440.5653 | E105: -26742.41533
A106: 105 | B106: 56384 | C106: 544487.68 | D106: 501548.5243 | E106: 42939.15566
A107: 106 | B107: 33242 | C107: 206569.82 | D107: 310822.6016 | E107: -104252.7816
A108: 107 | B108: 49060 | C108: 550902.6 | D108: 441187.4208 | E108: 109715.1792
A109: 108 | B109: 38219 | C109: 321737.09 | D109: 351840.7901 | E109: -30103.70009
A110: 109 | B110: 56891 | C110: 568845.92 | D110: 505726.9896 | E110: 63118.93041
A111: 110 | B111: 52906 | C111: 426690.72 | D111: 472884.4176 | E111: -46193.69756
A112: 111 | B112: 44835 | C112: 430649.15 | D112: 406366.8771 | E112: 24282.27294
A113: 112 | B113: 45028 | C113: 400768.12 | D113: 407957.496 | E113: -7189.37598
A114: 113 | B114: 15988 | C114: 175665.68 | D114: 168622.9184 | E114: 7042.761645
A115: 114 | B115: 64717 | C115: 558028.45 | D115: 570225.3506 | E115: -12196.90062
A116: 115 | B116: 15196 | C116: 163514.12 | D116: 162095.6117 | E116: 1418.508307
A117: 116 | B117: 45093 | C117: 398568.89 | D117: 408493.1967 | E117: -9924.306654
A118: 117 | B118: 51099 | C118: 483830.51 | D118: 457991.9388 | E118: 25838.57116
A119: 118 | B119: 40839 | C119: 292958.72 | D119: 373433.648 | E119: -80474.92799
A120: 119 | B120: 29773 | C120: 275083.88 | D120: 282232.6688 | E120: -7148.788788
A121: 120 | B121: 60954 | C121: 599805.08 | D121: 539212.4024 | E121: 60592.67757
A122: 121 | B122: 53820 | C122: 524692.4 | D122: 480417.1932 | E122: 44275.20683
A123: 122 | B123: 19365 | C123: 196012.1 | D123: 196454.6287 | E123: -442.5287078
A124: 123 | B124: 39109 | C124: 360134.37 | D124: 359175.7685 | E124: 958.6014632
A125: 124 | B125: 40439 | C125: 312044.72 | D125: 370137.0285 | E125: -58092.30846
A126: 125 | B126: 35117 | C126: 268076.57 | D126: 326275.5057 | E126: -58198.93566
A127: 126 | B127: 50624 | C127: 394243.2 | D127: 454077.2032 | E127: -59834.00316
A128: 127 | B128: 55174 | C128: 474839.8 | D128: 491576.2503 | E128: -16736.45027
A129: 128 | B129: 52278 | C129: 474497.36 | D129: 467708.7249 | E129: 6788.635101
A130: 129 | B130: 30557 | C130: 301178.54 | D130: 288694.0431 | E130: 12484.49694
A131: 130 | B131: 62145 | C131: 642241.85 | D131: =FORECAST(B131,$C$2:$C$191,$B$2:$B$191) -> 549028.0871 | E131: =C131-D131 -> 93213.76293
A132: 131 | B132: 58106 | C132: 475335.92 | D132: 515740.4714 | E132: -40404.5514
A133: 132 | B133: 55233 | C133: 543230.69 | D133: 492062.5017 | E133: 51168.18835
A134: 133 | B134: 51653 | C134: 343389.04 | D134: 462557.7569 | E134: -119168.7169
A135: 134 | B135: 16221 | C135: 195989 | D135: 170543.1992 | E135: 25445.80077
A136: 135 | B136: 28538 | C136: 295141.42 | D136: 272054.356 | E136: 23087.064
A137: 136 | B137: 33546 | C137: 355268.6 | D137: 313328.0325 | E137: 41940.56753
A138: 137 | B138: 50539 | C138: 505356.39 | D138: 453376.6715 | E138: 51979.71849
A139: 138 | B139: 14677 | C139: 180772.07 | D139: 157818.2479 | E139: 22953.82214
A140: 139 | B140: 15835 | C140: 146751.85 | D140: 167361.9614 | E140: -20610.11139
A141: 140 | B141: 24504 | C141: 198984.32 | D141: 238807.9481 | E141: -39823.62807
A142: 141 | B142: 21816 | C142: 210783.92 | D142: 216654.6649 | E142: -5870.744857
A143: 142 | B143: 28370 | C143: 246604.1 | D143: 270669.7758 | E143: -24065.6758
A144: 143 | B144: 46733 | C144: 430873.95 | D144: 422009.3367 | E144: 8864.613288
A145: 144 | B145: 46568 | C145: 393671.84 | D145: 420649.4812 | E145: -26977.64116
A146: 145 | B146: 42540 | C146: 363945.2 | D146: 387452.5225 | E146: -23507.32253
A147: 146 | B147: 39348 | C147: 275857.52 | D147: 361145.4987 | E147: -85287.9787
A148: 147 | B148: 34125 | C148: 350641.25 | D148: 318099.8892 | E148: 32541.36076
A149: 148 | B149: 61572 | C149: 580750.64 | D149: 544305.6796 | E149: 36444.9604
A150: 149 | B150: 54730 | C150: 410123.4 | D150: 487917.0026 | E150: -77793.6026
A151: 150 | B151: 38799 | C151: 332068.73 | D151: 356620.8884 | E151: -24552.1584
A152: 151 | B152: 22293 | C152: 208949.09 | D152: 220585.8836 | E152: -11636.79364
A153: 152 | B153: 37202 | C153: 346499.94 | D153: 343459.1349 | E153: 3040.805056
A154: 153 | B154: 53171 | C154: 474836.29 | D154: 475068.428 | E154: -232.1379916
A155: 154 | B155: 33287 | C155: 255380.79 | D155: 311193.4713 | E155: -55812.68133
A156: 155 | B156: 35445 | C156: 237858.5 | D156: 328978.7337 | E156: -91120.23367
A157: 156 | B157: 21723 | C157: 224001.23 | D157: 215888.2008 | E157: 8113.029183
A158: 157 | B158: 40939 | C158: 439329.89 | D158: 374257.8029 | E158: 65072.08713
A159: 158 | B159: 45048 | C159: 362182.64 | D159: 408122.327 | E159: -45939.68696
A160: 159 | B160: 30296 | C160: 299639.04 | D160: 286542.9988 | E160: 13096.04118
A161: 160 | B161: 53521 | C161: 457210.54 | D161: 477952.9701 | E161: -20742.43008
A162: 161 | B162: 24680 | C162: 209679.6 | D162: 240258.4607 | E162: -30578.86067
A163: 162 | B163: 46956 | C163: 426587.12 | D163: 423847.2021 | E163: 2739.917902
A164: 163 | B164: 16392 | C164: 200150.72 | D164: 171952.5041 | E164: 28198.21592
A165: 164 | B165: 53761 | C165: 534924.22 | D165: 479930.9418 | E165: 54993.27821
A166: 165 | B166: 56104 | C166: 460681.28 | D166: 499240.8907 | E166: -38559.61067
A167: 166 | B167: 15241 | C167: 151200.24 | D167: 162466.4814 | E167: -11266.24139
A168: 167 | B168: 19284 | C168: 212426.64 | D168: 195787.0633 | E168: 16639.57675
A169: 168 | B169: 14673 | C169: 181763.54 | D169: 157785.2817 | E169: 23978.25834
A170: 169 | B170: 57793 | C170: 497895.75 | D170: 513160.8666 | E170: -15265.11662
A171: 170 | B171: 28259 | C171: 242161.2 | D171: 269754.9639 | E171: -27593.76388
A172: 171 | B172: 30304 | C172: 206671.68 | D172: 286608.9312 | E172: -79937.25121
A173: 172 | B173: 62568 | C173: 496735.52 | D173: 552514.2622 | E173: -55778.74222
A174: 173 | B174: 56139 | C174: 513074.17 | D174: 499529.3449 | E174: 13544.82512
A175: 174 | B175: 23120 | C175: 214614.4 | D175: 227401.6445 | E175: -12787.24451
A176: 175 | B176: 17006 | C176: 110924.66 | D176: 177012.8151 | E176: -66088.15505
A177: 176 | B177: 31596 | C177: 329940.56 | D177: 297257.0123 | E177: 32683.54772
A178: 177 | B178: 40607 | C178: 363486.04 | D178: 371521.6087 | E178: -8035.568664
A179: 178 | B179: 61771 | C179: 569494.11 | D179: 545945.7478 | E179: 23548.36219
A180: 179 | B180: 30412 | C180: 279610.6 | D180: 287499.0185 | E180: -7888.418481
A181: 180 | B181: 36947 | C181: 361463.21 | D181: 341357.54 | E181: 20105.67
A182: 181 | B182: 43194 | C182: 395552 | D182: 392842.4955 | E182: 2709.504549
A183: 182 | B183: 56866 | C183: 492417.48 | D183: 505520.9509 | E183: -13103.47087
A184: 183 | B184: 39851 | C184: 367213.96 | D184: 365290.9978 | E184: 1922.962242
A185: 184 | B185: 36617 | C185: 312177.72 | D185: 338637.8289 | E185: -26460.10889
A186: 185 | B186: 46438 | C186: 331878.66 | D186: 419578.0798 | E186: -87699.41981
A187: 186 | B187: 27520 | C187: 266032 | D187: 263664.4593 | E187: 2367.540695
A188: 187 | B188: 28852 | C188: 311399.12 | D188: 274642.2023 | E188: 36756.91767
A189: 188 | B189: 60878 | C189: 505367.44 | D189: 538586.0447 | E189: -33218.60472
A190: 189 | B190: 32779 | C190: 211928.26 | D190: 307006.7645 | E190: -95078.50453
A191: 190 | B191: 49959 | C191: 401211.77 | D191: 448596.5732 | E191: -47384.80319
B192: Total | C192: =SUM(C2:C191) -> 70311200.62 | D192: =SUM(D2:D191) -> 70311200.62 | E192: =SUM(E2:E191) -> -3.352761269e-08
C194: Note 1: ΣYi = Σŷi | E194: Note 2: Σei = 0
A213: =A1 -> ith Sample Point | B213: =B1 -> Weekly $ Ad Expense (x) | C213: =C1 -> Weekly $ Sales (y) | D213: =D1 -> Predicted = ŷi = b1*Xi+b0 | E213: =E1 -> ith Residual = ei =Yi - ŷi | F213: Positive Residuals | G213: Negative Residuals | H213: Ybar Deviations | I213: Ybar Positive Error | J213: Ybar Negative Error
A214: =A2 -> 1 | B214: 63566 | C214: 651334.36 | D214: =FORECAST(B214,$C$2:$C$191,$B$2:$B$191) -> 560739.3279 | E214: =C214-D214 -> 90595.03206 | F214: =IF(E214>=0,-E214,"") -> -90595.03206 | G214: =IF(ISNUMBER(F214),"",E214) ->  | H214: =$C214-AVERAGE($C$2:$C$191) -> 281275.4094 | I214: =IF(H214<0,-H214,"") ->  | J214: =IF(H214>0,H214,"") -> 281275.4094
A215: 2 | B215: 50762 | C215: 527670.42 | D215: =FORECAST(B215,$C$2:$C$191,$B$2:$B$191) -> 455214.5369 | E215: =C215-D215 -> 72455.88311 | F215: -72455.88311 | H215: =$C215-AVERAGE($C$2:$C$191) -> 157611.4694 | I215: =IF(H215<0,-H215,"") ->  | J215: =IF(H215>0,H215,"") -> 157611.4694
A216: 3 | B216: 50941 | C216: 523751.3 | D216: 456689.7741 | E216: 67061.52587 | F216: -67061.52587 | H216: 153692.3494 | J216: 153692.3494
A217: 4 | B217: 17597 | C217: 175466.61 | D217: 181883.5704 | E217: -6416.960401 | G217: -6416.960401 | H217: -194592.3406 | I217: 194592.3406
A218: 5 | B218: 33029 | C218: 377977.97 | D218: 309067.1517 | E218: 68910.81827 | F218: -68910.81827 | H218: 7919.019368 | J218: 7919.019368
A219: 6 | B219: 58543 | C219: 520100.29 | D219: 519342.0282 | E219: 758.2617673 | F219: -758.2617673 | H219: 150041.3394 | J219: 150041.3394
... 9 more rows

Sheet Think
A1: ith Sample Point | B1: Weekly $ Ad Expense (x) | C1: Weekly $ Sales (y) | D1: Predicted = ŷi = b1*Xi+b0 | E1: ith Residual = ei =Yi - ŷi
A2: 1 | B2: 63566 | C2: 651334.36 | D2: =FORECAST(B2,$C$2:$C$191,$B$2:$B$191) -> 560739.3279 | E2: =C2-D2 -> 90595.03206
A3: 2 | B3: 50762 | C3: 527670.42 | D3: =FORECAST(B3,$C$2:$C$191,$B$2:$B$191) -> 455214.5369 | E3: =C3-D3 -> 72455.88311
A4: 3 | B4: 50941 | C4: 523751.3 | D4: 456689.7741 | E4: 67061.52587
A5: 4 | B5: 17597 | C5: 175466.61 | D5: 181883.5704 | E5: -6416.960401
A6: 5 | B6: 33029 | C6: 377977.97 | D6: 309067.1517 | E6: 68910.81827
A7: 6 | B7: 58543 | C7: 520100.29 | D7: 519342.0282 | E7: 758.2617673
A8: 7 | B8: 60492 | C8: 620856.28 | D8: 535404.8069 | E8: 85451.47312
A9: 8 | B9: 59686 | C9: 593739.46 | D9: 528762.1185 | E9: 64977.34147
A10: 9 | B10: 16432 | C10: 181948.96 | D10: 172282.166 | E10: 9666.79397
A11: 10 | B11: 17262 | C11: 184643.6 | D11: 179122.6515 | E11: 5520.948453
A12: 11 | B12: 39118 | C12: 379373.56 | D12: 359249.9425 | E12: 20123.61752
A13: 12 | B13: 36078 | C13: 238687.94 | D13: 334195.6341 | E13: -95507.69407
A14: 13 | B14: 42113 | C14: 410066.15 | D14: 383933.3812 | E14: 26132.76882
A15: 14 | B15: 50562 | C15: 413540.78 | D15: 453566.2271 | E15: -40025.44713
A16: 15 | B16: 38240 | C16: 340241.6 | D16: 352013.8626 | E16: -11772.26262
A17: 16 | B17: 59870 | C17: 582843 | D17: 530278.5635 | E17: 52564.43649
A18: 17 | B18: 46056 | C18: 433185.92 | D18: 416429.8082 | E18: 16756.11184
A19: 18 | B19: 33349 | C19: 270770.38 | D19: 311704.4474 | E19: -40934.06735
A20: 19 | B20: 16207 | C20: 164421.42 | D20: 170427.8175 | E20: -6006.397546
A21: 20 | B21: 57077 | C21: 478077.5 | D21: 507259.9177 | E21: -29182.41767
A22: 21 | B22: 30893 | C22: 393839.09 | D22: 291463.2035 | E22: 102375.8865
A23: 22 | B23: 54153 | C23: 430154.06 | D23: 483161.6289 | E23: -53007.56893
A24: 23 | B24: 14591 | C24: 210792.82 | D24: 157109.4747 | E24: 53683.34534
A25: 24 | B25: 50138 | C25: 343808.68 | D25: 450071.8104 | E25: -106263.1304
A26: 25 | B26: 55253 | C26: 565510.49 | D26: 492227.3326 | E26: 73283.15737
A27: 26 | B27: 34944 | C27: 330250.88 | D27: 324849.7177 | E27: 5401.162283
A28: 27 | B28: 26413 | C28: 295905.03 | D28: 254541.0648 | E28: 41363.96523
A29: 28 | B29: 54660 | C29: 562164.2 | D29: 487340.0942 | E29: 74824.10582
A30: 29 | B30: 35887 | C30: 257067.99 | D30: 332621.4983 | E30: -75553.50825
A31: 30 | B31: 42021 | C31: 384066.95 | D31: 383175.1587 | E31: 891.7913101
A32: 31 | B32: 47349 | C32: 441576.23 | D32: 427086.1308 | E32: 14490.09922
A33: 32 | B33: 24364 | C33: 252221.2 | D33: 237654.1312 | E33: 14567.06876
A34: 33 | B34: 58406 | C34: 552875.66 | D34: 518212.936 | E34: 34662.72396
A35: 34 | B35: 51643 | C35: 446101.81 | D35: 462475.3414 | E35: -16373.5314
A36: 35 | B36: 55115 | C36: 476038.95 | D36: 491089.9989 | E36: -15051.04889
A37: 36 | B37: 35416 | C37: 393889.36 | D37: 328739.7288 | E37: 65149.63124
A38: 37 | B38: 37274 | C38: 328436.78 | D38: 344052.5265 | E38: -15615.74646
A39: 38 | B39: 36148 | C39: 408949.64 | D39: 334772.5425 | E39: 74177.09751
A40: 39 | B40: 32192 | C40: 394776.32 | D40: 302168.9754 | E40: 92607.34463
A41: 40 | B41: 51238 | C41: 455804.96 | D41: 459137.5141 | E41: -3332.55413
A42: 41 | B42: 59235 | C42: 526249.4 | D42: 525045.18 | E42: 1204.219986
A43: 42 | B43: 59329 | C43: 562602.56 | D43: 525819.8856 | E43: 36782.6744
A44: 43 | B44: 22739 | C44: 180749.25 | D44: 224261.6144 | E44: -43512.36441
A45: 44 | B45: 28654 | C45: 275506.98 | D45: 273010.3757 | E45: 2496.604338
A46: 45 | B46: 36786 | C46: 372981.08 | D46: 340030.6506 | E46: 32950.42936
A47: 46 | B47: 20813 | C47: 216087.74 | D47: 208388.3914 | E47: 7699.348606
A48: 47 | B48: 57259 | C48: 470281.06 | D48: 508759.8796 | E48: -38478.81955
A49: 48 | B49: 57707 | C49: 481071.29 | D49: 512452.0934 | E49: -31380.80342
A50: 49 | B50: 61539 | C50: 612466.46 | D50: 544033.7085 | E50: 68432.75151
A51: 50 | B51: 36635 | C51: 370922.6 | D51: 338786.1768 | E51: 32136.42323
A52: 51 | B52: 39086 | C52: 448677.2 | D52: 358986.2129 | E52: 89690.98709
A53: 52 | B53: 33062 | C53: 259282.46 | D53: 309339.1228 | E53: -50056.66284
A54: 53 | B54: 42144 | C54: 354279.68 | D54: 384188.8692 | E54: -29909.18919
A55: 54 | B55: 18828 | C55: 185749.88 | D55: 192028.917 | E55: -6279.036993
A56: 55 | B56: 57070 | C56: 415818.7 | D56: 507202.2268 | E56: -91383.52683
A57: 56 | B57: 27991 | C57: 252095.02 | D57: 267546.2288 | E57: -15451.2088
A58: 57 | B58: 37876 | C58: 329524.88 | D58: 349013.9388 | E58: -19489.05885
A59: 58 | B59: 16134 | C59: 233120.9 | D59: 169826.1845 | E59: 63294.71552
A60: 59 | B60: 55466 | C60: 376140.08 | D60: 493982.7825 | E60: -117842.7025
A61: 60 | B61: 26100 | C61: 208166 | D61: 251961.46 | E61: -43795.45999
A62: 61 | B62: 23787 | C62: 226261.67 | D62: 232898.7576 | E62: -6637.087573
A63: 62 | B63: 30895 | C63: 249581.7 | D63: 291479.6866 | E63: -41897.98656
A64: 63 | B64: 31845 | C64: 278010.2 | D64: 299309.1579 | E64: -21298.95794
A65: 64 | B65: 50618 | C65: 537451.34 | D65: 454027.7539 | E65: 83423.58614
A66: 65 | B66: 62293 | C66: 448052.27 | D66: 550247.8363 | E66: -102195.5663
A67: 66 | B67: 61228 | C67: 519618.76 | D67: =FORECAST(B67,$C$2:$C$191,$B$2:$B$191) -> 541470.5868 | E67: =C67-D67 -> -21851.8268
A68: 67 | B68: 32558 | C68: 364510.28 | D68: 305185.3822 | E68: 59324.89776
A69: 68 | B69: 40694 | C69: 351135.6 | D69: 372238.6234 | E69: -21103.02341
A70: 69 | B70: 46333 | C70: 390547.55 | D70: 418712.7172 | E70: -28165.16719
A71: 70 | B71: 28415 | C71: 234129.2 | D71: 271040.6455 | E71: -36911.4455
A72: 71 | B72: 19993 | C72: 224538.89 | D72: 201630.3214 | E72: 22908.56864
A73: 72 | B73: 34414 | C73: 248912.92 | D73: 320481.6968 | E73: -71568.77684
A74: 73 | B74: 52078 | C74: 328096.52 | D74: 466060.4151 | E74: -137963.8951
A75: 74 | B75: 24507 | C75: 262965.83 | D75: 238832.6727 | E75: 24133.15728
A76: 75 | B76: 28516 | C76: 334304.52 | D76: 271873.0419 | E76: 62431.47807
A77: 76 | B77: 17554 | C77: 216060.84 | D77: 181529.1838 | E77: 34531.6562
A78: 77 | B78: 16662 | C78: 183462.62 | D78: 174177.7223 | E78: 9284.897743
A79: 78 | B79: 57162 | C79: 517013.54 | D79: 507960.4493 | E79: 9053.090683
A80: 79 | B80: 57297 | C80: 731834.3 | D80: 509073.0584 | E80: 222761.2416
A81: 80 | B81: 64112 | C81: 439159.84 | D81: 565239.2136 | E81: -126079.3736
A82: 81 | B82: 37237 | C82: 453649.08 | D82: 343747.5892 | E82: 109901.4908
A83: 82 | B83: 55058 | C83: 495969.8 | D83: 490620.2306 | E83: 5349.569392
A84: 83 | B84: 30791 | C84: 306489.03 | D84: 290622.5655 | E84: 15866.46452
A85: 84 | B85: 19784 | C85: 226868.96 | D85: 199907.8377 | E85: 26961.12234
A86: 85 | B86: 32463 | C86: 316845.86 | D86: 304402.4351 | E86: 12443.4249
A87: 86 | B87: 59364 | C87: 496417.28 | D87: 526108.3398 | E87: -29691.05981
A88: 87 | B88: 64632 | C88: 527881.68 | D88: 569524.819 | E88: -41643.13898
A89: 88 | B89: 58106 | C89: 535766.16 | D89: 515740.4714 | E89: 20025.6886
A90: 89 | B90: 60333 | C90: 469314.35 | D90: 534094.4006 | E90: -64780.05061
A91: 90 | B91: 58353 | C91: 558254.63 | D91: 517776.134 | E91: 40478.49604
A92: 91 | B92: 22672 | C92: 197141.28 | D92: 223709.4306 | E92: -26568.15064
A93: 92 | B93: 64325 | C93: 563313.5 | D93: 566994.6635 | E93: -3681.163489
A94: 93 | B94: 32326 | C94: 365825.02 | D94: 303273.3429 | E94: 62551.67708
A95: 94 | B95: 16138 | C95: 206538.6 | D95: 169859.1507 | E95: 36679.44932
A96: 95 | B96: 34957 | C96: 320916.75 | D96: 324956.8579 | E96: -4040.107852
A97: 96 | B97: 26159 | C97: 294325.06 | D97: 252447.7114 | E97: 41877.34863
A98: 97 | B98: 42098 | C98: 329951.7 | D98: 383809.7579 | E98: -53858.05795
A99: 98 | B99: 20582 | C99: 161277.7 | D99: 206484.5936 | E99: -45206.89362
A100: 99 | B100: 45614 | C100: 428140.06 | D100: 412787.0436 | E100: 15353.01641
A101: 100 | B101: 42729 | C101: 433279.13 | D101: 389010.1753 | E101: 44268.95475
A102: 101 | B102: 40053 | C102: 346792.73 | D102: 366955.7906 | E102: -20163.06062
A103: 102 | B103: 51749 | C103: 540063.03 | D103: 463348.9456 | E103: 76714.08443
A104: 103 | B104: 59753 | C104: 588972.06 | D104: 529314.3023 | E104: 59657.7577
A105: 104 | B105: 34045 | C105: 290698.15 | D105: 317440.5653 | E105: -26742.41533
A106: 105 | B106: 56384 | C106: 544487.68 | D106: 501548.5243 | E106: 42939.15566
A107: 106 | B107: 33242 | C107: 206569.82 | D107: 310822.6016 | E107: -104252.7816
A108: 107 | B108: 49060 | C108: 550902.6 | D108: 441187.4208 | E108: 109715.1792
A109: 108 | B109: 38219 | C109: 321737.09 | D109: 351840.7901 | E109: -30103.70009
A110: 109 | B110: 56891 | C110: 568845.92 | D110: 505726.9896 | E110: 63118.93041
A111: 110 | B111: 52906 | C111: 426690.72 | D111: 472884.4176 | E111: -46193.69756
A112: 111 | B112: 44835 | C112: 430649.15 | D112: 406366.8771 | E112: 24282.27294
A113: 112 | B113: 45028 | C113: 400768.12 | D113: 407957.496 | E113: -7189.37598
A114: 113 | B114: 15988 | C114: 175665.68 | D114: 168622.9184 | E114: 7042.761645
A115: 114 | B115: 64717 | C115: 558028.45 | D115: 570225.3506 | E115: -12196.90062
A116: 115 | B116: 15196 | C116: 163514.12 | D116: 162095.6117 | E116: 1418.508307
A117: 116 | B117: 45093 | C117: 398568.89 | D117: 408493.1967 | E117: -9924.306654
A118: 117 | B118: 51099 | C118: 483830.51 | D118: 457991.9388 | E118: 25838.57116
A119: 118 | B119: 40839 | C119: 292958.72 | D119: 373433.648 | E119: -80474.92799
A120: 119 | B120: 29773 | C120: 275083.88 | D120: 282232.6688 | E120: -7148.788788
A121: 120 | B121: 60954 | C121: 599805.08 | D121: 539212.4024 | E121: 60592.67757
A122: 121 | B122: 53820 | C122: 524692.4 | D122: 480417.1932 | E122: 44275.20683
